Workbook

Sheet Sample Report (hidden)
A2: Date
A3: Hen
A4: Program
A5: Start at 999999
A6: Sequence component 1 | B6: Time 1 | C6: Seqeunce Component 2 | D6: Time 2 | E6: Seqeunce Component 3 | F6: Time 3 | G6: Correct 0 = No 1=Yes | J6: Seqeunce | K6: Time
A7: 12 | B7: 7 | C7: 12 | D7: 42 | E7: 13 | F7: 18 | G7: if 77 new line, if 31 or 41 = yes new line on 77, | J7: =string of Seqeunce compponent 1, 2 & 3 | K7: =time 3
A8: This continues until ther is a 1 on its own to indicate start of summary data
J9: 10-19 =1
A10: Summary Data | J10: 20-29 =2
A11: Correct | B11: Incorrect | C11: Rft | D11: total | E11: Av Correct | F11: Av Incorrect | G11: Percent correct | H11: Time | J11: in this example the seqeunce would be 111
A12: 40 | B12: 33 | C12: 40 | D12: 73 | E12: 23.95 | F12: 15 | G12: 54 | H12: 806

Sheet Summary
A2: Day | B2: Date | C2: Average Response Rate | D2: Target % | E2: RF for non correct sequence | F2: U Value | K2: Block 1 | L2: Block 2 | M2: Block 3 | N2: Block 4 | O2: Block 5 | P2: Block 6
A3: 1 | B3: ='!2011-07-28_10h26m.Subject 53'!B2:C2 -> 2011-07-28 | C3: =('!2011-07-28_10h26m.Subject 53'!H183/60)/'!2011-07-28_10h26m.Subject 53'!Q3 -> 0 | D3: ='!2011-07-28_10h26m.Subject 53'!N28/'!2011-07-28_10h26m.Subject 53'!Q3 -> 0.01129943503 | E3: =SUM('!2011-07-28_10h26m.Subject 53'!L28:Q28)/'!2011-07-28_10h26m.Subject 53'!Q3 -> 6.683615819 | F3: ='!2011-07-28_10h26m.Subject 53'!Q24 -> 0.3015024363 | J3: Average Response Rate | K3: =AVERAGE(C3:C7) -> 1.734182314 | L3: =AVERAGE(C8:C12) -> 2.393197527 | M3: =AVERAGE(C13:C17) -> 2.528008766 | N3: =AVERAGE(C18:C22) -> 2.570296501 | O3: =AVERAGE(C23:C27) -> 2.308747549 | P3: =AVERAGE(C28:C32) -> 2.28348975
A4: 2 | B4: ='!2011-07-29_09h35m.Subject 53'!B2:C2 -> 2011-07-29 | C4: =('!2011-07-29_09h35m.Subject 53'!H186/60)/'!2011-07-29_09h35m.Subject 53'!Q3 -> 2.209259259 | D4: ='!2011-07-29_09h35m.Subject 53'!N28/'!2011-07-29_09h35m.Subject 53'!Q3 -> 0 | E4: =SUM('!2011-07-29_09h35m.Subject 53'!L28:Q28)/'!2011-07-29_09h35m.Subject 53'!Q3 -> 6.566666667 | F4: ='!2011-07-29_09h35m.Subject 53'!Q24 -> 0.3036501702 | J4: Target % | K4: =AVERAGE(D3:D7) -> 0.004457689203 | L4: =AVERAGE(D8:D12) -> 0.02804120383 | M4: =AVERAGE(D13:D17) -> 0 | N4: =AVERAGE(D18:D22) -> 0 | O4: =AVERAGE(D23:D27) -> 0 | P4: =AVERAGE(D28:D32) -> 0
A5: 3 | B5: ='!2011-07-30_09h43m.Subject 53'!B2:C2 -> 2011-07-30 | C5: =('!2011-07-30_09h43m.Subject 53'!H190/60)/'!2011-07-30_09h43m.Subject 53'!Q3 -> 2.17192029 | D5: ='!2011-07-30_09h43m.Subject 53'!N28/'!2011-07-30_09h43m.Subject 53'!Q3 -> 0 | E5: =SUM('!2011-07-30_09h43m.Subject 53'!L28:Q28)/'!2011-07-30_09h43m.Subject 53'!Q3 -> 6.375 | F5: ='!2011-07-30_09h43m.Subject 53'!Q24 -> 0.2817906223 | J5: CCRF | K5: =AVERAGE(E3:E7) -> 6.452008493 | L5: =AVERAGE(E8:E12) -> 9.531313236 | M5: =AVERAGE(E13:E17) -> 8.888718193 | N5: =AVERAGE(E18:E22) -> 8.934480833 | O5: =AVERAGE(E23:E27) -> 10.63808202 | P5: =AVERAGE(E28:E32) -> 9.266812176
A6: 4 | B6: ='!2011-07-31_11h41m.Subject 53'!B2:C2 -> 2011-07-31 | C6: =('!2011-07-31_11h41m.Subject 53'!H196/60)/'!2011-07-31_11h41m.Subject 53'!Q3 -> 2.100263158 | D6: ='!2011-07-31_11h41m.Subject 53'!N28/'!2011-07-31_11h41m.Subject 53'!Q3 -> 0 | E6: =SUM('!2011-07-31_11h41m.Subject 53'!L28:Q28)/'!2011-07-31_11h41m.Subject 53'!Q3 -> 6.184210526 | F6: ='!2011-07-31_11h41m.Subject 53'!Q24 -> 0.1928047983 | J6: U Value | K6: =AVERAGE(F3:F7) -> 0.2699493787 | L6: =AVERAGE(F8:F12) -> 0.3966774501 | M6: =AVERAGE(F13:F17) -> 0.3180200932 | N6: =AVERAGE(F18:F22) -> 0.2813389623 | O6: =AVERAGE(F23:F27) -> 0.1972222833 | P6: =AVERAGE(F28:F32) -> 0.1529236261
A7: 5 | B7: ='!2011-08-01_09h48m.Subject 53'!B2:C2 -> 2011-08-01 | C7: =('!2011-08-01_09h48m.Subject 53'!H188/60)/'!2011-08-01_09h48m.Subject 53'!Q3 -> 2.189468864 | D7: ='!2011-08-01_09h48m.Subject 53'!N28/'!2011-08-01_09h48m.Subject 53'!Q3 -> 0.01098901099 | E7: =SUM('!2011-08-01_09h48m.Subject 53'!L28:Q28)/'!2011-08-01_09h48m.Subject 53'!Q3 -> 6.450549451 | F7: ='!2011-08-01_09h48m.Subject 53'!Q24 -> 0.2699988663
A8: 6 | B8: ='!2011-08-02_09h39m.Subject 53'!B2:C2 -> 2011-08-02 | C8: =('!2011-08-02_09h39m.Subject 53'!H184/60)/'!2011-08-02_09h39m.Subject 53'!Q3 -> 2.237172285 | D8: ='!2011-08-02_09h39m.Subject 53'!N28/'!2011-08-02_09h39m.Subject 53'!Q3 -> 0.005617977528 | E8: =SUM('!2011-08-02_09h39m.Subject 53'!L28:Q28)/'!2011-08-02_09h39m.Subject 53'!Q3 -> 6.578651685 | F8: ='!2011-08-02_09h39m.Subject 53'!Q24 -> 0.3537882697
A9: 7 | B9: ='!L803A50.053'!B2:C2 -> <date> | C9: =('!L803A50.053'!H172/60)/'!L803A50.053'!Q3 -> 2.267168675 | D9: ='!L803A50.053'!N28/'!L803A50.053'!Q3 -> 0.06626506024 | E9: =SUM('!L803A50.053'!L28:Q28)/'!L803A50.053'!Q3 -> 7.096385542 | F9: ='!L803A50.053'!Q24 -> 0.4688932232 | G9: =K3 -> 1.734182314 | H9: =L3 -> 2.393197527 | I9: =M3 -> 2.528008766 | J9: =N3 -> 2.570296501 | K9: =O3 -> 2.308747549 | L9: =P3 -> 2.28348975 | M9: =K4 -> 0.004457689203 | N9: =L4 -> 0.02804120383 | O9: =M4 -> 0 | P9: =N4 -> 0 | Q9: =O4 -> 0 | R9: =P4 -> 0 | S9: =K6 -> 0.2699493787 | T9: =L6 -> 0.3966774501 | U9: =M6 -> 0.3180200932 | V9: =N6 -> 0.2813389623 | W9: =O6 -> 0.1972222833 | X9: =P6 -> 0.1529236261
A10: 8 | B10: ='!L804A50.053'!B2:C2 -> <date> | C10: =('!L804A50.053'!H167/60)/'!L804A50.053'!Q3 -> 2.483126294 | D10: ='!L804A50.053'!N28/'!L804A50.053'!Q3 -> 0.06832298137 | E10: =SUM('!L804A50.053'!L28:Q28)/'!L804A50.053'!Q3 -> 13.58385093 | F10: ='!L804A50.053'!Q24 -> 0.4518600612
A11: 9 | B11: ='!L805930.053'!B2:C2 -> <date> | C11: =('!L805930.053'!H176/60)/'!L805930.053'!Q3 -> 2.349901961 | D11: ='!L805930.053'!N28/'!L805930.053'!Q3 -> 0 | E11: =SUM('!L805930.053'!L28:Q28)/'!L805930.053'!Q3 -> 12.75294118 | F11: ='!L805930.053'!Q24 -> 0.404593088
A12: 10 | B12: ='!L806A20.053'!B2:C2 -> <date> | C12: =('!L806A20.053'!H158/60)/'!L806A20.053'!Q3 -> 2.628618421 | D12: ='!L806A20.053'!N28/'!L806A20.053'!Q3 -> 0 | E12: =SUM('!L806A20.053'!L28:Q28)/'!L806A20.053'!Q3 -> 7.644736842 | F12: ='!L806A20.053'!Q24 -> 0.3042526084
A13: 11 | B13: ='!L807A10.053'!B2:C2 -> <date> | C13: =('!L807A10.053'!H168/60)/'!L807A10.053'!Q3 -> 2.460802469 | D13: ='!L807A10.053'!N28/'!L807A10.053'!Q3 -> 0 | E13: =SUM('!L807A10.053'!L28:Q28)/'!L807A10.053'!Q3 -> 7.191358025 | F13: ='!L807A10.053'!Q24 -> 0.3237053832
A14: 12 | B14: ='!L808A10.053'!B2:C2 -> <date> | C14: =('!L808A10.053'!H164/60)/'!L808A10.053'!Q3 -> 2.526898734 | D14: ='!L808A10.053'!N28/'!L808A10.053'!Q3 -> 0 | E14: =SUM('!L808A10.053'!L28:Q28)/'!L808A10.053'!Q3 -> 14.32911392 | F14: ='!L808A10.053'!Q24 -> 0.3267847989
A15: 13 | B15: ='!L809B00.053'!B2:C2 -> <date> | C15: =('!L809B00.053'!H164/60)/'!L809B00.053'!Q3 -> 2.530379747 | D15: ='!L809B00.053'!N28/'!L809B00.053'!Q3 -> 0 | E15: =SUM('!L809B00.053'!L28:Q28)/'!L809B00.053'!Q3 -> 7.367088608 | F15: ='!L809B00.053'!Q24 -> 0.3348725534
A16: 14 | B16: ='!L810B50.053'!B2:C2 -> <date> | C16: =('!L810B50.053'!H161/60)/'!L810B50.053'!Q3 -> 2.574086022 | D16: ='!L810B50.053'!N28/'!L810B50.053'!Q3 -> 0 | E16: =SUM('!L810B50.053'!L28:Q28)/'!L810B50.053'!Q3 -> 8.148387097 | F16: ='!L810B50.053'!Q24 -> 0.3268297645
A17: 15 | B17: ='!L811A00.053'!B2:C2 -> <date> | C17: =('!L811A00.053'!H163/60)/'!L811A00.053'!Q3 -> 2.547876858 | D17: ='!L811A00.053'!N28/'!L811A00.053'!Q3 -> 0 | E17: =SUM('!L811A00.053'!L28:Q28)/'!L811A00.053'!Q3 -> 7.407643312 | F17: ='!L811A00.053'!Q24 -> 0.2779079657
A18: 16 | B18: ='!L812930.053'!B2:C2 -> <date> | C18: =('!L812930.053'!H158/60)/'!L812930.053'!Q3 -> 2.625877193 | D18: ='!L812930.053'!N28/'!L812930.053'!Q3 -> 0 | E18: =SUM('!L812930.053'!L28:Q28)/'!L812930.053'!Q3 -> 7.644736842 | F18: ='!L812930.053'!Q24 -> 0.2900756659
A19: 17 | B19: ='!L813920.053'!B2:C2 -> <date> | C19: =('!L813920.053'!H153/60)/'!L813920.053'!Q3 -> 2.714399093 | D19: ='!L813920.053'!N28/'!L813920.053'!Q3 -> 0 | E19: =SUM('!L813920.053'!L28:Q28)/'!L813920.053'!Q3 -> 7.891156463 | F19: ='!L813920.053'!Q24 -> 0.3294795639
A20: 18 | B20: ='!L814940.053'!B2:C2 -> <date> | C20: =('!L814940.053'!H160/60)/'!L814940.053'!Q3 -> 2.591558442 | D20: ='!L814940.053'!N28/'!L814940.053'!Q3 -> 0 | E20: =SUM('!L814940.053'!L28:Q28)/'!L814940.053'!Q3 -> 14.75324675 | F20: ='!L814940.053'!Q24 -> 0.3162536406
A21: 19 | B21: ='!L815A40.053'!B2:C2 -> <date> | C21: =('!L815A40.053'!H167/60)/'!L815A40.053'!Q3 -> 2.476293996 | D21: ='!L815A40.053'!N28/'!L815A40.053'!Q3 -> 0 | E21: =SUM('!L815A40.053'!L28:Q28)/'!L815A40.053'!Q3 -> 7.236024845 | F21: ='!L815A40.053'!Q24 -> 0.2340846632
A22: 20 | B22: ='!L816910.053'!B2:C2 -> <date> | C22: =('!L816910.053'!H169/60)/'!L816910.053'!Q3 -> 2.443353783 | D22: ='!L816910.053'!N28/'!L816910.053'!Q3 -> 0 | E22: =SUM('!L816910.053'!L28:Q28)/'!L816910.053'!Q3 -> 7.147239264 | F22: ='!L816910.053'!Q24 -> 0.236801278
A23: 21 | B23: ='!L817940.053'!B2:C2 -> <date> | C23: =('!L817940.053'!H172/60)/'!L817940.053'!Q3 -> 2.402710843 | D23: ='!L817940.053'!N28/'!L817940.053'!Q3 -> 0 | E23: =SUM('!L817940.053'!L28:Q28)/'!L817940.053'!Q3 -> 13.71686747 | F23: ='!L817940.053'!Q24 -> 0.1848767162
A24: 22 | B24: ='!L818B40.053'!B2:C2 -> <date> | C24: =('!L818B40.053'!H170/60)/'!L818B40.053'!Q3 -> 2.43851626 | D24: ='!L818B40.053'!N28/'!L818B40.053'!Q3 -> 0 | E24: =SUM('!L818B40.053'!L28:Q28)/'!L818B40.053'!Q3 -> 7.109756098 | F24: ='!L818B40.053'!Q24 -> 0.1864857632
A25: 23 | B25: ='!L819920.053'!B2:C2 -> <date> | C25: =('!L819920.053'!H188/60)/'!L819920.053'!Q3 -> 2.191575092 | D25: ='!L819920.053'!N28/'!L819920.053'!Q3 -> 0 | E25: =SUM('!L819920.053'!L28:Q28)/'!L819920.053'!Q3 -> 12.54395604 | F25: ='!L819920.053'!Q24 -> 0.1776523738
A26: 24 | B26: ='!L820950.053'!B2:C2 -> <date> | C26: =('!L820950.053'!H175/60)/'!L820950.053'!Q3 -> 2.357692308 | D26: ='!L820950.053'!N28/'!L820950.053'!Q3 -> 0 | E26: =SUM('!L820950.053'!L28:Q28)/'!L820950.053'!Q3 -> 13.47928994 | F26: ='!L820950.053'!Q24 -> 0.2038057241
A27: 25 | B27: ='!L821B20.053'!B2:C2 -> <date> | C27: =('!L821B20.053'!H191/60)/'!L821B20.053'!Q3 -> 2.153243243 | D27: ='!L821B20.053'!N28/'!L821B20.053'!Q3 -> 0 | E27: =SUM('!L821B20.053'!L28:Q28)/'!L821B20.053'!Q3 -> 6.340540541 | F27: ='!L821B20.053'!Q24 -> 0.2332908393
A28: 26 | B28: ='!L822A20.053'!B2:C2 -> <date> | C28: =('!L822A20.053'!H193/60)/'!L822A20.053'!Q3 -> 2.13885918 | D28: ='!L822A20.053'!N28/'!L822A20.053'!Q3 -> 0 | E28: =SUM('!L822A20.053'!L28:Q28)/'!L822A20.053'!Q3 -> 6.272727273 | F28: ='!L822A20.053'!Q24 -> 0.1862182784
A29: 27 | B29: ='!L824950.053'!B2:C2 -> <date> | C29: =('!L824950.053'!H181/60)/'!L824950.053'!Q3 -> 2.277809524 | D29: ='!L824950.053'!N28/'!L824950.053'!Q3 -> 0 | E29: =SUM('!L824950.053'!L28:Q28)/'!L824950.053'!Q3 -> 6.685714286 | F29: ='!L824950.053'!Q24 -> 0.1523809522
A30: 28 | B30: ='!L825A20.053'!B2:C2 -> <date> | C30: =('!L825A20.053'!H174/60)/'!L825A20.053'!Q3 -> 2.372222222 | D30: ='!L825A20.053'!N28/'!L825A20.053'!Q3 -> 0 | E30: =SUM('!L825A20.053'!L28:Q28)/'!L825A20.053'!Q3 -> 6.946428571 | F30: ='!L825A20.053'!Q24 -> 0.1478201727
A31: 29 | B31: ='!L826850.053'!B2:C2 -> <date> | C31: =('!L826850.053'!H179/60)/'!L826850.053'!Q3 -> 2.304720617 | D31: ='!L826850.053'!N28/'!L826850.053'!Q3 -> 0 | E31: =SUM('!L826850.053'!L28:Q28)/'!L826850.053'!Q3 -> 13.17919075 | F31: ='!L826850.053'!Q24 -> 0.1436097616
A32: 30 | B32: ='!L829A40.053'!B2:C2 -> <date> | C32: =('!L829A40.053'!H178/60)/'!L829A40.053'!Q3 -> 2.323837209 | D32: ='!L829A40.053'!N28/'!L829A40.053'!Q3 -> 0 | E32: =SUM('!L829A40.053'!L28:Q28)/'!L829A40.053'!Q3 -> 13.25 | F32: ='!L829A40.053'!Q24 -> 0.1345889659

Sheet Start
F1: Use Folder 51 | H1: Auto Clean Up | J1: Correct sequence
F2: FALSE | H2: TRUE | J2: 2212
A4: Working with Folder | G4: Process All/Or Pick A number: ALL or an integer
A5: E:\Hen Data\Raw Data\53\phase 3 Any\ | G5: ALL
A6: Filenames:
A7: !L803A50.053 | G7: Paint Cells
A8: !L804A50.053 | G8: FALSE
A9: !L806A20.053
A10: !L807A10.053
A11: !L808A10.053
A12: !L809B00.053
A13: !L810B50.053
A14: !L811A00.053
A15: !L815A40.053
A16: !L818B40.053
A17: !L821B20.053
A18: !L822A20.053
A19: !L825A20.053
A20: !L829A40.053
A21: !L813920.053
A22: !L812930.053
A23: !L805930.053
A24: !L814940.053
A25: !L816910.053
A26: !L817940.053
A27: !L819920.053
A28: !L820950.053
A29: !L824950.053
A30: !L826850.053
A31: !2011-07-28_10h26m.Subject 53
A32: !2011-07-29_09h35m.Subject 53
A33: !2011-07-30_09h43m.Subject 53
A34: !2011-07-31_11h41m.Subject 53
A35: !2011-08-01_09h48m.Subject 53
A36: !2011-08-02_09h39m.Subject 53

Sheet !2011-07-28_10h26m.Subject 53
A1: Report for:!2011-07-28_10h26m.Subject 53
A2: Date | B2: 2011-07-28 | F2: Group | G2: Phase 3 Any
A3: Hen | B3: 53 | F3: Correct Sequence | G3: =Start!J2 -> 2212 | P3: Total Sequences in Data | Q3: =4994-COUNTBLANK(L7:L5000) -> 177 | V3: Total Sequences in Block Data | W3: =COUNTA(L7:L36) -> 30 | AA3: Total Sequences in Block Data | AB3: =COUNTA(L37:L65) -> 29 | AF3: Total Sequences in Block Data | AG3: =COUNTA(L66:L95) -> 30 | AK3: Total Sequences in Block Data | AL3: =COUNTA(L96:L124) -> 29 | AP3: Total Sequences in Block Data | AQ3: =COUNTA(L125:L154) -> 30 | AU3: Total Sequences in Block Data | AV3: =COUNTA(L155:L183) -> 29
A4: Program | B4: One | P4: Total Sequences in Summary | Q4: =SUM(O7:O22) -> 176 | V4: Total Sequences in Block Summary | W4: =SUM(U7:U22) -> 30 | AA4: Total Sequences in Block Summary | AB4: =SUM(Z7:Z22) -> 29 | AF4: Total Sequences in Block Summary | AG4: =SUM(AE7:AE22) -> 30 | AK4: Total Sequences in Block Summary | AL4: =SUM(AJ7:AJ22) -> 29 | AP4: Total Sequences in Block Summary | AQ4: =SUM(AO7:AO22) -> 30 | AU4: Total Sequences in Block Summary | AV4: =SUM(AT7:AT22) -> 28
T5: Block 1 | Y5: Block 2 | AD5: Block 3 | AI5: Block 4 | AN5: Block 5 | AS5: Block 6
A6: Sequence Component 1 | B6: Time 1 | C6: Sequence Component 2 | D6: Time 2 | E6: Sequence Component 3 | F6: Time 3 | G6: Sequence Component 4 | H6: Time 4 | I6: Sequence Component 5 | J6: Time 5 | K6: Correct? 0=No 1=Yes | L6: Sequence | N6: Frequency | P6: Relative Frequency | Q6: Variability | T6: Frequency | V6: Relative Frequency | W6: Variability | Y6: Frequency | AA6: Relative Frequency | AB6: Variability | AD6: Frequency | AF6: Relative Frequency | AG6: Variability | AI6: Frequency | AK6: Relative Frequency | AL6: Variability | AN6: Frequency | AP6: Relative Frequency | AQ6: Variability | AS6: Frequency | AU6: Relative Frequency | AV6: Variability
A7: 12 | B7: 9 | C7: 14 | D7: 16 | E7: 13 | F7: 43 | G7: 23 | H7: 52 | K7: 0 | L7: 1112 | N7: 1111 | O7: =COUNTIF($L$7:$L$500,N7) -> 3 | P7: =O7/$Q$4 -> 0.01704545455 | Q7: =IF(P7=0,0,(P7*((LOG(P7))/LOG(2)))) -> -0.1001329963 | T7: =N7 -> 1111 | U7: =COUNTIF(L7:L36,T7) -> 0 | V7: =U7/(W4-U20) -> 0 | W7: =IF(V7=0,0,(V7*((LOG(V7))/LOG(2)))) -> 0 | Y7: =N7 -> 1111 | Z7: =COUNTIF(L37:L65,Y7) -> 1 | AA7: =Z7/(AB4-Z20) -> 0.03448275862 | AB7: =IF(AA7=0,0,(AA7*((LOG(AA7))/LOG(2)))) -> -0.167516586 | AD7: =N7 -> 1111 | AE7: =COUNTIF(L66:L95,AD7) -> 0 | AF7: =AE7/(AG4-AE20) -> 0 | AG7: =IF(AF7=0,0,(AF7*((LOG(AF7))/LOG(2)))) -> 0 | AI7: =N7 -> 1111 | AJ7: =COUNTIF(L96:L124,AI7) -> 0 | AK7: =AJ7/(AL4-AJ20) -> 0 | AL7: =IF(AK7=0,0,(AK7*((LOG(AK7))/LOG(2)))) -> 0 | AN7: =N7 -> 1111 | AO7: =COUNTIF(L125:L154,AN7) -> 1 | AP7: =AO7/(AQ4-AO20) -> 0.03333333333 | AQ7: =IF(AP7=0,0,(AP7*((LOG(AP7))/LOG(2)))) -> -0.1635630199 | AS7: =N7 -> 1111 | AT7: =COUNTIF(L155:L183,AS7) -> 1 | AU7: =AT7/(AV4-AT20) -> 0.03846153846 | AV7: =IF(AU7=0,0,(AU7*((LOG(AU7))/LOG(2)))) -> -0.180786143
A8: 12 | B8: 149 | C8: 14 | D8: 156 | E8: 24 | F8: 166 | G8: 23 | H8: 177 | K8: 0 | L8: 1122 | N8: 1112 | O8: =COUNTIF($L$7:$L$500,N8) -> 39 | P8: =O8/$Q$4 -> 0.2215909091 | Q8: =IF(P8=0,0,(P8*((LOG(P8))/LOG(2)))) -> -0.4817451511 | T8: =N8 -> 1112 | U8: =COUNTIF(L7:L36,T8) -> 1 | V8: =U8/(W4-U20) -> 0.03333333333 | W8: =IF(V8=0,0,(V8*((LOG(V8))/LOG(2)))) -> -0.1635630199 | Y8: =N8 -> 1112 | Z8: =COUNTIF(L37:L65,Y8) -> 3 | AA8: =Z8/(AB4-Z20) -> 0.1034482759 | AB8: =IF(AA8=0,0,(AA8*((LOG(AA8))/LOG(2)))) -> -0.3385881201 | AD8: =N8 -> 1112 | AE8: =COUNTIF(L66:L95,AD8) -> 8 | AF8: =AE8/(AG4-AE20) -> 0.2666666667 | AG8: =IF(AF8=0,0,(AF8*((LOG(AF8))/LOG(2)))) -> -0.5085041588 | AI8: =N8 -> 1112 | AJ8: =COUNTIF(L96:L124,AI8) -> 5 | AK8: =AJ8/(AL4-AJ20) -> 0.1724137931 | AL8: =IF(AK8=0,0,(AK8*((LOG(AK8))/LOG(2)))) -> -0.4372505 | AN8: =N8 -> 1112 | AO8: =COUNTIF(L125:L154,AN8) -> 9 | AP8: =AO8/(AQ4-AO20) -> 0.3 | AQ8: =IF(AP8=0,0,(AP8*((LOG(AP8))/LOG(2)))) -> -0.5210896782 | AS8: =N8 -> 1112 | AT8: =COUNTIF(L155:L183,AS8) -> 13 | AU8: =AT8/(AV4-AT20) -> 0.5 | AV8: =IF(AU8=0,0,(AU8*((LOG(AU8))/LOG(2)))) -> -0.5
A9: 12 | B9: 274 | C9: 14 | D9: 283 | E9: 24 | F9: 292 | G9: 23 | H9: 308 | K9: 0 | L9: 1122 | N9: 1121 | O9: =COUNTIF($L$7:$L$500,N9) -> 15 | P9: =O9/$Q$4 -> 0.08522727273 | Q9: =IF(P9=0,0,(P9*((LOG(P9))/LOG(2)))) -> -0.3027733826 | T9: =N9 -> 1121 | U9: =COUNTIF(L7:L36,T9) -> 1 | V9: =U9/(W4-U20) -> 0.03333333333 | W9: =IF(V9=0,0,(V9*((LOG(V9))/LOG(2)))) -> -0.1635630199 | Y9: =N9 -> 1121 | Z9: =COUNTIF(L37:L65,Y9) -> 1 | AA9: =Z9/(AB4-Z20) -> 0.03448275862 | AB9: =IF(AA9=0,0,(AA9*((LOG(AA9))/LOG(2)))) -> -0.167516586 | AD9: =N9 -> 1121 | AE9: =COUNTIF(L66:L95,AD9) -> 2 | AF9: =AE9/(AG4-AE20) -> 0.06666666667 | AG9: =IF(AF9=0,0,(AF9*((LOG(AF9))/LOG(2)))) -> -0.260459373 | AI9: =N9 -> 1121 | AJ9: =COUNTIF(L96:L124,AI9) -> 6 | AK9: =AJ9/(AL4-AJ20) -> 0.2068965517 | AL9: =IF(AK9=0,0,(AK9*((LOG(AK9))/LOG(2)))) -> -0.4702796885 | AN9: =N9 -> 1121 | AO9: =COUNTIF(L125:L154,AN9) -> 3 | AP9: =AO9/(AQ4-AO20) -> 0.1 | AQ9: =IF(AP9=0,0,(AP9*((LOG(AP9))/LOG(2)))) -> -0.3321928095 | AS9: =N9 -> 1121 | AT9: =COUNTIF(L155:L183,AS9) -> 2 | AU9: =AT9/(AV4-AT20) -> 0.07692307692 | AV9: =IF(AU9=0,0,(AU9*((LOG(AU9))/LOG(2)))) -> -0.2846492091
A10: 12 | B10: 404 | C10: 14 | D10: 412 | E10: 24 | F10: 434 | G10: 23 | H10: 465 | K10: 0 | L10: 1122 | N10: 1122 | O10: =COUNTIF($L$7:$L$500,N10) -> 85 | P10: =O10/$Q$4 -> 0.4829545455 | Q10: =IF(P10=0,0,(P10*((LOG(P10))/LOG(2)))) -> -0.5071219205 | T10: =N10 -> 1122 | U10: =COUNTIF(L7:L36,T10) -> 18 | V10: =U10/(W4-U20) -> 0.6 | W10: =IF(V10=0,0,(V10*((LOG(V10))/LOG(2)))) -> -0.4421793565 | Y10: =N10 -> 1122 | Z10: =COUNTIF(L37:L65,Y10) -> 18 | AA10: =Z10/(AB4-Z20) -> 0.6206896552 | AB10: =IF(AA10=0,0,(AA10*((LOG(AA10))/LOG(2)))) -> -0.4270692375 | AD10: =N10 -> 1122 | AE10: =COUNTIF(L66:L95,AD10) -> 15 | AF10: =AE10/(AG4-AE20) -> 0.5 | AG10: =IF(AF10=0,0,(AF10*((LOG(AF10))/LOG(2)))) -> -0.5 | AI10: =N10 -> 1122 | AJ10: =COUNTIF(L96:L124,AI10) -> 10 | AK10: =AJ10/(AL4-AJ20) -> 0.3448275862 | AL10: =IF(AK10=0,0,(AK10*((LOG(AK10))/LOG(2)))) -> -0.5296734139 | AN10: =N10 -> 1122 | AO10: =COUNTIF(L125:L154,AN10) -> 16 | AP10: =AO10/(AQ4-AO20) -> 0.5333333333 | AQ10: =IF(AP10=0,0,(AP10*((LOG(AP10))/LOG(2)))) -> -0.4836749843 | AS10: =N10 -> 1122 | AT10: =COUNTIF(L155:L183,AS10) -> 8 | AU10: =AT10/(AV4-AT20) -> 0.3076923077 | AV10: =IF(AU10=0,0,(AU10*((LOG(AU10))/LOG(2)))) -> -0.523212221
A11: 12 | B11: 564 | C11: 23 | D11: 580 | E11: 13 | F11: 597 | G11: 23 | H11: 609 | K11: 0 | L11: 1212 | N11: 1211 | O11: =COUNTIF($L$7:$L$500,N11) -> 0 | P11: =O11/$Q$4 -> 0 | Q11: =IF(P11=0,0,(P11*((LOG(P11))/LOG(2)))) -> 0 | T11: =N11 -> 1211 | U11: =COUNTIF(L7:L36,T11) -> 0 | V11: =U11/(W4-U20) -> 0 | W11: =IF(V11=0,0,(V11*((LOG(V11))/LOG(2)))) -> 0 | Y11: =N11 -> 1211 | Z11: =COUNTIF(L37:L65,Y11) -> 0 | AA11: =Z11/(AB4-Z20) -> 0 | AB11: =IF(AA11=0,0,(AA11*((LOG(AA11))/LOG(2)))) -> 0 | AD11: =N11 -> 1211 | AE11: =COUNTIF(L66:L95,AD11) -> 0 | AF11: =AE11/(AG4-AE20) -> 0 | AG11: =IF(AF11=0,0,(AF11*((LOG(AF11))/LOG(2)))) -> 0 | AI11: =N11 -> 1211 | AJ11: =COUNTIF(L96:L124,AI11) -> 0 | AK11: =AJ11/(AL4-AJ20) -> 0 | AL11: =IF(AK11=0,0,(AK11*((LOG(AK11))/LOG(2)))) -> 0 | AN11: =N11 -> 1211 | AO11: =COUNTIF(L125:L154,AN11) -> 0 | AP11: =AO11/(AQ4-AO20) -> 0 | AQ11: =IF(AP11=0,0,(AP11*((LOG(AP11))/LOG(2)))) -> 0 | AS11: =N11 -> 1211 | AT11: =COUNTIF(L155:L183,AS11) -> 0 | AU11: =AT11/(AV4-AT20) -> 0 | AV11: =IF(AU11=0,0,(AU11*((LOG(AU11))/LOG(2)))) -> 0
A12: 12 | B12: 697 | C12: 14 | D12: 706 | E12: 24 | F12: 716 | G12: 23 | H12: 723 | K12: 0 | L12: 1122 | N12: 1212 | O12: =COUNTIF($L$7:$L$500,N12) -> 9 | P12: =O12/$Q$4 -> 0.05113636364 | Q12: =IF(P12=0,0,(P12*((LOG(P12))/LOG(2)))) -> -0.2193497702 | T12: =N12 -> 1212 | U12: =COUNTIF(L7:L36,T12) -> 2 | V12: =U12/(W4-U20) -> 0.06666666667 | W12: =IF(V12=0,0,(V12*((LOG(V12))/LOG(2)))) -> -0.260459373 | Y12: =N12 -> 1212 | Z12: =COUNTIF(L37:L65,Y12) -> 1 | AA12: =Z12/(AB4-Z20) -> 0.03448275862 | AB12: =IF(AA12=0,0,(AA12*((LOG(AA12))/LOG(2)))) -> -0.167516586 | AD12: =N12 -> 1212 | AE12: =COUNTIF(L66:L95,AD12) -> 1 | AF12: =AE12/(AG4-AE20) -> 0.03333333333 | AG12: =IF(AF12=0,0,(AF12*((LOG(AF12))/LOG(2)))) -> -0.1635630199 | AI12: =N12 -> 1212 | AJ12: =COUNTIF(L96:L124,AI12) -> 4 | AK12: =AJ12/(AL4-AJ20) -> 0.1379310345 | AL12: =IF(AK12=0,0,(AK12*((LOG(AK12))/LOG(2)))) -> -0.3942042752 | AN12: =N12 -> 1212 | AO12: =COUNTIF(L125:L154,AN12) -> 0 | AP12: =AO12/(AQ4-AO20) -> 0 | AQ12: =IF(AP12=0,0,(AP12*((LOG(AP12))/LOG(2)))) -> 0 | AS12: =N12 -> 1212 | AT12: =COUNTIF(L155:L183,AS12) -> 1 | AU12: =AT12/(AV4-AT20) -> 0.03846153846 | AV12: =IF(AU12=0,0,(AU12*((LOG(AU12))/LOG(2)))) -> -0.180786143
A13: 12 | B13: 821 | C13: 23 | D13: 836 | E13: 24 | F13: 850 | G13: 23 | H13: 862 | K13: 0 | L13: 1222 | N13: 1221 | O13: =COUNTIF($L$7:$L$500,N13) -> 5 | P13: =O13/$Q$4 -> 0.02840909091 | Q13: =IF(P13=0,0,(P13*((LOG(P13))/LOG(2)))) -> -0.1459518047 | T13: =N13 -> 1221 | U13: =COUNTIF(L7:L36,T13) -> 1 | V13: =U13/(W4-U20) -> 0.03333333333 | W13: =IF(V13=0,0,(V13*((LOG(V13))/LOG(2)))) -> -0.1635630199 | Y13: =N13 -> 1221 | Z13: =COUNTIF(L37:L65,Y13) -> 2 | AA13: =Z13/(AB4-Z20) -> 0.06896551724 | AB13: =IF(AA13=0,0,(AA13*((LOG(AA13))/LOG(2)))) -> -0.2660676548 | AD13: =N13 -> 1221 | AE13: =COUNTIF(L66:L95,AD13) -> 1 | AF13: =AE13/(AG4-AE20) -> 0.03333333333 | AG13: =IF(AF13=0,0,(AF13*((LOG(AF13))/LOG(2)))) -> -0.1635630199 | AI13: =N13 -> 1221 | AJ13: =COUNTIF(L96:L124,AI13) -> 1 | AK13: =AJ13/(AL4-AJ20) -> 0.03448275862 | AL13: =IF(AK13=0,0,(AK13*((LOG(AK13))/LOG(2)))) -> -0.167516586 | AN13: =N13 -> 1221 | AO13: =COUNTIF(L125:L154,AN13) -> 0 | AP13: =AO13/(AQ4-AO20) -> 0 | AQ13: =IF(AP13=0,0,(AP13*((LOG(AP13))/LOG(2)))) -> 0 | AS13: =N13 -> 1221 | AT13: =COUNTIF(L155:L183,AS13) -> 0 | AU13: =AT13/(AV4-AT20) -> 0 | AV13: =IF(AU13=0,0,(AU13*((LOG(AU13))/LOG(2)))) -> 0
A14: 12 | B14: 958 | C14: 14 | D14: 968 | E14: 24 | F14: 978 | G14: 23 | H14: 984 | K14: 0 | L14: 1122 | N14: 1222 | O14: =COUNTIF($L$7:$L$500,N14) -> 15 | P14: =O14/$Q$4 -> 0.08522727273 | Q14: =IF(P14=0,0,(P14*((LOG(P14))/LOG(2)))) -> -0.3027733826 | T14: =N14 -> 1222 | U14: =COUNTIF(L7:L36,T14) -> 6 | V14: =U14/(W4-U20) -> 0.2 | W14: =IF(V14=0,0,(V14*((LOG(V14))/LOG(2)))) -> -0.464385619 | Y14: =N14 -> 1222 | Z14: =COUNTIF(L37:L65,Y14) -> 2 | AA14: =Z14/(AB4-Z20) -> 0.06896551724 | AB14: =IF(AA14=0,0,(AA14*((LOG(AA14))/LOG(2)))) -> -0.2660676548 | AD14: =N14 -> 1222 | AE14: =COUNTIF(L66:L95,AD14) -> 2 | AF14: =AE14/(AG4-AE20) -> 0.06666666667 | AG14: =IF(AF14=0,0,(AF14*((LOG(AF14))/LOG(2)))) -> -0.260459373 | AI14: =N14 -> 1222 | AJ14: =COUNTIF(L96:L124,AI14) -> 3 | AK14: =AJ14/(AL4-AJ20) -> 0.1034482759 | AL14: =IF(AK14=0,0,(AK14*((LOG(AK14))/LOG(2)))) -> -0.3385881201 | AN14: =N14 -> 1222 | AO14: =COUNTIF(L125:L154,AN14) -> 1 | AP14: =AO14/(AQ4-AO20) -> 0.03333333333 | AQ14: =IF(AP14=0,0,(AP14*((LOG(AP14))/LOG(2)))) -> -0.1635630199 | AS14: =N14 -> 1222 | AT14: =COUNTIF(L155:L183,AS14) -> 1 | AU14: =AT14/(AV4-AT20) -> 0.03846153846 | AV14: =IF(AU14=0,0,(AU14*((LOG(AU14))/LOG(2)))) -> -0.180786143
A15: 12 | B15: 1084 | C15: 23 | D15: 1097 | E15: 24 | F15: 1105 | G15: 23 | H15: 1112 | K15: 0 | L15: 1222 | N15: 2111 | O15: =COUNTIF($L$7:$L$500,N15) -> 1 | P15: =O15/$Q$4 -> 0.005681818182 | Q15: =IF(P15=0,0,(P15*((LOG(P15))/LOG(2)))) -> -0.0423831342 | T15: =N15 -> 2111 | U15: =COUNTIF(L7:L36,T15) -> 0 | V15: =U15/(W4-U20) -> 0 | W15: =IF(V15=0,0,(V15*((LOG(V15))/LOG(2)))) -> 0 | Y15: =N15 -> 2111 | Z15: =COUNTIF(L37:L65,Y15) -> 1 | AA15: =Z15/(AB4-Z20) -> 0.03448275862 | AB15: =IF(AA15=0,0,(AA15*((LOG(AA15))/LOG(2)))) -> -0.167516586 | AD15: =N15 -> 2111 | AE15: =COUNTIF(L66:L95,AD15) -> 0 | AF15: =AE15/(AG4-AE20) -> 0 | AG15: =IF(AF15=0,0,(AF15*((LOG(AF15))/LOG(2)))) -> 0 | AI15: =N15 -> 2111 | AJ15: =COUNTIF(L96:L124,AI15) -> 0 | AK15: =AJ15/(AL4-AJ20) -> 0 | AL15: =IF(AK15=0,0,(AK15*((LOG(AK15))/LOG(2)))) -> 0 | AN15: =N15 -> 2111 | AO15: =COUNTIF(L125:L154,AN15) -> 0 | AP15: =AO15/(AQ4-AO20) -> 0 | AQ15: =IF(AP15=0,0,(AP15*((LOG(AP15))/LOG(2)))) -> 0 | AS15: =N15 -> 2111 | AT15: =COUNTIF(L155:L183,AS15) -> 0 | AU15: =AT15/(AV4-AT20) -> 0 | AV15: =IF(AU15=0,0,(AU15*((LOG(AU15))/LOG(2)))) -> 0
A16: 12 | B16: 1212 | C16: 14 | D16: 1220 | E16: 24 | F16: 1229 | G16: 23 | H16: 1237 | K16: 0 | L16: 1122 | N16: 2112 | O16: =COUNTIF($L$7:$L$500,N16) -> 0 | P16: =O16/$Q$4 -> 0 | Q16: =IF(P16=0,0,(P16*((LOG(P16))/LOG(2)))) -> 0 | T16: =N16 -> 2112 | U16: =COUNTIF(L7:L36,T16) -> 0 | V16: =U16/(W4-U20) -> 0 | W16: =IF(V16=0,0,(V16*((LOG(V16))/LOG(2)))) -> 0 | Y16: =N16 -> 2112 | Z16: =COUNTIF(L37:L65,Y16) -> 0 | AA16: =Z16/(AB4-Z20) -> 0 | AB16: =IF(AA16=0,0,(AA16*((LOG(AA16))/LOG(2)))) -> 0 | AD16: =N16 -> 2112 | AE16: =COUNTIF(L66:L95,AD16) -> 0 | AF16: =AE16/(AG4-AE20) -> 0 | AG16: =IF(AF16=0,0,(AF16*((LOG(AF16))/LOG(2)))) -> 0 | AI16: =N16 -> 2112 | AJ16: =COUNTIF(L96:L124,AI16) -> 0 | AK16: =AJ16/(AL4-AJ20) -> 0 | AL16: =IF(AK16=0,0,(AK16*((LOG(AK16))/LOG(2)))) -> 0 | AN16: =N16 -> 2112 | AO16: =COUNTIF(L125:L154,AN16) -> 0 | AP16: =AO16/(AQ4-AO20) -> 0 | AQ16: =IF(AP16=0,0,(AP16*((LOG(AP16))/LOG(2)))) -> 0 | AS16: =N16 -> 2112 | AT16: =COUNTIF(L155:L183,AS16) -> 0 | AU16: =AT16/(AV4-AT20) -> 0 | AV16: =IF(AU16=0,0,(AU16*((LOG(AU16))/LOG(2)))) -> 0
A17: 12 | B17: 1327 | C17: 14 | D17: 1333 | E17: 24 | F17: 1342 | G17: 23 | H17: 1349 | K17: 0 | L17: 1122 | N17: 2121 | O17: =COUNTIF($L$7:$L$500,N17) -> 0 | P17: =O17/$Q$4 -> 0 | Q17: =IF(P17=0,0,(P17*((LOG(P17))/LOG(2)))) -> 0 | T17: =N17 -> 2121 | U17: =COUNTIF(L7:L36,T17) -> 0 | V17: =U17/(W4-U20) -> 0 | W17: =IF(V17=0,0,(V17*((LOG(V17))/LOG(2)))) -> 0 | Y17: =N17 -> 2121 | Z17: =COUNTIF(L37:L65,Y17) -> 0 | AA17: =Z17/(AB4-Z20) -> 0 | AB17: =IF(AA17=0,0,(AA17*((LOG(AA17))/LOG(2)))) -> 0 | AD17: =N17 -> 2121 | AE17: =COUNTIF(L66:L95,AD17) -> 0 | AF17: =AE17/(AG4-AE20) -> 0 | AG17: =IF(AF17=0,0,(AF17*((LOG(AF17))/LOG(2)))) -> 0 | AI17: =N17 -> 2121 | AJ17: =COUNTIF(L96:L124,AI17) -> 0 | AK17: =AJ17/(AL4-AJ20) -> 0 | AL17: =IF(AK17=0,0,(AK17*((LOG(AK17))/LOG(2)))) -> 0 | AN17: =N17 -> 2121 | AO17: =COUNTIF(L125:L154,AN17) -> 0 | AP17: =AO17/(AQ4-AO20) -> 0 | AQ17: =IF(AP17=0,0,(AP17*((LOG(AP17))/LOG(2)))) -> 0 | AS17: =N17 -> 2121 | AT17: =COUNTIF(L155:L183,AS17) -> 0 | AU17: =AT17/(AV4-AT20) -> 0 | AV17: =IF(AU17=0,0,(AU17*((LOG(AU17))/LOG(2)))) -> 0
A18: 12 | B18: 1446 | C18: 23 | D18: 1466 | E18: 24 | F18: 1477 | G18: 23 | H18: 1485 | K18: 0 | L18: 1222 | N18: 2122 | O18: =COUNTIF($L$7:$L$500,N18) -> 2 | P18: =O18/$Q$4 -> 0.01136363636 | Q18: =IF(P18=0,0,(P18*((LOG(P18))/LOG(2)))) -> -0.07340263203 | T18: =N18 -> 2122 | U18: =COUNTIF(L7:L36,T18) -> 1 | V18: =U18/(W4-U20) -> 0.03333333333 | W18: =IF(V18=0,0,(V18*((LOG(V18))/LOG(2)))) -> -0.1635630199 | Y18: =N18 -> 2122 | Z18: =COUNTIF(L37:L65,Y18) -> 0 | AA18: =Z18/(AB4-Z20) -> 0 | AB18: =IF(AA18=0,0,(AA18*((LOG(AA18))/LOG(2)))) -> 0 | AD18: =N18 -> 2122 | AE18: =COUNTIF(L66:L95,AD18) -> 1 | AF18: =AE18/(AG4-AE20) -> 0.03333333333 | AG18: =IF(AF18=0,0,(AF18*((LOG(AF18))/LOG(2)))) -> -0.1635630199 | AI18: =N18 -> 2122 | AJ18: =COUNTIF(L96:L124,AI18) -> 0 | AK18: =AJ18/(AL4-AJ20) -> 0 | AL18: =IF(AK18=0,0,(AK18*((LOG(AK18))/LOG(2)))) -> 0 | AN18: =N18 -> 2122 | AO18: =COUNTIF(L125:L154,AN18) -> 0 | AP18: =AO18/(AQ4-AO20) -> 0 | AQ18: =IF(AP18=0,0,(AP18*((LOG(AP18))/LOG(2)))) -> 0 | AS18: =N18 -> 2122 | AT18: =COUNTIF(L155:L183,AS18) -> 0 | AU18: =AT18/(AV4-AT20) -> 0 | AV18: =IF(AU18=0,0,(AU18*((LOG(AU18))/LOG(2)))) -> 0
A19: 12 | B19: 1583 | C19: 14 | D19: 1590 | E19: 24 | F19: 1602 | G19: 23 | H19: 1612 | K19: 0 | L19: 1122 | N19: 2211 | O19: =COUNTIF($L$7:$L$500,N19) -> 0 | P19: =O19/$Q$4 -> 0 | Q19: =IF(P19=0,0,(P19*((LOG(P19))/LOG(2)))) -> 0 | T19: =N19 -> 2211 | U19: =COUNTIF(L7:L36,T19) -> 0 | V19: =U19/(W4-U20) -> 0 | W19: =IF(V19=0,0,(V19*((LOG(V19))/LOG(2)))) -> 0 | Y19: =N19 -> 2211 | Z19: =COUNTIF(L37:L65,Y19) -> 0 | AA19: =Z19/(AB4-Z20) -> 0 | AB19: =IF(AA19=0,0,(AA19*((LOG(AA19))/LOG(2)))) -> 0 | AD19: =N19 -> 2211 | AE19: =COUNTIF(L66:L95,AD19) -> 0 | AF19: =AE19/(AG4-AE20) -> 0 | AG19: =IF(AF19=0,0,(AF19*((LOG(AF19))/LOG(2)))) -> 0 | AI19: =N19 -> 2211 | AJ19: =COUNTIF(L96:L124,AI19) -> 0 | AK19: =AJ19/(AL4-AJ20) -> 0 | AL19: =IF(AK19=0,0,(AK19*((LOG(AK19))/LOG(2)))) -> 0 | AN19: =N19 -> 2211 | AO19: =COUNTIF(L125:L154,AN19) -> 0 | AP19: =AO19/(AQ4-AO20) -> 0 | AQ19: =IF(AP19=0,0,(AP19*((LOG(AP19))/LOG(2)))) -> 0 | AS19: =N19 -> 2211 | AT19: =COUNTIF(L155:L183,AS19) -> 0 | AU19: =AT19/(AV4-AT20) -> 0 | AV19: =IF(AU19=0,0,(AU19*((LOG(AU19))/LOG(2)))) -> 0
A20: 12 | B20: 1717 | C20: 23 | D20: 1730 | E20: 24 | F20: 1743 | G20: 23 | H20: 1750 | K20: 0 | L20: 1222 | N20: 2212 | O20: =COUNTIF($L$7:$L$500,N20) -> 2 | P20: =O20/$Q$4 -> 0.01136363636 | Q20: =IF(P20=0,0,(P20*((LOG(P20))/LOG(2)))) -> -0.07340263203 | T20: =N20 -> 2212 | U20: =COUNTIF(L7:L36,T20) -> 0 | Y20: =N20 -> 2212 | Z20: =COUNTIF(L37:L65,Y20) -> 0 | AD20: =N20 -> 2212 | AE20: =COUNTIF(L66:L95,AD20) -> 0 | AI20: =N20 -> 2212 | AJ20: =COUNTIF(L96:L124,AI20) -> 0 | AN20: =N20 -> 2212 | AO20: =COUNTIF(L125:L154,AN20) -> 0 | AS20: =N20 -> 2212 | AT20: =COUNTIF(L155:L183,AS20) -> 2
A21: 12 | B21: 1849 | C21: 14 | D21: 1857 | E21: 24 | F21: 1868 | G21: 23 | H21: 1878 | K21: 0 | L21: 1122 | N21: 2221 | O21: =COUNTIF($L$7:$L$500,N21) -> 0 | P21: =O21/$Q$4 -> 0 | Q21: =IF(P21=0,0,(P21*((LOG(P21))/LOG(2)))) -> 0 | T21: =N21 -> 2221 | U21: =COUNTIF(L7:L36,T21) -> 0 | V21: =U21/(W4-U20) -> 0 | W21: =IF(V21=0,0,(V21*((LOG(V21))/LOG(2)))) -> 0 | Y21: =N21 -> 2221 | Z21: =COUNTIF(L37:L65,Y21) -> 0 | AA21: =Z21/(AB4-Z20) -> 0 | AB21: =IF(AA21=0,0,(AA21*((LOG(AA21))/LOG(2)))) -> 0 | AD21: =N21 -> 2221 | AE21: =COUNTIF(L66:L95,AD21) -> 0 | AF21: =AE21/(AG4-AE20) -> 0 | AG21: =IF(AF21=0,0,(AF21*((LOG(AF21))/LOG(2)))) -> 0 | AI21: =N21 -> 2221 | AJ21: =COUNTIF(L96:L124,AI21) -> 0 | AK21: =AJ21/(AL4-AJ20) -> 0 | AL21: =IF(AK21=0,0,(AK21*((LOG(AK21))/LOG(2)))) -> 0 | AN21: =N21 -> 2221 | AO21: =COUNTIF(L125:L154,AN21) -> 0 | AP21: =AO21/(AQ4-AO20) -> 0 | AQ21: =IF(AP21=0,0,(AP21*((LOG(AP21))/LOG(2)))) -> 0 | AS21: =N21 -> 2221 | AT21: =COUNTIF(L155:L183,AS21) -> 0 | AU21: =AT21/(AV4-AT20) -> 0 | AV21: =IF(AU21=0,0,(AU21*((LOG(AU21))/LOG(2)))) -> 0
A22: 12 | B22: 1987 | C22: 23 | D22: 2002 | E22: 13 | F22: 2022 | G22: 23 | H22: 2035 | K22: 0 | L22: 1212 | N22: 2222 | O22: =COUNTIF($L$7:$L$500,N22) -> 0 | P22: =O22/$Q$4 -> 0 | Q22: =IF(P22=0,0,(P22*((LOG(P22))/LOG(2)))) -> 0 | T22: =N22 -> 2222 | U22: =COUNTIF(L7:L36,T22) -> 0 | V22: =U22/(W4-U20) -> 0 | W22: =IF(V22=0,0,(V22*((LOG(V22))/LOG(2)))) -> 0 | Y22: =N22 -> 2222 | Z22: =COUNTIF(L37:L65,Y22) -> 0 | AA22: =Z22/(AB4-Z20) -> 0 | AB22: =IF(AA22=0,0,(AA22*((LOG(AA22))/LOG(2)))) -> 0 | AD22: =N22 -> 2222 | AE22: =COUNTIF(L66:L95,AD22) -> 0 | AF22: =AE22/(AG4-AE20) -> 0 | AG22: =IF(AF22=0,0,(AF22*((LOG(AF22))/LOG(2)))) -> 0 | AI22: =N22 -> 2222 | AJ22: =COUNTIF(L96:L124,AI22) -> 0 | AK22: =AJ22/(AL4-AJ20) -> 0 | AL22: =IF(AK22=0,0,(AK22*((LOG(AK22))/LOG(2)))) -> 0 | AN22: =N22 -> 2222 | AO22: =COUNTIF(L125:L154,AN22) -> 0 | AP22: =AO22/(AQ4-AO20) -> 0 | AQ22: =IF(AP22=0,0,(AP22*((LOG(AP22))/LOG(2)))) -> 0 | AS22: =N22 -> 2222 | AT22: =COUNTIF(L155:L183,AS22) -> 0 | AU22: =AT22/(AV4-AT20) -> 0 | AV22: =IF(AU22=0,0,(AU22*((LOG(AU22))/LOG(2)))) -> 0
A23: 12 | B23: 2158 | C23: 14 | D23: 2178 | E23: 24 | F23: 2188 | G23: 23 | H23: 2203 | K23: 0 | L23: 1122 | P23: =SUM(P7:P22) -> 1 | Q23: =-SUM(Q7:Q22) -> 2.249036806 | V23: =SUM(V7:V22) -> 1 | W23: =-SUM(W7:W22) -> 1.821276428 | AA23: =SUM(AA7:AA22) -> 1 | AB23: =-SUM(AB7:AB22) -> 1.967859011 | AF23: =SUM(AF7:AF22) -> 1 | AG23: =-SUM(AG7:AG22) -> 2.020111964 | AK23: =SUM(AK7:AK22) -> 1 | AL23: =-SUM(AL7:AL22) -> 2.337512584 | AP23: =SUM(AP7:AP22) -> 1 | AQ23: =-SUM(AQ7:AQ22) -> 1.664083512 | AU23: =SUM(AU7:AU22) -> 1 | AV23: =-SUM(AV7:AV22) -> 1.850219859
A24: 12 | B24: 2304 | C24: 23 | D24: 2316 | E24: 24 | F24: 2323 | G24: 23 | H24: 2333 | K24: 0 | L24: 1222 | P24: U= | Q24: =Q23/(LOG(Q4)/LOG(2)) -> 0.3015024363 | V24: U1= | W24: =W23/(LOG(W4)/LOG(2)) -> 0.3711671154 | AA24: U2= | AB24: =AB23/(LOG(AB4)/LOG(2)) -> 0.4050775442 | AF24: U3= | AG24: =AG23/(LOG(AG4)/LOG(2)) -> 0.4116888129 | AK24: U4= | AL24: =AL23/(LOG(AL4)/LOG(2)) -> 0.4811695612 | AP24: U5= | AQ24: =AQ23/(LOG(AQ4)/LOG(2)) -> 0.3391319776 | AU24: U6= | AV24: =AV23/(LOG(AV4)/LOG(2)) -> 0.3848727396
A25: 12 | B25: 2436 | C25: 23 | D25: 2447 | E25: 24 | F25: 2453 | G25: 23 | H25: 2461 | K25: 0 | L25: 1222
A26: 12 | B26: 2558 | C26: 14 | D26: 2566 | E26: 24 | F26: 2577 | G26: 23 | H26: 2584 | K26: 0 | L26: 1122
A27: 21 | B27: 2703 | C27: 12 | D27: 2716 | E27: 24 | F27: 2725 | G27: 23 | H27: 2737 | K27: 0 | L27: 2122 | N27: Total Target Seq
A28: 12 | B28: 2846 | C28: 14 | D28: 2860 | E28: 24 | F28: 2872 | G28: 23 | H28: 2883 | K28: 0 | L28: 1122 | N28: =COUNTIF(L7:L183,G3) -> 2 | P28: 30 | Q28: 29 | R28: 30 | S28: 29 | T28: 30 | U28: 29
A29: 12 | B29: 2980 | C29: 14 | D29: 2989 | E29: 24 | F29: 2997 | G29: 23 | H29: 3008 | K29: 0 | L29: 1122 | P29: % of reinforcement given in 6 equal intervals based on number of trials
A30: 12 | B30: 3109 | C30: 23 | D30: 3128 | E30: 24 | F30: 3134 | G30: 14 | H30: 3145 | K30: 0 | L30: 1221 | P30: %_1 | Q30: %_2 | R30: %_3 | S30: %_4 | T30: %_5 | U30: %_6
A31: 12 | B31: 3255 | C31: 14 | D31: 3260 | E31: 24 | F31: 3278 | G31: 14 | H31: 3298 | K31: 0 | L31: 1121 | O31: target sequence | P31: =$G$3 -> 2212 | Q31: =$G$3 -> 2212 | R31: =$G$3 -> 2212 | S31: =$G$3 -> 2212 | T31: =$G$3 -> 2212 | U31: =$G$3 -> 2212
A32: 12 | B32: 3407 | C32: 14 | D32: 3417 | E32: 24 | F32: 3427 | G32: 23 | H32: 3434 | K32: 0 | L32: 1122 | O32: total reinforcement | P32: =U20 -> 0 | Q32: =Z20 -> 0 | R32: =AE20 -> 0 | S32: =AJ20 -> 0 | T32: =AO20 -> 0 | U32: =AT20 -> 2
A33: 12 | B33: 3523 | C33: 14 | D33: 3531 | E33: 24 | F33: 3541 | G33: 23 | H33: 3548 | K33: 0 | L33: 1122 | O33: % target
A34: 12 | B34: 3649 | C34: 14 | D34: 3657 | E34: 24 | F34: 3668 | G34: 23 | H34: 3675 | K34: 0 | L34: 1122 | O34: CCRF
A35: 12 | B35: 3787 | C35: 14 | D35: 3798 | E35: 24 | F35: 3807 | G35: 23 | H35: 3815 | K35: 0 | L35: 1122 | O35: % CCRf
A36: 12 | B36: 3908 | C36: 14 | D36: 3916 | E36: 24 | F36: 3926 | G36: 23 | H36: 3934 | K36: 0 | L36: 1122 | O36: average response rate | P36: =H36/P28 -> 131.1333333 | Q36: =(H65-H36)/Q28 -> 135.4137931 | R36: =(H95-H65)/R28 -> 134.9666667 | S36: =(H124-H95)/S28 -> 135.137931 | T36: =(H154-H124)/T28 -> 136.7666667 | U36: =(H183-H154)/U28 -> -687.3103448
A37: 12 | B37: 4045 | C37: 14 | D37: 4050 | E37: 24 | F37: 4069 | G37: 23 | H37: 4076 | K37: 0 | L37: 1122
A38: 12 | B38: 4172 | C38: 14 | D38: 4181 | E38: 24 | F38: 4200 | G38: 23 | H38: 4207 | K38: 0 | L38: 1122
A39: 12 | B39: 4306 | C39: 14 | D39: 4315 | E39: 13 | F39: 4349 | G39: 23 | H39: 4362 | K39: 0 | L39: 1112
A40: 12 | B40: 4467 | C40: 14 | D40: 4477 | E40: 24 | F40: 4490 | G40: 23 | H40: 4499 | K40: 0 | L40: 1122
A41: 12 | B41: 4602 | C41: 14 | D41: 4611 | E41: 24 | F41: 4621 | G41: 23 | H41: 4628 | K41: 0 | L41: 1122
A42: 12 | B42: 4736 | C42: 14 | D42: 4741 | E42: 24 | F42: 4751 | G42: 23 | H42: 4765 | K42: 0 | L42: 1122
A43: 12 | B43: 4864 | C43: 14 | D43: 4872 | E43: 24 | F43: 4884 | G43: 23 | H43: 4891 | K43: 0 | L43: 1122
A44: 12 | B44: 5024 | C44: 23 | D44: 5039 | E44: 13 | F44: 5049 | G44: 23 | H44: 5068 | K44: 0 | L44: 1212
A45: 12 | B45: 5174 | C45: 23 | D45: 5184 | E45: 24 | F45: 5191 | G45: 14 | H45: 5210 | K45: 0 | L45: 1221
A46: 12 | B46: 5307 | C46: 14 | D46: 5315 | E46: 24 | F46: 5325 | G46: 23 | H46: 5336 | K46: 0 | L46: 1122
A47: 12 | B47: 5444 | C47: 14 | D47: 5454 | E47: 24 | F47: 5466 | G47: 23 | H47: 5473 | K47: 0 | L47: 1122
A48: 12 | B48: 5583 | C48: 23 | D48: 5597 | E48: 24 | F48: 5604 | G48: 23 | H48: 5614 | K48: 0 | L48: 1222
A49: 12 | B49: 5715 | C49: 23 | D49: 5725 | E49: 24 | F49: 5733 | G49: 23 | H49: 5742 | K49: 0 | L49: 1222
A50: 12 | B50: 5907 | C50: 14 | D50: 5917 | E50: 24 | F50: 5926 | G50: 23 | H50: 5935 | K50: 0 | L50: 1122
A51: 12 | B51: 6026 | C51: 14 | D51: 6052 | E51: 24 | F51: 6063 | G51: 23 | H51: 6068 | K51: 0 | L51: 1122
A52: 12 | B52: 6159 | C52: 14 | D52: 6166 | E52: 13 | F52: 6184 | G52: 23 | H52: 6196 | K52: 0 | L52: 1112
A53: 12 | B53: 6287 | C53: 23 | D53: 6302 | E53: 24 | F53: 6311 | G53: 14 | H53: 6328 | K53: 0 | L53: 1221
A54: 12 | B54: 6419 | C54: 14 | D54: 6431 | E54: 24 | F54: 6440 | G54: 23 | H54: 6445 | K54: 0 | L54: 1122
A55: 12 | B55: 6541 | C55: 14 | D55: 6547 | E55: 24 | F55: 6556 | G55: 23 | H55: 6563 | K55: 0 | L55: 1122
A56: 12 | B56: 6661 | C56: 14 | D56: 6669 | E56: 24 | F56: 6685 | G56: 23 | H56: 6689 | K56: 0 | L56: 1122
A57: 21 | B57: 6788 | C57: 12 | D57: 6799 | E57: 13 | F57: 6807 | G57: 14 | H57: 6815 | K57: 0 | L57: 2111
A58: 12 | B58: 6938 | C58: 14 | D58: 6946 | E58: 24 | F58: 6957 | G58: 23 | H58: 6965 | K58: 0 | L58: 1122
A59: 12 | B59: 7062 | C59: 14 | D59: 7069 | E59: 13 | F59: 7074 | G59: 14 | H59: 7079 | K59: 0 | L59: 1111
A60: 12 | B60: 7179 | C60: 14 | D60: 7186 | E60: 24 | F60: 7195 | G60: 14 | H60: 7210 | K60: 0 | L60: 1121
A61: 12 | B61: 7306 | C61: 14 | D61: 7313 | E61: 24 | F61: 7326 | G61: 23 | H61: 7335 | K61: 0 | L61: 1122
A62: 12 | B62: 7433 | C62: 14 | D62: 7441 | E62: 24 | F62: 7451 | G62: 23 | H62: 7458 | K62: 0 | L62: 1122
A63: 12 | B63: 7556 | C63: 14 | D63: 7564 | E63: 24 | F63: 7574 | G63: 23 | H63: 7581 | K63: 0 | L63: 1122
A64: 12 | B64: 7699 | C64: 14 | D64: 7711 | E64: 24 | F64: 7724 | G64: 23 | H64: 7731 | K64: 0 | L64: 1122
A65: 12 | B65: 7831 | C65: 14 | D65: 7836 | E65: 13 | F65: 7846 | G65: 23 | H65: 7861 | K65: 0 | L65: 1112
A66: 12 | B66: 7960 | C66: 14 | D66: 7969 | E66: 24 | F66: 7979 | G66: 23 | H66: 7985 | K66: 0 | L66: 1122
A67: 12 | B67: 8082 | C67: 14 | D67: 8090 | E67: 24 | F67: 8100 | G67: 23 | H67: 8108 | K67: 0 | L67: 1122
A68: 12 | B68: 8206 | C68: 14 | D68: 8235 | E68: 13 | F68: 8245 | G68: 23 | H68: 8257 | K68: 0 | L68: 1112
A69: 12 | B69: 8361 | C69: 14 | D69: 8368 | E69: 13 | F69: 8389 | G69: 23 | H69: 8401 | K69: 0 | L69: 1112
A70: 12 | B70: 8493 | C70: 14 | D70: 8501 | E70: 24 | F70: 8511 | G70: 23 | H70: 8519 | K70: 0 | L70: 1122
A71: 12 | B71: 8615 | C71: 14 | D71: 8625 | E71: 24 | F71: 8636 | G71: 23 | H71: 8643 | K71: 0 | L71: 1122
A72: 12 | B72: 8744 | C72: 14 | D72: 8759 | E72: 24 | F72: 8769 | G72: 23 | H72: 8777 | K72: 0 | L72: 1122
A73: 12 | B73: 8889 | C73: 14 | D73: 8897 | E73: 24 | F73: 8909 | G73: 23 | H73: 8916 | K73: 0 | L73: 1122
A74: 12 | B74: 9017 | C74: 14 | D74: 9025 | E74: 24 | F74: 9035 | G74: 14 | H74: 9048 | K74: 0 | L74: 1121
A75: 12 | B75: 9150 | C75: 14 | D75: 9172 | E75: 13 | F75: 9174 | G75: 23 | H75: 9186 | K75: 0 | L75: 1112
A76: 12 | B76: 9286 | C76: 14 | D76: 9295 | E76: 13 | F76: 9320 | G76: 23 | H76: 9339 | K76: 0 | L76: 1112
A77: 12 | B77: 9452 | C77: 14 | D77: 9461 | E77: 24 | F77: 9471 | G77: 23 | H77: 9479 | K77: 0 | L77: 1122
A78: 12 | B78: 9576 | C78: 14 | D78: 9583 | E78: 24 | F78: 9592 | G78: 23 | H78: 9599 | K78: 0 | L78: 1122
A79: 12 | B79: 9694 | C79: 14 | D79: 9702 | E79: 24 | F79: 9712 | G79: 23 | H79: 9719 | K79: 0 | L79: 1122
A80: 12 | B80: 9818 | C80: 14 | D80: 9822 | E80: 13 | F80: 9835 | G80: 23 | H80: 9845 | K80: 0 | L80: 1112
A81: 12 | B81: 9942 | C81: 14 | D81: 9952 | E81: 24 | F81: 9963 | G81: 23 | H81: 9969 | K81: 0 | L81: 1122
A82: 12 | B82: 10082 | C82: 14 | D82: 10084 | E82: 13 | F82: 10092 | G82: 23 | H82: 10103 | K82: 0 | L82: 1112
A83: 12 | B83: 10202 | C83: 23 | D83: 10221 | E83: 24 | F83: 10228 | G83: 23 | H83: 10242 | K83: 0 | L83: 1222
A84: 12 | B84: 10343 | C84: 23 | D84: 10357 | E84: 24 | F84: 10359 | G84: 14 | H84: 10374 | K84: 0 | L84: 1221
A85: 12 | B85: 10473 | C85: 14 | D85: 10487 | E85: 24 | F85: 10497 | G85: 23 | H85: 10504 | K85: 0 | L85: 1122
A86: 12 | B86: 10607 | C86: 23 | D86: 10625 | E86: 24 | F86: 10630 | G86: 23 | H86: 10638 | K86: 0 | L86: 1222
A87: 12 | B87: 10734 | C87: 14 | D87: 10739 | E87: 13 | F87: 10748 | G87: 23 | H87: 10761 | K87: 0 | L87: 1112
A88: 12 | B88: 10861 | C88: 23 | D88: 10886 | E88: 13 | F88: 10904 | G88: 23 | H88: 10914 | K88: 0 | L88: 1212
A89: 12 | B89: 11016 | C89: 14 | D89: 11024 | E89: 24 | F89: 11033 | G89: 14 | H89: 11058 | K89: 0 | L89: 1121
A90: 12 | B90: 11155 | C90: 14 | D90: 11163 | E90: 24 | F90: 11173 | G90: 23 | H90: 11182 | K90: 0 | L90: 1122
A91: 21 | B91: 11324 | C91: 12 | D91: 11355 | E91: 24 | F91: 11365 | G91: 23 | H91: 11373 | K91: 0 | L91: 2122
A92: 12 | B92: 11493 | C92: 14 | D92: 11494 | E92: 13 | F92: 11505 | G92: 23 | H92: 11517 | K92: 0 | L92: 1112
A93: 12 | B93: 11617 | C93: 14 | D93: 11624 | E93: 24 | F93: 11635 | G93: 23 | H93: 11642 | K93: 0 | L93: 1122
A94: 12 | B94: 11743 | C94: 14 | D94: 11750 | E94: 24 | F94: 11766 | G94: 23 | H94: 11772 | K94: 0 | L94: 1122
A95: 12 | B95: 11877 | C95: 14 | D95: 11890 | E95: 24 | F95: 11900 | G95: 23 | H95: 11910 | K95: 0 | L95: 1122
A96: 12 | B96: 12025 | C96: 14 | D96: 12031 | E96: 13 | F96: 12039 | G96: 23 | H96: 12049 | K96: 0 | L96: 1112
A97: 12 | B97: 12152 | C97: 14 | D97: 12160 | E97: 24 | F97: 12170 | G97: 23 | H97: 12177 | K97: 0 | L97: 1122
A98: 12 | B98: 12279 | C98: 14 | D98: 12281 | E98: 13 | F98: 12288 | G98: 23 | H98: 12298 | K98: 0 | L98: 1112
A99: 12 | B99: 12393 | C99: 14 | D99: 12403 | E99: 24 | F99: 12414 | G99: 23 | H99: 12421 | K99: 0 | L99: 1122
A100: 12 | B100: 12521 | C100: 14 | D100: 12529 | E100: 24 | F100: 12540 | G100: 23 | H100: 12564 | K100: 0 | L100: 1122
A101: 12 | B101: 12665 | C101: 14 | D101: 12674 | E101: 24 | F101: 12685 | G101: 23 | H101: 12693 | K101: 0 | L101: 1122
A102: 12 | B102: 12791 | C102: 14 | D102: 12799 | E102: 24 | F102: 12810 | G102: 23 | H102: 12817 | K102: 0 | L102: 1122
A103: 12 | B103: 12920 | C103: 23 | D103: 12938 | E103: 24 | F103: 12946 | G103: 23 | H103: 12954 | K103: 0 | L103: 1222
A104: 12 | B104: 13074 | C104: 23 | D104: 13084 | E104: 24 | F104: 13092 | G104: 23 | H104: 13103 | K104: 0 | L104: 1222
A105: 12 | B105: 13205 | C105: 14 | D105: 13219 | E105: 24 | F105: 13233 | G105: 14 | H105: 13245 | K105: 0 | L105: 1121
A106: 12 | B106: 13346 | C106: 14 | D106: 13356 | E106: 13 | F106: 13374 | G106: 23 | H106: 13389 | K106: 0 | L106: 1112
A107: 12 | B107: 13490 | C107: 14 | D107: 13501 | E107: 24 | F107: 13512 | G107: 14 | H107: 13534 | K107: 0 | L107: 1121
A108: 12 | B108: 13635 | C108: 14 | D108: 13645 | E108: 13 | F108: 13653 | G108: 23 | H108: 13666 | K108: 0 | L108: 1112
A109: 12 | B109: 13766 | C109: 14 | D109: 13777 | E109: 24 | F109: 13787 | G109: 23 | H109: 13794 | K109: 0 | L109: 1122
A110: 12 | B110: 13888 | C110: 23 | D110: 13897 | E110: 24 | F110: 13905 | G110: 14 | H110: 13916 | K110: 0 | L110: 1221
A111: 12 | B111: 14014 | C111: 14 | D111: 14022 | E111: 24 | F111: 14034 | G111: 14 | H111: 14057 | K111: 0 | L111: 1121
A112: 12 | B112: 14153 | C112: 14 | D112: 14159 | E112: 24 | F112: 14174 | G112: 14 | H112: 14187 | K112: 0 | L112: 1121
A113: 12 | B113: 14296 | C113: 23 | D113: 14305 | E113: 13 | F113: 14319 | G113: 23 | H113: 14332 | K113: 0 | L113: 1212
A114: 12 | B114: 14430 | C114: 14 | D114: 14436 | E114: 13 | F114: 14449 | G114: 23 | H114: 14460 | K114: 0 | L114: 1112
A115: 12 | B115: 14558 | C115: 14 | D115: 14564 | E115: 24 | F115: 14577 | G115: 14 | H115: 14589 | K115: 0 | L115: 1121
A116: 12 | B116: 14686 | C116: 14 | D116: 14693 | E116: 24 | F116: 14702 | G116: 14 | H116: 14711 | K116: 0 | L116: 1121
A117: 12 | B117: 14808 | C117: 23 | D117: 14821 | E117: 13 | F117: 14839 | G117: 23 | H117: 14850 | K117: 0 | L117: 1212
A118: 12 | B118: 14957 | C118: 23 | D118: 14965 | E118: 13 | F118: 14979 | G118: 23 | H118: 14991 | K118: 0 | L118: 1212
A119: 12 | B119: 15090 | C119: 14 | D119: 15098 | E119: 24 | F119: 15109 | G119: 23 | H119: 15116 | K119: 0 | L119: 1122
A120: 12 | B120: 15217 | C120: 23 | D120: 15229 | E120: 24 | F120: 15254 | G120: 23 | H120: 15261 | K120: 0 | L120: 1222
A121: 12 | B121: 15359 | C121: 23 | D121: 15374 | E121: 13 | F121: 15385 | G121: 23 | H121: 15396 | K121: 0 | L121: 1212
A122: 12 | B122: 15506 | C122: 14 | D122: 15521 | E122: 24 | F122: 15531 | G122: 23 | H122: 15538 | K122: 0 | L122: 1122
A123: 12 | B123: 15648 | C123: 14 | D123: 15671 | E123: 24 | F123: 15683 | G123: 23 | H123: 15691 | K123: 0 | L123: 1122
A124: 12 | B124: 15794 | C124: 14 | D124: 15804 | E124: 24 | F124: 15820 | G124: 23 | H124: 15829 | K124: 0 | L124: 1122
A125: 12 | B125: 15936 | C125: 14 | D125: 15946 | E125: 24 | F125: 15958 | G125: 23 | H125: 15963 | K125: 0 | L125: 1122
A126: 12 | B126: 16071 | C126: 14 | D126: 16080 | E126: 24 | F126: 16091 | G126: 23 | H126: 16099 | K126: 0 | L126: 1122
A127: 12 | B127: 16209 | C127: 14 | D127: 16217 | E127: 24 | F127: 16229 | G127: 23 | H127: 16236 | K127: 0 | L127: 1122
A128: 12 | B128: 16354 | C128: 14 | D128: 16360 | E128: 13 | F128: 16368 | G128: 23 | H128: 16381 | K128: 0 | L128: 1112
A129: 12 | B129: 16492 | C129: 14 | D129: 16502 | E129: 24 | F129: 16512 | G129: 23 | H129: 16519 | K129: 0 | L129: 1122
A130: 12 | B130: 16613 | C130: 14 | D130: 16617 | E130: 13 | F130: 16626 | G130: 23 | H130: 16637 | K130: 0 | L130: 1112
A131: 12 | B131: 16765 | C131: 14 | D131: 16772 | E131: 24 | F131: 16785 | G131: 14 | H131: 16809 | K131: 0 | L131: 1121
A132: 12 | B132: 16910 | C132: 14 | D132: 16917 | E132: 24 | F132: 16929 | G132: 23 | H132: 16940 | K132: 0 | L132: 1122
A133: 12 | B133: 17039 | C133: 14 | D133: 17045 | E133: 24 | F133: 17057 | G133: 14 | H133: 17069 | K133: 0 | L133: 1121
A134: 12 | B134: 17166 | C134: 14 | D134: 17173 | E134: 13 | F134: 17181 | G134: 23 | H134: 17192 | K134: 0 | L134: 1112
A135: 12 | B135: 17289 | C135: 14 | D135: 17297 | E135: 13 | F135: 17311 | G135: 23 | H135: 17322 | K135: 0 | L135: 1112
A136: 12 | B136: 17449 | C136: 14 | D136: 17458 | E136: 24 | F136: 17468 | G136: 23 | H136: 17475 | K136: 0 | L136: 1122
A137: 12 | B137: 17573 | C137: 14 | D137: 17578 | E137: 13 | F137: 17589 | G137: 23 | H137: 17599 | K137: 0 | L137: 1112
A138: 12 | B138: 17716 | C138: 14 | D138: 17725 | E138: 24 | F138: 17736 | G138: 23 | H138: 17742 | K138: 0 | L138: 1122
A139: 12 | B139: 17856 | C139: 14 | D139: 17865 | E139: 24 | F139: 17875 | G139: 23 | H139: 17883 | K139: 0 | L139: 1122
A140: 12 | B140: 18014 | C140: 14 | D140: 18022 | E140: 24 | F140: 18032 | G140: 23 | H140: 18039 | K140: 0 | L140: 1122
A141: 12 | B141: 18139 | C141: 14 | D141: 18150 | E141: 24 | F141: 18160 | G141: 23 | H141: 18168 | K141: 0 | L141: 1122
A142: 12 | B142: 18284 | C142: 14 | D142: 18293 | E142: 24 | F142: 18307 | G142: 23 | H142: 18314 | K142: 0 | L142: 1122
A143: 12 | B143: 18426 | C143: 14 | D143: 18431 | E143: 13 | F143: 18439 | G143: 23 | H143: 18450 | K143: 0 | L143: 1112
A144: 12 | B144: 18550 | C144: 14 | D144: 18557 | E144: 13 | F144: 18578 | G144: 23 | H144: 18591 | K144: 0 | L144: 1112
A145: 12 | B145: 18694 | C145: 14 | D145: 18702 | E145: 24 | F145: 18712 | G145: 14 | H145: 18727 | K145: 0 | L145: 1121
A146: 12 | B146: 18834 | C146: 14 | D146: 18843 | E146: 24 | F146: 18853 | G146: 23 | H146: 18860 | K146: 0 | L146: 1122
A147: 12 | B147: 18960 | C147: 14 | D147: 18965 | E147: 13 | F147: 18975 | G147: 14 | H147: 18987 | K147: 0 | L147: 1111
A148: 12 | B148: 19096 | C148: 14 | D148: 19108 | E148: 24 | F148: 19121 | G148: 23 | H148: 19128 | K148: 0 | L148: 1122
A149: 12 | B149: 19226 | C149: 14 | D149: 19237 | E149: 24 | F149: 19249 | G149: 23 | H149: 19255 | K149: 0 | L149: 1122
A150: 12 | B150: 19347 | C150: 14 | D150: 19351 | E150: 13 | F150: 19359 | G150: 23 | H150: 19369 | K150: 0 | L150: 1112
A151: 12 | B151: 19471 | C151: 14 | D151: 19481 | E151: 24 | F151: 19491 | G151: 23 | H151: 19499 | K151: 0 | L151: 1122
A152: 12 | B152: 19595 | C152: 14 | D152: 19602 | E152: 13 | F152: 19614 | G152: 23 | H152: 19624 | K152: 0 | L152: 1112
A153: 12 | B153: 19733 | C153: 23 | D153: 19753 | E153: 24 | F153: 19764 | G153: 23 | H153: 19771 | K153: 0 | L153: 1222
A154: 12 | B154: 19902 | C154: 14 | D154: 19913 | E154: 24 | F154: 19925 | G154: 23 | H154: 19932 | K154: 0 | L154: 1122
A155: 12 | B155: 20034 | C155: 14 | D155: 20036 | E155: 13 | F155: 20041 | G155: 23 | H155: 20050 | K155: 0 | L155: 1112
A156: 12 | B156: 20155 | C156: 14 | D156: 20164 | E156: 24 | F156: 20175 | G156: 23 | H156: 20184 | K156: 0 | L156: 1122
A157: 12 | B157: 20286 | C157: 14 | D157: 20307 | E157: 24 | F157: 20319 | G157: 23 | H157: 20326 | K157: 0 | L157: 1122
A158: 12 | B158: 20431 | C158: 23 | D158: 20450 | E158: 24 | F158: 20457 | G158: 23 | H158: 20465 | K158: 0 | L158: 1222
A159: 12 | B159: 20591 | C159: 14 | D159: 20597 | E159: 13 | F159: 20605 | G159: 23 | H159: 20618 | K159: 0 | L159: 1112
A160: 12 | B160: 20725 | C160: 14 | D160: 20730 | E160: 13 | F160: 20737 | G160: 23 | H160: 20750 | K160: 0 | L160: 1112
A161: 12 | B161: 20883 | C161: 14 | D161: 20888 | E161: 24 | F161: 20899 | G161: 14 | H161: 20915 | K161: 0 | L161: 1121
A162: 12 | B162: 21050 | C162: 14 | D162: 21057 | E162: 24 | F162: 21067 | G162: 23 | H162: 21079 | K162: 0 | L162: 1122
A163: 12 | B163: 21198 | C163: 14 | D163: 21212 | E163: 24 | F163: 21221 | G163: 23 | H163: 21236 | K163: 0 | L163: 1122
A164: 12 | B164: 21336 | C164: 14 | D164: 21345 | E164: 13 | F164: 21355 | G164: 14 | H164: 21363 | K164: 0 | L164: 1111
A165: 21 | B165: 21475 | C165: 21 | D165: 21491 | E165: 11 | F165: 21504 | G165: 21 | H165: 21517 | K165: 0 | L165: 2212
A166: 12 | B166: 21626 | C166: 14 | D166: 21631 | E166: 13 | F166: 21640 | G166: 23 | H166: 21654 | K166: 0 | L166: 1112
A167: 12 | B167: 21755 | C167: 14 | D167: 21760 | E167: 24 | F167: 21769 | G167: 23 | H167: 21776 | K167: 0 | L167: 1122
A168: 12 | B168: 21898 | C168: 14 | D168: 21903 | E168: 13 | F168: 21914 | G168: 23 | H168: 21928 | K168: 0 | L168: 1112
A169: 12 | B169: 22034 | C169: 14 | D169: 22039 | E169: 13 | F169: 22060 | G169: 23 | H169: 22071 | K169: 0 | L169: 1112
A170: 12 | B170: 22190 | C170: 14 | D170: 22200 | E170: 24 | F170: 22210 | G170: 23 | H170: 22217 | K170: 0 | L170: 1122
A171: 12 | B171: 22320 | C171: 23 | D171: 22330 | E171: 13 | F171: 22345 | G171: 23 | H171: 22358 | K171: 0 | L171: 1212
A172: 12 | B172: 22463 | C172: 14 | D172: 22472 | E172: 24 | F172: 22482 | G172: 23 | H172: 22489 | K172: 0 | L172: 1122
A173: 12 | B173: 22586 | C173: 14 | D173: 22591 | E173: 13 | F173: 22600 | G173: 23 | H173: 22613 | K173: 0 | L173: 1112
A174: 12 | B174: 22740 | C174: 14 | D174: 22744 | E174: 13 | F174: 22752 | G174: 23 | H174: 22767 | K174: 0 | L174: 1112
A175: 12 | B175: 22867 | C175: 14 | D175: 22876 | E175: 13 | F175: 22894 | G175: 23 | H175: 22909 | K175: 0 | L175: 1112
A176: 12 | B176: 23013 | C176: 14 | D176: 23023 | E176: 24 | F176: 23031 | G176: 14 | H176: 23042 | K176: 0 | L176: 1121
A177: 12 | B177: 23155 | C177: 14 | D177: 23157 | E177: 13 | F177: 23166 | G177: 23 | H177: 23175 | K177: 0 | L177: 1112
A178: 12 | B178: 23281 | C178: 14 | D178: 23286 | E178: 13 | F178: 23293 | G178: 23 | H178: 23304 | K178: 0 | L178: 1112
A179: 12 | B179: 23409 | C179: 14 | D179: 23420 | E179: 24 | F179: 23451 | G179: 23 | H179: 23458 | K179: 0 | L179: 1122
A180: 21 | B180: 23557 | C180: 21 | D180: 23558 | E180: 11 | F180: 23574 | G180: 21 | H180: 23587 | K180: 0 | L180: 2212
A181: 12 | B181: 23693 | C181: 14 | D181: 23698 | E181: 13 | F181: 23705 | G181: 23 | H181: 23715 | K181: 0 | L181: 1112
A182: 12 | B182: 23833 | C182: 14 | D182: 23840 | E182: 13 | F182: 23849 | G182: 23 | H182: 23863 | K182: 0 | L182: 1112
A183: 12 | B183: 23984 | C183: 14 | D183: 23989 | E183: 13 | F183: 23998 | L183: 111

Sheet !2011-07-29_09h35m.Subject 53
A1: Report for:!2011-07-29_09h35m.Subject 53
A2: Date | B2: 2011-07-29 | F2: Group | G2: Phase 3 Any
A3: Hen | B3: 53 | F3: Correct Sequence | G3: =Start!J2 -> 2212 | P3: Total Sequences in Data | Q3: =4994-COUNTBLANK(L7:L5000) -> 180 | V3: Total Sequences in Block Data | W3: =COUNTA(L7:L36) -> 30 | AA3: Total Sequences in Block Data | AB3: =COUNTA(L37:L66) -> 30 | AF3: Total Sequences in Block Data | AG3: =COUNTA(L67:L96) -> 30 | AK3: Total Sequences in Block Data | AL3: =COUNTA(L97:L126) -> 30 | AP3: Total Sequences in Block Data | AQ3: =COUNTA(L127:L156) -> 30 | AU3: Total Sequences in Block Data | AV3: =COUNTA(L157:L186) -> 30
A4: Program | B4: One | P4: Total Sequences in Summary | Q4: =SUM(O7:O22) -> 180 | V4: Total Sequences in Block Summary | W4: =SUM(U7:U22) -> 30 | AA4: Total Sequences in Block Summary | AB4: =SUM(Z7:Z22) -> 30 | AF4: Total Sequences in Block Summary | AG4: =SUM(AE7:AE22) -> 30 | AK4: Total Sequences in Block Summary | AL4: =SUM(AJ7:AJ22) -> 30 | AP4: Total Sequences in Block Summary | AQ4: =SUM(AO7:AO22) -> 30 | AU4: Total Sequences in Block Summary | AV4: =SUM(AT7:AT22) -> 30
T5: Block 1 | Y5: Block 2 | AD5: Block 3 | AI5: Block 4 | AN5: Block 5 | AS5: Block 6
A6: Sequence Component 1 | B6: Time 1 | C6: Sequence Component 2 | D6: Time 2 | E6: Sequence Component 3 | F6: Time 3 | G6: Sequence Component 4 | H6: Time 4 | I6: Sequence Component 5 | J6: Time 5 | K6: Correct? 0=No 1=Yes | L6: Sequence | N6: Frequency | P6: Relative Frequency | Q6: Variability | T6: Frequency | V6: Relative Frequency | W6: Variability | Y6: Frequency | AA6: Relative Frequency | AB6: Variability | AD6: Frequency | AF6: Relative Frequency | AG6: Variability | AI6: Frequency | AK6: Relative Frequency | AL6: Variability | AN6: Frequency | AP6: Relative Frequency | AQ6: Variability | AS6: Frequency | AU6: Relative Frequency | AV6: Variability
A7: 12 | B7: 11 | C7: 14 | D7: 21 | E7: 13 | F7: 41 | G7: 23 | H7: 51 | K7: 0 | L7: 1112 | N7: 1111 | O7: =COUNTIF($L$7:$L$500,N7) -> 31 | P7: =O7/$Q$4 -> 0.1722222222 | Q7: =IF(P7=0,0,(P7*((LOG(P7))/LOG(2)))) -> -0.4370408909 | T7: =N7 -> 1111 | U7: =COUNTIF(L7:L36,T7) -> 1 | V7: =U7/(W4-U20) -> 0.03333333333 | W7: =IF(V7=0,0,(V7*((LOG(V7))/LOG(2)))) -> -0.1635630199 | Y7: =N7 -> 1111 | Z7: =COUNTIF(L37:L66,Y7) -> 7 | AA7: =Z7/(AB4-Z20) -> 0.2333333333 | AB7: =IF(AA7=0,0,(AA7*((LOG(AA7))/LOG(2)))) -> -0.4898916572 | AD7: =N7 -> 1111 | AE7: =COUNTIF(L67:L96,AD7) -> 9 | AF7: =AE7/(AG4-AE20) -> 0.3 | AG7: =IF(AF7=0,0,(AF7*((LOG(AF7))/LOG(2)))) -> -0.5210896782 | AI7: =N7 -> 1111 | AJ7: =COUNTIF(L97:L126,AI7) -> 4 | AK7: =AJ7/(AL4-AJ20) -> 0.1333333333 | AL7: =IF(AK7=0,0,(AK7*((LOG(AK7))/LOG(2)))) -> -0.3875854127 | AN7: =N7 -> 1111 | AO7: =COUNTIF(L127:L156,AN7) -> 2 | AP7: =AO7/(AQ4-AO20) -> 0.06666666667 | AQ7: =IF(AP7=0,0,(AP7*((LOG(AP7))/LOG(2)))) -> -0.260459373 | AS7: =N7 -> 1111 | AT7: =COUNTIF(L157:L186,AS7) -> 8 | AU7: =AT7/(AV4-AT20) -> 0.2666666667 | AV7: =IF(AU7=0,0,(AU7*((LOG(AU7))/LOG(2)))) -> -0.5085041588
A8: 12 | B8: 149 | C8: 14 | D8: 155 | E8: 24 | F8: 167 | G8: 23 | H8: 175 | K8: 0 | L8: 1122 | N8: 1112 | O8: =COUNTIF($L$7:$L$500,N8) -> 75 | P8: =O8/$Q$4 -> 0.4166666667 | Q8: =IF(P8=0,0,(P8*((LOG(P8))/LOG(2)))) -> -0.5262643358 | T8: =N8 -> 1112 | U8: =COUNTIF(L7:L36,T8) -> 12 | V8: =U8/(W4-U20) -> 0.4 | W8: =IF(V8=0,0,(V8*((LOG(V8))/LOG(2)))) -> -0.528771238 | Y8: =N8 -> 1112 | Z8: =COUNTIF(L37:L66,Y8) -> 16 | AA8: =Z8/(AB4-Z20) -> 0.5333333333 | AB8: =IF(AA8=0,0,(AA8*((LOG(AA8))/LOG(2)))) -> -0.4836749843 | AD8: =N8 -> 1112 | AE8: =COUNTIF(L67:L96,AD8) -> 9 | AF8: =AE8/(AG4-AE20) -> 0.3 | AG8: =IF(AF8=0,0,(AF8*((LOG(AF8))/LOG(2)))) -> -0.5210896782 | AI8: =N8 -> 1112 | AJ8: =COUNTIF(L97:L126,AI8) -> 13 | AK8: =AJ8/(AL4-AJ20) -> 0.4333333333 | AL8: =IF(AK8=0,0,(AK8*((LOG(AK8))/LOG(2)))) -> -0.5227953802 | AN8: =N8 -> 1112 | AO8: =COUNTIF(L127:L156,AN8) -> 12 | AP8: =AO8/(AQ4-AO20) -> 0.4 | AQ8: =IF(AP8=0,0,(AP8*((LOG(AP8))/LOG(2)))) -> -0.528771238 | AS8: =N8 -> 1112 | AT8: =COUNTIF(L157:L186,AS8) -> 13 | AU8: =AT8/(AV4-AT20) -> 0.4333333333 | AV8: =IF(AU8=0,0,(AU8*((LOG(AU8))/LOG(2)))) -> -0.5227953802
A9: 12 | B9: 274 | C9: 14 | D9: 280 | E9: 24 | F9: 290 | G9: 23 | H9: 296 | K9: 0 | L9: 1122 | N9: 1121 | O9: =COUNTIF($L$7:$L$500,N9) -> 14 | P9: =O9/$Q$4 -> 0.07777777778 | Q9: =IF(P9=0,0,(P9*((LOG(P9))/LOG(2)))) -> -0.2865720802 | T9: =N9 -> 1121 | U9: =COUNTIF(L7:L36,T9) -> 7 | V9: =U9/(W4-U20) -> 0.2333333333 | W9: =IF(V9=0,0,(V9*((LOG(V9))/LOG(2)))) -> -0.4898916572 | Y9: =N9 -> 1121 | Z9: =COUNTIF(L37:L66,Y9) -> 1 | AA9: =Z9/(AB4-Z20) -> 0.03333333333 | AB9: =IF(AA9=0,0,(AA9*((LOG(AA9))/LOG(2)))) -> -0.1635630199 | AD9: =N9 -> 1121 | AE9: =COUNTIF(L67:L96,AD9) -> 1 | AF9: =AE9/(AG4-AE20) -> 0.03333333333 | AG9: =IF(AF9=0,0,(AF9*((LOG(AF9))/LOG(2)))) -> -0.1635630199 | AI9: =N9 -> 1121 | AJ9: =COUNTIF(L97:L126,AI9) -> 3 | AK9: =AJ9/(AL4-AJ20) -> 0.1 | AL9: =IF(AK9=0,0,(AK9*((LOG(AK9))/LOG(2)))) -> -0.3321928095 | AN9: =N9 -> 1121 | AO9: =COUNTIF(L127:L156,AN9) -> 1 | AP9: =AO9/(AQ4-AO20) -> 0.03333333333 | AQ9: =IF(AP9=0,0,(AP9*((LOG(AP9))/LOG(2)))) -> -0.1635630199 | AS9: =N9 -> 1121 | AT9: =COUNTIF(L157:L186,AS9) -> 1 | AU9: =AT9/(AV4-AT20) -> 0.03333333333 | AV9: =IF(AU9=0,0,(AU9*((LOG(AU9))/LOG(2)))) -> -0.1635630199
A10: 12 | B10: 399 | C10: 23 | D10: 409 | E10: 24 | F10: 416 | G10: 23 | H10: 426 | K10: 0 | L10: 1222 | N10: 1122 | O10: =COUNTIF($L$7:$L$500,N10) -> 42 | P10: =O10/$Q$4 -> 0.2333333333 | Q10: =IF(P10=0,0,(P10*((LOG(P10))/LOG(2)))) -> -0.4898916572 | T10: =N10 -> 1122 | U10: =COUNTIF(L7:L36,T10) -> 6 | V10: =U10/(W4-U20) -> 0.2 | W10: =IF(V10=0,0,(V10*((LOG(V10))/LOG(2)))) -> -0.464385619 | Y10: =N10 -> 1122 | Z10: =COUNTIF(L37:L66,Y10) -> 5 | AA10: =Z10/(AB4-Z20) -> 0.1666666667 | AB10: =IF(AA10=0,0,(AA10*((LOG(AA10))/LOG(2)))) -> -0.4308270835 | AD10: =N10 -> 1122 | AE10: =COUNTIF(L67:L96,AD10) -> 7 | AF10: =AE10/(AG4-AE20) -> 0.2333333333 | AG10: =IF(AF10=0,0,(AF10*((LOG(AF10))/LOG(2)))) -> -0.4898916572 | AI10: =N10 -> 1122 | AJ10: =COUNTIF(L97:L126,AI10) -> 6 | AK10: =AJ10/(AL4-AJ20) -> 0.2 | AL10: =IF(AK10=0,0,(AK10*((LOG(AK10))/LOG(2)))) -> -0.464385619 | AN10: =N10 -> 1122 | AO10: =COUNTIF(L127:L156,AN10) -> 12 | AP10: =AO10/(AQ4-AO20) -> 0.4 | AQ10: =IF(AP10=0,0,(AP10*((LOG(AP10))/LOG(2)))) -> -0.528771238 | AS10: =N10 -> 1122 | AT10: =COUNTIF(L157:L186,AS10) -> 6 | AU10: =AT10/(AV4-AT20) -> 0.2 | AV10: =IF(AU10=0,0,(AU10*((LOG(AU10))/LOG(2)))) -> -0.464385619
A11: 12 | B11: 526 | C11: 14 | D11: 532 | E11: 13 | F11: 539 | G11: 23 | H11: 550 | K11: 0 | L11: 1112 | N11: 1211 | O11: =COUNTIF($L$7:$L$500,N11) -> 0 | P11: =O11/$Q$4 -> 0 | Q11: =IF(P11=0,0,(P11*((LOG(P11))/LOG(2)))) -> 0 | T11: =N11 -> 1211 | U11: =COUNTIF(L7:L36,T11) -> 0 | V11: =U11/(W4-U20) -> 0 | W11: =IF(V11=0,0,(V11*((LOG(V11))/LOG(2)))) -> 0 | Y11: =N11 -> 1211 | Z11: =COUNTIF(L37:L66,Y11) -> 0 | AA11: =Z11/(AB4-Z20) -> 0 | AB11: =IF(AA11=0,0,(AA11*((LOG(AA11))/LOG(2)))) -> 0 | AD11: =N11 -> 1211 | AE11: =COUNTIF(L67:L96,AD11) -> 0 | AF11: =AE11/(AG4-AE20) -> 0 | AG11: =IF(AF11=0,0,(AF11*((LOG(AF11))/LOG(2)))) -> 0 | AI11: =N11 -> 1211 | AJ11: =COUNTIF(L97:L126,AI11) -> 0 | AK11: =AJ11/(AL4-AJ20) -> 0 | AL11: =IF(AK11=0,0,(AK11*((LOG(AK11))/LOG(2)))) -> 0 | AN11: =N11 -> 1211 | AO11: =COUNTIF(L127:L156,AN11) -> 0 | AP11: =AO11/(AQ4-AO20) -> 0 | AQ11: =IF(AP11=0,0,(AP11*((LOG(AP11))/LOG(2)))) -> 0 | AS11: =N11 -> 1211 | AT11: =COUNTIF(L157:L186,AS11) -> 0 | AU11: =AT11/(AV4-AT20) -> 0 | AV11: =IF(AU11=0,0,(AU11*((LOG(AU11))/LOG(2)))) -> 0
A12: 12 | B12: 646 | C12: 14 | D12: 655 | E12: 24 | F12: 671 | G12: 14 | H12: 689 | K12: 0 | L12: 1121 | N12: 1212 | O12: =COUNTIF($L$7:$L$500,N12) -> 4 | P12: =O12/$Q$4 -> 0.02222222222 | Q12: =IF(P12=0,0,(P12*((LOG(P12))/LOG(2)))) -> -0.1220411799 | T12: =N12 -> 1212 | U12: =COUNTIF(L7:L36,T12) -> 1 | V12: =U12/(W4-U20) -> 0.03333333333 | W12: =IF(V12=0,0,(V12*((LOG(V12))/LOG(2)))) -> -0.1635630199 | Y12: =N12 -> 1212 | Z12: =COUNTIF(L37:L66,Y12) -> 0 | AA12: =Z12/(AB4-Z20) -> 0 | AB12: =IF(AA12=0,0,(AA12*((LOG(AA12))/LOG(2)))) -> 0 | AD12: =N12 -> 1212 | AE12: =COUNTIF(L67:L96,AD12) -> 1 | AF12: =AE12/(AG4-AE20) -> 0.03333333333 | AG12: =IF(AF12=0,0,(AF12*((LOG(AF12))/LOG(2)))) -> -0.1635630199 | AI12: =N12 -> 1212 | AJ12: =COUNTIF(L97:L126,AI12) -> 2 | AK12: =AJ12/(AL4-AJ20) -> 0.06666666667 | AL12: =IF(AK12=0,0,(AK12*((LOG(AK12))/LOG(2)))) -> -0.260459373 | AN12: =N12 -> 1212 | AO12: =COUNTIF(L127:L156,AN12) -> 0 | AP12: =AO12/(AQ4-AO20) -> 0 | AQ12: =IF(AP12=0,0,(AP12*((LOG(AP12))/LOG(2)))) -> 0 | AS12: =N12 -> 1212 | AT12: =COUNTIF(L157:L186,AS12) -> 0 | AU12: =AT12/(AV4-AT20) -> 0 | AV12: =IF(AU12=0,0,(AU12*((LOG(AU12))/LOG(2)))) -> 0
A13: 12 | B13: 777 | C13: 23 | D13: 792 | E13: 13 | F13: 803 | G13: 23 | H13: 815 | K13: 0 | L13: 1212 | N13: 1221 | O13: =COUNTIF($L$7:$L$500,N13) -> 1 | P13: =O13/$Q$4 -> 0.005555555556 | Q13: =IF(P13=0,0,(P13*((LOG(P13))/LOG(2)))) -> -0.04162140609 | T13: =N13 -> 1221 | U13: =COUNTIF(L7:L36,T13) -> 0 | V13: =U13/(W4-U20) -> 0 | W13: =IF(V13=0,0,(V13*((LOG(V13))/LOG(2)))) -> 0 | Y13: =N13 -> 1221 | Z13: =COUNTIF(L37:L66,Y13) -> 0 | AA13: =Z13/(AB4-Z20) -> 0 | AB13: =IF(AA13=0,0,(AA13*((LOG(AA13))/LOG(2)))) -> 0 | AD13: =N13 -> 1221 | AE13: =COUNTIF(L67:L96,AD13) -> 0 | AF13: =AE13/(AG4-AE20) -> 0 | AG13: =IF(AF13=0,0,(AF13*((LOG(AF13))/LOG(2)))) -> 0 | AI13: =N13 -> 1221 | AJ13: =COUNTIF(L97:L126,AI13) -> 0 | AK13: =AJ13/(AL4-AJ20) -> 0 | AL13: =IF(AK13=0,0,(AK13*((LOG(AK13))/LOG(2)))) -> 0 | AN13: =N13 -> 1221 | AO13: =COUNTIF(L127:L156,AN13) -> 1 | AP13: =AO13/(AQ4-AO20) -> 0.03333333333 | AQ13: =IF(AP13=0,0,(AP13*((LOG(AP13))/LOG(2)))) -> -0.1635630199 | AS13: =N13 -> 1221 | AT13: =COUNTIF(L157:L186,AS13) -> 0 | AU13: =AT13/(AV4-AT20) -> 0 | AV13: =IF(AU13=0,0,(AU13*((LOG(AU13))/LOG(2)))) -> 0
A14: 12 | B14: 908 | C14: 14 | D14: 914 | E14: 24 | F14: 924 | G14: 14 | H14: 939 | K14: 0 | L14: 1121 | N14: 1222 | O14: =COUNTIF($L$7:$L$500,N14) -> 9 | P14: =O14/$Q$4 -> 0.05 | Q14: =IF(P14=0,0,(P14*((LOG(P14))/LOG(2)))) -> -0.2160964047 | T14: =N14 -> 1222 | U14: =COUNTIF(L7:L36,T14) -> 3 | V14: =U14/(W4-U20) -> 0.1 | W14: =IF(V14=0,0,(V14*((LOG(V14))/LOG(2)))) -> -0.3321928095 | Y14: =N14 -> 1222 | Z14: =COUNTIF(L37:L66,Y14) -> 0 | AA14: =Z14/(AB4-Z20) -> 0 | AB14: =IF(AA14=0,0,(AA14*((LOG(AA14))/LOG(2)))) -> 0 | AD14: =N14 -> 1222 | AE14: =COUNTIF(L67:L96,AD14) -> 3 | AF14: =AE14/(AG4-AE20) -> 0.1 | AG14: =IF(AF14=0,0,(AF14*((LOG(AF14))/LOG(2)))) -> -0.3321928095 | AI14: =N14 -> 1222 | AJ14: =COUNTIF(L97:L126,AI14) -> 1 | AK14: =AJ14/(AL4-AJ20) -> 0.03333333333 | AL14: =IF(AK14=0,0,(AK14*((LOG(AK14))/LOG(2)))) -> -0.1635630199 | AN14: =N14 -> 1222 | AO14: =COUNTIF(L127:L156,AN14) -> 1 | AP14: =AO14/(AQ4-AO20) -> 0.03333333333 | AQ14: =IF(AP14=0,0,(AP14*((LOG(AP14))/LOG(2)))) -> -0.1635630199 | AS14: =N14 -> 1222 | AT14: =COUNTIF(L157:L186,AS14) -> 1 | AU14: =AT14/(AV4-AT20) -> 0.03333333333 | AV14: =IF(AU14=0,0,(AU14*((LOG(AU14))/LOG(2)))) -> -0.1635630199
A15: 12 | B15: 1035 | C15: 14 | D15: 1042 | E15: 24 | F15: 1052 | G15: 14 | H15: 1064 | K15: 0 | L15: 1121 | N15: 2111 | O15: =COUNTIF($L$7:$L$500,N15) -> 0 | P15: =O15/$Q$4 -> 0 | Q15: =IF(P15=0,0,(P15*((LOG(P15))/LOG(2)))) -> 0 | T15: =N15 -> 2111 | U15: =COUNTIF(L7:L36,T15) -> 0 | V15: =U15/(W4-U20) -> 0 | W15: =IF(V15=0,0,(V15*((LOG(V15))/LOG(2)))) -> 0 | Y15: =N15 -> 2111 | Z15: =COUNTIF(L37:L66,Y15) -> 0 | AA15: =Z15/(AB4-Z20) -> 0 | AB15: =IF(AA15=0,0,(AA15*((LOG(AA15))/LOG(2)))) -> 0 | AD15: =N15 -> 2111 | AE15: =COUNTIF(L67:L96,AD15) -> 0 | AF15: =AE15/(AG4-AE20) -> 0 | AG15: =IF(AF15=0,0,(AF15*((LOG(AF15))/LOG(2)))) -> 0 | AI15: =N15 -> 2111 | AJ15: =COUNTIF(L97:L126,AI15) -> 0 | AK15: =AJ15/(AL4-AJ20) -> 0 | AL15: =IF(AK15=0,0,(AK15*((LOG(AK15))/LOG(2)))) -> 0 | AN15: =N15 -> 2111 | AO15: =COUNTIF(L127:L156,AN15) -> 0 | AP15: =AO15/(AQ4-AO20) -> 0 | AQ15: =IF(AP15=0,0,(AP15*((LOG(AP15))/LOG(2)))) -> 0 | AS15: =N15 -> 2111 | AT15: =COUNTIF(L157:L186,AS15) -> 0 | AU15: =AT15/(AV4-AT20) -> 0 | AV15: =IF(AU15=0,0,(AU15*((LOG(AU15))/LOG(2)))) -> 0
A16: 12 | B16: 1164 | C16: 14 | D16: 1173 | E16: 13 | F16: 1190 | G16: 23 | H16: 1200 | K16: 0 | L16: 1112 | N16: 2112 | O16: =COUNTIF($L$7:$L$500,N16) -> 2 | P16: =O16/$Q$4 -> 0.01111111111 | Q16: =IF(P16=0,0,(P16*((LOG(P16))/LOG(2)))) -> -0.07213170107 | T16: =N16 -> 2112 | U16: =COUNTIF(L7:L36,T16) -> 0 | V16: =U16/(W4-U20) -> 0 | W16: =IF(V16=0,0,(V16*((LOG(V16))/LOG(2)))) -> 0 | Y16: =N16 -> 2112 | Z16: =COUNTIF(L37:L66,Y16) -> 1 | AA16: =Z16/(AB4-Z20) -> 0.03333333333 | AB16: =IF(AA16=0,0,(AA16*((LOG(AA16))/LOG(2)))) -> -0.1635630199 | AD16: =N16 -> 2112 | AE16: =COUNTIF(L67:L96,AD16) -> 0 | AF16: =AE16/(AG4-AE20) -> 0 | AG16: =IF(AF16=0,0,(AF16*((LOG(AF16))/LOG(2)))) -> 0 | AI16: =N16 -> 2112 | AJ16: =COUNTIF(L97:L126,AI16) -> 0 | AK16: =AJ16/(AL4-AJ20) -> 0 | AL16: =IF(AK16=0,0,(AK16*((LOG(AK16))/LOG(2)))) -> 0 | AN16: =N16 -> 2112 | AO16: =COUNTIF(L127:L156,AN16) -> 1 | AP16: =AO16/(AQ4-AO20) -> 0.03333333333 | AQ16: =IF(AP16=0,0,(AP16*((LOG(AP16))/LOG(2)))) -> -0.1635630199 | AS16: =N16 -> 2112 | AT16: =COUNTIF(L157:L186,AS16) -> 0 | AU16: =AT16/(AV4-AT20) -> 0 | AV16: =IF(AU16=0,0,(AU16*((LOG(AU16))/LOG(2)))) -> 0
A17: 12 | B17: 1300 | C17: 14 | D17: 1309 | E17: 24 | F17: 1319 | G17: 14 | H17: 1336 | K17: 0 | L17: 1121 | N17: 2121 | O17: =COUNTIF($L$7:$L$500,N17) -> 0 | P17: =O17/$Q$4 -> 0 | Q17: =IF(P17=0,0,(P17*((LOG(P17))/LOG(2)))) -> 0 | T17: =N17 -> 2121 | U17: =COUNTIF(L7:L36,T17) -> 0 | V17: =U17/(W4-U20) -> 0 | W17: =IF(V17=0,0,(V17*((LOG(V17))/LOG(2)))) -> 0 | Y17: =N17 -> 2121 | Z17: =COUNTIF(L37:L66,Y17) -> 0 | AA17: =Z17/(AB4-Z20) -> 0 | AB17: =IF(AA17=0,0,(AA17*((LOG(AA17))/LOG(2)))) -> 0 | AD17: =N17 -> 2121 | AE17: =COUNTIF(L67:L96,AD17) -> 0 | AF17: =AE17/(AG4-AE20) -> 0 | AG17: =IF(AF17=0,0,(AF17*((LOG(AF17))/LOG(2)))) -> 0 | AI17: =N17 -> 2121 | AJ17: =COUNTIF(L97:L126,AI17) -> 0 | AK17: =AJ17/(AL4-AJ20) -> 0 | AL17: =IF(AK17=0,0,(AK17*((LOG(AK17))/LOG(2)))) -> 0 | AN17: =N17 -> 2121 | AO17: =COUNTIF(L127:L156,AN17) -> 0 | AP17: =AO17/(AQ4-AO20) -> 0 | AQ17: =IF(AP17=0,0,(AP17*((LOG(AP17))/LOG(2)))) -> 0 | AS17: =N17 -> 2121 | AT17: =COUNTIF(L157:L186,AS17) -> 0 | AU17: =AT17/(AV4-AT20) -> 0 | AV17: =IF(AU17=0,0,(AU17*((LOG(AU17))/LOG(2)))) -> 0
A18: 12 | B18: 1430 | C18: 14 | D18: 1436 | E18: 13 | F18: 1447 | G18: 23 | H18: 1458 | K18: 0 | L18: 1112 | N18: 2122 | O18: =COUNTIF($L$7:$L$500,N18) -> 0 | P18: =O18/$Q$4 -> 0 | Q18: =IF(P18=0,0,(P18*((LOG(P18))/LOG(2)))) -> 0 | T18: =N18 -> 2122 | U18: =COUNTIF(L7:L36,T18) -> 0 | V18: =U18/(W4-U20) -> 0 | W18: =IF(V18=0,0,(V18*((LOG(V18))/LOG(2)))) -> 0 | Y18: =N18 -> 2122 | Z18: =COUNTIF(L37:L66,Y18) -> 0 | AA18: =Z18/(AB4-Z20) -> 0 | AB18: =IF(AA18=0,0,(AA18*((LOG(AA18))/LOG(2)))) -> 0 | AD18: =N18 -> 2122 | AE18: =COUNTIF(L67:L96,AD18) -> 0 | AF18: =AE18/(AG4-AE20) -> 0 | AG18: =IF(AF18=0,0,(AF18*((LOG(AF18))/LOG(2)))) -> 0 | AI18: =N18 -> 2122 | AJ18: =COUNTIF(L97:L126,AI18) -> 0 | AK18: =AJ18/(AL4-AJ20) -> 0 | AL18: =IF(AK18=0,0,(AK18*((LOG(AK18))/LOG(2)))) -> 0 | AN18: =N18 -> 2122 | AO18: =COUNTIF(L127:L156,AN18) -> 0 | AP18: =AO18/(AQ4-AO20) -> 0 | AQ18: =IF(AP18=0,0,(AP18*((LOG(AP18))/LOG(2)))) -> 0 | AS18: =N18 -> 2122 | AT18: =COUNTIF(L157:L186,AS18) -> 0 | AU18: =AT18/(AV4-AT20) -> 0 | AV18: =IF(AU18=0,0,(AU18*((LOG(AU18))/LOG(2)))) -> 0
A19: 12 | B19: 1558 | C19: 14 | D19: 1568 | E19: 24 | F19: 1579 | G19: 14 | H19: 1592 | K19: 0 | L19: 1121 | N19: 2211 | O19: =COUNTIF($L$7:$L$500,N19) -> 1 | P19: =O19/$Q$4 -> 0.005555555556 | Q19: =IF(P19=0,0,(P19*((LOG(P19))/LOG(2)))) -> -0.04162140609 | T19: =N19 -> 2211 | U19: =COUNTIF(L7:L36,T19) -> 0 | V19: =U19/(W4-U20) -> 0 | W19: =IF(V19=0,0,(V19*((LOG(V19))/LOG(2)))) -> 0 | Y19: =N19 -> 2211 | Z19: =COUNTIF(L37:L66,Y19) -> 0 | AA19: =Z19/(AB4-Z20) -> 0 | AB19: =IF(AA19=0,0,(AA19*((LOG(AA19))/LOG(2)))) -> 0 | AD19: =N19 -> 2211 | AE19: =COUNTIF(L67:L96,AD19) -> 0 | AF19: =AE19/(AG4-AE20) -> 0 | AG19: =IF(AF19=0,0,(AF19*((LOG(AF19))/LOG(2)))) -> 0 | AI19: =N19 -> 2211 | AJ19: =COUNTIF(L97:L126,AI19) -> 0 | AK19: =AJ19/(AL4-AJ20) -> 0 | AL19: =IF(AK19=0,0,(AK19*((LOG(AK19))/LOG(2)))) -> 0 | AN19: =N19 -> 2211 | AO19: =COUNTIF(L127:L156,AN19) -> 0 | AP19: =AO19/(AQ4-AO20) -> 0 | AQ19: =IF(AP19=0,0,(AP19*((LOG(AP19))/LOG(2)))) -> 0 | AS19: =N19 -> 2211 | AT19: =COUNTIF(L157:L186,AS19) -> 1 | AU19: =AT19/(AV4-AT20) -> 0.03333333333 | AV19: =IF(AU19=0,0,(AU19*((LOG(AU19))/LOG(2)))) -> -0.1635630199
A20: 12 | B20: 1705 | C20: 23 | D20: 1719 | E20: 24 | F20: 1725 | G20: 23 | H20: 1727 | K20: 0 | L20: 1222 | N20: 2212 | O20: =COUNTIF($L$7:$L$500,N20) -> 0 | P20: =O20/$Q$4 -> 0 | Q20: =IF(P20=0,0,(P20*((LOG(P20))/LOG(2)))) -> 0 | T20: =N20 -> 2212 | U20: =COUNTIF(L7:L36,T20) -> 0 | Y20: =N20 -> 2212 | Z20: =COUNTIF(L37:L66,Y20) -> 0 | AD20: =N20 -> 2212 | AE20: =COUNTIF(L67:L96,AD20) -> 0 | AI20: =N20 -> 2212 | AJ20: =COUNTIF(L97:L126,AI20) -> 0 | AN20: =N20 -> 2212 | AO20: =COUNTIF(L127:L156,AN20) -> 0 | AS20: =N20 -> 2212 | AT20: =COUNTIF(L157:L186,AS20) -> 0
A21: 12 | B21: 1820 | C21: 14 | D21: 1825 | E21: 13 | F21: 1842 | G21: 23 | H21: 1851 | K21: 0 | L21: 1112 | N21: 2221 | O21: =COUNTIF($L$7:$L$500,N21) -> 1 | P21: =O21/$Q$4 -> 0.005555555556 | Q21: =IF(P21=0,0,(P21*((LOG(P21))/LOG(2)))) -> -0.04162140609 | T21: =N21 -> 2221 | U21: =COUNTIF(L7:L36,T21) -> 0 | V21: =U21/(W4-U20) -> 0 | W21: =IF(V21=0,0,(V21*((LOG(V21))/LOG(2)))) -> 0 | Y21: =N21 -> 2221 | Z21: =COUNTIF(L37:L66,Y21) -> 0 | AA21: =Z21/(AB4-Z20) -> 0 | AB21: =IF(AA21=0,0,(AA21*((LOG(AA21))/LOG(2)))) -> 0 | AD21: =N21 -> 2221 | AE21: =COUNTIF(L67:L96,AD21) -> 0 | AF21: =AE21/(AG4-AE20) -> 0 | AG21: =IF(AF21=0,0,(AF21*((LOG(AF21))/LOG(2)))) -> 0 | AI21: =N21 -> 2221 | AJ21: =COUNTIF(L97:L126,AI21) -> 1 | AK21: =AJ21/(AL4-AJ20) -> 0.03333333333 | AL21: =IF(AK21=0,0,(AK21*((LOG(AK21))/LOG(2)))) -> -0.1635630199 | AN21: =N21 -> 2221 | AO21: =COUNTIF(L127:L156,AN21) -> 0 | AP21: =AO21/(AQ4-AO20) -> 0 | AQ21: =IF(AP21=0,0,(AP21*((LOG(AP21))/LOG(2)))) -> 0 | AS21: =N21 -> 2221 | AT21: =COUNTIF(L157:L186,AS21) -> 0 | AU21: =AT21/(AV4-AT20) -> 0 | AV21: =IF(AU21=0,0,(AU21*((LOG(AU21))/LOG(2)))) -> 0
A22: 12 | B22: 1945 | C22: 14 | D22: 1953 | E22: 24 | F22: 1963 | G22: 23 | H22: 1971 | K22: 0 | L22: 1122 | N22: 2222 | O22: =COUNTIF($L$7:$L$500,N22) -> 0 | P22: =O22/$Q$4 -> 0 | Q22: =IF(P22=0,0,(P22*((LOG(P22))/LOG(2)))) -> 0 | T22: =N22 -> 2222 | U22: =COUNTIF(L7:L36,T22) -> 0 | V22: =U22/(W4-U20) -> 0 | W22: =IF(V22=0,0,(V22*((LOG(V22))/LOG(2)))) -> 0 | Y22: =N22 -> 2222 | Z22: =COUNTIF(L37:L66,Y22) -> 0 | AA22: =Z22/(AB4-Z20) -> 0 | AB22: =IF(AA22=0,0,(AA22*((LOG(AA22))/LOG(2)))) -> 0 | AD22: =N22 -> 2222 | AE22: =COUNTIF(L67:L96,AD22) -> 0 | AF22: =AE22/(AG4-AE20) -> 0 | AG22: =IF(AF22=0,0,(AF22*((LOG(AF22))/LOG(2)))) -> 0 | AI22: =N22 -> 2222 | AJ22: =COUNTIF(L97:L126,AI22) -> 0 | AK22: =AJ22/(AL4-AJ20) -> 0 | AL22: =IF(AK22=0,0,(AK22*((LOG(AK22))/LOG(2)))) -> 0 | AN22: =N22 -> 2222 | AO22: =COUNTIF(L127:L156,AN22) -> 0 | AP22: =AO22/(AQ4-AO20) -> 0 | AQ22: =IF(AP22=0,0,(AP22*((LOG(AP22))/LOG(2)))) -> 0 | AS22: =N22 -> 2222 | AT22: =COUNTIF(L157:L186,AS22) -> 0 | AU22: =AT22/(AV4-AT20) -> 0 | AV22: =IF(AU22=0,0,(AU22*((LOG(AU22))/LOG(2)))) -> 0
A23: 12 | B23: 2070 | C23: 14 | D23: 2077 | E23: 13 | F23: 2090 | G23: 23 | H23: 2104 | K23: 0 | L23: 1112 | P23: =SUM(P7:P22) -> 1 | Q23: =-SUM(Q7:Q22) -> 2.274902468 | V23: =SUM(V7:V22) -> 1 | W23: =-SUM(W7:W22) -> 2.142367363 | AA23: =SUM(AA7:AA22) -> 1 | AB23: =-SUM(AB7:AB22) -> 1.731519765 | AF23: =SUM(AF7:AF22) -> 1 | AG23: =-SUM(AG7:AG22) -> 2.191389863 | AK23: =SUM(AK7:AK22) -> 1 | AL23: =-SUM(AL7:AL22) -> 2.294544634 | AP23: =SUM(AP7:AP22) -> 1 | AQ23: =-SUM(AQ7:AQ22) -> 1.972253928 | AU23: =SUM(AU7:AU22) -> 1 | AV23: =-SUM(AV7:AV22) -> 1.986374218
A24: 12 | B24: 2198 | C24: 14 | D24: 2204 | E24: 24 | F24: 2213 | G24: 14 | H24: 2229 | K24: 0 | L24: 1121 | P24: U= | Q24: =Q23/(LOG(Q4)/LOG(2)) -> 0.3036501702 | V24: U1= | W24: =W23/(LOG(W4)/LOG(2)) -> 0.4366038577 | AA24: U2= | AB24: =AB23/(LOG(AB4)/LOG(2)) -> 0.352875152 | AF24: U3= | AG24: =AG23/(LOG(AG4)/LOG(2)) -> 0.4465944003 | AK24: U4= | AL24: =AL23/(LOG(AL4)/LOG(2)) -> 0.4676168318 | AP24: U5= | AQ24: =AQ23/(LOG(AQ4)/LOG(2)) -> 0.4019355822 | AU24: U6= | AV24: =AV23/(LOG(AV4)/LOG(2)) -> 0.4048132272
A25: 12 | B25: 2329 | C25: 14 | D25: 2352 | E25: 24 | F25: 2362 | G25: 23 | H25: 2367 | K25: 0 | L25: 1122
A26: 12 | B26: 2466 | C26: 14 | D26: 2475 | E26: 13 | F26: 2492 | G26: 23 | H26: 2509 | K26: 0 | L26: 1112
A27: 12 | B27: 2610 | C27: 14 | D27: 2618 | E27: 13 | F27: 2629 | G27: 23 | H27: 2639 | K27: 0 | L27: 1112 | N27: Total Target Seq
A28: 12 | B28: 2738 | C28: 14 | D28: 2760 | E28: 24 | F28: 2769 | G28: 23 | H28: 2777 | K28: 0 | L28: 1122 | N28: =COUNTIF(L7:L186,G3) -> 0 | P28: 30 | Q28: 30 | R28: 30 | S28: 30 | T28: 30 | U28: 30
A29: 12 | B29: 2892 | C29: 14 | D29: 2901 | E29: 13 | F29: 2914 | G29: 23 | H29: 2923 | K29: 0 | L29: 1112 | P29: % of reinforcement given in 6 equal intervals based on number of trials
A30: 12 | B30: 3014 | C30: 14 | D30: 3031 | E30: 13 | F30: 3039 | G30: 23 | H30: 3048 | K30: 0 | L30: 1112 | P30: %_1 | Q30: %_2 | R30: %_3 | S30: %_4 | T30: %_5 | U30: %_6
A31: 12 | B31: 3146 | C31: 14 | D31: 3156 | E31: 24 | F31: 3165 | G31: 23 | H31: 3173 | K31: 0 | L31: 1122 | O31: target sequence | P31: =$G$3 -> 2212 | Q31: =$G$3 -> 2212 | R31: =$G$3 -> 2212 | S31: =$G$3 -> 2212 | T31: =$G$3 -> 2212 | U31: =$G$3 -> 2212
A32: 12 | B32: 3270 | C32: 14 | D32: 3288 | E32: 13 | F32: 3296 | G32: 23 | H32: 3310 | K32: 0 | L32: 1112 | O32: total reinforcement | P32: =U20 -> 0 | Q32: =Z20 -> 0 | R32: =AE20 -> 0 | S32: =AJ20 -> 0 | T32: =AO20 -> 0 | U32: =AT20 -> 0
A33: 12 | B33: 3426 | C33: 23 | D33: 3435 | E33: 24 | F33: 3443 | G33: 23 | H33: 3447 | K33: 0 | L33: 1222 | O33: % target
A34: 12 | B34: 3538 | C34: 14 | D34: 3542 | E34: 13 | F34: 3549 | G34: 14 | H34: 3571 | K34: 0 | L34: 1111 | O34: CCRF
A35: 12 | B35: 3669 | C35: 14 | D35: 3675 | E35: 24 | F35: 3685 | G35: 14 | H35: 3695 | K35: 0 | L35: 1121 | O35: % CCRf
A36: 12 | B36: 3792 | C36: 14 | D36: 3798 | E36: 13 | F36: 3807 | G36: 23 | H36: 3817 | K36: 0 | L36: 1112 | O36: average response rate | P36: =H36/P28 -> 127.2333333 | Q36: =(H66-H36)/Q28 -> 126.6666667 | R36: =(H96-H66)/R28 -> 135.4333333 | S36: =(H126-H96)/S28 -> 142.2666667 | T36: =(H156-H126)/T28 -> 129.6333333 | U36: =(H186-H156)/U28 -> 134.1
A37: 12 | B37: 3915 | C37: 14 | D37: 3922 | E37: 13 | F37: 3930 | G37: 14 | H37: 3945 | K37: 0 | L37: 1111
A38: 12 | B38: 4044 | C38: 14 | D38: 4049 | E38: 24 | F38: 4061 | G38: 23 | H38: 4068 | K38: 0 | L38: 1122
A39: 12 | B39: 4166 | C39: 14 | D39: 4171 | E39: 13 | F39: 4179 | G39: 23 | H39: 4189 | K39: 0 | L39: 1112
A40: 12 | B40: 4292 | C40: 14 | D40: 4297 | E40: 13 | F40: 4304 | G40: 14 | H40: 4317 | K40: 0 | L40: 1111
A41: 12 | B41: 4414 | C41: 14 | D41: 4423 | E41: 24 | F41: 4436 | G41: 23 | H41: 4443 | K41: 0 | L41: 1122
A42: 12 | B42: 4536 | C42: 14 | D42: 4541 | E42: 13 | F42: 4551 | G42: 23 | H42: 4560 | K42: 0 | L42: 1112
A43: 12 | B43: 4663 | C43: 14 | D43: 4667 | E43: 13 | F43: 4672 | G43: 14 | H43: 4681 | K43: 0 | L43: 1111
A44: 21 | B44: 4799 | C44: 12 | D44: 4809 | E44: 13 | F44: 4818 | G44: 23 | H44: 4835 | K44: 0 | L44: 2112
A45: 12 | B45: 4932 | C45: 14 | D45: 4942 | E45: 13 | F45: 4955 | G45: 23 | H45: 4964 | K45: 0 | L45: 1112
A46: 12 | B46: 5061 | C46: 14 | D46: 5071 | E46: 24 | F46: 5083 | G46: 23 | H46: 5088 | K46: 0 | L46: 1122
A47: 12 | B47: 5187 | C47: 14 | D47: 5192 | E47: 13 | F47: 5199 | G47: 23 | H47: 5210 | K47: 0 | L47: 1112
A48: 12 | B48: 5310 | C48: 14 | D48: 5315 | E48: 13 | F48: 5322 | G48: 23 | H48: 5332 | K48: 0 | L48: 1112
A49: 12 | B49: 5426 | C49: 14 | D49: 5431 | E49: 13 | F49: 5436 | G49: 23 | H49: 5446 | K49: 0 | L49: 1112
A50: 12 | B50: 5544 | C50: 14 | D50: 5548 | E50: 13 | F50: 5553 | G50: 23 | H50: 5564 | K50: 0 | L50: 1112
A51: 12 | B51: 5663 | C51: 14 | D51: 5667 | E51: 13 | F51: 5672 | G51: 14 | H51: 5680 | K51: 0 | L51: 1111
A52: 12 | B52: 5781 | C52: 14 | D52: 5786 | E52: 13 | F52: 5791 | G52: 23 | H52: 5804 | K52: 0 | L52: 1112
A53: 12 | B53: 5905 | C53: 14 | D53: 5909 | E53: 13 | F53: 5917 | G53: 23 | H53: 5936 | K53: 0 | L53: 1112
A54: 12 | B54: 6056 | C54: 14 | D54: 6062 | E54: 13 | F54: 6070 | G54: 23 | H54: 6080 | K54: 0 | L54: 1112
A55: 12 | B55: 6183 | C55: 14 | D55: 6190 | E55: 24 | F55: 6201 | G55: 23 | H55: 6208 | K55: 0 | L55: 1122
A56: 12 | B56: 6373 | C56: 14 | D56: 6378 | E56: 24 | F56: 6390 | G56: 14 | H56: 6403 | K56: 0 | L56: 1121
A57: 12 | B57: 6500 | C57: 14 | D57: 6506 | E57: 13 | F57: 6513 | G57: 23 | H57: 6522 | K57: 0 | L57: 1112
A58: 12 | B58: 6624 | C58: 14 | D58: 6633 | E58: 24 | F58: 6643 | G58: 23 | H58: 6650 | K58: 0 | L58: 1122
A59: 12 | B59: 6755 | C59: 14 | D59: 6760 | E59: 13 | F59: 6767 | G59: 23 | H59: 6777 | K59: 0 | L59: 1112
A60: 12 | B60: 6878 | C60: 14 | D60: 6883 | E60: 13 | F60: 6890 | G60: 23 | H60: 6902 | K60: 0 | L60: 1112
A61: 12 | B61: 7001 | C61: 14 | D61: 7005 | E61: 13 | F61: 7010 | G61: 14 | H61: 7018 | K61: 0 | L61: 1111
A62: 12 | B62: 7115 | C62: 14 | D62: 7130 | E62: 13 | F62: 7135 | G62: 23 | H62: 7152 | K62: 0 | L62: 1112
A63: 12 | B63: 7251 | C63: 14 | D63: 7255 | E63: 13 | F63: 7260 | G63: 14 | H63: 7265 | K63: 0 | L63: 1111
A64: 12 | B64: 7363 | C64: 14 | D64: 7367 | E64: 13 | F64: 7374 | G64: 23 | H64: 7384 | K64: 0 | L64: 1112
A65: 12 | B65: 7480 | C65: 14 | D65: 7484 | E65: 13 | F65: 7489 | G65: 14 | H65: 7496 | K65: 0 | L65: 1111
A66: 12 | B66: 7596 | C66: 14 | D66: 7602 | E66: 13 | F66: 7606 | G66: 23 | H66: 7617 | K66: 0 | L66: 1112
A67: 12 | B67: 7714 | C67: 14 | D67: 7718 | E67: 13 | F67: 7722 | G67: 14 | H67: 7730 | K67: 0 | L67: 1111
A68: 12 | B68: 7828 | C68: 14 | D68: 7833 | E68: 13 | F68: 7838 | G68: 23 | H68: 7848 | K68: 0 | L68: 1112
A69: 12 | B69: 7946 | C69: 14 | D69: 7955 | E69: 24 | F69: 7973 | G69: 23 | H69: 7981 | K69: 0 | L69: 1122
A70: 12 | B70: 8081 | C70: 14 | D70: 8086 | E70: 13 | F70: 8103 | G70: 23 | H70: 8120 | K70: 0 | L70: 1112
A71: 12 | B71: 8218 | C71: 14 | D71: 8223 | E71: 13 | F71: 8230 | G71: 23 | H71: 8243 | K71: 0 | L71: 1112
A72: 12 | B72: 8342 | C72: 23 | D72: 8361 | E72: 24 | F72: 8365 | G72: 23 | H72: 8373 | K72: 0 | L72: 1222
A73: 12 | B73: 8475 | C73: 14 | D73: 8482 | E73: 13 | F73: 8498 | G73: 23 | H73: 8508 | K73: 0 | L73: 1112
A74: 12 | B74: 8597 | C74: 14 | D74: 8604 | E74: 24 | F74: 8613 | G74: 14 | H74: 8626 | K74: 0 | L74: 1121
A75: 12 | B75: 8726 | C75: 14 | D75: 8733 | E75: 24 | F75: 8746 | G75: 23 | H75: 8753 | K75: 0 | L75: 1122
A76: 12 | B76: 8854 | C76: 14 | D76: 8859 | E76: 13 | F76: 8868 | G76: 23 | H76: 8879 | K76: 0 | L76: 1112
A77: 12 | B77: 8972 | C77: 14 | D77: 8976 | E77: 13 | F77: 8981 | G77: 14 | H77: 8988 | K77: 0 | L77: 1111
A78: 12 | B78: 9086 | C78: 14 | D78: 9090 | E78: 13 | F78: 9094 | G78: 14 | H78: 9101 | K78: 0 | L78: 1111
A79: 12 | B79: 9202 | C79: 14 | D79: 9207 | E79: 13 | F79: 9217 | G79: 14 | H79: 9226 | K79: 0 | L79: 1111
A80: 12 | B80: 9326 | C80: 14 | D80: 9335 | E80: 24 | F80: 9347 | G80: 23 | H80: 9354 | K80: 0 | L80: 1122
A81: 12 | B81: 9467 | C81: 14 | D81: 9472 | E81: 13 | F81: 9477 | G81: 14 | H81: 9499 | K81: 0 | L81: 1111
A82: 12 | B82: 9612 | C82: 14 | D82: 9617 | E82: 13 | F82: 9622 | G82: 14 | H82: 9635 | K82: 0 | L82: 1111
A83: 12 | B83: 9732 | C83: 14 | D83: 9736 | E83: 13 | F83: 9744 | G83: 23 | H83: 9758 | K83: 0 | L83: 1112
A84: 12 | B84: 9858 | C84: 14 | D84: 9863 | E84: 13 | F84: 9867 | G84: 14 | H84: 9872 | K84: 0 | L84: 1111
A85: 12 | B85: 9976 | C85: 14 | D85: 9980 | E85: 13 | F85: 9985 | G85: 14 | H85: 9990 | K85: 0 | L85: 1111
A86: 12 | B86: 10091 | C86: 14 | D86: 10096 | E86: 13 | F86: 10102 | G86: 23 | H86: 10113 | K86: 0 | L86: 1112
A87: 12 | B87: 10313 | C87: 23 | D87: 10327 | E87: 24 | F87: 10334 | G87: 23 | H87: 10341 | K87: 0 | L87: 1222
A88: 12 | B88: 10438 | C88: 14 | D88: 10452 | E88: 13 | F88: 10464 | G88: 23 | H88: 10485 | K88: 0 | L88: 1112
A89: 12 | B89: 10589 | C89: 23 | D89: 10610 | E89: 13 | F89: 10631 | G89: 23 | H89: 10641 | K89: 0 | L89: 1212
A90: 12 | B90: 10750 | C90: 14 | D90: 10760 | E90: 13 | F90: 10770 | G90: 23 | H90: 10781 | K90: 0 | L90: 1112
A91: 12 | B91: 10902 | C91: 14 | D91: 10911 | E91: 24 | F91: 10924 | G91: 23 | H91: 10938 | K91: 0 | L91: 1122
A92: 12 | B92: 11041 | C92: 14 | D92: 11060 | E92: 24 | F92: 11072 | G92: 23 | H92: 11078 | K92: 0 | L92: 1122
A93: 12 | B93: 11241 | C93: 14 | D93: 11246 | E93: 24 | F93: 11260 | G93: 23 | H93: 11269 | K93: 0 | L93: 1122
A94: 12 | B94: 11368 | C94: 14 | D94: 11376 | E94: 13 | F94: 11385 | G94: 14 | H94: 11393 | K94: 0 | L94: 1111
A95: 12 | B95: 11491 | C95: 23 | D95: 11516 | E95: 24 | F95: 11524 | G95: 23 | H95: 11532 | K95: 0 | L95: 1222
A96: 12 | B96: 11647 | C96: 14 | D96: 11657 | E96: 24 | F96: 11670 | G96: 23 | H96: 11680 | K96: 0 | L96: 1122
A97: 12 | B97: 11776 | C97: 14 | D97: 11785 | E97: 13 | F97: 11802 | G97: 23 | H97: 11817 | K97: 0 | L97: 1112
A98: 12 | B98: 11917 | C98: 23 | D98: 11935 | E98: 13 | F98: 11948 | G98: 23 | H98: 11961 | K98: 0 | L98: 1212
A99: 12 | B99: 12066 | C99: 14 | D99: 12075 | E99: 13 | F99: 12093 | G99: 23 | H99: 12104 | K99: 0 | L99: 1112
A100: 12 | B100: 12200 | C100: 14 | D100: 12209 | E100: 24 | F100: 12224 | G100: 23 | H100: 12231 | K100: 0 | L100: 1122
A101: 12 | B101: 12333 | C101: 14 | D101: 12338 | E101: 13 | F101: 12346 | G101: 23 | H101: 12356 | K101: 0 | L101: 1112
A102: 12 | B102: 12456 | C102: 14 | D102: 12465 | E102: 13 | F102: 12475 | G102: 23 | H102: 12489 | K102: 0 | L102: 1112
A103: 12 | B103: 12620 | C103: 14 | D103: 12628 | E103: 24 | F103: 12639 | G103: 23 | H103: 12647 | K103: 0 | L103: 1122
A104: 12 | B104: 12771 | C104: 23 | D104: 12788 | E104: 13 | F104: 12801 | G104: 23 | H104: 12813 | K104: 0 | L104: 1212
A105: 12 | B105: 12934 | C105: 14 | D105: 12939 | E105: 13 | F105: 12961 | G105: 23 | H105: 12973 | K105: 0 | L105: 1112
A106: 12 | B106: 13080 | C106: 14 | D106: 13087 | E106: 24 | F106: 13103 | G106: 14 | H106: 13112 | K106: 0 | L106: 1121
A107: 12 | B107: 13283 | C107: 14 | D107: 13289 | E107: 13 | F107: 13298 | G107: 23 | H107: 13311 | K107: 0 | L107: 1112
A108: 12 | B108: 13419 | C108: 14 | D108: 13430 | E108: 24 | F108: 13443 | G108: 23 | H108: 13450 | K108: 0 | L108: 1122
A109: 12 | B109: 13564 | C109: 14 | D109: 13572 | E109: 24 | F109: 13585 | G109: 14 | H109: 13595 | K109: 0 | L109: 1121
A110: 12 | B110: 13723 | C110: 14 | D110: 13732 | E110: 24 | F110: 13746 | G110: 23 | H110: 13753 | K110: 0 | L110: 1122
A111: 12 | B111: 13871 | C111: 14 | D111: 13879 | E111: 24 | F111: 13890 | G111: 23 | H111: 13897 | K111: 0 | L111: 1122
A112: 12 | B112: 14021 | C112: 23 | D112: 14039 | E112: 24 | F112: 14046 | G112: 23 | H112: 14053 | K112: 0 | L112: 1222
A113: 12 | B113: 14157 | C113: 14 | D113: 14162 | E113: 13 | F113: 14171 | G113: 23 | H113: 14182 | K113: 0 | L113: 1112
A114: 12 | B114: 14278 | C114: 14 | D114: 14283 | E114: 13 | F114: 14288 | G114: 23 | H114: 14299 | K114: 0 | L114: 1112
A115: 12 | B115: 14405 | C115: 14 | D115: 14409 | E115: 13 | F115: 14416 | G115: 23 | H115: 14430 | K115: 0 | L115: 1112
A116: 12 | B116: 14529 | C116: 14 | D116: 14534 | E116: 13 | F116: 14539 | G116: 14 | H116: 14546 | K116: 0 | L116: 1111
A117: 12 | B117: 14671 | C117: 14 | D117: 14672 | E117: 13 | F117: 14677 | G117: 14 | H117: 14690 | K117: 0 | L117: 1111
A118: 12 | B118: 14793 | C118: 14 | D118: 14800 | E118: 13 | F118: 14813 | G118: 23 | H118: 14827 | K118: 0 | L118: 1112
A119: 12 | B119: 14934 | C119: 14 | D119: 14939 | E119: 13 | F119: 14944 | G119: 23 | H119: 14954 | K119: 0 | L119: 1112
A120: 12 | B120: 15061 | C120: 14 | D120: 15066 | E120: 13 | F120: 15072 | G120: 23 | H120: 15087 | K120: 0 | L120: 1112
A121: 12 | B121: 15196 | C121: 14 | D121: 15201 | E121: 13 | F121: 15213 | G121: 23 | H121: 15224 | K121: 0 | L121: 1112
A122: 12 | B122: 15316 | C122: 14 | D122: 15329 | E122: 24 | F122: 15343 | G122: 14 | H122: 15354 | K122: 0 | L122: 1121
A123: 21 | B123: 15469 | C123: 21 | D123: 15521 | E123: 22 | F123: 15533 | G123: 14 | H123: 15548 | K123: 0 | L123: 2221
A124: 12 | B124: 15649 | C124: 14 | D124: 15653 | E124: 13 | F124: 15658 | G124: 14 | H124: 15662 | K124: 0 | L124: 1111
A125: 12 | B125: 15783 | C125: 14 | D125: 15798 | E125: 24 | F125: 15811 | G125: 23 | H125: 15819 | K125: 0 | L125: 1122
A126: 12 | B126: 15923 | C126: 14 | D126: 15927 | E126: 13 | F126: 15932 | G126: 14 | H126: 15948 | K126: 0 | L126: 1111
A127: 12 | B127: 16067 | C127: 14 | D127: 16072 | E127: 13 | F127: 16080 | G127: 23 | H127: 16093 | K127: 0 | L127: 1112
A128: 12 | B128: 16211 | C128: 14 | D128: 16216 | E128: 13 | F128: 16223 | G128: 23 | H128: 16236 | K128: 0 | L128: 1112
A129: 12 | B129: 16349 | C129: 14 | D129: 16355 | E129: 13 | F129: 16362 | G129: 23 | H129: 16373 | K129: 0 | L129: 1112
A130: 12 | B130: 16464 | C130: 14 | D130: 16472 | E130: 24 | F130: 16484 | G130: 23 | H130: 16489 | K130: 0 | L130: 1122
A131: 12 | B131: 16587 | C131: 14 | D131: 16594 | E131: 24 | F131: 16604 | G131: 23 | H131: 16611 | K131: 0 | L131: 1122
A132: 12 | B132: 16723 | C132: 14 | D132: 16728 | E132: 24 | F132: 16744 | G132: 23 | H132: 16751 | K132: 0 | L132: 1122
A133: 21 | B133: 16869 | C133: 12 | D133: 16882 | E133: 13 | F133: 16890 | G133: 23 | H133: 16902 | K133: 0 | L133: 2112
A134: 12 | B134: 17000 | C134: 23 | D134: 17017 | E134: 24 | F134: 17027 | G134: 23 | H134: 17037 | K134: 0 | L134: 1222
A135: 12 | B135: 17134 | C135: 14 | D135: 17139 | E135: 13 | F135: 17144 | G135: 23 | H135: 17155 | K135: 0 | L135: 1112
A136: 12 | B136: 17248 | C136: 14 | D136: 17258 | E136: 24 | F136: 17268 | G136: 14 | H136: 17280 | K136: 0 | L136: 1121
A137: 12 | B137: 17380 | C137: 14 | D137: 17385 | E137: 13 | F137: 17390 | G137: 23 | H137: 17400 | K137: 0 | L137: 1112
A138: 12 | B138: 17498 | C138: 14 | D138: 17510 | E138: 13 | F138: 17514 | G138: 14 | H138: 17522 | K138: 0 | L138: 1111
A139: 12 | B139: 17626 | C139: 14 | D139: 17635 | E139: 24 | F139: 17645 | G139: 23 | H139: 17652 | K139: 0 | L139: 1122
A140: 12 | B140: 17755 | C140: 23 | D140: 17770 | E140: 24 | F140: 17776 | G140: 14 | H140: 17785 | K140: 0 | L140: 1221
A141: 12 | B141: 17887 | C141: 14 | D141: 17891 | E141: 24 | F141: 17901 | G141: 23 | H141: 17908 | K141: 0 | L141: 1122
A142: 12 | B142: 18012 | C142: 14 | D142: 18020 | E142: 24 | F142: 18031 | G142: 23 | H142: 18036 | K142: 0 | L142: 1122
A143: 12 | B143: 18133 | C143: 14 | D143: 18138 | E143: 13 | F143: 18152 | G143: 23 | H143: 18162 | K143: 0 | L143: 1112
A144: 12 | B144: 18267 | C144: 14 | D144: 18276 | E144: 13 | F144: 18291 | G144: 23 | H144: 18301 | K144: 0 | L144: 1112
A145: 12 | B145: 18402 | C145: 14 | D145: 18411 | E145: 13 | F145: 18433 | G145: 23 | H145: 18442 | K145: 0 | L145: 1112
A146: 12 | B146: 18547 | C146: 14 | D146: 18559 | E146: 13 | F146: 18568 | G146: 23 | H146: 18582 | K146: 0 | L146: 1112
A147: 12 | B147: 18680 | C147: 14 | D147: 18685 | E147: 13 | F147: 18689 | G147: 14 | H147: 18698 | K147: 0 | L147: 1111
A148: 12 | B148: 18798 | C148: 14 | D148: 18808 | E148: 24 | F148: 18819 | G148: 23 | H148: 18826 | K148: 0 | L148: 1122
A149: 12 | B149: 18928 | C149: 14 | D149: 18936 | E149: 24 | F149: 18950 | G149: 23 | H149: 18957 | K149: 0 | L149: 1122
A150: 12 | B150: 19060 | C150: 14 | D150: 19065 | E150: 13 | F150: 19073 | G150: 23 | H150: 19082 | K150: 0 | L150: 1112
A151: 12 | B151: 19192 | C151: 14 | D151: 19197 | E151: 13 | F151: 19204 | G151: 23 | H151: 19217 | K151: 0 | L151: 1112
A152: 12 | B152: 19319 | C152: 14 | D152: 19327 | E152: 24 | F152: 19337 | G152: 23 | H152: 19344 | K152: 0 | L152: 1122
A153: 12 | B153: 19440 | C153: 14 | D153: 19447 | E153: 24 | F153: 19456 | G153: 23 | H153: 19464 | K153: 0 | L153: 1122
A154: 12 | B154: 19562 | C154: 14 | D154: 19568 | E154: 13 | F154: 19575 | G154: 23 | H154: 19586 | K154: 0 | L154: 1112
A155: 12 | B155: 19687 | C155: 14 | D155: 19695 | E155: 24 | F155: 19705 | G155: 23 | H155: 19712 | K155: 0 | L155: 1122
A156: 12 | B156: 19812 | C156: 14 | D156: 19817 | E156: 24 | F156: 19832 | G156: 23 | H156: 19837 | K156: 0 | L156: 1122
A157: 12 | B157: 19932 | C157: 14 | D157: 19941 | E157: 13 | F157: 19951 | G157: 23 | H157: 19961 | K157: 0 | L157: 1112
A158: 12 | B158: 20056 | C158: 14 | D158: 20064 | E158: 13 | F158: 20073 | G158: 23 | H158: 20086 | K158: 0 | L158: 1112
A159: 12 | B159: 20184 | C159: 14 | D159: 20192 | E159: 24 | F159: 20202 | G159: 14 | H159: 20212 | K159: 0 | L159: 1121
A160: 12 | B160: 20313 | C160: 14 | D160: 20318 | E160: 13 | F160: 20323 | G160: 14 | H160: 20331 | K160: 0 | L160: 1111
A161: 12 | B161: 20428 | C161: 14 | D161: 20435 | E161: 13 | F161: 20453 | G161: 23 | H161: 20465 | K161: 0 | L161: 1112
A162: 12 | B162: 20564 | C162: 14 | D162: 20588 | E162: 24 | F162: 20600 | G162: 23 | H162: 20605 | K162: 0 | L162: 1122
A163: 12 | B163: 20703 | C163: 14 | D163: 20707 | E163: 13 | F163: 20712 | G163: 14 | H163: 20720 | K163: 0 | L163: 1111
A164: 12 | B164: 20829 | C164: 14 | D164: 20834 | E164: 13 | F164: 20841 | G164: 23 | H164: 20854 | K164: 0 | L164: 1112
A165: 12 | B165: 20953 | C165: 14 | D165: 20958 | E165: 13 | F165: 20962 | G165: 14 | H165: 20971 | K165: 0 | L165: 1111
A166: 12 | B166: 21094 | C166: 14 | D166: 21099 | E166: 13 | F166: 21103 | G166: 23 | H166: 21114 | K166: 0 | L166: 1112
A167: 12 | B167: 21214 | C167: 14 | D167: 21219 | E167: 13 | F167: 21223 | G167: 14 | H167: 21228 | K167: 0 | L167: 1111
A168: 12 | B168: 21324 | C168: 14 | D168: 21338 | E168: 13 | F168: 21346 | G168: 23 | H168: 21360 | K168: 0 | L168: 1112
A169: 12 | B169: 21456 | C169: 14 | D169: 21460 | E169: 13 | F169: 21465 | G169: 14 | H169: 21470 | K169: 0 | L169: 1111
A170: 12 | B170: 21566 | C170: 14 | D170: 21581 | E170: 13 | F170: 21589 | G170: 23 | H170: 21602 | K170: 0 | L170: 1112
A171: 12 | B171: 21726 | C171: 14 | D171: 21734 | E171: 24 | F171: 21749 | G171: 23 | H171: 21754 | K171: 0 | L171: 1122
A172: 12 | B172: 21858 | C172: 14 | D172: 21862 | E172: 13 | F172: 21868 | G172: 23 | H172: 21887 | K172: 0 | L172: 1112
A173: 12 | B173: 21994 | C173: 14 | D173: 22003 | E173: 24 | F173: 22014 | G173: 23 | H173: 22023 | K173: 0 | L173: 1122
A174: 12 | B174: 22122 | C174: 14 | D174: 22127 | E174: 13 | F174: 22140 | G174: 23 | H174: 22150 | K174: 0 | L174: 1112
A175: 12 | B175: 22250 | C175: 14 | D175: 22256 | E175: 13 | F175: 22260 | G175: 14 | H175: 22267 | K175: 0 | L175: 1111
A176: 12 | B176: 22385 | C176: 14 | D176: 22390 | E176: 24 | F176: 22411 | G176: 23 | H176: 22418 | K176: 0 | L176: 1122
A177: 12 | B177: 22519 | C177: 14 | D177: 22523 | E177: 13 | F177: 22528 | G177: 14 | H177: 22535 | K177: 0 | L177: 1111
A178: 12 | B178: 22643 | C178: 14 | D178: 22659 | E178: 24 | F178: 22669 | G178: 23 | H178: 22673 | K178: 0 | L178: 1122
A179: 12 | B179: 22765 | C179: 14 | D179: 22770 | E179: 13 | F179: 22775 | G179: 14 | H179: 22784 | K179: 0 | L179: 1111
A180: 21 | B180: 22900 | C180: 21 | D180: 22902 | E180: 11 | F180: 22914 | G180: 12 | H180: 22922 | K180: 0 | L180: 2211
A181: 12 | B181: 23026 | C181: 14 | D181: 23030 | E181: 13 | F181: 23038 | G181: 23 | H181: 23048 | K181: 0 | L181: 1112
A182: 12 | B182: 23149 | C182: 14 | D182: 23153 | E182: 24 | F182: 23167 | G182: 23 | H182: 23174 | K182: 0 | L182: 1122
A183: 12 | B183: 23320 | C183: 14 | D183: 23328 | E183: 13 | F183: 23337 | G183: 23 | H183: 23350 | K183: 0 | L183: 1112
A184: 12 | B184: 23453 | C184: 14 | D184: 23465 | E184: 13 | F184: 23505 | G184: 23 | H184: 23519 | K184: 0 | L184: 1112
A185: 12 | B185: 23685 | C185: 23 | D185: 23702 | E185: 24 | F185: 23710 | G185: 23 | H185: 23717 | K185: 0 | L185: 1222
A186: 12 | B186: 23837 | C186: 14 | D186: 23842 | E186: 13 | F186: 23850 | G186: 23 | H186: 23860 | K186: 0 | L186: 1112

Sheet !2011-07-30_09h43m.Subject 53
A1: Report for:!2011-07-30_09h43m.Subject 53
A2: Date | B2: 2011-07-30 | F2: Group | G2: Phase 3 Any
A3: Hen | B3: 53 | F3: Correct Sequence | G3: =Start!J2 -> 2212 | P3: Total Sequences in Data | Q3: =4994-COUNTBLANK(L7:L5000) -> 184 | V3: Total Sequences in Block Data | W3: =COUNTA(L7:L37) -> 31 | AA3: Total Sequences in Block Data | AB3: =COUNTA(L38:L67) -> 30 | AF3: Total Sequences in Block Data | AG3: =COUNTA(L68:L98) -> 31 | AK3: Total Sequences in Block Data | AL3: =COUNTA(L99:L129) -> 31 | AP3: Total Sequences in Block Data | AQ3: =COUNTA(L130:L159) -> 30 | AU3: Total Sequences in Block Data | AV3: =COUNTA(L160:L190) -> 31
A4: Program | B4: One | P4: Total Sequences in Summary | Q4: =SUM(O7:O22) -> 184 | V4: Total Sequences in Block Summary | W4: =SUM(U7:U22) -> 31 | AA4: Total Sequences in Block Summary | AB4: =SUM(Z7:Z22) -> 30 | AF4: Total Sequences in Block Summary | AG4: =SUM(AE7:AE22) -> 31 | AK4: Total Sequences in Block Summary | AL4: =SUM(AJ7:AJ22) -> 31 | AP4: Total Sequences in Block Summary | AQ4: =SUM(AO7:AO22) -> 30 | AU4: Total Sequences in Block Summary | AV4: =SUM(AT7:AT22) -> 31
T5: Block 1 | Y5: Block 2 | AD5: Block 3 | AI5: Block 4 | AN5: Block 5 | AS5: Block 6
A6: Sequence Component 1 | B6: Time 1 | C6: Sequence Component 2 | D6: Time 2 | E6: Sequence Component 3 | F6: Time 3 | G6: Sequence Component 4 | H6: Time 4 | I6: Sequence Component 5 | J6: Time 5 | K6: Correct? 0=No 1=Yes | L6: Sequence | N6: Frequency | P6: Relative Frequency | Q6: Variability | T6: Frequency | V6: Relative Frequency | W6: Variability | Y6: Frequency | AA6: Relative Frequency | AB6: Variability | AD6: Frequency | AF6: Relative Frequency | AG6: Variability | AI6: Frequency | AK6: Relative Frequency | AL6: Variability | AN6: Frequency | AP6: Relative Frequency | AQ6: Variability | AS6: Frequency | AU6: Relative Frequency | AV6: Variability
A7: 12 | B7: 7 | C7: 14 | D7: 16 | E7: 24 | F7: 29 | G7: 14 | H7: 43 | K7: 0 | L7: 1121 | N7: 1111 | O7: =COUNTIF($L$7:$L$500,N7) -> 49 | P7: =O7/$Q$4 -> 0.2663043478 | Q7: =IF(P7=0,0,(P7*((LOG(P7))/LOG(2)))) -> -0.5083356168 | T7: =N7 -> 1111 | U7: =COUNTIF(L7:L37,T7) -> 3 | V7: =U7/(W4-U20) -> 0.09677419355 | W7: =IF(V7=0,0,(V7*((LOG(V7))/LOG(2)))) -> -0.3260548848 | Y7: =N7 -> 1111 | Z7: =COUNTIF(L38:L67,Y7) -> 5 | AA7: =Z7/(AB4-Z20) -> 0.1666666667 | AB7: =IF(AA7=0,0,(AA7*((LOG(AA7))/LOG(2)))) -> -0.4308270835 | AD7: =N7 -> 1111 | AE7: =COUNTIF(L68:L98,AD7) -> 8 | AF7: =AE7/(AG4-AE20) -> 0.2580645161 | AG7: =IF(AF7=0,0,(AF7*((LOG(AF7))/LOG(2)))) -> -0.5043087253 | AI7: =N7 -> 1111 | AJ7: =COUNTIF(L99:L129,AI7) -> 14 | AK7: =AJ7/(AL4-AJ20) -> 0.4516129032 | AL7: =IF(AK7=0,0,(AK7*((LOG(AK7))/LOG(2)))) -> -0.5179283689 | AN7: =N7 -> 1111 | AO7: =COUNTIF(L130:L159,AN7) -> 11 | AP7: =AO7/(AQ4-AO20) -> 0.3666666667 | AQ7: =IF(AP7=0,0,(AP7*((LOG(AP7))/LOG(2)))) -> -0.5307349582 | AS7: =N7 -> 1111 | AT7: =COUNTIF(L160:L190,AS7) -> 8 | AU7: =AT7/(AV4-AT20) -> 0.2580645161 | AV7: =IF(AU7=0,0,(AU7*((LOG(AU7))/LOG(2)))) -> -0.5043087253
A8: 12 | B8: 145 | C8: 14 | D8: 151 | E8: 24 | F8: 164 | G8: 23 | H8: 171 | K8: 0 | L8: 1122 | N8: 1112 | O8: =COUNTIF($L$7:$L$500,N8) -> 79 | P8: =O8/$Q$4 -> 0.4293478261 | Q8: =IF(P8=0,0,(P8*((LOG(P8))/LOG(2)))) -> -0.5237104099 | T8: =N8 -> 1112 | U8: =COUNTIF(L7:L37,T8) -> 12 | V8: =U8/(W4-U20) -> 0.3870967742 | W8: =IF(V8=0,0,(V8*((LOG(V8))/LOG(2)))) -> -0.5300259908 | Y8: =N8 -> 1112 | Z8: =COUNTIF(L38:L67,Y8) -> 19 | AA8: =Z8/(AB4-Z20) -> 0.6333333333 | AB8: =IF(AA8=0,0,(AA8*((LOG(AA8))/LOG(2)))) -> -0.4173432854 | AD8: =N8 -> 1112 | AE8: =COUNTIF(L68:L98,AD8) -> 19 | AF8: =AE8/(AG4-AE20) -> 0.6129032258 | AG8: =IF(AF8=0,0,(AF8*((LOG(AF8))/LOG(2)))) -> -0.4328744239 | AI8: =N8 -> 1112 | AJ8: =COUNTIF(L99:L129,AI8) -> 10 | AK8: =AJ8/(AL4-AJ20) -> 0.3225806452 | AL8: =IF(AK8=0,0,(AK8*((LOG(AK8))/LOG(2)))) -> -0.526538134 | AN8: =N8 -> 1112 | AO8: =COUNTIF(L130:L159,AN8) -> 8 | AP8: =AO8/(AQ4-AO20) -> 0.2666666667 | AQ8: =IF(AP8=0,0,(AP8*((LOG(AP8))/LOG(2)))) -> -0.5085041588 | AS8: =N8 -> 1112 | AT8: =COUNTIF(L160:L190,AS8) -> 11 | AU8: =AT8/(AV4-AT20) -> 0.3548387097 | AV8: =IF(AU8=0,0,(AU8*((LOG(AU8))/LOG(2)))) -> -0.5304003745
A9: 12 | B9: 267 | C9: 14 | D9: 287 | E9: 13 | F9: 313 | G9: 23 | H9: 328 | K9: 0 | L9: 1112 | N9: 1121 | O9: =COUNTIF($L$7:$L$500,N9) -> 17 | P9: =O9/$Q$4 -> 0.09239130435 | Q9: =IF(P9=0,0,(P9*((LOG(P9))/LOG(2)))) -> -0.3174656791 | T9: =N9 -> 1121 | U9: =COUNTIF(L7:L37,T9) -> 5 | V9: =U9/(W4-U20) -> 0.1612903226 | W9: =IF(V9=0,0,(V9*((LOG(V9))/LOG(2)))) -> -0.4245593896 | Y9: =N9 -> 1121 | Z9: =COUNTIF(L38:L67,Y9) -> 3 | AA9: =Z9/(AB4-Z20) -> 0.1 | AB9: =IF(AA9=0,0,(AA9*((LOG(AA9))/LOG(2)))) -> -0.3321928095 | AD9: =N9 -> 1121 | AE9: =COUNTIF(L68:L98,AD9) -> 2 | AF9: =AE9/(AG4-AE20) -> 0.06451612903 | AG9: =IF(AF9=0,0,(AF9*((LOG(AF9))/LOG(2)))) -> -0.2551094394 | AI9: =N9 -> 1121 | AJ9: =COUNTIF(L99:L129,AI9) -> 1 | AK9: =AJ9/(AL4-AJ20) -> 0.03225806452 | AL9: =IF(AK9=0,0,(AK9*((LOG(AK9))/LOG(2)))) -> -0.1598127842 | AN9: =N9 -> 1121 | AO9: =COUNTIF(L130:L159,AN9) -> 5 | AP9: =AO9/(AQ4-AO20) -> 0.1666666667 | AQ9: =IF(AP9=0,0,(AP9*((LOG(AP9))/LOG(2)))) -> -0.4308270835 | AS9: =N9 -> 1121 | AT9: =COUNTIF(L160:L190,AS9) -> 1 | AU9: =AT9/(AV4-AT20) -> 0.03225806452 | AV9: =IF(AU9=0,0,(AU9*((LOG(AU9))/LOG(2)))) -> -0.1598127842
A10: 12 | B10: 429 | C10: 14 | D10: 437 | E10: 13 | F10: 455 | G10: 14 | H10: 465 | K10: 0 | L10: 1111 | N10: 1122 | O10: =COUNTIF($L$7:$L$500,N10) -> 29 | P10: =O10/$Q$4 -> 0.1576086957 | Q10: =IF(P10=0,0,(P10*((LOG(P10))/LOG(2)))) -> -0.4201187384 | T10: =N10 -> 1122 | U10: =COUNTIF(L7:L37,T10) -> 9 | V10: =U10/(W4-U20) -> 0.2903225806 | W10: =IF(V10=0,0,(V10*((LOG(V10))/LOG(2)))) -> -0.518014251 | Y10: =N10 -> 1122 | Z10: =COUNTIF(L38:L67,Y10) -> 3 | AA10: =Z10/(AB4-Z20) -> 0.1 | AB10: =IF(AA10=0,0,(AA10*((LOG(AA10))/LOG(2)))) -> -0.3321928095 | AD10: =N10 -> 1122 | AE10: =COUNTIF(L68:L98,AD10) -> 2 | AF10: =AE10/(AG4-AE20) -> 0.06451612903 | AG10: =IF(AF10=0,0,(AF10*((LOG(AF10))/LOG(2)))) -> -0.2551094394 | AI10: =N10 -> 1122 | AJ10: =COUNTIF(L99:L129,AI10) -> 5 | AK10: =AJ10/(AL4-AJ20) -> 0.1612903226 | AL10: =IF(AK10=0,0,(AK10*((LOG(AK10))/LOG(2)))) -> -0.4245593896 | AN10: =N10 -> 1122 | AO10: =COUNTIF(L130:L159,AN10) -> 2 | AP10: =AO10/(AQ4-AO20) -> 0.06666666667 | AQ10: =IF(AP10=0,0,(AP10*((LOG(AP10))/LOG(2)))) -> -0.260459373 | AS10: =N10 -> 1122 | AT10: =COUNTIF(L160:L190,AS10) -> 8 | AU10: =AT10/(AV4-AT20) -> 0.2580645161 | AV10: =IF(AU10=0,0,(AU10*((LOG(AU10))/LOG(2)))) -> -0.5043087253
A11: 12 | B11: 566 | C11: 14 | D11: 573 | E11: 13 | F11: 583 | G11: 23 | H11: 594 | K11: 0 | L11: 1112 | N11: 1211 | O11: =COUNTIF($L$7:$L$500,N11) -> 1 | P11: =O11/$Q$4 -> 0.005434782609 | Q11: =IF(P11=0,0,(P11*((LOG(P11))/LOG(2)))) -> -0.04088892367 | T11: =N11 -> 1211 | U11: =COUNTIF(L7:L37,T11) -> 0 | V11: =U11/(W4-U20) -> 0 | W11: =IF(V11=0,0,(V11*((LOG(V11))/LOG(2)))) -> 0 | Y11: =N11 -> 1211 | Z11: =COUNTIF(L38:L67,Y11) -> 0 | AA11: =Z11/(AB4-Z20) -> 0 | AB11: =IF(AA11=0,0,(AA11*((LOG(AA11))/LOG(2)))) -> 0 | AD11: =N11 -> 1211 | AE11: =COUNTIF(L68:L98,AD11) -> 0 | AF11: =AE11/(AG4-AE20) -> 0 | AG11: =IF(AF11=0,0,(AF11*((LOG(AF11))/LOG(2)))) -> 0 | AI11: =N11 -> 1211 | AJ11: =COUNTIF(L99:L129,AI11) -> 1 | AK11: =AJ11/(AL4-AJ20) -> 0.03225806452 | AL11: =IF(AK11=0,0,(AK11*((LOG(AK11))/LOG(2)))) -> -0.1598127842 | AN11: =N11 -> 1211 | AO11: =COUNTIF(L130:L159,AN11) -> 0 | AP11: =AO11/(AQ4-AO20) -> 0 | AQ11: =IF(AP11=0,0,(AP11*((LOG(AP11))/LOG(2)))) -> 0 | AS11: =N11 -> 1211 | AT11: =COUNTIF(L160:L190,AS11) -> 0 | AU11: =AT11/(AV4-AT20) -> 0 | AV11: =IF(AU11=0,0,(AU11*((LOG(AU11))/LOG(2)))) -> 0
A12: 12 | B12: 694 | C12: 14 | D12: 704 | E12: 13 | F12: 716 | G12: 14 | H12: 726 | K12: 0 | L12: 1111 | N12: 1212 | O12: =COUNTIF($L$7:$L$500,N12) -> 3 | P12: =O12/$Q$4 -> 0.01630434783 | Q12: =IF(P12=0,0,(P12*((LOG(P12))/LOG(2)))) -> -0.09682499112 | T12: =N12 -> 1212 | U12: =COUNTIF(L7:L37,T12) -> 1 | V12: =U12/(W4-U20) -> 0.03225806452 | W12: =IF(V12=0,0,(V12*((LOG(V12))/LOG(2)))) -> -0.1598127842 | Y12: =N12 -> 1212 | Z12: =COUNTIF(L38:L67,Y12) -> 0 | AA12: =Z12/(AB4-Z20) -> 0 | AB12: =IF(AA12=0,0,(AA12*((LOG(AA12))/LOG(2)))) -> 0 | AD12: =N12 -> 1212 | AE12: =COUNTIF(L68:L98,AD12) -> 0 | AF12: =AE12/(AG4-AE20) -> 0 | AG12: =IF(AF12=0,0,(AF12*((LOG(AF12))/LOG(2)))) -> 0 | AI12: =N12 -> 1212 | AJ12: =COUNTIF(L99:L129,AI12) -> 0 | AK12: =AJ12/(AL4-AJ20) -> 0 | AL12: =IF(AK12=0,0,(AK12*((LOG(AK12))/LOG(2)))) -> 0 | AN12: =N12 -> 1212 | AO12: =COUNTIF(L130:L159,AN12) -> 1 | AP12: =AO12/(AQ4-AO20) -> 0.03333333333 | AQ12: =IF(AP12=0,0,(AP12*((LOG(AP12))/LOG(2)))) -> -0.1635630199 | AS12: =N12 -> 1212 | AT12: =COUNTIF(L160:L190,AS12) -> 1 | AU12: =AT12/(AV4-AT20) -> 0.03225806452 | AV12: =IF(AU12=0,0,(AU12*((LOG(AU12))/LOG(2)))) -> -0.1598127842
A13: 12 | B13: 830 | C13: 14 | D13: 837 | E13: 13 | F13: 846 | G13: 23 | H13: 859 | K13: 0 | L13: 1112 | N13: 1221 | O13: =COUNTIF($L$7:$L$500,N13) -> 0 | P13: =O13/$Q$4 -> 0 | Q13: =IF(P13=0,0,(P13*((LOG(P13))/LOG(2)))) -> 0 | T13: =N13 -> 1221 | U13: =COUNTIF(L7:L37,T13) -> 0 | V13: =U13/(W4-U20) -> 0 | W13: =IF(V13=0,0,(V13*((LOG(V13))/LOG(2)))) -> 0 | Y13: =N13 -> 1221 | Z13: =COUNTIF(L38:L67,Y13) -> 0 | AA13: =Z13/(AB4-Z20) -> 0 | AB13: =IF(AA13=0,0,(AA13*((LOG(AA13))/LOG(2)))) -> 0 | AD13: =N13 -> 1221 | AE13: =COUNTIF(L68:L98,AD13) -> 0 | AF13: =AE13/(AG4-AE20) -> 0 | AG13: =IF(AF13=0,0,(AF13*((LOG(AF13))/LOG(2)))) -> 0 | AI13: =N13 -> 1221 | AJ13: =COUNTIF(L99:L129,AI13) -> 0 | AK13: =AJ13/(AL4-AJ20) -> 0 | AL13: =IF(AK13=0,0,(AK13*((LOG(AK13))/LOG(2)))) -> 0 | AN13: =N13 -> 1221 | AO13: =COUNTIF(L130:L159,AN13) -> 0 | AP13: =AO13/(AQ4-AO20) -> 0 | AQ13: =IF(AP13=0,0,(AP13*((LOG(AP13))/LOG(2)))) -> 0 | AS13: =N13 -> 1221 | AT13: =COUNTIF(L160:L190,AS13) -> 0 | AU13: =AT13/(AV4-AT20) -> 0 | AV13: =IF(AU13=0,0,(AU13*((LOG(AU13))/LOG(2)))) -> 0
A14: 12 | B14: 964 | C14: 14 | D14: 974 | E14: 24 | F14: 986 | G14: 23 | H14: 991 | K14: 0 | L14: 1122 | N14: 1222 | O14: =COUNTIF($L$7:$L$500,N14) -> 2 | P14: =O14/$Q$4 -> 0.01086956522 | Q14: =IF(P14=0,0,(P14*((LOG(P14))/LOG(2)))) -> -0.07090828213 | T14: =N14 -> 1222 | U14: =COUNTIF(L7:L37,T14) -> 0 | V14: =U14/(W4-U20) -> 0 | W14: =IF(V14=0,0,(V14*((LOG(V14))/LOG(2)))) -> 0 | Y14: =N14 -> 1222 | Z14: =COUNTIF(L38:L67,Y14) -> 0 | AA14: =Z14/(AB4-Z20) -> 0 | AB14: =IF(AA14=0,0,(AA14*((LOG(AA14))/LOG(2)))) -> 0 | AD14: =N14 -> 1222 | AE14: =COUNTIF(L68:L98,AD14) -> 0 | AF14: =AE14/(AG4-AE20) -> 0 | AG14: =IF(AF14=0,0,(AF14*((LOG(AF14))/LOG(2)))) -> 0 | AI14: =N14 -> 1222 | AJ14: =COUNTIF(L99:L129,AI14) -> 0 | AK14: =AJ14/(AL4-AJ20) -> 0 | AL14: =IF(AK14=0,0,(AK14*((LOG(AK14))/LOG(2)))) -> 0 | AN14: =N14 -> 1222 | AO14: =COUNTIF(L130:L159,AN14) -> 0 | AP14: =AO14/(AQ4-AO20) -> 0 | AQ14: =IF(AP14=0,0,(AP14*((LOG(AP14))/LOG(2)))) -> 0 | AS14: =N14 -> 1222 | AT14: =COUNTIF(L160:L190,AS14) -> 2 | AU14: =AT14/(AV4-AT20) -> 0.06451612903 | AV14: =IF(AU14=0,0,(AU14*((LOG(AU14))/LOG(2)))) -> -0.2551094394
A15: 12 | B15: 1082 | C15: 14 | D15: 1088 | E15: 13 | F15: 1090 | G15: 23 | H15: 1101 | K15: 0 | L15: 1112 | N15: 2111 | O15: =COUNTIF($L$7:$L$500,N15) -> 0 | P15: =O15/$Q$4 -> 0 | Q15: =IF(P15=0,0,(P15*((LOG(P15))/LOG(2)))) -> 0 | T15: =N15 -> 2111 | U15: =COUNTIF(L7:L37,T15) -> 0 | V15: =U15/(W4-U20) -> 0 | W15: =IF(V15=0,0,(V15*((LOG(V15))/LOG(2)))) -> 0 | Y15: =N15 -> 2111 | Z15: =COUNTIF(L38:L67,Y15) -> 0 | AA15: =Z15/(AB4-Z20) -> 0 | AB15: =IF(AA15=0,0,(AA15*((LOG(AA15))/LOG(2)))) -> 0 | AD15: =N15 -> 2111 | AE15: =COUNTIF(L68:L98,AD15) -> 0 | AF15: =AE15/(AG4-AE20) -> 0 | AG15: =IF(AF15=0,0,(AF15*((LOG(AF15))/LOG(2)))) -> 0 | AI15: =N15 -> 2111 | AJ15: =COUNTIF(L99:L129,AI15) -> 0 | AK15: =AJ15/(AL4-AJ20) -> 0 | AL15: =IF(AK15=0,0,(AK15*((LOG(AK15))/LOG(2)))) -> 0 | AN15: =N15 -> 2111 | AO15: =COUNTIF(L130:L159,AN15) -> 0 | AP15: =AO15/(AQ4-AO20) -> 0 | AQ15: =IF(AP15=0,0,(AP15*((LOG(AP15))/LOG(2)))) -> 0 | AS15: =N15 -> 2111 | AT15: =COUNTIF(L160:L190,AS15) -> 0 | AU15: =AT15/(AV4-AT20) -> 0 | AV15: =IF(AU15=0,0,(AU15*((LOG(AU15))/LOG(2)))) -> 0
A16: 12 | B16: 1206 | C16: 14 | D16: 1213 | E16: 24 | F16: 1227 | G16: 23 | H16: 1233 | K16: 0 | L16: 1122 | N16: 2112 | O16: =COUNTIF($L$7:$L$500,N16) -> 2 | P16: =O16/$Q$4 -> 0.01086956522 | Q16: =IF(P16=0,0,(P16*((LOG(P16))/LOG(2)))) -> -0.07090828213 | T16: =N16 -> 2112 | U16: =COUNTIF(L7:L37,T16) -> 0 | V16: =U16/(W4-U20) -> 0 | W16: =IF(V16=0,0,(V16*((LOG(V16))/LOG(2)))) -> 0 | Y16: =N16 -> 2112 | Z16: =COUNTIF(L38:L67,Y16) -> 0 | AA16: =Z16/(AB4-Z20) -> 0 | AB16: =IF(AA16=0,0,(AA16*((LOG(AA16))/LOG(2)))) -> 0 | AD16: =N16 -> 2112 | AE16: =COUNTIF(L68:L98,AD16) -> 0 | AF16: =AE16/(AG4-AE20) -> 0 | AG16: =IF(AF16=0,0,(AF16*((LOG(AF16))/LOG(2)))) -> 0 | AI16: =N16 -> 2112 | AJ16: =COUNTIF(L99:L129,AI16) -> 0 | AK16: =AJ16/(AL4-AJ20) -> 0 | AL16: =IF(AK16=0,0,(AK16*((LOG(AK16))/LOG(2)))) -> 0 | AN16: =N16 -> 2112 | AO16: =COUNTIF(L130:L159,AN16) -> 2 | AP16: =AO16/(AQ4-AO20) -> 0.06666666667 | AQ16: =IF(AP16=0,0,(AP16*((LOG(AP16))/LOG(2)))) -> -0.260459373 | AS16: =N16 -> 2112 | AT16: =COUNTIF(L160:L190,AS16) -> 0 | AU16: =AT16/(AV4-AT20) -> 0 | AV16: =IF(AU16=0,0,(AU16*((LOG(AU16))/LOG(2)))) -> 0
A17: 12 | B17: 1333 | C17: 14 | D17: 1343 | E17: 13 | F17: 1356 | G17: 23 | H17: 1366 | K17: 0 | L17: 1112 | N17: 2121 | O17: =COUNTIF($L$7:$L$500,N17) -> 0 | P17: =O17/$Q$4 -> 0 | Q17: =IF(P17=0,0,(P17*((LOG(P17))/LOG(2)))) -> 0 | T17: =N17 -> 2121 | U17: =COUNTIF(L7:L37,T17) -> 0 | V17: =U17/(W4-U20) -> 0 | W17: =IF(V17=0,0,(V17*((LOG(V17))/LOG(2)))) -> 0 | Y17: =N17 -> 2121 | Z17: =COUNTIF(L38:L67,Y17) -> 0 | AA17: =Z17/(AB4-Z20) -> 0 | AB17: =IF(AA17=0,0,(AA17*((LOG(AA17))/LOG(2)))) -> 0 | AD17: =N17 -> 2121 | AE17: =COUNTIF(L68:L98,AD17) -> 0 | AF17: =AE17/(AG4-AE20) -> 0 | AG17: =IF(AF17=0,0,(AF17*((LOG(AF17))/LOG(2)))) -> 0 | AI17: =N17 -> 2121 | AJ17: =COUNTIF(L99:L129,AI17) -> 0 | AK17: =AJ17/(AL4-AJ20) -> 0 | AL17: =IF(AK17=0,0,(AK17*((LOG(AK17))/LOG(2)))) -> 0 | AN17: =N17 -> 2121 | AO17: =COUNTIF(L130:L159,AN17) -> 0 | AP17: =AO17/(AQ4-AO20) -> 0 | AQ17: =IF(AP17=0,0,(AP17*((LOG(AP17))/LOG(2)))) -> 0 | AS17: =N17 -> 2121 | AT17: =COUNTIF(L160:L190,AS17) -> 0 | AU17: =AT17/(AV4-AT20) -> 0 | AV17: =IF(AU17=0,0,(AU17*((LOG(AU17))/LOG(2)))) -> 0
A18: 12 | B18: 1464 | C18: 14 | D18: 1482 | E18: 24 | F18: 1494 | G18: 23 | H18: 1502 | K18: 0 | L18: 1122 | N18: 2122 | O18: =COUNTIF($L$7:$L$500,N18) -> 2 | P18: =O18/$Q$4 -> 0.01086956522 | Q18: =IF(P18=0,0,(P18*((LOG(P18))/LOG(2)))) -> -0.07090828213 | T18: =N18 -> 2122 | U18: =COUNTIF(L7:L37,T18) -> 1 | V18: =U18/(W4-U20) -> 0.03225806452 | W18: =IF(V18=0,0,(V18*((LOG(V18))/LOG(2)))) -> -0.1598127842 | Y18: =N18 -> 2122 | Z18: =COUNTIF(L38:L67,Y18) -> 0 | AA18: =Z18/(AB4-Z20) -> 0 | AB18: =IF(AA18=0,0,(AA18*((LOG(AA18))/LOG(2)))) -> 0 | AD18: =N18 -> 2122 | AE18: =COUNTIF(L68:L98,AD18) -> 0 | AF18: =AE18/(AG4-AE20) -> 0 | AG18: =IF(AF18=0,0,(AF18*((LOG(AF18))/LOG(2)))) -> 0 | AI18: =N18 -> 2122 | AJ18: =COUNTIF(L99:L129,AI18) -> 0 | AK18: =AJ18/(AL4-AJ20) -> 0 | AL18: =IF(AK18=0,0,(AK18*((LOG(AK18))/LOG(2)))) -> 0 | AN18: =N18 -> 2122 | AO18: =COUNTIF(L130:L159,AN18) -> 1 | AP18: =AO18/(AQ4-AO20) -> 0.03333333333 | AQ18: =IF(AP18=0,0,(AP18*((LOG(AP18))/LOG(2)))) -> -0.1635630199 | AS18: =N18 -> 2122 | AT18: =COUNTIF(L160:L190,AS18) -> 0 | AU18: =AT18/(AV4-AT20) -> 0 | AV18: =IF(AU18=0,0,(AU18*((LOG(AU18))/LOG(2)))) -> 0
A19: 12 | B19: 1675 | C19: 23 | D19: 1688 | E19: 13 | F19: 1700 | G19: 23 | H19: 1712 | K19: 0 | L19: 1212 | N19: 2211 | O19: =COUNTIF($L$7:$L$500,N19) -> 0 | P19: =O19/$Q$4 -> 0 | Q19: =IF(P19=0,0,(P19*((LOG(P19))/LOG(2)))) -> 0 | T19: =N19 -> 2211 | U19: =COUNTIF(L7:L37,T19) -> 0 | V19: =U19/(W4-U20) -> 0 | W19: =IF(V19=0,0,(V19*((LOG(V19))/LOG(2)))) -> 0 | Y19: =N19 -> 2211 | Z19: =COUNTIF(L38:L67,Y19) -> 0 | AA19: =Z19/(AB4-Z20) -> 0 | AB19: =IF(AA19=0,0,(AA19*((LOG(AA19))/LOG(2)))) -> 0 | AD19: =N19 -> 2211 | AE19: =COUNTIF(L68:L98,AD19) -> 0 | AF19: =AE19/(AG4-AE20) -> 0 | AG19: =IF(AF19=0,0,(AF19*((LOG(AF19))/LOG(2)))) -> 0 | AI19: =N19 -> 2211 | AJ19: =COUNTIF(L99:L129,AI19) -> 0 | AK19: =AJ19/(AL4-AJ20) -> 0 | AL19: =IF(AK19=0,0,(AK19*((LOG(AK19))/LOG(2)))) -> 0 | AN19: =N19 -> 2211 | AO19: =COUNTIF(L130:L159,AN19) -> 0 | AP19: =AO19/(AQ4-AO20) -> 0 | AQ19: =IF(AP19=0,0,(AP19*((LOG(AP19))/LOG(2)))) -> 0 | AS19: =N19 -> 2211 | AT19: =COUNTIF(L160:L190,AS19) -> 0 | AU19: =AT19/(AV4-AT20) -> 0 | AV19: =IF(AU19=0,0,(AU19*((LOG(AU19))/LOG(2)))) -> 0
A20: 12 | B20: 1820 | C20: 14 | D20: 1827 | E20: 24 | F20: 1838 | G20: 23 | H20: 1844 | K20: 0 | L20: 1122 | N20: 2212 | O20: =COUNTIF($L$7:$L$500,N20) -> 0 | P20: =O20/$Q$4 -> 0 | Q20: =IF(P20=0,0,(P20*((LOG(P20))/LOG(2)))) -> 0 | T20: =N20 -> 2212 | U20: =COUNTIF(L7:L37,T20) -> 0 | Y20: =N20 -> 2212 | Z20: =COUNTIF(L38:L67,Y20) -> 0 | AD20: =N20 -> 2212 | AE20: =COUNTIF(L68:L98,AD20) -> 0 | AI20: =N20 -> 2212 | AJ20: =COUNTIF(L99:L129,AI20) -> 0 | AN20: =N20 -> 2212 | AO20: =COUNTIF(L130:L159,AN20) -> 0 | AS20: =N20 -> 2212 | AT20: =COUNTIF(L160:L190,AS20) -> 0
A21: 12 | B21: 1946 | C21: 14 | D21: 1954 | E21: 24 | F21: 1964 | G21: 14 | H21: 1976 | K21: 0 | L21: 1121 | N21: 2221 | O21: =COUNTIF($L$7:$L$500,N21) -> 0 | P21: =O21/$Q$4 -> 0 | Q21: =IF(P21=0,0,(P21*((LOG(P21))/LOG(2)))) -> 0 | T21: =N21 -> 2221 | U21: =COUNTIF(L7:L37,T21) -> 0 | V21: =U21/(W4-U20) -> 0 | W21: =IF(V21=0,0,(V21*((LOG(V21))/LOG(2)))) -> 0 | Y21: =N21 -> 2221 | Z21: =COUNTIF(L38:L67,Y21) -> 0 | AA21: =Z21/(AB4-Z20) -> 0 | AB21: =IF(AA21=0,0,(AA21*((LOG(AA21))/LOG(2)))) -> 0 | AD21: =N21 -> 2221 | AE21: =COUNTIF(L68:L98,AD21) -> 0 | AF21: =AE21/(AG4-AE20) -> 0 | AG21: =IF(AF21=0,0,(AF21*((LOG(AF21))/LOG(2)))) -> 0 | AI21: =N21 -> 2221 | AJ21: =COUNTIF(L99:L129,AI21) -> 0 | AK21: =AJ21/(AL4-AJ20) -> 0 | AL21: =IF(AK21=0,0,(AK21*((LOG(AK21))/LOG(2)))) -> 0 | AN21: =N21 -> 2221 | AO21: =COUNTIF(L130:L159,AN21) -> 0 | AP21: =AO21/(AQ4-AO20) -> 0 | AQ21: =IF(AP21=0,0,(AP21*((LOG(AP21))/LOG(2)))) -> 0 | AS21: =N21 -> 2221 | AT21: =COUNTIF(L160:L190,AS21) -> 0 | AU21: =AT21/(AV4-AT20) -> 0 | AV21: =IF(AU21=0,0,(AU21*((LOG(AU21))/LOG(2)))) -> 0
A22: 12 | B22: 2069 | C22: 14 | D22: 2077 | E22: 24 | F22: 2088 | G22: 23 | H22: 2095 | K22: 0 | L22: 1122 | N22: 2222 | O22: =COUNTIF($L$7:$L$500,N22) -> 0 | P22: =O22/$Q$4 -> 0 | Q22: =IF(P22=0,0,(P22*((LOG(P22))/LOG(2)))) -> 0 | T22: =N22 -> 2222 | U22: =COUNTIF(L7:L37,T22) -> 0 | V22: =U22/(W4-U20) -> 0 | W22: =IF(V22=0,0,(V22*((LOG(V22))/LOG(2)))) -> 0 | Y22: =N22 -> 2222 | Z22: =COUNTIF(L38:L67,Y22) -> 0 | AA22: =Z22/(AB4-Z20) -> 0 | AB22: =IF(AA22=0,0,(AA22*((LOG(AA22))/LOG(2)))) -> 0 | AD22: =N22 -> 2222 | AE22: =COUNTIF(L68:L98,AD22) -> 0 | AF22: =AE22/(AG4-AE20) -> 0 | AG22: =IF(AF22=0,0,(AF22*((LOG(AF22))/LOG(2)))) -> 0 | AI22: =N22 -> 2222 | AJ22: =COUNTIF(L99:L129,AI22) -> 0 | AK22: =AJ22/(AL4-AJ20) -> 0 | AL22: =IF(AK22=0,0,(AK22*((LOG(AK22))/LOG(2)))) -> 0 | AN22: =N22 -> 2222 | AO22: =COUNTIF(L130:L159,AN22) -> 0 | AP22: =AO22/(AQ4-AO20) -> 0 | AQ22: =IF(AP22=0,0,(AP22*((LOG(AP22))/LOG(2)))) -> 0 | AS22: =N22 -> 2222 | AT22: =COUNTIF(L160:L190,AS22) -> 0 | AU22: =AT22/(AV4-AT20) -> 0 | AV22: =IF(AU22=0,0,(AU22*((LOG(AU22))/LOG(2)))) -> 0
A23: 12 | B23: 2194 | C23: 14 | D23: 2202 | E23: 13 | F23: 2221 | G23: 23 | H23: 2234 | K23: 0 | L23: 1112 | P23: =SUM(P7:P22) -> 1 | Q23: =-SUM(Q7:Q22) -> 2.120069205 | V23: =SUM(V7:V22) -> 1 | W23: =-SUM(W7:W22) -> 2.118280085 | AA23: =SUM(AA7:AA22) -> 1 | AB23: =-SUM(AB7:AB22) -> 1.512555988 | AF23: =SUM(AF7:AF22) -> 1 | AG23: =-SUM(AG7:AG22) -> 1.447402028 | AK23: =SUM(AK7:AK22) -> 1 | AL23: =-SUM(AL7:AL22) -> 1.788651461 | AP23: =SUM(AP7:AP22) -> 1 | AQ23: =-SUM(AQ7:AQ22) -> 2.318110986 | AU23: =SUM(AU7:AU22) -> 1 | AV23: =-SUM(AV7:AV22) -> 2.113752833
A24: 12 | B24: 2334 | C24: 14 | D24: 2343 | E24: 24 | F24: 2354 | G24: 23 | H24: 2362 | K24: 0 | L24: 1122 | P24: U= | Q24: =Q23/(LOG(Q4)/LOG(2)) -> 0.2817906223 | V24: U1= | W24: =W23/(LOG(W4)/LOG(2)) -> 0.4275729002 | AA24: U2= | AB24: =AB23/(LOG(AB4)/LOG(2)) -> 0.3082514188 | AF24: U3= | AG24: =AG23/(LOG(AG4)/LOG(2)) -> 0.2921567773 | AK24: U4= | AL24: =AL23/(LOG(AL4)/LOG(2)) -> 0.3610376636 | AP24: U5= | AQ24: =AQ23/(LOG(AQ4)/LOG(2)) -> 0.4724195376 | AU24: U6= | AV24: =AV23/(LOG(AV4)/LOG(2)) -> 0.4266590786
A25: 12 | B25: 2463 | C25: 14 | D25: 2472 | E25: 24 | F25: 2481 | G25: 14 | H25: 2492 | K25: 0 | L25: 1121
A26: 12 | B26: 2594 | C26: 14 | D26: 2603 | E26: 24 | F26: 2612 | G26: 23 | H26: 2617 | K26: 0 | L26: 1122
A27: 12 | B27: 2707 | C27: 14 | D27: 2713 | E27: 24 | F27: 2726 | G27: 14 | H27: 2737 | K27: 0 | L27: 1121 | N27: Total Target Seq
A28: 12 | B28: 2838 | C28: 14 | D28: 2845 | E28: 13 | F28: 2854 | G28: 23 | H28: 2871 | K28: 0 | L28: 1112 | N28: =COUNTIF(L7:L190,G3) -> 0 | P28: 31 | Q28: 30 | R28: 31 | S28: 31 | T28: 30 | U28: 31
A29: 12 | B29: 2972 | C29: 14 | D29: 2979 | E29: 24 | F29: 2989 | G29: 23 | H29: 2996 | K29: 0 | L29: 1122 | P29: % of reinforcement given in 6 equal intervals based on number of trials
A30: 21 | B30: 3119 | C30: 12 | D30: 3130 | E30: 24 | F30: 3142 | G30: 23 | H30: 3155 | K30: 0 | L30: 2122 | P30: %_1 | Q30: %_2 | R30: %_3 | S30: %_4 | T30: %_5 | U30: %_6
A31: 12 | B31: 3258 | C31: 14 | D31: 3266 | E31: 13 | F31: 3284 | G31: 23 | H31: 3296 | K31: 0 | L31: 1112 | O31: target sequence | P31: =$G$3 -> 2212 | Q31: =$G$3 -> 2212 | R31: =$G$3 -> 2212 | S31: =$G$3 -> 2212 | T31: =$G$3 -> 2212 | U31: =$G$3 -> 2212
A32: 12 | B32: 3396 | C32: 14 | D32: 3403 | E32: 13 | F32: 3420 | G32: 23 | H32: 3435 | K32: 0 | L32: 1112 | O32: total reinforcement | P32: =U20 -> 0 | Q32: =Z20 -> 0 | R32: =AE20 -> 0 | S32: =AJ20 -> 0 | T32: =AO20 -> 0 | U32: =AT20 -> 0
A33: 12 | B33: 3546 | C33: 14 | D33: 3551 | E33: 13 | F33: 3560 | G33: 14 | H33: 3581 | K33: 0 | L33: 1111 | O33: % target
A34: 12 | B34: 3680 | C34: 14 | D34: 3688 | E34: 24 | F34: 3706 | G34: 14 | H34: 3715 | K34: 0 | L34: 1121 | O34: CCRF
A35: 12 | B35: 3805 | C35: 14 | D35: 3812 | E35: 13 | F35: 3821 | G35: 23 | H35: 3831 | K35: 0 | L35: 1112 | O35: % CCRf
A36: 12 | B36: 3931 | C36: 14 | D36: 3941 | E36: 13 | F36: 3957 | G36: 23 | H36: 3968 | K36: 0 | L36: 1112 | O36: average response rate | P36: =H37/P28 -> 132.4516129 | Q36: =(H67-H37)/Q28 -> 130.2 | R36: =(H98-H67)/R28 -> 129.2258065 | S36: =(H129-H98)/S28 -> 125.8387097 | T36: =(H159-H129)/T28 -> 135.3333333 | U36: =(H190-H159)/U28 -> 129
A37: 12 | B37: 4068 | C37: 14 | D37: 4078 | E37: 13 | F37: 4095 | G37: 23 | H37: 4106 | K37: 0 | L37: 1112
A38: 12 | B38: 4205 | C38: 14 | D38: 4213 | E38: 13 | F38: 4221 | G38: 14 | H38: 4235 | K38: 0 | L38: 1111
A39: 12 | B39: 4329 | C39: 14 | D39: 4337 | E39: 24 | F39: 4347 | G39: 14 | H39: 4360 | K39: 0 | L39: 1121
A40: 12 | B40: 4458 | C40: 14 | D40: 4475 | E40: 24 | F40: 4484 | G40: 23 | H40: 4489 | K40: 0 | L40: 1122
A41: 12 | B41: 4587 | C41: 14 | D41: 4594 | E41: 13 | F41: 4602 | G41: 23 | H41: 4616 | K41: 0 | L41: 1112
A42: 12 | B42: 4722 | C42: 14 | D42: 4729 | E42: 13 | F42: 4744 | G42: 23 | H42: 4754 | K42: 0 | L42: 1112
A43: 12 | B43: 4878 | C43: 14 | D43: 4887 | E43: 13 | F43: 4912 | G43: 23 | H43: 4923 | K43: 0 | L43: 1112
A44: 12 | B44: 5016 | C44: 14 | D44: 5022 | E44: 13 | F44: 5030 | G44: 23 | H44: 5046 | K44: 0 | L44: 1112
A45: 12 | B45: 5148 | C45: 14 | D45: 5153 | E45: 13 | F45: 5162 | G45: 23 | H45: 5174 | K45: 0 | L45: 1112
A46: 12 | B46: 5271 | C46: 14 | D46: 5278 | E46: 24 | F46: 5290 | G46: 23 | H46: 5294 | K46: 0 | L46: 1122
A47: 12 | B47: 5393 | C47: 14 | D47: 5402 | E47: 13 | F47: 5410 | G47: 23 | H47: 5423 | K47: 0 | L47: 1112
A48: 12 | B48: 5529 | C48: 14 | D48: 5536 | E48: 13 | F48: 5545 | G48: 23 | H48: 5555 | K48: 0 | L48: 1112
A49: 12 | B49: 5686 | C49: 14 | D49: 5693 | E49: 13 | F49: 5703 | G49: 23 | H49: 5713 | K49: 0 | L49: 1112
A50: 12 | B50: 5810 | C50: 14 | D50: 5817 | E50: 13 | F50: 5826 | G50: 14 | H50: 5835 | K50: 0 | L50: 1111
A51: 12 | B51: 5929 | C51: 14 | D51: 5938 | E51: 24 | F51: 5950 | G51: 23 | H51: 5958 | K51: 0 | L51: 1122
A52: 12 | B52: 6059 | C52: 14 | D52: 6073 | E52: 13 | F52: 6087 | G52: 23 | H52: 6097 | K52: 0 | L52: 1112
A53: 12 | B53: 6194 | C53: 14 | D53: 6199 | E53: 13 | F53: 6204 | G53: 14 | H53: 6221 | K53: 0 | L53: 1111
A54: 12 | B54: 6321 | C54: 14 | D54: 6327 | E54: 13 | F54: 6337 | G54: 23 | H54: 6347 | K54: 0 | L54: 1112
A55: 12 | B55: 6445 | C55: 14 | D55: 6449 | E55: 13 | F55: 6454 | G55: 23 | H55: 6465 | K55: 0 | L55: 1112
A56: 12 | B56: 6561 | C56: 14 | D56: 6571 | E56: 24 | F56: 6584 | G56: 14 | H56: 6598 | K56: 0 | L56: 1121
A57: 12 | B57: 6686 | C57: 14 | D57: 6696 | E57: 13 | F57: 6704 | G57: 23 | H57: 6719 | K57: 0 | L57: 1112
A58: 12 | B58: 6817 | C58: 14 | D58: 6826 | E58: 13 | F58: 6834 | G58: 23 | H58: 6844 | K58: 0 | L58: 1112
A59: 12 | B59: 6945 | C59: 14 | D59: 6952 | E59: 13 | F59: 6966 | G59: 23 | H59: 6976 | K59: 0 | L59: 1112
A60: 12 | B60: 7077 | C60: 14 | D60: 7083 | E60: 13 | F60: 7090 | G60: 14 | H60: 7106 | K60: 0 | L60: 1111
A61: 12 | B61: 7211 | C61: 14 | D61: 7216 | E61: 13 | F61: 7223 | G61: 23 | H61: 7233 | K61: 0 | L61: 1112
A62: 12 | B62: 7332 | C62: 14 | D62: 7337 | E62: 13 | F62: 7344 | G62: 23 | H62: 7358 | K62: 0 | L62: 1112
A63: 12 | B63: 7459 | C63: 14 | D63: 7464 | E63: 13 | F63: 7468 | G63: 14 | H63: 7473 | K63: 0 | L63: 1111
A64: 12 | B64: 7575 | C64: 14 | D64: 7580 | E64: 13 | F64: 7588 | G64: 23 | H64: 7597 | K64: 0 | L64: 1112
A65: 12 | B65: 7701 | C65: 14 | D65: 7706 | E65: 24 | F65: 7717 | G65: 14 | H65: 7733 | K65: 0 | L65: 1121
A66: 12 | B66: 7848 | C66: 14 | D66: 7856 | E66: 13 | F66: 7871 | G66: 23 | H66: 7885 | K66: 0 | L66: 1112
A67: 12 | B67: 7987 | C67: 14 | D67: 7992 | E67: 13 | F67: 7998 | G67: 23 | H67: 8012 | K67: 0 | L67: 1112
A68: 12 | B68: 8128 | C68: 14 | D68: 8133 | E68: 13 | F68: 8142 | G68: 23 | H68: 8152 | K68: 0 | L68: 1112
A69: 12 | B69: 8249 | C69: 14 | D69: 8253 | E69: 13 | F69: 8258 | G69: 14 | H69: 8268 | K69: 0 | L69: 1111
A70: 12 | B70: 8371 | C70: 14 | D70: 8376 | E70: 13 | F70: 8383 | G70: 14 | H70: 8392 | K70: 0 | L70: 1111
A71: 12 | B71: 8491 | C71: 14 | D71: 8496 | E71: 13 | F71: 8504 | G71: 23 | H71: 8516 | K71: 0 | L71: 1112
A72: 12 | B72: 8619 | C72: 14 | D72: 8624 | E72: 13 | F72: 8629 | G72: 14 | H72: 8636 | K72: 0 | L72: 1111
A73: 12 | B73: 8744 | C73: 14 | D73: 8750 | E73: 13 | F73: 8757 | G73: 14 | H73: 8766 | K73: 0 | L73: 1111
A74: 12 | B74: 8873 | C74: 14 | D74: 8878 | E74: 13 | F74: 8892 | G74: 23 | H74: 8901 | K74: 0 | L74: 1112
A75: 12 | B75: 9029 | C75: 14 | D75: 9034 | E75: 13 | F75: 9051 | G75: 23 | H75: 9064 | K75: 0 | L75: 1112
A76: 12 | B76: 9166 | C76: 14 | D76: 9172 | E76: 13 | F76: 9176 | G76: 14 | H76: 9184 | K76: 0 | L76: 1111
A77: 12 | B77: 9285 | C77: 14 | D77: 9290 | E77: 13 | F77: 9294 | G77: 14 | H77: 9302 | K77: 0 | L77: 1111
A78: 12 | B78: 9409 | C78: 14 | D78: 9413 | E78: 13 | F78: 9421 | G78: 23 | H78: 9432 | K78: 0 | L78: 1112
A79: 12 | B79: 9542 | C79: 14 | D79: 9550 | E79: 13 | F79: 9561 | G79: 23 | H79: 9574 | K79: 0 | L79: 1112
A80: 12 | B80: 9664 | C80: 14 | D80: 9673 | E80: 13 | F80: 9682 | G80: 23 | H80: 9695 | K80: 0 | L80: 1112
A81: 12 | B81: 9792 | C81: 14 | D81: 9798 | E81: 13 | F81: 9807 | G81: 14 | H81: 9819 | K81: 0 | L81: 1111
A82: 12 | B82: 9928 | C82: 14 | D82: 9937 | E82: 13 | F82: 9945 | G82: 23 | H82: 9957 | K82: 0 | L82: 1112
A83: 12 | B83: 10059 | C83: 14 | D83: 10064 | E83: 13 | F83: 10071 | G83: 23 | H83: 10082 | K83: 0 | L83: 1112
A84: 12 | B84: 10173 | C84: 14 | D84: 10175 | E84: 13 | F84: 10180 | G84: 14 | H84: 10191 | K84: 0 | L84: 1111
A85: 12 | B85: 10290 | C85: 14 | D85: 10301 | E85: 13 | F85: 10311 | G85: 23 | H85: 10326 | K85: 0 | L85: 1112
A86: 12 | B86: 10423 | C86: 14 | D86: 10430 | E86: 13 | F86: 10438 | G86: 23 | H86: 10451 | K86: 0 | L86: 1112
A87: 12 | B87: 10551 | C87: 14 | D87: 10560 | E87: 13 | F87: 10569 | G87: 23 | H87: 10582 | K87: 0 | L87: 1112
A88: 12 | B88: 10695 | C88: 14 | D88: 10703 | E88: 24 | F88: 10715 | G88: 14 | H88: 10727 | K88: 0 | L88: 1121
A89: 12 | B89: 10829 | C89: 14 | D89: 10838 | E89: 13 | F89: 10845 | G89: 23 | H89: 10857 | K89: 0 | L89: 1112
A90: 12 | B90: 10961 | C90: 14 | D90: 10968 | E90: 13 | F90: 10978 | G90: 23 | H90: 10987 | K90: 0 | L90: 1112
A91: 12 | B91: 11090 | C91: 14 | D91: 11097 | E91: 24 | F91: 11106 | G91: 23 | H91: 11114 | K91: 0 | L91: 1122
A92: 12 | B92: 11225 | C92: 14 | D92: 11233 | E92: 24 | F92: 11247 | G92: 14 | H92: 11259 | K92: 0 | L92: 1121
A93: 12 | B93: 11349 | C93: 14 | D93: 11357 | E93: 13 | F93: 11365 | G93: 23 | H93: 11379 | K93: 0 | L93: 1112
A94: 12 | B94: 11478 | C94: 14 | D94: 11487 | E94: 13 | F94: 11495 | G94: 23 | H94: 11506 | K94: 0 | L94: 1112
A95: 12 | B95: 11606 | C95: 14 | D95: 11622 | E95: 13 | F95: 11629 | G95: 23 | H95: 11641 | K95: 0 | L95: 1112
A96: 12 | B96: 11739 | C96: 14 | D96: 11744 | E96: 13 | F96: 11752 | G96: 23 | H96: 11762 | K96: 0 | L96: 1112
A97: 12 | B97: 11867 | C97: 14 | D97: 11874 | E97: 24 | F97: 11884 | G97: 23 | H97: 11891 | K97: 0 | L97: 1122
A98: 12 | B98: 11991 | C98: 14 | D98: 11999 | E98: 13 | F98: 12008 | G98: 23 | H98: 12018 | K98: 0 | L98: 1112
A99: 12 | B99: 12115 | C99: 14 | D99: 12120 | E99: 13 | F99: 12124 | G99: 14 | H99: 12133 | K99: 0 | L99: 1111
A100: 12 | B100: 12241 | C100: 14 | D100: 12246 | E100: 13 | F100: 12254 | G100: 14 | H100: 12261 | K100: 0 | L100: 1111
A101: 12 | B101: 12364 | C101: 14 | D101: 12368 | E101: 13 | F101: 12373 | G101: 14 | H101: 12378 | K101: 0 | L101: 1111
A102: 12 | B102: 12491 | C102: 14 | D102: 12499 | E102: 24 | F102: 12509 | G102: 23 | H102: 12516 | K102: 0 | L102: 1122
A103: 12 | B103: 12609 | C103: 14 | D103: 12622 | E103: 13 | F103: 12630 | G103: 23 | H103: 12642 | K103: 0 | L103: 1112
A104: 12 | B104: 12744 | C104: 14 | D104: 12749 | E104: 13 | F104: 12754 | G104: 14 | H104: 12761 | K104: 0 | L104: 1111
A105: 12 | B105: 12860 | C105: 14 | D105: 12868 | E105: 24 | F105: 12879 | G105: 14 | H105: 12889 | K105: 0 | L105: 1121
A106: 12 | B106: 12980 | C106: 14 | D106: 12989 | E106: 13 | F106: 12997 | G106: 14 | H106: 13006 | K106: 0 | L106: 1111
A107: 12 | B107: 13105 | C107: 14 | D107: 13112 | E107: 13 | F107: 13126 | G107: 14 | H107: 13135 | K107: 0 | L107: 1111
A108: 12 | B108: 13234 | C108: 14 | D108: 13241 | E108: 24 | F108: 13254 | G108: 23 | H108: 13261 | K108: 0 | L108: 1122
A109: 12 | B109: 13364 | C109: 14 | D109: 13369 | E109: 13 | F109: 13376 | G109: 23 | H109: 13388 | K109: 0 | L109: 1112
A110: 12 | B110: 13485 | C110: 14 | D110: 13491 | E110: 13 | F110: 13498 | G110: 23 | H110: 13507 | K110: 0 | L110: 1112
A111: 12 | B111: 13609 | C111: 14 | D111: 13624 | E111: 24 | F111: 13634 | G111: 23 | H111: 13638 | K111: 0 | L111: 1122
A112: 12 | B112: 13752 | C112: 14 | D112: 13759 | E112: 13 | F112: 13767 | G112: 23 | H112: 13781 | K112: 0 | L112: 1112
A113: 12 | B113: 13872 | C113: 14 | D113: 13876 | E113: 13 | F113: 13880 | G113: 14 | H113: 13885 | K113: 0 | L113: 1111
A114: 12 | B114: 13990 | C114: 14 | D114: 13995 | E114: 13 | F114: 13999 | G114: 14 | H114: 14004 | K114: 0 | L114: 1111
A115: 12 | B115: 14103 | C115: 14 | D115: 14107 | E115: 13 | F115: 14114 | G115: 23 | H115: 14126 | K115: 0 | L115: 1112
A116: 12 | B116: 14226 | C116: 14 | D116: 14232 | E116: 13 | F116: 14241 | G116: 14 | H116: 14249 | K116: 0 | L116: 1111
A117: 12 | B117: 14347 | C117: 14 | D117: 14366 | E117: 13 | F117: 14373 | G117: 23 | H117: 14386 | K117: 0 | L117: 1112
A118: 12 | B118: 14485 | C118: 14 | D118: 14495 | E118: 24 | F118: 14506 | G118: 23 | H118: 14513 | K118: 0 | L118: 1122
A119: 12 | B119: 14621 | C119: 14 | D119: 14628 | E119: 13 | F119: 14638 | G119: 14 | H119: 14647 | K119: 0 | L119: 1111
A120: 12 | B120: 14750 | C120: 23 | D120: 14768 | E120: 13 | F120: 14779 | G120: 14 | H120: 14787 | K120: 0 | L120: 1211
A121: 12 | B121: 14878 | C121: 14 | D121: 14883 | E121: 13 | F121: 14891 | G121: 14 | H121: 14900 | K121: 0 | L121: 1111
A122: 12 | B122: 15007 | C122: 14 | D122: 15013 | E122: 13 | F122: 15022 | G122: 14 | H122: 15029 | K122: 0 | L122: 1111
A123: 12 | B123: 15139 | C123: 14 | D123: 15146 | E123: 13 | F123: 15154 | G123: 23 | H123: 15168 | K123: 0 | L123: 1112
A124: 12 | B124: 15267 | C124: 14 | D124: 15272 | E124: 13 | F124: 15280 | G124: 23 | H124: 15289 | K124: 0 | L124: 1112
A125: 12 | B125: 15395 | C125: 14 | D125: 15400 | E125: 13 | F125: 15405 | G125: 14 | H125: 15412 | K125: 0 | L125: 1111
A126: 12 | B126: 15511 | C126: 14 | D126: 15513 | E126: 13 | F126: 15518 | G126: 23 | H126: 15531 | K126: 0 | L126: 1112
A127: 12 | B127: 15628 | C127: 14 | D127: 15640 | E127: 24 | F127: 15653 | G127: 23 | H127: 15660 | K127: 0 | L127: 1122
A128: 12 | B128: 15770 | C128: 14 | D128: 15778 | E128: 13 | F128: 15790 | G128: 23 | H128: 15804 | K128: 0 | L128: 1112
A129: 12 | B129: 15902 | C129: 14 | D129: 15904 | E129: 13 | F129: 15909 | G129: 14 | H129: 15919 | K129: 0 | L129: 1111
A130: 21 | B130: 16025 | C130: 12 | D130: 16035 | E130: 24 | F130: 16053 | G130: 23 | H130: 16063 | K130: 0 | L130: 2122
A131: 12 | B131: 16164 | C131: 14 | D131: 16172 | E131: 24 | F131: 16185 | G131: 14 | H131: 16201 | K131: 0 | L131: 1121
A132: 21 | B132: 16309 | C132: 12 | D132: 16321 | E132: 13 | F132: 16330 | G132: 23 | H132: 16340 | K132: 0 | L132: 2112
A133: 12 | B133: 16434 | C133: 14 | D133: 16440 | E133: 24 | F133: 16453 | G133: 14 | H133: 16467 | K133: 0 | L133: 1121
A134: 12 | B134: 16583 | C134: 14 | D134: 16598 | E134: 24 | F134: 16610 | G134: 23 | H134: 16617 | K134: 0 | L134: 1122
A135: 12 | B135: 16719 | C135: 14 | D135: 16736 | E135: 13 | F135: 16744 | G135: 23 | H135: 16755 | K135: 0 | L135: 1112
A136: 12 | B136: 16855 | C136: 14 | D136: 16861 | E136: 13 | F136: 16865 | G136: 14 | H136: 16874 | K136: 0 | L136: 1111
A137: 12 | B137: 16977 | C137: 14 | D137: 16985 | E137: 13 | F137: 16993 | G137: 14 | H137: 17002 | K137: 0 | L137: 1111
A138: 21 | B138: 17101 | C138: 12 | D138: 17110 | E138: 13 | F138: 17118 | G138: 23 | H138: 17131 | K138: 0 | L138: 2112
A139: 12 | B139: 17235 | C139: 23 | D139: 17248 | E139: 13 | F139: 17260 | G139: 23 | H139: 17272 | K139: 0 | L139: 1212
A140: 12 | B140: 17373 | C140: 14 | D140: 17392 | E140: 24 | F140: 17402 | G140: 14 | H140: 17411 | K140: 0 | L140: 1121
A141: 12 | B141: 17517 | C141: 14 | D141: 17526 | E141: 13 | F141: 17533 | G141: 14 | H141: 17543 | K141: 0 | L141: 1111
A142: 12 | B142: 17654 | C142: 14 | D142: 17666 | E142: 13 | F142: 17673 | G142: 14 | H142: 17681 | K142: 0 | L142: 1111
A143: 12 | B143: 17784 | C143: 14 | D143: 17793 | E143: 13 | F143: 17808 | G143: 23 | H143: 17822 | K143: 0 | L143: 1112
A144: 12 | B144: 17943 | C144: 14 | D144: 17951 | E144: 13 | F144: 17959 | G144: 23 | H144: 17970 | K144: 0 | L144: 1112
A145: 12 | B145: 18094 | C145: 14 | D145: 18100 | E145: 13 | F145: 18109 | G145: 23 | H145: 18124 | K145: 0 | L145: 1112
A146: 12 | B146: 18223 | C146: 14 | D146: 18228 | E146: 13 | F146: 18237 | G146: 23 | H146: 18249 | K146: 0 | L146: 1112
A147: 12 | B147: 18396 | C147: 14 | D147: 18400 | E147: 13 | F147: 18406 | G147: 14 | H147: 18411 | K147: 0 | L147: 1111
A148: 12 | B148: 18522 | C148: 14 | D148: 18527 | E148: 13 | F148: 18532 | G148: 14 | H148: 18536 | K148: 0 | L148: 1111
A149: 12 | B149: 18640 | C149: 14 | D149: 18645 | E149: 13 | F149: 18653 | G149: 23 | H149: 18664 | K149: 0 | L149: 1112
A150: 12 | B150: 18781 | C150: 14 | D150: 18786 | E150: 13 | F150: 18790 | G150: 14 | H150: 18798 | K150: 0 | L150: 1111
A151: 12 | B151: 18900 | C151: 14 | D151: 18908 | E151: 13 | F151: 18916 | G151: 14 | H151: 18924 | K151: 0 | L151: 1111
A152: 12 | B152: 19030 | C152: 14 | D152: 19043 | E152: 24 | F152: 19054 | G152: 23 | H152: 19061 | K152: 0 | L152: 1122
A153: 12 | B153: 19160 | C153: 14 | D153: 19167 | E153: 24 | F153: 19179 | G153: 14 | H153: 19193 | K153: 0 | L153: 1121
A154: 12 | B154: 19292 | C154: 14 | D154: 19303 | E154: 24 | F154: 19312 | G154: 14 | H154: 19323 | K154: 0 | L154: 1121
A155: 12 | B155: 19434 | C155: 14 | D155: 19439 | E155: 13 | F155: 19444 | G155: 23 | H155: 19457 | K155: 0 | L155: 1112
A156: 12 | B156: 19569 | C156: 14 | D156: 19573 | E156: 13 | F156: 19577 | G156: 14 | H156: 19585 | K156: 0 | L156: 1111
A157: 12 | B157: 19709 | C157: 14 | D157: 19714 | E157: 13 | F157: 19719 | G157: 14 | H157: 19724 | K157: 0 | L157: 1111
A158: 12 | B158: 19828 | C158: 14 | D158: 19833 | E158: 13 | F158: 19840 | G158: 23 | H158: 19850 | K158: 0 | L158: 1112
A159: 12 | B159: 19957 | C159: 14 | D159: 19961 | E159: 13 | F159: 19969 | G159: 14 | H159: 19979 | K159: 0 | L159: 1111
A160: 12 | B160: 20076 | C160: 14 | D160: 20084 | E160: 24 | F160: 20099 | G160: 14 | H160: 20111 | K160: 0 | L160: 1121
A161: 12 | B161: 20233 | C161: 14 | D161: 20238 | E161: 13 | F161: 20243 | G161: 23 | H161: 20263 | K161: 0 | L161: 1112
A162: 12 | B162: 20366 | C162: 14 | D162: 20371 | E162: 13 | F162: 20378 | G162: 14 | H162: 20386 | K162: 0 | L162: 1111
A163: 12 | B163: 20489 | C163: 14 | D163: 20505 | E163: 24 | F163: 20517 | G163: 23 | H163: 20527 | K163: 0 | L163: 1122
A164: 12 | B164: 20625 | C164: 14 | D164: 20634 | E164: 24 | F164: 20653 | G164: 23 | H164: 20660 | K164: 0 | L164: 1122
A165: 12 | B165: 20762 | C165: 14 | D165: 20769 | E165: 13 | F165: 20776 | G165: 23 | H165: 20789 | K165: 0 | L165: 1112
A166: 12 | B166: 20891 | C166: 14 | D166: 20900 | E166: 13 | F166: 20907 | G166: 23 | H166: 20917 | K166: 0 | L166: 1112
A167: 12 | B167: 21022 | C167: 14 | D167: 21036 | E167: 24 | F167: 21046 | G167: 23 | H167: 21056 | K167: 0 | L167: 1122
A168: 12 | B168: 21154 | C168: 14 | D168: 21164 | E168: 13 | F168: 21172 | G168: 23 | H168: 21181 | K168: 0 | L168: 1112
A169: 12 | B169: 21283 | C169: 14 | D169: 21287 | E169: 13 | F169: 21291 | G169: 14 | H169: 21298 | K169: 0 | L169: 1111
A170: 12 | B170: 21399 | C170: 14 | D170: 21408 | E170: 24 | F170: 21419 | G170: 23 | H170: 21430 | K170: 0 | L170: 1122
A171: 12 | B171: 21523 | C171: 14 | D171: 21532 | E171: 13 | F171: 21539 | G171: 23 | H171: 21553 | K171: 0 | L171: 1112
A172: 12 | B172: 21653 | C172: 14 | D172: 21663 | E172: 13 | F172: 21671 | G172: 23 | H172: 21681 | K172: 0 | L172: 1112
A173: 12 | B173: 21787 | C173: 14 | D173: 21795 | E173: 13 | F173: 21812 | G173: 23 | H173: 21824 | K173: 0 | L173: 1112
A174: 12 | B174: 21923 | C174: 14 | D174: 21928 | E174: 13 | F174: 21936 | G174: 23 | H174: 21946 | K174: 0 | L174: 1112
A175: 12 | B175: 22043 | C175: 14 | D175: 22047 | E175: 13 | F175: 22052 | G175: 14 | H175: 22056 | K175: 0 | L175: 1111
A176: 12 | B176: 22158 | C176: 23 | D176: 22175 | E176: 24 | F176: 22183 | G176: 23 | H176: 22195 | K176: 0 | L176: 1222
A177: 12 | B177: 22294 | C177: 14 | D177: 22298 | E177: 13 | F177: 22303 | G177: 14 | H177: 22310 | K177: 0 | L177: 1111
A178: 12 | B178: 22411 | C178: 14 | D178: 22416 | E178: 13 | F178: 22420 | G178: 14 | H178: 22425 | K178: 0 | L178: 1111
A179: 12 | B179: 22530 | C179: 14 | D179: 22534 | E179: 13 | F179: 22540 | G179: 14 | H179: 22547 | K179: 0 | L179: 1111
A180: 12 | B180: 22648 | C180: 14 | D180: 22659 | E180: 24 | F180: 22670 | G180: 23 | H180: 22676 | K180: 0 | L180: 1122
A181: 12 | B181: 22779 | C181: 14 | D181: 22786 | E181: 13 | F181: 22796 | G181: 23 | H181: 22806 | K181: 0 | L181: 1112
A182: 12 | B182: 22916 | C182: 23 | D182: 22926 | E182: 24 | F182: 22933 | G182: 23 | H182: 22939 | K182: 0 | L182: 1222
A183: 12 | B183: 23041 | C183: 14 | D183: 23048 | E183: 13 | F183: 23059 | G183: 23 | H183: 23072 | K183: 0 | L183: 1112
A184: 12 | B184: 23170 | C184: 14 | D184: 23176 | E184: 24 | F184: 23189 | G184: 23 | H184: 23196 | K184: 0 | L184: 1122
A185: 12 | B185: 23298 | C185: 14 | D185: 23303 | E185: 13 | F185: 23308 | G185: 14 | H185: 23327 | K185: 0 | L185: 1111
A186: 12 | B186: 23429 | C186: 14 | D186: 23436 | E186: 24 | F186: 23448 | G186: 23 | H186: 23455 | K186: 0 | L186: 1122
A187: 12 | B187: 23556 | C187: 14 | D187: 23563 | E187: 24 | F187: 23575 | G187: 23 | H187: 23582 | K187: 0 | L187: 1122
A188: 12 | B188: 23685 | C188: 23 | D188: 23696 | E188: 13 | F188: 23707 | G188: 23 | H188: 23721 | K188: 0 | L188: 1212
A189: 12 | B189: 23824 | C189: 14 | D189: 23829 | E189: 13 | F189: 23836 | G189: 23 | H189: 23848 | K189: 0 | L189: 1112
A190: 12 | B190: 23958 | C190: 14 | D190: 23963 | E190: 13 | F190: 23971 | G190: 14 | H190: 23978 | K190: 1 | L190: 1111

Sheet !2011-07-31_11h41m.Subject 53
A1: Report for:!2011-07-31_11h41m.Subject 53
A2: Date | B2: 2011-07-31 | F2: Group | G2: Phase 3 Any
A3: Hen | B3: 53 | F3: Correct Sequence | G3: =Start!J2 -> 2212 | P3: Total Sequences in Data | Q3: =4994-COUNTBLANK(L7:L5000) -> 190 | V3: Total Sequences in Block Data | W3: =COUNTA(L7:L38) -> 32 | AA3: Total Sequences in Block Data | AB3: =COUNTA(L39:L69) -> 31 | AF3: Total Sequences in Block Data | AG3: =COUNTA(L70:L101) -> 32 | AK3: Total Sequences in Block Data | AL3: =COUNTA(L102:L133) -> 32 | AP3: Total Sequences in Block Data | AQ3: =COUNTA(L134:L164) -> 31 | AU3: Total Sequences in Block Data | AV3: =COUNTA(L165:L196) -> 32
A4: Program | B4: One | P4: Total Sequences in Summary | Q4: =SUM(O7:O22) -> 190 | V4: Total Sequences in Block Summary | W4: =SUM(U7:U22) -> 32 | AA4: Total Sequences in Block Summary | AB4: =SUM(Z7:Z22) -> 31 | AF4: Total Sequences in Block Summary | AG4: =SUM(AE7:AE22) -> 32 | AK4: Total Sequences in Block Summary | AL4: =SUM(AJ7:AJ22) -> 32 | AP4: Total Sequences in Block Summary | AQ4: =SUM(AO7:AO22) -> 31 | AU4: Total Sequences in Block Summary | AV4: =SUM(AT7:AT22) -> 32
T5: Block 1 | Y5: Block 2 | AD5: Block 3 | AI5: Block 4 | AN5: Block 5 | AS5: Block 6
A6: Sequence Component 1 | B6: Time 1 | C6: Sequence Component 2 | D6: Time 2 | E6: Sequence Component 3 | F6: Time 3 | G6: Sequence Component 4 | H6: Time 4 | I6: Sequence Component 5 | J6: Time 5 | K6: Correct? 0=No 1=Yes | L6: Sequence | N6: Frequency | P6: Relative Frequency | Q6: Variability | T6: Frequency | V6: Relative Frequency | W6: Variability | Y6: Frequency | AA6: Relative Frequency | AB6: Variability | AD6: Frequency | AF6: Relative Frequency | AG6: Variability | AI6: Frequency | AK6: Relative Frequency | AL6: Variability | AN6: Frequency | AP6: Relative Frequency | AQ6: Variability | AS6: Frequency | AU6: Relative Frequency | AV6: Variability
A7: 12 | B7: 10 | C7: 14 | D7: 18 | E7: 13 | F7: 32 | G7: 23 | H7: 45 | K7: 0 | L7: 1112 | N7: 1111 | O7: =COUNTIF($L$7:$L$500,N7) -> 78 | P7: =O7/$Q$4 -> 0.4105263158 | Q7: =IF(P7=0,0,(P7*((LOG(P7))/LOG(2)))) -> -0.5273019178 | T7: =N7 -> 1111 | U7: =COUNTIF(L7:L38,T7) -> 7 | V7: =U7/(W4-U20) -> 0.21875 | W7: =IF(V7=0,0,(V7*((LOG(V7))/LOG(2)))) -> -0.4796411108 | Y7: =N7 -> 1111 | Z7: =COUNTIF(L39:L69,Y7) -> 4 | AA7: =Z7/(AB4-Z20) -> 0.1290322581 | AB7: =IF(AA7=0,0,(AA7*((LOG(AA7))/LOG(2)))) -> -0.3811866207 | AD7: =N7 -> 1111 | AE7: =COUNTIF(L70:L101,AD7) -> 9 | AF7: =AE7/(AG4-AE20) -> 0.28125 | AG7: =IF(AF7=0,0,(AF7*((LOG(AF7))/LOG(2)))) -> -0.5147085933 | AI7: =N7 -> 1111 | AJ7: =COUNTIF(L102:L133,AI7) -> 20 | AK7: =AJ7/(AL4-AJ20) -> 0.625 | AL7: =IF(AK7=0,0,(AK7*((LOG(AK7))/LOG(2)))) -> -0.4237949407 | AN7: =N7 -> 1111 | AO7: =COUNTIF(L134:L164,AN7) -> 21 | AP7: =AO7/(AQ4-AO20) -> 0.6774193548 | AQ7: =IF(AP7=0,0,(AP7*((LOG(AP7))/LOG(2)))) -> -0.3806276335 | AS7: =N7 -> 1111 | AT7: =COUNTIF(L165:L196,AS7) -> 17 | AU7: =AT7/(AV4-AT20) -> 0.53125 | AV7: =IF(AU7=0,0,(AU7*((LOG(AU7))/LOG(2)))) -> -0.4847853656
A8: 12 | B8: 144 | C8: 14 | D8: 151 | E8: 13 | F8: 159 | G8: 14 | H8: 167 | K8: 0 | L8: 1111 | N8: 1112 | O8: =COUNTIF($L$7:$L$500,N8) -> 90 | P8: =O8/$Q$4 -> 0.4736842105 | Q8: =IF(P8=0,0,(P8*((LOG(P8))/LOG(2)))) -> -0.5106327688 | T8: =N8 -> 1112 | U8: =COUNTIF(L7:L38,T8) -> 19 | V8: =U8/(W4-U20) -> 0.59375 | W8: =IF(V8=0,0,(V8*((LOG(V8))/LOG(2)))) -> -0.4465430389 | Y8: =N8 -> 1112 | Z8: =COUNTIF(L39:L69,Y8) -> 19 | AA8: =Z8/(AB4-Z20) -> 0.6129032258 | AB8: =IF(AA8=0,0,(AA8*((LOG(AA8))/LOG(2)))) -> -0.4328744239 | AD8: =N8 -> 1112 | AE8: =COUNTIF(L70:L101,AD8) -> 17 | AF8: =AE8/(AG4-AE20) -> 0.53125 | AG8: =IF(AF8=0,0,(AF8*((LOG(AF8))/LOG(2)))) -> -0.4847853656 | AI8: =N8 -> 1112 | AJ8: =COUNTIF(L102:L133,AI8) -> 12 | AK8: =AJ8/(AL4-AJ20) -> 0.375 | AL8: =IF(AK8=0,0,(AK8*((LOG(AK8))/LOG(2)))) -> -0.5306390622 | AN8: =N8 -> 1112 | AO8: =COUNTIF(L134:L164,AN8) -> 9 | AP8: =AO8/(AQ4-AO20) -> 0.2903225806 | AQ8: =IF(AP8=0,0,(AP8*((LOG(AP8))/LOG(2)))) -> -0.518014251 | AS8: =N8 -> 1112 | AT8: =COUNTIF(L165:L196,AS8) -> 14 | AU8: =AT8/(AV4-AT20) -> 0.4375 | AV8: =IF(AU8=0,0,(AU8*((LOG(AU8))/LOG(2)))) -> -0.5217822216
A9: 12 | B9: 268 | C9: 14 | D9: 277 | E9: 13 | F9: 289 | G9: 23 | H9: 302 | K9: 0 | L9: 1112 | N9: 1121 | O9: =COUNTIF($L$7:$L$500,N9) -> 1 | P9: =O9/$Q$4 -> 0.005263157895 | Q9: =IF(P9=0,0,(P9*((LOG(P9))/LOG(2)))) -> -0.03984134531 | T9: =N9 -> 1121 | U9: =COUNTIF(L7:L38,T9) -> 0 | V9: =U9/(W4-U20) -> 0 | W9: =IF(V9=0,0,(V9*((LOG(V9))/LOG(2)))) -> 0 | Y9: =N9 -> 1121 | Z9: =COUNTIF(L39:L69,Y9) -> 1 | AA9: =Z9/(AB4-Z20) -> 0.03225806452 | AB9: =IF(AA9=0,0,(AA9*((LOG(AA9))/LOG(2)))) -> -0.1598127842 | AD9: =N9 -> 1121 | AE9: =COUNTIF(L70:L101,AD9) -> 0 | AF9: =AE9/(AG4-AE20) -> 0 | AG9: =IF(AF9=0,0,(AF9*((LOG(AF9))/LOG(2)))) -> 0 | AI9: =N9 -> 1121 | AJ9: =COUNTIF(L102:L133,AI9) -> 0 | AK9: =AJ9/(AL4-AJ20) -> 0 | AL9: =IF(AK9=0,0,(AK9*((LOG(AK9))/LOG(2)))) -> 0 | AN9: =N9 -> 1121 | AO9: =COUNTIF(L134:L164,AN9) -> 0 | AP9: =AO9/(AQ4-AO20) -> 0 | AQ9: =IF(AP9=0,0,(AP9*((LOG(AP9))/LOG(2)))) -> 0 | AS9: =N9 -> 1121 | AT9: =COUNTIF(L165:L196,AS9) -> 0 | AU9: =AT9/(AV4-AT20) -> 0 | AV9: =IF(AU9=0,0,(AU9*((LOG(AU9))/LOG(2)))) -> 0
A10: 12 | B10: 402 | C10: 14 | D10: 409 | E10: 13 | F10: 424 | G10: 23 | H10: 437 | K10: 0 | L10: 1112 | N10: 1122 | O10: =COUNTIF($L$7:$L$500,N10) -> 20 | P10: =O10/$Q$4 -> 0.1052631579 | Q10: =IF(P10=0,0,(P10*((LOG(P10))/LOG(2)))) -> -0.3418871067 | T10: =N10 -> 1122 | U10: =COUNTIF(L7:L38,T10) -> 5 | V10: =U10/(W4-U20) -> 0.15625 | W10: =IF(V10=0,0,(V10*((LOG(V10))/LOG(2)))) -> -0.4184487352 | Y10: =N10 -> 1122 | Z10: =COUNTIF(L39:L69,Y10) -> 7 | AA10: =Z10/(AB4-Z20) -> 0.2258064516 | AB10: =IF(AA10=0,0,(AA10*((LOG(AA10))/LOG(2)))) -> -0.4847706361 | AD10: =N10 -> 1122 | AE10: =COUNTIF(L70:L101,AD10) -> 6 | AF10: =AE10/(AG4-AE20) -> 0.1875 | AG10: =IF(AF10=0,0,(AF10*((LOG(AF10))/LOG(2)))) -> -0.4528195311 | AI10: =N10 -> 1122 | AJ10: =COUNTIF(L102:L133,AI10) -> 0 | AK10: =AJ10/(AL4-AJ20) -> 0 | AL10: =IF(AK10=0,0,(AK10*((LOG(AK10))/LOG(2)))) -> 0 | AN10: =N10 -> 1122 | AO10: =COUNTIF(L134:L164,AN10) -> 1 | AP10: =AO10/(AQ4-AO20) -> 0.03225806452 | AQ10: =IF(AP10=0,0,(AP10*((LOG(AP10))/LOG(2)))) -> -0.1598127842 | AS10: =N10 -> 1122 | AT10: =COUNTIF(L165:L196,AS10) -> 1 | AU10: =AT10/(AV4-AT20) -> 0.03125 | AV10: =IF(AU10=0,0,(AU10*((LOG(AU10))/LOG(2)))) -> -0.15625
A11: 12 | B11: 537 | C11: 14 | D11: 545 | E11: 13 | F11: 552 | G11: 14 | H11: 563 | K11: 0 | L11: 1111 | N11: 1211 | O11: =COUNTIF($L$7:$L$500,N11) -> 0 | P11: =O11/$Q$4 -> 0 | Q11: =IF(P11=0,0,(P11*((LOG(P11))/LOG(2)))) -> 0 | T11: =N11 -> 1211 | U11: =COUNTIF(L7:L38,T11) -> 0 | V11: =U11/(W4-U20) -> 0 | W11: =IF(V11=0,0,(V11*((LOG(V11))/LOG(2)))) -> 0 | Y11: =N11 -> 1211 | Z11: =COUNTIF(L39:L69,Y11) -> 0 | AA11: =Z11/(AB4-Z20) -> 0 | AB11: =IF(AA11=0,0,(AA11*((LOG(AA11))/LOG(2)))) -> 0 | AD11: =N11 -> 1211 | AE11: =COUNTIF(L70:L101,AD11) -> 0 | AF11: =AE11/(AG4-AE20) -> 0 | AG11: =IF(AF11=0,0,(AF11*((LOG(AF11))/LOG(2)))) -> 0 | AI11: =N11 -> 1211 | AJ11: =COUNTIF(L102:L133,AI11) -> 0 | AK11: =AJ11/(AL4-AJ20) -> 0 | AL11: =IF(AK11=0,0,(AK11*((LOG(AK11))/LOG(2)))) -> 0 | AN11: =N11 -> 1211 | AO11: =COUNTIF(L134:L164,AN11) -> 0 | AP11: =AO11/(AQ4-AO20) -> 0 | AQ11: =IF(AP11=0,0,(AP11*((LOG(AP11))/LOG(2)))) -> 0 | AS11: =N11 -> 1211 | AT11: =COUNTIF(L165:L196,AS11) -> 0 | AU11: =AT11/(AV4-AT20) -> 0 | AV11: =IF(AU11=0,0,(AU11*((LOG(AU11))/LOG(2)))) -> 0
A12: 12 | B12: 656 | C12: 14 | D12: 664 | E12: 24 | F12: 674 | G12: 23 | H12: 681 | K12: 0 | L12: 1122 | N12: 1212 | O12: =COUNTIF($L$7:$L$500,N12) -> 0 | P12: =O12/$Q$4 -> 0 | Q12: =IF(P12=0,0,(P12*((LOG(P12))/LOG(2)))) -> 0 | T12: =N12 -> 1212 | U12: =COUNTIF(L7:L38,T12) -> 0 | V12: =U12/(W4-U20) -> 0 | W12: =IF(V12=0,0,(V12*((LOG(V12))/LOG(2)))) -> 0 | Y12: =N12 -> 1212 | Z12: =COUNTIF(L39:L69,Y12) -> 0 | AA12: =Z12/(AB4-Z20) -> 0 | AB12: =IF(AA12=0,0,(AA12*((LOG(AA12))/LOG(2)))) -> 0 | AD12: =N12 -> 1212 | AE12: =COUNTIF(L70:L101,AD12) -> 0 | AF12: =AE12/(AG4-AE20) -> 0 | AG12: =IF(AF12=0,0,(AF12*((LOG(AF12))/LOG(2)))) -> 0 | AI12: =N12 -> 1212 | AJ12: =COUNTIF(L102:L133,AI12) -> 0 | AK12: =AJ12/(AL4-AJ20) -> 0 | AL12: =IF(AK12=0,0,(AK12*((LOG(AK12))/LOG(2)))) -> 0 | AN12: =N12 -> 1212 | AO12: =COUNTIF(L134:L164,AN12) -> 0 | AP12: =AO12/(AQ4-AO20) -> 0 | AQ12: =IF(AP12=0,0,(AP12*((LOG(AP12))/LOG(2)))) -> 0 | AS12: =N12 -> 1212 | AT12: =COUNTIF(L165:L196,AS12) -> 0 | AU12: =AT12/(AV4-AT20) -> 0 | AV12: =IF(AU12=0,0,(AU12*((LOG(AU12))/LOG(2)))) -> 0
A13: 12 | B13: 781 | C13: 14 | D13: 787 | E13: 13 | F13: 793 | G13: 14 | H13: 801 | K13: 0 | L13: 1111 | N13: 1221 | O13: =COUNTIF($L$7:$L$500,N13) -> 0 | P13: =O13/$Q$4 -> 0 | Q13: =IF(P13=0,0,(P13*((LOG(P13))/LOG(2)))) -> 0 | T13: =N13 -> 1221 | U13: =COUNTIF(L7:L38,T13) -> 0 | V13: =U13/(W4-U20) -> 0 | W13: =IF(V13=0,0,(V13*((LOG(V13))/LOG(2)))) -> 0 | Y13: =N13 -> 1221 | Z13: =COUNTIF(L39:L69,Y13) -> 0 | AA13: =Z13/(AB4-Z20) -> 0 | AB13: =IF(AA13=0,0,(AA13*((LOG(AA13))/LOG(2)))) -> 0 | AD13: =N13 -> 1221 | AE13: =COUNTIF(L70:L101,AD13) -> 0 | AF13: =AE13/(AG4-AE20) -> 0 | AG13: =IF(AF13=0,0,(AF13*((LOG(AF13))/LOG(2)))) -> 0 | AI13: =N13 -> 1221 | AJ13: =COUNTIF(L102:L133,AI13) -> 0 | AK13: =AJ13/(AL4-AJ20) -> 0 | AL13: =IF(AK13=0,0,(AK13*((LOG(AK13))/LOG(2)))) -> 0 | AN13: =N13 -> 1221 | AO13: =COUNTIF(L134:L164,AN13) -> 0 | AP13: =AO13/(AQ4-AO20) -> 0 | AQ13: =IF(AP13=0,0,(AP13*((LOG(AP13))/LOG(2)))) -> 0 | AS13: =N13 -> 1221 | AT13: =COUNTIF(L165:L196,AS13) -> 0 | AU13: =AT13/(AV4-AT20) -> 0 | AV13: =IF(AU13=0,0,(AU13*((LOG(AU13))/LOG(2)))) -> 0
A14: 12 | B14: 903 | C14: 14 | D14: 913 | E14: 13 | F14: 921 | G14: 23 | H14: 931 | K14: 0 | L14: 1112 | N14: 1222 | O14: =COUNTIF($L$7:$L$500,N14) -> 1 | P14: =O14/$Q$4 -> 0.005263157895 | Q14: =IF(P14=0,0,(P14*((LOG(P14))/LOG(2)))) -> -0.03984134531 | T14: =N14 -> 1222 | U14: =COUNTIF(L7:L38,T14) -> 1 | V14: =U14/(W4-U20) -> 0.03125 | W14: =IF(V14=0,0,(V14*((LOG(V14))/LOG(2)))) -> -0.15625 | Y14: =N14 -> 1222 | Z14: =COUNTIF(L39:L69,Y14) -> 0 | AA14: =Z14/(AB4-Z20) -> 0 | AB14: =IF(AA14=0,0,(AA14*((LOG(AA14))/LOG(2)))) -> 0 | AD14: =N14 -> 1222 | AE14: =COUNTIF(L70:L101,AD14) -> 0 | AF14: =AE14/(AG4-AE20) -> 0 | AG14: =IF(AF14=0,0,(AF14*((LOG(AF14))/LOG(2)))) -> 0 | AI14: =N14 -> 1222 | AJ14: =COUNTIF(L102:L133,AI14) -> 0 | AK14: =AJ14/(AL4-AJ20) -> 0 | AL14: =IF(AK14=0,0,(AK14*((LOG(AK14))/LOG(2)))) -> 0 | AN14: =N14 -> 1222 | AO14: =COUNTIF(L134:L164,AN14) -> 0 | AP14: =AO14/(AQ4-AO20) -> 0 | AQ14: =IF(AP14=0,0,(AP14*((LOG(AP14))/LOG(2)))) -> 0 | AS14: =N14 -> 1222 | AT14: =COUNTIF(L165:L196,AS14) -> 0 | AU14: =AT14/(AV4-AT20) -> 0 | AV14: =IF(AU14=0,0,(AU14*((LOG(AU14))/LOG(2)))) -> 0
A15: 12 | B15: 1035 | C15: 14 | D15: 1041 | E15: 13 | F15: 1048 | G15: 23 | H15: 1058 | K15: 0 | L15: 1112 | N15: 2111 | O15: =COUNTIF($L$7:$L$500,N15) -> 0 | P15: =O15/$Q$4 -> 0 | Q15: =IF(P15=0,0,(P15*((LOG(P15))/LOG(2)))) -> 0 | T15: =N15 -> 2111 | U15: =COUNTIF(L7:L38,T15) -> 0 | V15: =U15/(W4-U20) -> 0 | W15: =IF(V15=0,0,(V15*((LOG(V15))/LOG(2)))) -> 0 | Y15: =N15 -> 2111 | Z15: =COUNTIF(L39:L69,Y15) -> 0 | AA15: =Z15/(AB4-Z20) -> 0 | AB15: =IF(AA15=0,0,(AA15*((LOG(AA15))/LOG(2)))) -> 0 | AD15: =N15 -> 2111 | AE15: =COUNTIF(L70:L101,AD15) -> 0 | AF15: =AE15/(AG4-AE20) -> 0 | AG15: =IF(AF15=0,0,(AF15*((LOG(AF15))/LOG(2)))) -> 0 | AI15: =N15 -> 2111 | AJ15: =COUNTIF(L102:L133,AI15) -> 0 | AK15: =AJ15/(AL4-AJ20) -> 0 | AL15: =IF(AK15=0,0,(AK15*((LOG(AK15))/LOG(2)))) -> 0 | AN15: =N15 -> 2111 | AO15: =COUNTIF(L134:L164,AN15) -> 0 | AP15: =AO15/(AQ4-AO20) -> 0 | AQ15: =IF(AP15=0,0,(AP15*((LOG(AP15))/LOG(2)))) -> 0 | AS15: =N15 -> 2111 | AT15: =COUNTIF(L165:L196,AS15) -> 0 | AU15: =AT15/(AV4-AT20) -> 0 | AV15: =IF(AU15=0,0,(AU15*((LOG(AU15))/LOG(2)))) -> 0
A16: 12 | B16: 1155 | C16: 14 | D16: 1161 | E16: 13 | F16: 1174 | G16: 23 | H16: 1188 | K16: 0 | L16: 1112 | N16: 2112 | O16: =COUNTIF($L$7:$L$500,N16) -> 0 | P16: =O16/$Q$4 -> 0 | Q16: =IF(P16=0,0,(P16*((LOG(P16))/LOG(2)))) -> 0 | T16: =N16 -> 2112 | U16: =COUNTIF(L7:L38,T16) -> 0 | V16: =U16/(W4-U20) -> 0 | W16: =IF(V16=0,0,(V16*((LOG(V16))/LOG(2)))) -> 0 | Y16: =N16 -> 2112 | Z16: =COUNTIF(L39:L69,Y16) -> 0 | AA16: =Z16/(AB4-Z20) -> 0 | AB16: =IF(AA16=0,0,(AA16*((LOG(AA16))/LOG(2)))) -> 0 | AD16: =N16 -> 2112 | AE16: =COUNTIF(L70:L101,AD16) -> 0 | AF16: =AE16/(AG4-AE20) -> 0 | AG16: =IF(AF16=0,0,(AF16*((LOG(AF16))/LOG(2)))) -> 0 | AI16: =N16 -> 2112 | AJ16: =COUNTIF(L102:L133,AI16) -> 0 | AK16: =AJ16/(AL4-AJ20) -> 0 | AL16: =IF(AK16=0,0,(AK16*((LOG(AK16))/LOG(2)))) -> 0 | AN16: =N16 -> 2112 | AO16: =COUNTIF(L134:L164,AN16) -> 0 | AP16: =AO16/(AQ4-AO20) -> 0 | AQ16: =IF(AP16=0,0,(AP16*((LOG(AP16))/LOG(2)))) -> 0 | AS16: =N16 -> 2112 | AT16: =COUNTIF(L165:L196,AS16) -> 0 | AU16: =AT16/(AV4-AT20) -> 0 | AV16: =IF(AU16=0,0,(AU16*((LOG(AU16))/LOG(2)))) -> 0
A17: 12 | B17: 1290 | C17: 14 | D17: 1298 | E17: 24 | F17: 1311 | G17: 23 | H17: 1315 | K17: 0 | L17: 1122 | N17: 2121 | O17: =COUNTIF($L$7:$L$500,N17) -> 0 | P17: =O17/$Q$4 -> 0 | Q17: =IF(P17=0,0,(P17*((LOG(P17))/LOG(2)))) -> 0 | T17: =N17 -> 2121 | U17: =COUNTIF(L7:L38,T17) -> 0 | V17: =U17/(W4-U20) -> 0 | W17: =IF(V17=0,0,(V17*((LOG(V17))/LOG(2)))) -> 0 | Y17: =N17 -> 2121 | Z17: =COUNTIF(L39:L69,Y17) -> 0 | AA17: =Z17/(AB4-Z20) -> 0 | AB17: =IF(AA17=0,0,(AA17*((LOG(AA17))/LOG(2)))) -> 0 | AD17: =N17 -> 2121 | AE17: =COUNTIF(L70:L101,AD17) -> 0 | AF17: =AE17/(AG4-AE20) -> 0 | AG17: =IF(AF17=0,0,(AF17*((LOG(AF17))/LOG(2)))) -> 0 | AI17: =N17 -> 2121 | AJ17: =COUNTIF(L102:L133,AI17) -> 0 | AK17: =AJ17/(AL4-AJ20) -> 0 | AL17: =IF(AK17=0,0,(AK17*((LOG(AK17))/LOG(2)))) -> 0 | AN17: =N17 -> 2121 | AO17: =COUNTIF(L134:L164,AN17) -> 0 | AP17: =AO17/(AQ4-AO20) -> 0 | AQ17: =IF(AP17=0,0,(AP17*((LOG(AP17))/LOG(2)))) -> 0 | AS17: =N17 -> 2121 | AT17: =COUNTIF(L165:L196,AS17) -> 0 | AU17: =AT17/(AV4-AT20) -> 0 | AV17: =IF(AU17=0,0,(AU17*((LOG(AU17))/LOG(2)))) -> 0
A18: 12 | B18: 1452 | C18: 14 | D18: 1464 | E18: 13 | F18: 1473 | G18: 23 | H18: 1483 | K18: 0 | L18: 1112 | N18: 2122 | O18: =COUNTIF($L$7:$L$500,N18) -> 0 | P18: =O18/$Q$4 -> 0 | Q18: =IF(P18=0,0,(P18*((LOG(P18))/LOG(2)))) -> 0 | T18: =N18 -> 2122 | U18: =COUNTIF(L7:L38,T18) -> 0 | V18: =U18/(W4-U20) -> 0 | W18: =IF(V18=0,0,(V18*((LOG(V18))/LOG(2)))) -> 0 | Y18: =N18 -> 2122 | Z18: =COUNTIF(L39:L69,Y18) -> 0 | AA18: =Z18/(AB4-Z20) -> 0 | AB18: =IF(AA18=0,0,(AA18*((LOG(AA18))/LOG(2)))) -> 0 | AD18: =N18 -> 2122 | AE18: =COUNTIF(L70:L101,AD18) -> 0 | AF18: =AE18/(AG4-AE20) -> 0 | AG18: =IF(AF18=0,0,(AF18*((LOG(AF18))/LOG(2)))) -> 0 | AI18: =N18 -> 2122 | AJ18: =COUNTIF(L102:L133,AI18) -> 0 | AK18: =AJ18/(AL4-AJ20) -> 0 | AL18: =IF(AK18=0,0,(AK18*((LOG(AK18))/LOG(2)))) -> 0 | AN18: =N18 -> 2122 | AO18: =COUNTIF(L134:L164,AN18) -> 0 | AP18: =AO18/(AQ4-AO20) -> 0 | AQ18: =IF(AP18=0,0,(AP18*((LOG(AP18))/LOG(2)))) -> 0 | AS18: =N18 -> 2122 | AT18: =COUNTIF(L165:L196,AS18) -> 0 | AU18: =AT18/(AV4-AT20) -> 0 | AV18: =IF(AU18=0,0,(AU18*((LOG(AU18))/LOG(2)))) -> 0
A19: 12 | B19: 1604 | C19: 14 | D19: 1610 | E19: 13 | F19: 1617 | G19: 23 | H19: 1631 | K19: 0 | L19: 1112 | N19: 2211 | O19: =COUNTIF($L$7:$L$500,N19) -> 0 | P19: =O19/$Q$4 -> 0 | Q19: =IF(P19=0,0,(P19*((LOG(P19))/LOG(2)))) -> 0 | T19: =N19 -> 2211 | U19: =COUNTIF(L7:L38,T19) -> 0 | V19: =U19/(W4-U20) -> 0 | W19: =IF(V19=0,0,(V19*((LOG(V19))/LOG(2)))) -> 0 | Y19: =N19 -> 2211 | Z19: =COUNTIF(L39:L69,Y19) -> 0 | AA19: =Z19/(AB4-Z20) -> 0 | AB19: =IF(AA19=0,0,(AA19*((LOG(AA19))/LOG(2)))) -> 0 | AD19: =N19 -> 2211 | AE19: =COUNTIF(L70:L101,AD19) -> 0 | AF19: =AE19/(AG4-AE20) -> 0 | AG19: =IF(AF19=0,0,(AF19*((LOG(AF19))/LOG(2)))) -> 0 | AI19: =N19 -> 2211 | AJ19: =COUNTIF(L102:L133,AI19) -> 0 | AK19: =AJ19/(AL4-AJ20) -> 0 | AL19: =IF(AK19=0,0,(AK19*((LOG(AK19))/LOG(2)))) -> 0 | AN19: =N19 -> 2211 | AO19: =COUNTIF(L134:L164,AN19) -> 0 | AP19: =AO19/(AQ4-AO20) -> 0 | AQ19: =IF(AP19=0,0,(AP19*((LOG(AP19))/LOG(2)))) -> 0 | AS19: =N19 -> 2211 | AT19: =COUNTIF(L165:L196,AS19) -> 0 | AU19: =AT19/(AV4-AT20) -> 0 | AV19: =IF(AU19=0,0,(AU19*((LOG(AU19))/LOG(2)))) -> 0
A20: 12 | B20: 1731 | C20: 14 | D20: 1739 | E20: 24 | F20: 1749 | G20: 23 | H20: 1754 | K20: 0 | L20: 1122 | N20: 2212 | O20: =COUNTIF($L$7:$L$500,N20) -> 0 | P20: =O20/$Q$4 -> 0 | Q20: =IF(P20=0,0,(P20*((LOG(P20))/LOG(2)))) -> 0 | T20: =N20 -> 2212 | U20: =COUNTIF(L7:L38,T20) -> 0 | Y20: =N20 -> 2212 | Z20: =COUNTIF(L39:L69,Y20) -> 0 | AD20: =N20 -> 2212 | AE20: =COUNTIF(L70:L101,AD20) -> 0 | AI20: =N20 -> 2212 | AJ20: =COUNTIF(L102:L133,AI20) -> 0 | AN20: =N20 -> 2212 | AO20: =COUNTIF(L134:L164,AN20) -> 0 | AS20: =N20 -> 2212 | AT20: =COUNTIF(L165:L196,AS20) -> 0
A21: 12 | B21: 1847 | C21: 14 | D21: 1855 | E21: 24 | F21: 1869 | G21: 23 | H21: 1876 | K21: 0 | L21: 1122 | N21: 2221 | O21: =COUNTIF($L$7:$L$500,N21) -> 0 | P21: =O21/$Q$4 -> 0 | Q21: =IF(P21=0,0,(P21*((LOG(P21))/LOG(2)))) -> 0 | T21: =N21 -> 2221 | U21: =COUNTIF(L7:L38,T21) -> 0 | V21: =U21/(W4-U20) -> 0 | W21: =IF(V21=0,0,(V21*((LOG(V21))/LOG(2)))) -> 0 | Y21: =N21 -> 2221 | Z21: =COUNTIF(L39:L69,Y21) -> 0 | AA21: =Z21/(AB4-Z20) -> 0 | AB21: =IF(AA21=0,0,(AA21*((LOG(AA21))/LOG(2)))) -> 0 | AD21: =N21 -> 2221 | AE21: =COUNTIF(L70:L101,AD21) -> 0 | AF21: =AE21/(AG4-AE20) -> 0 | AG21: =IF(AF21=0,0,(AF21*((LOG(AF21))/LOG(2)))) -> 0 | AI21: =N21 -> 2221 | AJ21: =COUNTIF(L102:L133,AI21) -> 0 | AK21: =AJ21/(AL4-AJ20) -> 0 | AL21: =IF(AK21=0,0,(AK21*((LOG(AK21))/LOG(2)))) -> 0 | AN21: =N21 -> 2221 | AO21: =COUNTIF(L134:L164,AN21) -> 0 | AP21: =AO21/(AQ4-AO20) -> 0 | AQ21: =IF(AP21=0,0,(AP21*((LOG(AP21))/LOG(2)))) -> 0 | AS21: =N21 -> 2221 | AT21: =COUNTIF(L165:L196,AS21) -> 0 | AU21: =AT21/(AV4-AT20) -> 0 | AV21: =IF(AU21=0,0,(AU21*((LOG(AU21))/LOG(2)))) -> 0
A22: 12 | B22: 2037 | C22: 14 | D22: 2042 | E22: 13 | F22: 2051 | G22: 23 | H22: 2063 | K22: 0 | L22: 1112 | N22: 2222 | O22: =COUNTIF($L$7:$L$500,N22) -> 0 | P22: =O22/$Q$4 -> 0 | Q22: =IF(P22=0,0,(P22*((LOG(P22))/LOG(2)))) -> 0 | T22: =N22 -> 2222 | U22: =COUNTIF(L7:L38,T22) -> 0 | V22: =U22/(W4-U20) -> 0 | W22: =IF(V22=0,0,(V22*((LOG(V22))/LOG(2)))) -> 0 | Y22: =N22 -> 2222 | Z22: =COUNTIF(L39:L69,Y22) -> 0 | AA22: =Z22/(AB4-Z20) -> 0 | AB22: =IF(AA22=0,0,(AA22*((LOG(AA22))/LOG(2)))) -> 0 | AD22: =N22 -> 2222 | AE22: =COUNTIF(L70:L101,AD22) -> 0 | AF22: =AE22/(AG4-AE20) -> 0 | AG22: =IF(AF22=0,0,(AF22*((LOG(AF22))/LOG(2)))) -> 0 | AI22: =N22 -> 2222 | AJ22: =COUNTIF(L102:L133,AI22) -> 0 | AK22: =AJ22/(AL4-AJ20) -> 0 | AL22: =IF(AK22=0,0,(AK22*((LOG(AK22))/LOG(2)))) -> 0 | AN22: =N22 -> 2222 | AO22: =COUNTIF(L134:L164,AN22) -> 0 | AP22: =AO22/(AQ4-AO20) -> 0 | AQ22: =IF(AP22=0,0,(AP22*((LOG(AP22))/LOG(2)))) -> 0 | AS22: =N22 -> 2222 | AT22: =COUNTIF(L165:L196,AS22) -> 0 | AU22: =AT22/(AV4-AT20) -> 0 | AV22: =IF(AU22=0,0,(AU22*((LOG(AU22))/LOG(2)))) -> 0
A23: 12 | B23: 2155 | C23: 14 | D23: 2162 | E23: 24 | F23: 2173 | G23: 23 | H23: 2178 | K23: 0 | L23: 1122 | P23: =SUM(P7:P22) -> 1 | Q23: =-SUM(Q7:Q22) -> 1.459504484 | V23: =SUM(V7:V22) -> 1 | W23: =-SUM(W7:W22) -> 1.500882885 | AA23: =SUM(AA7:AA22) -> 1 | AB23: =-SUM(AB7:AB22) -> 1.458644465 | AF23: =SUM(AF7:AF22) -> 1 | AG23: =-SUM(AG7:AG22) -> 1.45231349 | AK23: =SUM(AK7:AK22) -> 1 | AL23: =-SUM(AL7:AL22) -> 0.9544340029 | AP23: =SUM(AP7:AP22) -> 1 | AQ23: =-SUM(AQ7:AQ22) -> 1.058454669 | AU23: =SUM(AU7:AU22) -> 1 | AV23: =-SUM(AV7:AV22) -> 1.162817587
A24: 12 | B24: 2278 | C24: 14 | D24: 2287 | E24: 13 | F24: 2295 | G24: 23 | H24: 2311 | K24: 0 | L24: 1112 | P24: U= | Q24: =Q23/(LOG(Q4)/LOG(2)) -> 0.1928047983 | V24: U1= | W24: =W23/(LOG(W4)/LOG(2)) -> 0.300176577 | AA24: U2= | AB24: =AB23/(LOG(AB4)/LOG(2)) -> 0.2944260529 | AF24: U3= | AG24: =AG23/(LOG(AG4)/LOG(2)) -> 0.290462698 | AK24: U4= | AL24: =AL23/(LOG(AL4)/LOG(2)) -> 0.1908868006 | AP24: U5= | AQ24: =AQ23/(LOG(AQ4)/LOG(2)) -> 0.2136481081 | AU24: U6= | AV24: =AV23/(LOG(AV4)/LOG(2)) -> 0.2325635174
A25: 12 | B25: 2408 | C25: 14 | D25: 2414 | E25: 13 | F25: 2421 | G25: 23 | H25: 2430 | K25: 0 | L25: 1112
A26: 12 | B26: 2527 | C26: 14 | D26: 2534 | E26: 13 | F26: 2545 | G26: 23 | H26: 2556 | K26: 0 | L26: 1112
A27: 12 | B27: 2653 | C27: 14 | D27: 2658 | E27: 13 | F27: 2665 | G27: 14 | H27: 2673 | K27: 0 | L27: 1111 | N27: Total Target Seq
A28: 12 | B28: 2771 | C28: 14 | D28: 2778 | E28: 13 | F28: 2787 | G28: 23 | H28: 2797 | K28: 0 | L28: 1112 | N28: =COUNTIF(L7:L196,G3) -> 0 | P28: 32 | Q28: 31 | R28: 32 | S28: 32 | T28: 31 | U28: 32
A29: 12 | B29: 2889 | C29: 14 | D29: 2897 | E29: 13 | F29: 2905 | G29: 14 | H29: 2914 | K29: 0 | L29: 1111 | P29: % of reinforcement given in 6 equal intervals based on number of trials
A30: 12 | B30: 3022 | C30: 14 | D30: 3031 | E30: 13 | F30: 3039 | G30: 23 | H30: 3051 | K30: 0 | L30: 1112 | P30: %_1 | Q30: %_2 | R30: %_3 | S30: %_4 | T30: %_5 | U30: %_6
A31: 12 | B31: 3143 | C31: 14 | D31: 3152 | E31: 13 | F31: 3161 | G31: 23 | H31: 3174 | K31: 0 | L31: 1112 | O31: target sequence | P31: =$G$3 -> 2212 | Q31: =$G$3 -> 2212 | R31: =$G$3 -> 2212 | S31: =$G$3 -> 2212 | T31: =$G$3 -> 2212 | U31: =$G$3 -> 2212
A32: 12 | B32: 3320 | C32: 23 | D32: 3330 | E32: 24 | F32: 3337 | G32: 23 | H32: 3342 | K32: 0 | L32: 1222 | O32: total reinforcement | P32: =U20 -> 0 | Q32: =Z20 -> 0 | R32: =AE20 -> 0 | S32: =AJ20 -> 0 | T32: =AO20 -> 0 | U32: =AT20 -> 0
A33: 12 | B33: 3440 | C33: 14 | D33: 3446 | E33: 13 | F33: 3453 | G33: 14 | H33: 3462 | K33: 0 | L33: 1111 | O33: % target
A34: 12 | B34: 3604 | C34: 14 | D34: 3613 | E34: 13 | F34: 3621 | G34: 23 | H34: 3630 | K34: 0 | L34: 1112 | O34: CCRF
A35: 12 | B35: 3722 | C35: 14 | D35: 3727 | E35: 13 | F35: 3735 | G35: 23 | H35: 3745 | K35: 0 | L35: 1112 | O35: % CCRf
A36: 12 | B36: 3839 | C36: 14 | D36: 3846 | E36: 13 | F36: 3854 | G36: 23 | H36: 3864 | K36: 0 | L36: 1112 | O36: average response rate | P36: =H38/P28 -> 128.34375 | Q36: =(H69-H38)/Q28 -> 123.7741935 | R36: =(H101-H69)/R28 -> 128.625 | S36: =(H133-H101)/S28 -> 123.53125 | T36: =(H164-H133)/T28 -> 121.8387097 | U36: =(H196-H164)/U28 -> 129.78125
A37: 12 | B37: 3964 | C37: 14 | D37: 3973 | E37: 13 | F37: 3980 | G37: 23 | H37: 3995 | K37: 0 | L37: 1112
A38: 12 | B38: 4091 | C38: 14 | D38: 4096 | E38: 13 | F38: 4100 | G38: 14 | H38: 4107 | K38: 0 | L38: 1111
A39: 12 | B39: 4208 | C39: 14 | D39: 4217 | E39: 13 | F39: 4226 | G39: 23 | H39: 4236 | K39: 0 | L39: 1112
A40: 12 | B40: 4344 | C40: 14 | D40: 4351 | E40: 24 | F40: 4360 | G40: 23 | H40: 4365 | K40: 0 | L40: 1122
A41: 12 | B41: 4463 | C41: 14 | D41: 4471 | E41: 13 | F41: 4479 | G41: 23 | H41: 4492 | K41: 0 | L41: 1112
A42: 12 | B42: 4586 | C42: 14 | D42: 4592 | E42: 24 | F42: 4604 | G42: 23 | H42: 4611 | K42: 0 | L42: 1122
A43: 12 | B43: 4707 | C43: 14 | D43: 4713 | E43: 24 | F43: 4727 | G43: 14 | H43: 4735 | K43: 0 | L43: 1121
A44: 12 | B44: 4832 | C44: 14 | D44: 4837 | E44: 13 | F44: 4845 | G44: 23 | H44: 4855 | K44: 0 | L44: 1112
A45: 12 | B45: 4948 | C45: 14 | D45: 4956 | E45: 24 | F45: 4965 | G45: 23 | H45: 4972 | K45: 0 | L45: 1122
A46: 12 | B46: 5070 | C46: 14 | D46: 5084 | E46: 24 | F46: 5098 | G46: 23 | H46: 5103 | K46: 0 | L46: 1122
A47: 12 | B47: 5203 | C47: 14 | D47: 5209 | E47: 13 | F47: 5216 | G47: 23 | H47: 5229 | K47: 0 | L47: 1112
A48: 12 | B48: 5329 | C48: 14 | D48: 5334 | E48: 13 | F48: 5336 | G48: 14 | H48: 5343 | K48: 0 | L48: 1111
A49: 12 | B49: 5440 | C49: 14 | D49: 5445 | E49: 13 | F49: 5453 | G49: 23 | H49: 5467 | K49: 0 | L49: 1112
A50: 12 | B50: 5564 | C50: 14 | D50: 5571 | E50: 13 | F50: 5578 | G50: 23 | H50: 5590 | K50: 0 | L50: 1112
A51: 12 | B51: 5690 | C51: 14 | D51: 5695 | E51: 13 | F51: 5699 | G51: 14 | H51: 5707 | K51: 0 | L51: 1111
A52: 12 | B52: 5804 | C52: 14 | D52: 5811 | E52: 24 | F52: 5825 | G52: 23 | H52: 5832 | K52: 0 | L52: 1122
A53: 12 | B53: 5930 | C53: 14 | D53: 5939 | E53: 13 | F53: 5947 | G53: 14 | H53: 5955 | K53: 0 | L53: 1111
A54: 12 | B54: 6053 | C54: 14 | D54: 6058 | E54: 13 | F54: 6065 | G54: 14 | H54: 6073 | K54: 0 | L54: 1111
A55: 12 | B55: 6174 | C55: 14 | D55: 6179 | E55: 13 | F55: 6186 | G55: 23 | H55: 6196 | K55: 0 | L55: 1112
A56: 12 | B56: 6313 | C56: 14 | D56: 6318 | E56: 13 | F56: 6325 | G56: 23 | H56: 6338 | K56: 0 | L56: 1112
A57: 12 | B57: 6435 | C57: 14 | D57: 6439 | E57: 13 | F57: 6446 | G57: 23 | H57: 6454 | K57: 0 | L57: 1112
A58: 12 | B58: 6551 | C58: 14 | D58: 6555 | E58: 13 | F58: 6560 | G58: 23 | H58: 6570 | K58: 0 | L58: 1112
A59: 12 | B59: 6669 | C59: 14 | D59: 6678 | E59: 24 | F59: 6690 | G59: 23 | H59: 6696 | K59: 0 | L59: 1122
A60: 12 | B60: 6788 | C60: 14 | D60: 6793 | E60: 13 | F60: 6800 | G60: 23 | H60: 6812 | K60: 0 | L60: 1112
A61: 12 | B61: 6909 | C61: 14 | D61: 6913 | E61: 13 | F61: 6921 | G61: 23 | H61: 6930 | K61: 0 | L61: 1112
A62: 12 | B62: 7028 | C62: 14 | D62: 7033 | E62: 13 | F62: 7040 | G62: 23 | H62: 7049 | K62: 0 | L62: 1112
A63: 12 | B63: 7147 | C63: 14 | D63: 7153 | E63: 13 | F63: 7160 | G63: 23 | H63: 7173 | K63: 0 | L63: 1112
A64: 12 | B64: 7282 | C64: 14 | D64: 7288 | E64: 13 | F64: 7302 | G64: 23 | H64: 7315 | K64: 0 | L64: 1112
A65: 12 | B65: 7412 | C65: 14 | D65: 7418 | E65: 13 | F65: 7425 | G65: 23 | H65: 7435 | K65: 0 | L65: 1112
A66: 12 | B66: 7532 | C66: 14 | D66: 7536 | E66: 13 | F66: 7546 | G66: 23 | H66: 7569 | K66: 0 | L66: 1112
A67: 12 | B67: 7668 | C67: 14 | D67: 7675 | E67: 24 | F67: 7687 | G67: 23 | H67: 7693 | K67: 0 | L67: 1122
A68: 12 | B68: 7791 | C68: 14 | D68: 7796 | E68: 13 | F68: 7805 | G68: 23 | H68: 7817 | K68: 0 | L68: 1112
A69: 12 | B69: 7914 | C69: 14 | D69: 7923 | E69: 13 | F69: 7932 | G69: 23 | H69: 7944 | K69: 0 | L69: 1112
A70: 12 | B70: 8045 | C70: 14 | D70: 8051 | E70: 24 | F70: 8063 | G70: 23 | H70: 8070 | K70: 0 | L70: 1122
A71: 12 | B71: 8165 | C71: 14 | D71: 8173 | E71: 13 | F71: 8190 | G71: 14 | H71: 8197 | K71: 0 | L71: 1111
A72: 12 | B72: 8295 | C72: 14 | D72: 8299 | E72: 13 | F72: 8304 | G72: 23 | H72: 8322 | K72: 0 | L72: 1112
A73: 12 | B73: 8420 | C73: 14 | D73: 8424 | E73: 13 | F73: 8431 | G73: 14 | H73: 8439 | K73: 0 | L73: 1111
A74: 12 | B74: 8538 | C74: 14 | D74: 8543 | E74: 13 | F74: 8550 | G74: 23 | H74: 8564 | K74: 0 | L74: 1112
A75: 12 | B75: 8665 | C75: 14 | D75: 8670 | E75: 13 | F75: 8675 | G75: 14 | H75: 8683 | K75: 0 | L75: 1111
A76: 12 | B76: 8779 | C76: 14 | D76: 8786 | E76: 24 | F76: 8796 | G76: 23 | H76: 8805 | K76: 0 | L76: 1122
A77: 12 | B77: 8918 | C77: 14 | D77: 8925 | E77: 13 | F77: 8932 | G77: 14 | H77: 8939 | K77: 0 | L77: 1111
A78: 12 | B78: 9039 | C78: 14 | D78: 9044 | E78: 13 | F78: 9053 | G78: 14 | H78: 9065 | K78: 0 | L78: 1111
A79: 12 | B79: 9164 | C79: 14 | D79: 9171 | E79: 13 | F79: 9185 | G79: 23 | H79: 9200 | K79: 0 | L79: 1112
A80: 12 | B80: 9301 | C80: 14 | D80: 9306 | E80: 13 | F80: 9314 | G80: 23 | H80: 9326 | K80: 0 | L80: 1112
A81: 12 | B81: 9427 | C81: 14 | D81: 9433 | E81: 13 | F81: 9450 | G81: 14 | H81: 9458 | K81: 0 | L81: 1111
A82: 12 | B82: 9557 | C82: 14 | D82: 9562 | E82: 13 | F82: 9578 | G82: 23 | H82: 9590 | K82: 0 | L82: 1112
A83: 12 | B83: 9697 | C83: 14 | D83: 9704 | E83: 13 | F83: 9711 | G83: 23 | H83: 9722 | K83: 0 | L83: 1112
A84: 12 | B84: 9819 | C84: 14 | D84: 9824 | E84: 13 | F84: 9832 | G84: 23 | H84: 9845 | K84: 0 | L84: 1112
A85: 12 | B85: 9944 | C85: 14 | D85: 9950 | E85: 13 | F85: 9955 | G85: 14 | H85: 9967 | K85: 0 | L85: 1111
A86: 12 | B86: 10104 | C86: 14 | D86: 10109 | E86: 13 | F86: 10117 | G86: 23 | H86: 10130 | K86: 0 | L86: 1112
A87: 12 | B87: 10220 | C87: 14 | D87: 10224 | E87: 13 | F87: 10228 | G87: 14 | H87: 10235 | K87: 0 | L87: 1111
A88: 12 | B88: 10334 | C88: 14 | D88: 10341 | E88: 24 | F88: 10352 | G88: 23 | H88: 10362 | K88: 0 | L88: 1122
A89: 12 | B89: 10462 | C89: 14 | D89: 10469 | E89: 24 | F89: 10481 | G89: 23 | H89: 10486 | K89: 0 | L89: 1122
A90: 12 | B90: 10591 | C90: 14 | D90: 10598 | E90: 13 | F90: 10607 | G90: 23 | H90: 10617 | K90: 0 | L90: 1112
A91: 12 | B91: 10713 | C91: 14 | D91: 10719 | E91: 13 | F91: 10725 | G91: 14 | H91: 10733 | K91: 0 | L91: 1111
A92: 12 | B92: 10832 | C92: 14 | D92: 10837 | E92: 13 | F92: 10844 | G92: 23 | H92: 10855 | K92: 0 | L92: 1112
A93: 12 | B93: 10957 | C93: 14 | D93: 10962 | E93: 13 | F93: 10969 | G93: 23 | H93: 10980 | K93: 0 | L93: 1112
A94: 12 | B94: 11077 | C94: 14 | D94: 11086 | E94: 24 | F94: 11096 | G94: 23 | H94: 11101 | K94: 0 | L94: 1122
A95: 12 | B95: 11199 | C95: 14 | D95: 11206 | E95: 13 | F95: 11213 | G95: 23 | H95: 11227 | K95: 0 | L95: 1112
A96: 12 | B96: 11331 | C96: 14 | D96: 11339 | E96: 13 | F96: 11346 | G96: 23 | H96: 11357 | K96: 0 | L96: 1112
A97: 12 | B97: 11462 | C97: 14 | D97: 11467 | E97: 13 | F97: 11489 | G97: 23 | H97: 11502 | K97: 0 | L97: 1112
A98: 12 | B98: 11612 | C98: 14 | D98: 11620 | E98: 13 | F98: 11627 | G98: 23 | H98: 11639 | K98: 0 | L98: 1112
A99: 12 | B99: 11738 | C99: 14 | D99: 11744 | E99: 13 | F99: 11751 | G99: 23 | H99: 11762 | K99: 0 | L99: 1112
A100: 12 | B100: 11910 | C100: 14 | D100: 11918 | E100: 13 | F100: 11925 | G100: 23 | H100: 11936 | K100: 0 | L100: 1112
A101: 12 | B101: 12034 | C101: 14 | D101: 12041 | E101: 24 | F101: 12052 | G101: 23 | H101: 12060 | K101: 0 | L101: 1122
A102: 12 | B102: 12189 | C102: 14 | D102: 12195 | E102: 13 | F102: 12203 | G102: 23 | H102: 12215 | K102: 0 | L102: 1112
A103: 12 | B103: 12313 | C103: 14 | D103: 12317 | E103: 13 | F103: 12322 | G103: 14 | H103: 12329 | K103: 0 | L103: 1111
A104: 12 | B104: 12427 | C104: 14 | D104: 12434 | E104: 13 | F104: 12443 | G104: 23 | H104: 12453 | K104: 0 | L104: 1112
A105: 12 | B105: 12551 | C105: 14 | D105: 12555 | E105: 13 | F105: 12563 | G105: 14 | H105: 12570 | K105: 0 | L105: 1111
A106: 12 | B106: 12662 | C106: 14 | D106: 12667 | E106: 13 | F106: 12672 | G106: 14 | H106: 12680 | K106: 0 | L106: 1111
A107: 12 | B107: 12776 | C107: 14 | D107: 12781 | E107: 13 | F107: 12787 | G107: 14 | H107: 12795 | K107: 0 | L107: 1111
A108: 12 | B108: 12894 | C108: 14 | D108: 12902 | E108: 13 | F108: 12909 | G108: 23 | H108: 12921 | K108: 0 | L108: 1112
A109: 12 | B109: 13025 | C109: 14 | D109: 13033 | E109: 13 | F109: 13040 | G109: 14 | H109: 13048 | K109: 0 | L109: 1111
A110: 12 | B110: 13163 | C110: 14 | D110: 13171 | E110: 13 | F110: 13179 | G110: 14 | H110: 13186 | K110: 0 | L110: 1111
A111: 12 | B111: 13308 | C111: 14 | D111: 13313 | E111: 13 | F111: 13321 | G111: 14 | H111: 13328 | K111: 0 | L111: 1111
A112: 12 | B112: 13426 | C112: 14 | D112: 13431 | E112: 13 | F112: 13438 | G112: 14 | H112: 13445 | K112: 0 | L112: 1111
A113: 12 | B113: 13542 | C113: 14 | D113: 13547 | E113: 13 | F113: 13553 | G113: 23 | H113: 13566 | K113: 0 | L113: 1112
A114: 12 | B114: 13662 | C114: 14 | D114: 13667 | E114: 13 | F114: 13672 | G114: 14 | H114: 13679 | K114: 0 | L114: 1111
A115: 12 | B115: 13773 | C115: 14 | D115: 13778 | E115: 13 | F115: 13785 | G115: 23 | H115: 13797 | K115: 0 | L115: 1112
A116: 12 | B116: 13895 | C116: 14 | D116: 13899 | E116: 13 | F116: 13905 | G116: 14 | H116: 13912 | K116: 0 | L116: 1111
A117: 12 | B117: 14017 | C117: 14 | D117: 14023 | E117: 13 | F117: 14031 | G117: 23 | H117: 14040 | K117: 0 | L117: 1112
A118: 12 | B118: 14140 | C118: 14 | D118: 14144 | E118: 13 | F118: 14151 | G118: 23 | H118: 14163 | K118: 0 | L118: 1112
A119: 12 | B119: 14259 | C119: 14 | D119: 14264 | E119: 13 | F119: 14269 | G119: 14 | H119: 14277 | K119: 0 | L119: 1111
A120: 12 | B120: 14390 | C120: 14 | D120: 14395 | E120: 13 | F120: 14402 | G120: 23 | H120: 14414 | K120: 0 | L120: 1112
A121: 12 | B121: 14513 | C121: 14 | D121: 14518 | E121: 13 | F121: 14525 | G121: 14 | H121: 14532 | K121: 0 | L121: 1111
A122: 12 | B122: 14630 | C122: 14 | D122: 14639 | E122: 13 | F122: 14660 | G122: 23 | H122: 14672 | K122: 0 | L122: 1112
A123: 12 | B123: 14771 | C123: 14 | D123: 14775 | E123: 13 | F123: 14782 | G123: 23 | H123: 14794 | K123: 0 | L123: 1112
A124: 12 | B124: 14906 | C124: 14 | D124: 14911 | E124: 13 | F124: 14919 | G124: 14 | H124: 14927 | K124: 0 | L124: 1111
A125: 12 | B125: 15027 | C125: 14 | D125: 15034 | E125: 13 | F125: 15041 | G125: 14 | H125: 15049 | K125: 0 | L125: 1111
A126: 12 | B126: 15146 | C126: 14 | D126: 15152 | E126: 13 | F126: 15159 | G126: 14 | H126: 15166 | K126: 0 | L126: 1111
A127: 12 | B127: 15264 | C127: 14 | D127: 15268 | E127: 13 | F127: 15275 | G127: 23 | H127: 15287 | K127: 0 | L127: 1112
A128: 12 | B128: 15391 | C128: 14 | D128: 15395 | E128: 13 | F128: 15401 | G128: 14 | H128: 15408 | K128: 0 | L128: 1111
A129: 12 | B129: 15511 | C129: 14 | D129: 15515 | E129: 13 | F129: 15520 | G129: 14 | H129: 15528 | K129: 0 | L129: 1111
A130: 12 | B130: 15629 | C130: 14 | D130: 15634 | E130: 13 | F130: 15639 | G130: 14 | H130: 15647 | K130: 0 | L130: 1111
A131: 12 | B131: 15745 | C131: 14 | D131: 15753 | E131: 13 | F131: 15759 | G131: 14 | H131: 15766 | K131: 0 | L131: 1111
A132: 12 | B132: 15865 | C132: 14 | D132: 15870 | E132: 13 | F132: 15878 | G132: 14 | H132: 15885 | K132: 0 | L132: 1111
A133: 12 | B133: 15985 | C133: 14 | D133: 15993 | E133: 13 | F133: 16001 | G133: 23 | H133: 16013 | K133: 0 | L133: 1112
A134: 12 | B134: 16111 | C134: 14 | D134: 16121 | E134: 13 | F134: 16129 | G134: 23 | H134: 16141 | K134: 0 | L134: 1112
A135: 12 | B135: 16238 | C135: 14 | D135: 16244 | E135: 13 | F135: 16251 | G135: 23 | H135: 16263 | K135: 0 | L135: 1112
A136: 12 | B136: 16360 | C136: 14 | D136: 16365 | E136: 13 | F136: 16372 | G136: 14 | H136: 16382 | K136: 0 | L136: 1111
A137: 12 | B137: 16478 | C137: 14 | D137: 16486 | E137: 13 | F137: 16495 | G137: 23 | H137: 16507 | K137: 0 | L137: 1112
A138: 12 | B138: 16603 | C138: 14 | D138: 16608 | E138: 13 | F138: 16613 | G138: 14 | H138: 16620 | K138: 0 | L138: 1111
A139: 12 | B139: 16718 | C139: 14 | D139: 16723 | E139: 13 | F139: 16727 | G139: 14 | H139: 16734 | K139: 0 | L139: 1111
A140: 12 | B140: 16828 | C140: 14 | D140: 16833 | E140: 13 | F140: 16841 | G140: 14 | H140: 16849 | K140: 0 | L140: 1111
A141: 12 | B141: 16948 | C141: 14 | D141: 16952 | E141: 13 | F141: 16959 | G141: 14 | H141: 16967 | K141: 0 | L141: 1111
A142: 12 | B142: 17068 | C142: 14 | D142: 17072 | E142: 13 | F142: 17077 | G142: 14 | H142: 17084 | K142: 0 | L142: 1111
A143: 12 | B143: 17187 | C143: 14 | D143: 17194 | E143: 13 | F143: 17201 | G143: 23 | H143: 17213 | K143: 0 | L143: 1112
A144: 12 | B144: 17304 | C144: 14 | D144: 17309 | E144: 13 | F144: 17316 | G144: 14 | H144: 17324 | K144: 0 | L144: 1111
A145: 12 | B145: 17421 | C145: 14 | D145: 17425 | E145: 13 | F145: 17430 | G145: 14 | H145: 17437 | K145: 0 | L145: 1111
A146: 12 | B146: 17534 | C146: 14 | D146: 17545 | E146: 13 | F146: 17554 | G146: 23 | H146: 17567 | K146: 0 | L146: 1112
A147: 12 | B147: 17681 | C147: 14 | D147: 17685 | E147: 13 | F147: 17691 | G147: 14 | H147: 17700 | K147: 0 | L147: 1111
A148: 12 | B148: 17796 | C148: 14 | D148: 17800 | E148: 13 | F148: 17807 | G148: 23 | H148: 17829 | K148: 0 | L148: 1112
A149: 12 | B149: 17925 | C149: 14 | D149: 17930 | E149: 13 | F149: 17937 | G149: 14 | H149: 17944 | K149: 0 | L149: 1111
A150: 12 | B150: 18042 | C150: 14 | D150: 18047 | E150: 13 | F150: 18054 | G150: 14 | H150: 18060 | K150: 0 | L150: 1111
A151: 12 | B151: 18160 | C151: 14 | D151: 18164 | E151: 13 | F151: 18175 | G151: 14 | H151: 18183 | K151: 0 | L151: 1111
A152: 12 | B152: 18286 | C152: 14 | D152: 18291 | E152: 13 | F152: 18295 | G152: 14 | H152: 18303 | K152: 0 | L152: 1111
A153: 12 | B153: 18398 | C153: 14 | D153: 18403 | E153: 13 | F153: 18408 | G153: 14 | H153: 18418 | K153: 0 | L153: 1111
A154: 12 | B154: 18521 | C154: 14 | D154: 18526 | E154: 13 | F154: 18531 | G154: 14 | H154: 18539 | K154: 0 | L154: 1111
A155: 12 | B155: 18644 | C155: 14 | D155: 18648 | E155: 13 | F155: 18653 | G155: 14 | H155: 18661 | K155: 0 | L155: 1111
A156: 12 | B156: 18763 | C156: 14 | D156: 18768 | E156: 13 | F156: 18775 | G156: 14 | H156: 18785 | K156: 0 | L156: 1111
A157: 12 | B157: 18886 | C157: 14 | D157: 18891 | E157: 13 | F157: 18898 | G157: 14 | H157: 18906 | K157: 0 | L157: 1111
A158: 12 | B158: 19005 | C158: 14 | D158: 19016 | E158: 24 | F158: 19042 | G158: 23 | H158: 19049 | K158: 0 | L158: 1122
A159: 12 | B159: 19148 | C159: 14 | D159: 19154 | E159: 13 | F159: 19161 | G159: 23 | H159: 19173 | K159: 0 | L159: 1112
A160: 12 | B160: 19269 | C160: 14 | D160: 19276 | E160: 13 | F160: 19283 | G160: 14 | H160: 19291 | K160: 0 | L160: 1111
A161: 12 | B161: 19401 | C161: 14 | D161: 19408 | E161: 13 | F161: 19415 | G161: 14 | H161: 19420 | K161: 0 | L161: 1111
A162: 12 | B162: 19517 | C162: 14 | D162: 19522 | E162: 13 | F162: 19529 | G162: 14 | H162: 19537 | K162: 0 | L162: 1111
A163: 12 | B163: 19636 | C163: 14 | D163: 19642 | E163: 13 | F163: 19649 | G163: 23 | H163: 19660 | K163: 0 | L163: 1112
A164: 12 | B164: 19755 | C164: 14 | D164: 19770 | E164: 13 | F164: 19777 | G164: 23 | H164: 19790 | K164: 0 | L164: 1112
A165: 12 | B165: 19887 | C165: 14 | D165: 19895 | E165: 13 | F165: 19902 | G165: 23 | H165: 19918 | K165: 0 | L165: 1112
A166: 12 | B166: 20018 | C166: 14 | D166: 20023 | E166: 13 | F166: 20031 | G166: 14 | H166: 20038 | K166: 0 | L166: 1111
A167: 12 | B167: 20135 | C167: 14 | D167: 20141 | E167: 13 | F167: 20148 | G167: 23 | H167: 20161 | K167: 0 | L167: 1112
A168: 12 | B168: 20259 | C168: 14 | D168: 20266 | E168: 13 | F168: 20273 | G168: 14 | H168: 20280 | K168: 0 | L168: 1111
A169: 12 | B169: 20377 | C169: 14 | D169: 20382 | E169: 13 | F169: 20389 | G169: 23 | H169: 20402 | K169: 0 | L169: 1112
A170: 12 | B170: 20511 | C170: 14 | D170: 20516 | E170: 13 | F170: 20521 | G170: 14 | H170: 20530 | K170: 0 | L170: 1111
A171: 12 | B171: 20627 | C171: 14 | D171: 20634 | E171: 13 | F171: 20643 | G171: 23 | H171: 20657 | K171: 0 | L171: 1112
A172: 12 | B172: 20758 | C172: 14 | D172: 20765 | E172: 13 | F172: 20773 | G172: 14 | H172: 20782 | K172: 0 | L172: 1111
A173: 12 | B173: 20878 | C173: 14 | D173: 20889 | E173: 13 | F173: 20895 | G173: 14 | H173: 20903 | K173: 0 | L173: 1111
A174: 12 | B174: 21007 | C174: 14 | D174: 21011 | E174: 13 | F174: 21016 | G174: 23 | H174: 21036 | K174: 0 | L174: 1112
A175: 12 | B175: 21185 | C175: 14 | D175: 21194 | E175: 24 | F175: 21206 | G175: 23 | H175: 21211 | K175: 0 | L175: 1122
A176: 12 | B176: 21310 | C176: 14 | D176: 21316 | E176: 13 | F176: 21321 | G176: 14 | H176: 21330 | K176: 0 | L176: 1111
A177: 12 | B177: 21428 | C177: 14 | D177: 21436 | E177: 13 | F177: 21444 | G177: 23 | H177: 21455 | K177: 0 | L177: 1112
A178: 12 | B178: 21548 | C178: 14 | D178: 21556 | E178: 13 | F178: 21565 | G178: 23 | H178: 21579 | K178: 0 | L178: 1112
A179: 12 | B179: 21695 | C179: 14 | D179: 21701 | E179: 13 | F179: 21709 | G179: 14 | H179: 21720 | K179: 0 | L179: 1111
A180: 12 | B180: 21826 | C180: 14 | D180: 21830 | E180: 13 | F180: 21835 | G180: 14 | H180: 21839 | K180: 0 | L180: 1111
A181: 12 | B181: 21941 | C181: 14 | D181: 21946 | E181: 13 | F181: 21953 | G181: 23 | H181: 21971 | K181: 0 | L181: 1112
A182: 12 | B182: 22080 | C182: 14 | D182: 22084 | E182: 13 | F182: 22089 | G182: 14 | H182: 22097 | K182: 0 | L182: 1111
A183: 12 | B183: 22195 | C183: 14 | D183: 22202 | E183: 13 | F183: 22210 | G183: 23 | H183: 22223 | K183: 0 | L183: 1112
A184: 12 | B184: 22347 | C184: 14 | D184: 22351 | E184: 13 | F184: 22356 | G184: 14 | H184: 22365 | K184: 0 | L184: 1111
A185: 12 | B185: 22477 | C185: 14 | D185: 22482 | E185: 13 | F185: 22486 | G185: 14 | H185: 22491 | K185: 0 | L185: 1111
A186: 12 | B186: 22592 | C186: 14 | D186: 22596 | E186: 13 | F186: 22601 | G186: 23 | H186: 22620 | K186: 0 | L186: 1112
A187: 12 | B187: 22730 | C187: 14 | D187: 22737 | E187: 13 | F187: 22745 | G187: 14 | H187: 22757 | K187: 0 | L187: 1111
A188: 12 | B188: 22876 | C188: 14 | D188: 22881 | E188: 13 | F188: 22885 | G188: 14 | H188: 22898 | K188: 0 | L188: 1111
A189: 12 | B189: 23004 | C189: 14 | D189: 23009 | E189: 13 | F189: 23013 | G189: 14 | H189: 23021 | K189: 0 | L189: 1111
A190: 12 | B190: 23118 | C190: 14 | D190: 23123 | E190: 13 | F190: 23132 | G190: 23 | H190: 23145 | K190: 0 | L190: 1112
A191: 12 | B191: 23247 | C191: 14 | D191: 23252 | E191: 13 | F191: 23258 | G191: 14 | H191: 23266 | K191: 0 | L191: 1111
A192: 12 | B192: 23363 | C192: 14 | D192: 23373 | E192: 13 | F192: 23380 | G192: 23 | H192: 23400 | K192: 0 | L192: 1112
A193: 12 | B193: 23502 | C193: 14 | D193: 23509 | E193: 13 | F193: 23529 | G193: 23 | H193: 23550 | K193: 0 | L193: 1112
A194: 12 | B194: 23653 | C194: 14 | D194: 23658 | E194: 13 | F194: 23666 | G194: 14 | H194: 23673 | K194: 0 | L194: 1111
A195: 12 | B195: 23777 | C195: 14 | D195: 23785 | E195: 13 | F195: 23792 | G195: 23 | H195: 23810 | K195: 0 | L195: 1112
A196: 12 | B196: 23919 | C196: 14 | D196: 23923 | E196: 13 | F196: 23933 | G196: 14 | H196: 23943 | L196: 1111

Sheet !2011-08-01_09h48m.Subject 53
A1: Report for:!2011-08-01_09h48m.Subject 53
A2: Date | B2: 2011-08-01 | F2: Group | G2: Phase 3 Any
A3: Hen | B3: 53 | F3: Correct Sequence | G3: =Start!J2 -> 2212 | P3: Total Sequences in Data | Q3: =4994-COUNTBLANK(L7:L5000) -> 182 | V3: Total Sequences in Block Data | W3: =COUNTA(L7:L36) -> 30 | AA3: Total Sequences in Block Data | AB3: =COUNTA(L37:L67) -> 31 | AF3: Total Sequences in Block Data | AG3: =COUNTA(L68:L97) -> 30 | AK3: Total Sequences in Block Data | AL3: =COUNTA(L98:L127) -> 30 | AP3: Total Sequences in Block Data | AQ3: =COUNTA(L128:L158) -> 31 | AU3: Total Sequences in Block Data | AV3: =COUNTA(L159:L188) -> 30
A4: Program | B4: One | P4: Total Sequences in Summary | Q4: =SUM(O7:O22) -> 182 | V4: Total Sequences in Block Summary | W4: =SUM(U7:U22) -> 30 | AA4: Total Sequences in Block Summary | AB4: =SUM(Z7:Z22) -> 31 | AF4: Total Sequences in Block Summary | AG4: =SUM(AE7:AE22) -> 30 | AK4: Total Sequences in Block Summary | AL4: =SUM(AJ7:AJ22) -> 30 | AP4: Total Sequences in Block Summary | AQ4: =SUM(AO7:AO22) -> 31 | AU4: Total Sequences in Block Summary | AV4: =SUM(AT7:AT22) -> 30
T5: Block 1 | Y5: Block 2 | AD5: Block 3 | AI5: Block 4 | AN5: Block 5 | AS5: Block 6
A6: Sequence Component 1 | B6: Time 1 | C6: Sequence Component 2 | D6: Time 2 | E6: Sequence Component 3 | F6: Time 3 | G6: Sequence Component 4 | H6: Time 4 | I6: Sequence Component 5 | J6: Time 5 | K6: Correct? 0=No 1=Yes | L6: Sequence | N6: Frequency | P6: Relative Frequency | Q6: Variability | T6: Frequency | V6: Relative Frequency | W6: Variability | Y6: Frequency | AA6: Relative Frequency | AB6: Variability | AD6: Frequency | AF6: Relative Frequency | AG6: Variability | AI6: Frequency | AK6: Relative Frequency | AL6: Variability | AN6: Frequency | AP6: Relative Frequency | AQ6: Variability | AS6: Frequency | AU6: Relative Frequency | AV6: Variability
A7: 12 | B7: 9 | C7: 14 | D7: 18 | E7: 13 | F7: 28 | G7: 14 | H7: 35 | K7: 0 | L7: 1111 | N7: 1111 | O7: =COUNTIF($L$7:$L$500,N7) -> 104 | P7: =O7/$Q$4 -> 0.5714285714 | Q7: =IF(P7=0,0,(P7*((LOG(P7))/LOG(2)))) -> -0.4613456697 | T7: =N7 -> 1111 | U7: =COUNTIF(L7:L36,T7) -> 17 | V7: =U7/(W4-U20) -> 0.5666666667 | W7: =IF(V7=0,0,(V7*((LOG(V7))/LOG(2)))) -> -0.4643423941 | Y7: =N7 -> 1111 | Z7: =COUNTIF(L37:L67,Y7) -> 22 | AA7: =Z7/(AB4-Z20) -> 0.7096774194 | AB7: =IF(AA7=0,0,(AA7*((LOG(AA7))/LOG(2)))) -> -0.3511233296 | AD7: =N7 -> 1111 | AE7: =COUNTIF(L68:L97,AD7) -> 25 | AF7: =AE7/(AG4-AE20) -> 0.8333333333 | AG7: =IF(AF7=0,0,(AF7*((LOG(AF7))/LOG(2)))) -> -0.2191953382 | AI7: =N7 -> 1111 | AJ7: =COUNTIF(L98:L127,AI7) -> 23 | AK7: =AJ7/(AL4-AJ20) -> 0.7666666667 | AL7: =IF(AK7=0,0,(AK7*((LOG(AK7))/LOG(2)))) -> -0.2938852903 | AN7: =N7 -> 1111 | AO7: =COUNTIF(L128:L158,AN7) -> 11 | AP7: =AO7/(AQ4-AO20) -> 0.3793103448 | AQ7: =IF(AP7=0,0,(AP7*((LOG(AP7))/LOG(2)))) -> -0.5304842463 | AS7: =N7 -> 1111 | AT7: =COUNTIF(L159:L188,AS7) -> 6 | AU7: =AT7/(AV4-AT20) -> 0.2 | AV7: =IF(AU7=0,0,(AU7*((LOG(AU7))/LOG(2)))) -> -0.464385619
A8: 12 | B8: 137 | C8: 14 | D8: 145 | E8: 13 | F8: 149 | G8: 14 | H8: 161 | K8: 0 | L8: 1111 | N8: 1112 | O8: =COUNTIF($L$7:$L$500,N8) -> 34 | P8: =O8/$Q$4 -> 0.1868131868 | Q8: =IF(P8=0,0,(P8*((LOG(P8))/LOG(2)))) -> -0.4521498965 | T8: =N8 -> 1112 | U8: =COUNTIF(L7:L36,T8) -> 10 | V8: =U8/(W4-U20) -> 0.3333333333 | W8: =IF(V8=0,0,(V8*((LOG(V8))/LOG(2)))) -> -0.5283208336 | Y8: =N8 -> 1112 | Z8: =COUNTIF(L37:L67,Y8) -> 6 | AA8: =Z8/(AB4-Z20) -> 0.1935483871 | AB8: =IF(AA8=0,0,(AA8*((LOG(AA8))/LOG(2)))) -> -0.4585613825 | AD8: =N8 -> 1112 | AE8: =COUNTIF(L68:L97,AD8) -> 4 | AF8: =AE8/(AG4-AE20) -> 0.1333333333 | AG8: =IF(AF8=0,0,(AF8*((LOG(AF8))/LOG(2)))) -> -0.3875854127 | AI8: =N8 -> 1112 | AJ8: =COUNTIF(L98:L127,AI8) -> 6 | AK8: =AJ8/(AL4-AJ20) -> 0.2 | AL8: =IF(AK8=0,0,(AK8*((LOG(AK8))/LOG(2)))) -> -0.464385619 | AN8: =N8 -> 1112 | AO8: =COUNTIF(L128:L158,AN8) -> 6 | AP8: =AO8/(AQ4-AO20) -> 0.2068965517 | AQ8: =IF(AP8=0,0,(AP8*((LOG(AP8))/LOG(2)))) -> -0.4702796885 | AS8: =N8 -> 1112 | AT8: =COUNTIF(L159:L188,AS8) -> 2 | AU8: =AT8/(AV4-AT20) -> 0.06666666667 | AV8: =IF(AU8=0,0,(AU8*((LOG(AU8))/LOG(2)))) -> -0.260459373
A9: 12 | B9: 260 | C9: 14 | D9: 280 | E9: 13 | F9: 289 | G9: 14 | H9: 299 | K9: 0 | L9: 1111 | N9: 1121 | O9: =COUNTIF($L$7:$L$500,N9) -> 1 | P9: =O9/$Q$4 -> 0.005494505495 | Q9: =IF(P9=0,0,(P9*((LOG(P9))/LOG(2)))) -> -0.0412516189 | T9: =N9 -> 1121 | U9: =COUNTIF(L7:L36,T9) -> 1 | V9: =U9/(W4-U20) -> 0.03333333333 | W9: =IF(V9=0,0,(V9*((LOG(V9))/LOG(2)))) -> -0.1635630199 | Y9: =N9 -> 1121 | Z9: =COUNTIF(L37:L67,Y9) -> 0 | AA9: =Z9/(AB4-Z20) -> 0 | AB9: =IF(AA9=0,0,(AA9*((LOG(AA9))/LOG(2)))) -> 0 | AD9: =N9 -> 1121 | AE9: =COUNTIF(L68:L97,AD9) -> 0 | AF9: =AE9/(AG4-AE20) -> 0 | AG9: =IF(AF9=0,0,(AF9*((LOG(AF9))/LOG(2)))) -> 0 | AI9: =N9 -> 1121 | AJ9: =COUNTIF(L98:L127,AI9) -> 0 | AK9: =AJ9/(AL4-AJ20) -> 0 | AL9: =IF(AK9=0,0,(AK9*((LOG(AK9))/LOG(2)))) -> 0 | AN9: =N9 -> 1121 | AO9: =COUNTIF(L128:L158,AN9) -> 0 | AP9: =AO9/(AQ4-AO20) -> 0 | AQ9: =IF(AP9=0,0,(AP9*((LOG(AP9))/LOG(2)))) -> 0 | AS9: =N9 -> 1121 | AT9: =COUNTIF(L159:L188,AS9) -> 0 | AU9: =AT9/(AV4-AT20) -> 0 | AV9: =IF(AU9=0,0,(AU9*((LOG(AU9))/LOG(2)))) -> 0
A10: 12 | B10: 393 | C10: 14 | D10: 403 | E10: 24 | F10: 416 | G10: 14 | H10: 428 | K10: 0 | L10: 1121 | N10: 1122 | O10: =COUNTIF($L$7:$L$500,N10) -> 9 | P10: =O10/$Q$4 -> 0.04945054945 | Q10: =IF(P10=0,0,(P10*((LOG(P10))/LOG(2)))) -> -0.2145100371 | T10: =N10 -> 1122 | U10: =COUNTIF(L7:L36,T10) -> 1 | V10: =U10/(W4-U20) -> 0.03333333333 | W10: =IF(V10=0,0,(V10*((LOG(V10))/LOG(2)))) -> -0.1635630199 | Y10: =N10 -> 1122 | Z10: =COUNTIF(L37:L67,Y10) -> 3 | AA10: =Z10/(AB4-Z20) -> 0.09677419355 | AB10: =IF(AA10=0,0,(AA10*((LOG(AA10))/LOG(2)))) -> -0.3260548848 | AD10: =N10 -> 1122 | AE10: =COUNTIF(L68:L97,AD10) -> 1 | AF10: =AE10/(AG4-AE20) -> 0.03333333333 | AG10: =IF(AF10=0,0,(AF10*((LOG(AF10))/LOG(2)))) -> -0.1635630199 | AI10: =N10 -> 1122 | AJ10: =COUNTIF(L98:L127,AI10) -> 1 | AK10: =AJ10/(AL4-AJ20) -> 0.03333333333 | AL10: =IF(AK10=0,0,(AK10*((LOG(AK10))/LOG(2)))) -> -0.1635630199 | AN10: =N10 -> 1122 | AO10: =COUNTIF(L128:L158,AN10) -> 3 | AP10: =AO10/(AQ4-AO20) -> 0.1034482759 | AQ10: =IF(AP10=0,0,(AP10*((LOG(AP10))/LOG(2)))) -> -0.3385881201 | AS10: =N10 -> 1122 | AT10: =COUNTIF(L159:L188,AS10) -> 0 | AU10: =AT10/(AV4-AT20) -> 0 | AV10: =IF(AU10=0,0,(AU10*((LOG(AU10))/LOG(2)))) -> 0
A11: 12 | B11: 534 | C11: 14 | D11: 536 | E11: 13 | F11: 544 | G11: 14 | H11: 553 | K11: 0 | L11: 1111 | N11: 1211 | O11: =COUNTIF($L$7:$L$500,N11) -> 4 | P11: =O11/$Q$4 -> 0.02197802198 | Q11: =IF(P11=0,0,(P11*((LOG(P11))/LOG(2)))) -> -0.1210504317 | T11: =N11 -> 1211 | U11: =COUNTIF(L7:L36,T11) -> 0 | V11: =U11/(W4-U20) -> 0 | W11: =IF(V11=0,0,(V11*((LOG(V11))/LOG(2)))) -> 0 | Y11: =N11 -> 1211 | Z11: =COUNTIF(L37:L67,Y11) -> 0 | AA11: =Z11/(AB4-Z20) -> 0 | AB11: =IF(AA11=0,0,(AA11*((LOG(AA11))/LOG(2)))) -> 0 | AD11: =N11 -> 1211 | AE11: =COUNTIF(L68:L97,AD11) -> 0 | AF11: =AE11/(AG4-AE20) -> 0 | AG11: =IF(AF11=0,0,(AF11*((LOG(AF11))/LOG(2)))) -> 0 | AI11: =N11 -> 1211 | AJ11: =COUNTIF(L98:L127,AI11) -> 0 | AK11: =AJ11/(AL4-AJ20) -> 0 | AL11: =IF(AK11=0,0,(AK11*((LOG(AK11))/LOG(2)))) -> 0 | AN11: =N11 -> 1211 | AO11: =COUNTIF(L128:L158,AN11) -> 0 | AP11: =AO11/(AQ4-AO20) -> 0 | AQ11: =IF(AP11=0,0,(AP11*((LOG(AP11))/LOG(2)))) -> 0 | AS11: =N11 -> 1211 | AT11: =COUNTIF(L159:L188,AS11) -> 4 | AU11: =AT11/(AV4-AT20) -> 0.1333333333 | AV11: =IF(AU11=0,0,(AU11*((LOG(AU11))/LOG(2)))) -> -0.3875854127
A12: 12 | B12: 693 | C12: 14 | D12: 701 | E12: 13 | F12: 706 | G12: 14 | H12: 715 | K12: 0 | L12: 1111 | N12: 1212 | O12: =COUNTIF($L$7:$L$500,N12) -> 1 | P12: =O12/$Q$4 -> 0.005494505495 | Q12: =IF(P12=0,0,(P12*((LOG(P12))/LOG(2)))) -> -0.0412516189 | T12: =N12 -> 1212 | U12: =COUNTIF(L7:L36,T12) -> 1 | V12: =U12/(W4-U20) -> 0.03333333333 | W12: =IF(V12=0,0,(V12*((LOG(V12))/LOG(2)))) -> -0.1635630199 | Y12: =N12 -> 1212 | Z12: =COUNTIF(L37:L67,Y12) -> 0 | AA12: =Z12/(AB4-Z20) -> 0 | AB12: =IF(AA12=0,0,(AA12*((LOG(AA12))/LOG(2)))) -> 0 | AD12: =N12 -> 1212 | AE12: =COUNTIF(L68:L97,AD12) -> 0 | AF12: =AE12/(AG4-AE20) -> 0 | AG12: =IF(AF12=0,0,(AF12*((LOG(AF12))/LOG(2)))) -> 0 | AI12: =N12 -> 1212 | AJ12: =COUNTIF(L98:L127,AI12) -> 0 | AK12: =AJ12/(AL4-AJ20) -> 0 | AL12: =IF(AK12=0,0,(AK12*((LOG(AK12))/LOG(2)))) -> 0 | AN12: =N12 -> 1212 | AO12: =COUNTIF(L128:L158,AN12) -> 0 | AP12: =AO12/(AQ4-AO20) -> 0 | AQ12: =IF(AP12=0,0,(AP12*((LOG(AP12))/LOG(2)))) -> 0 | AS12: =N12 -> 1212 | AT12: =COUNTIF(L159:L188,AS12) -> 0 | AU12: =AT12/(AV4-AT20) -> 0 | AV12: =IF(AU12=0,0,(AU12*((LOG(AU12))/LOG(2)))) -> 0
A13: 12 | B13: 813 | C13: 14 | D13: 818 | E13: 13 | F13: 826 | G13: 23 | H13: 840 | K13: 0 | L13: 1112 | N13: 1221 | O13: =COUNTIF($L$7:$L$500,N13) -> 0 | P13: =O13/$Q$4 -> 0 | Q13: =IF(P13=0,0,(P13*((LOG(P13))/LOG(2)))) -> 0 | T13: =N13 -> 1221 | U13: =COUNTIF(L7:L36,T13) -> 0 | V13: =U13/(W4-U20) -> 0 | W13: =IF(V13=0,0,(V13*((LOG(V13))/LOG(2)))) -> 0 | Y13: =N13 -> 1221 | Z13: =COUNTIF(L37:L67,Y13) -> 0 | AA13: =Z13/(AB4-Z20) -> 0 | AB13: =IF(AA13=0,0,(AA13*((LOG(AA13))/LOG(2)))) -> 0 | AD13: =N13 -> 1221 | AE13: =COUNTIF(L68:L97,AD13) -> 0 | AF13: =AE13/(AG4-AE20) -> 0 | AG13: =IF(AF13=0,0,(AF13*((LOG(AF13))/LOG(2)))) -> 0 | AI13: =N13 -> 1221 | AJ13: =COUNTIF(L98:L127,AI13) -> 0 | AK13: =AJ13/(AL4-AJ20) -> 0 | AL13: =IF(AK13=0,0,(AK13*((LOG(AK13))/LOG(2)))) -> 0 | AN13: =N13 -> 1221 | AO13: =COUNTIF(L128:L158,AN13) -> 0 | AP13: =AO13/(AQ4-AO20) -> 0 | AQ13: =IF(AP13=0,0,(AP13*((LOG(AP13))/LOG(2)))) -> 0 | AS13: =N13 -> 1221 | AT13: =COUNTIF(L159:L188,AS13) -> 0 | AU13: =AT13/(AV4-AT20) -> 0 | AV13: =IF(AU13=0,0,(AU13*((LOG(AU13))/LOG(2)))) -> 0
A14: 12 | B14: 941 | C14: 14 | D14: 946 | E14: 13 | F14: 954 | G14: 14 | H14: 961 | K14: 0 | L14: 1111 | N14: 1222 | O14: =COUNTIF($L$7:$L$500,N14) -> 0 | P14: =O14/$Q$4 -> 0 | Q14: =IF(P14=0,0,(P14*((LOG(P14))/LOG(2)))) -> 0 | T14: =N14 -> 1222 | U14: =COUNTIF(L7:L36,T14) -> 0 | V14: =U14/(W4-U20) -> 0 | W14: =IF(V14=0,0,(V14*((LOG(V14))/LOG(2)))) -> 0 | Y14: =N14 -> 1222 | Z14: =COUNTIF(L37:L67,Y14) -> 0 | AA14: =Z14/(AB4-Z20) -> 0 | AB14: =IF(AA14=0,0,(AA14*((LOG(AA14))/LOG(2)))) -> 0 | AD14: =N14 -> 1222 | AE14: =COUNTIF(L68:L97,AD14) -> 0 | AF14: =AE14/(AG4-AE20) -> 0 | AG14: =IF(AF14=0,0,(AF14*((LOG(AF14))/LOG(2)))) -> 0 | AI14: =N14 -> 1222 | AJ14: =COUNTIF(L98:L127,AI14) -> 0 | AK14: =AJ14/(AL4-AJ20) -> 0 | AL14: =IF(AK14=0,0,(AK14*((LOG(AK14))/LOG(2)))) -> 0 | AN14: =N14 -> 1222 | AO14: =COUNTIF(L128:L158,AN14) -> 0 | AP14: =AO14/(AQ4-AO20) -> 0 | AQ14: =IF(AP14=0,0,(AP14*((LOG(AP14))/LOG(2)))) -> 0 | AS14: =N14 -> 1222 | AT14: =COUNTIF(L159:L188,AS14) -> 0 | AU14: =AT14/(AV4-AT20) -> 0 | AV14: =IF(AU14=0,0,(AU14*((LOG(AU14))/LOG(2)))) -> 0
A15: 12 | B15: 1074 | C15: 23 | D15: 1092 | E15: 13 | F15: 1107 | G15: 23 | H15: 1117 | K15: 0 | L15: 1212 | N15: 2111 | O15: =COUNTIF($L$7:$L$500,N15) -> 17 | P15: =O15/$Q$4 -> 0.09340659341 | Q15: =IF(P15=0,0,(P15*((LOG(P15))/LOG(2)))) -> -0.3194815417 | T15: =N15 -> 2111 | U15: =COUNTIF(L7:L36,T15) -> 0 | V15: =U15/(W4-U20) -> 0 | W15: =IF(V15=0,0,(V15*((LOG(V15))/LOG(2)))) -> 0 | Y15: =N15 -> 2111 | Z15: =COUNTIF(L37:L67,Y15) -> 0 | AA15: =Z15/(AB4-Z20) -> 0 | AB15: =IF(AA15=0,0,(AA15*((LOG(AA15))/LOG(2)))) -> 0 | AD15: =N15 -> 2111 | AE15: =COUNTIF(L68:L97,AD15) -> 0 | AF15: =AE15/(AG4-AE20) -> 0 | AG15: =IF(AF15=0,0,(AF15*((LOG(AF15))/LOG(2)))) -> 0 | AI15: =N15 -> 2111 | AJ15: =COUNTIF(L98:L127,AI15) -> 0 | AK15: =AJ15/(AL4-AJ20) -> 0 | AL15: =IF(AK15=0,0,(AK15*((LOG(AK15))/LOG(2)))) -> 0 | AN15: =N15 -> 2111 | AO15: =COUNTIF(L128:L158,AN15) -> 4 | AP15: =AO15/(AQ4-AO20) -> 0.1379310345 | AQ15: =IF(AP15=0,0,(AP15*((LOG(AP15))/LOG(2)))) -> -0.3942042752 | AS15: =N15 -> 2111 | AT15: =COUNTIF(L159:L188,AS15) -> 13 | AU15: =AT15/(AV4-AT20) -> 0.4333333333 | AV15: =IF(AU15=0,0,(AU15*((LOG(AU15))/LOG(2)))) -> -0.5227953802
A16: 12 | B16: 1218 | C16: 14 | D16: 1223 | E16: 13 | F16: 1231 | G16: 14 | H16: 1238 | K16: 0 | L16: 1111 | N16: 2112 | O16: =COUNTIF($L$7:$L$500,N16) -> 7 | P16: =O16/$Q$4 -> 0.03846153846 | Q16: =IF(P16=0,0,(P16*((LOG(P16))/LOG(2)))) -> -0.180786143 | T16: =N16 -> 2112 | U16: =COUNTIF(L7:L36,T16) -> 0 | V16: =U16/(W4-U20) -> 0 | W16: =IF(V16=0,0,(V16*((LOG(V16))/LOG(2)))) -> 0 | Y16: =N16 -> 2112 | Z16: =COUNTIF(L37:L67,Y16) -> 0 | AA16: =Z16/(AB4-Z20) -> 0 | AB16: =IF(AA16=0,0,(AA16*((LOG(AA16))/LOG(2)))) -> 0 | AD16: =N16 -> 2112 | AE16: =COUNTIF(L68:L97,AD16) -> 0 | AF16: =AE16/(AG4-AE20) -> 0 | AG16: =IF(AF16=0,0,(AF16*((LOG(AF16))/LOG(2)))) -> 0 | AI16: =N16 -> 2112 | AJ16: =COUNTIF(L98:L127,AI16) -> 0 | AK16: =AJ16/(AL4-AJ20) -> 0 | AL16: =IF(AK16=0,0,(AK16*((LOG(AK16))/LOG(2)))) -> 0 | AN16: =N16 -> 2112 | AO16: =COUNTIF(L128:L158,AN16) -> 5 | AP16: =AO16/(AQ4-AO20) -> 0.1724137931 | AQ16: =IF(AP16=0,0,(AP16*((LOG(AP16))/LOG(2)))) -> -0.4372505 | AS16: =N16 -> 2112 | AT16: =COUNTIF(L159:L188,AS16) -> 2 | AU16: =AT16/(AV4-AT20) -> 0.06666666667 | AV16: =IF(AU16=0,0,(AU16*((LOG(AU16))/LOG(2)))) -> -0.260459373
A17: 12 | B17: 1335 | C17: 14 | D17: 1340 | E17: 13 | F17: 1347 | G17: 14 | H17: 1359 | K17: 0 | L17: 1111 | N17: 2121 | O17: =COUNTIF($L$7:$L$500,N17) -> 0 | P17: =O17/$Q$4 -> 0 | Q17: =IF(P17=0,0,(P17*((LOG(P17))/LOG(2)))) -> 0 | T17: =N17 -> 2121 | U17: =COUNTIF(L7:L36,T17) -> 0 | V17: =U17/(W4-U20) -> 0 | W17: =IF(V17=0,0,(V17*((LOG(V17))/LOG(2)))) -> 0 | Y17: =N17 -> 2121 | Z17: =COUNTIF(L37:L67,Y17) -> 0 | AA17: =Z17/(AB4-Z20) -> 0 | AB17: =IF(AA17=0,0,(AA17*((LOG(AA17))/LOG(2)))) -> 0 | AD17: =N17 -> 2121 | AE17: =COUNTIF(L68:L97,AD17) -> 0 | AF17: =AE17/(AG4-AE20) -> 0 | AG17: =IF(AF17=0,0,(AF17*((LOG(AF17))/LOG(2)))) -> 0 | AI17: =N17 -> 2121 | AJ17: =COUNTIF(L98:L127,AI17) -> 0 | AK17: =AJ17/(AL4-AJ20) -> 0 | AL17: =IF(AK17=0,0,(AK17*((LOG(AK17))/LOG(2)))) -> 0 | AN17: =N17 -> 2121 | AO17: =COUNTIF(L128:L158,AN17) -> 0 | AP17: =AO17/(AQ4-AO20) -> 0 | AQ17: =IF(AP17=0,0,(AP17*((LOG(AP17))/LOG(2)))) -> 0 | AS17: =N17 -> 2121 | AT17: =COUNTIF(L159:L188,AS17) -> 0 | AU17: =AT17/(AV4-AT20) -> 0 | AV17: =IF(AU17=0,0,(AU17*((LOG(AU17))/LOG(2)))) -> 0
A18: 12 | B18: 1459 | C18: 14 | D18: 1464 | E18: 13 | F18: 1471 | G18: 14 | H18: 1487 | K18: 0 | L18: 1111 | N18: 2122 | O18: =COUNTIF($L$7:$L$500,N18) -> 0 | P18: =O18/$Q$4 -> 0 | Q18: =IF(P18=0,0,(P18*((LOG(P18))/LOG(2)))) -> 0 | T18: =N18 -> 2122 | U18: =COUNTIF(L7:L36,T18) -> 0 | V18: =U18/(W4-U20) -> 0 | W18: =IF(V18=0,0,(V18*((LOG(V18))/LOG(2)))) -> 0 | Y18: =N18 -> 2122 | Z18: =COUNTIF(L37:L67,Y18) -> 0 | AA18: =Z18/(AB4-Z20) -> 0 | AB18: =IF(AA18=0,0,(AA18*((LOG(AA18))/LOG(2)))) -> 0 | AD18: =N18 -> 2122 | AE18: =COUNTIF(L68:L97,AD18) -> 0 | AF18: =AE18/(AG4-AE20) -> 0 | AG18: =IF(AF18=0,0,(AF18*((LOG(AF18))/LOG(2)))) -> 0 | AI18: =N18 -> 2122 | AJ18: =COUNTIF(L98:L127,AI18) -> 0 | AK18: =AJ18/(AL4-AJ20) -> 0 | AL18: =IF(AK18=0,0,(AK18*((LOG(AK18))/LOG(2)))) -> 0 | AN18: =N18 -> 2122 | AO18: =COUNTIF(L128:L158,AN18) -> 0 | AP18: =AO18/(AQ4-AO20) -> 0 | AQ18: =IF(AP18=0,0,(AP18*((LOG(AP18))/LOG(2)))) -> 0 | AS18: =N18 -> 2122 | AT18: =COUNTIF(L159:L188,AS18) -> 0 | AU18: =AT18/(AV4-AT20) -> 0 | AV18: =IF(AU18=0,0,(AU18*((LOG(AU18))/LOG(2)))) -> 0
A19: 12 | B19: 1594 | C19: 14 | D19: 1600 | E19: 13 | F19: 1608 | G19: 23 | H19: 1619 | K19: 0 | L19: 1112 | N19: 2211 | O19: =COUNTIF($L$7:$L$500,N19) -> 1 | P19: =O19/$Q$4 -> 0.005494505495 | Q19: =IF(P19=0,0,(P19*((LOG(P19))/LOG(2)))) -> -0.0412516189 | T19: =N19 -> 2211 | U19: =COUNTIF(L7:L36,T19) -> 0 | V19: =U19/(W4-U20) -> 0 | W19: =IF(V19=0,0,(V19*((LOG(V19))/LOG(2)))) -> 0 | Y19: =N19 -> 2211 | Z19: =COUNTIF(L37:L67,Y19) -> 0 | AA19: =Z19/(AB4-Z20) -> 0 | AB19: =IF(AA19=0,0,(AA19*((LOG(AA19))/LOG(2)))) -> 0 | AD19: =N19 -> 2211 | AE19: =COUNTIF(L68:L97,AD19) -> 0 | AF19: =AE19/(AG4-AE20) -> 0 | AG19: =IF(AF19=0,0,(AF19*((LOG(AF19))/LOG(2)))) -> 0 | AI19: =N19 -> 2211 | AJ19: =COUNTIF(L98:L127,AI19) -> 0 | AK19: =AJ19/(AL4-AJ20) -> 0 | AL19: =IF(AK19=0,0,(AK19*((LOG(AK19))/LOG(2)))) -> 0 | AN19: =N19 -> 2211 | AO19: =COUNTIF(L128:L158,AN19) -> 0 | AP19: =AO19/(AQ4-AO20) -> 0 | AQ19: =IF(AP19=0,0,(AP19*((LOG(AP19))/LOG(2)))) -> 0 | AS19: =N19 -> 2211 | AT19: =COUNTIF(L159:L188,AS19) -> 1 | AU19: =AT19/(AV4-AT20) -> 0.03333333333 | AV19: =IF(AU19=0,0,(AU19*((LOG(AU19))/LOG(2)))) -> -0.1635630199
A20: 12 | B20: 1740 | C20: 14 | D20: 1748 | E20: 13 | F20: 1755 | G20: 14 | H20: 1764 | K20: 0 | L20: 1111 | N20: 2212 | O20: =COUNTIF($L$7:$L$500,N20) -> 2 | P20: =O20/$Q$4 -> 0.01098901099 | Q20: =IF(P20=0,0,(P20*((LOG(P20))/LOG(2)))) -> -0.07151422682 | T20: =N20 -> 2212 | U20: =COUNTIF(L7:L36,T20) -> 0 | Y20: =N20 -> 2212 | Z20: =COUNTIF(L37:L67,Y20) -> 0 | AD20: =N20 -> 2212 | AE20: =COUNTIF(L68:L97,AD20) -> 0 | AI20: =N20 -> 2212 | AJ20: =COUNTIF(L98:L127,AI20) -> 0 | AN20: =N20 -> 2212 | AO20: =COUNTIF(L128:L158,AN20) -> 2 | AS20: =N20 -> 2212 | AT20: =COUNTIF(L159:L188,AS20) -> 0
A21: 12 | B21: 1880 | C21: 14 | D21: 1888 | E21: 13 | F21: 1896 | G21: 23 | H21: 1914 | K21: 0 | L21: 1112 | N21: 2221 | O21: =COUNTIF($L$7:$L$500,N21) -> 1 | P21: =O21/$Q$4 -> 0.005494505495 | Q21: =IF(P21=0,0,(P21*((LOG(P21))/LOG(2)))) -> -0.0412516189 | T21: =N21 -> 2221 | U21: =COUNTIF(L7:L36,T21) -> 0 | V21: =U21/(W4-U20) -> 0 | W21: =IF(V21=0,0,(V21*((LOG(V21))/LOG(2)))) -> 0 | Y21: =N21 -> 2221 | Z21: =COUNTIF(L37:L67,Y21) -> 0 | AA21: =Z21/(AB4-Z20) -> 0 | AB21: =IF(AA21=0,0,(AA21*((LOG(AA21))/LOG(2)))) -> 0 | AD21: =N21 -> 2221 | AE21: =COUNTIF(L68:L97,AD21) -> 0 | AF21: =AE21/(AG4-AE20) -> 0 | AG21: =IF(AF21=0,0,(AF21*((LOG(AF21))/LOG(2)))) -> 0 | AI21: =N21 -> 2221 | AJ21: =COUNTIF(L98:L127,AI21) -> 0 | AK21: =AJ21/(AL4-AJ20) -> 0 | AL21: =IF(AK21=0,0,(AK21*((LOG(AK21))/LOG(2)))) -> 0 | AN21: =N21 -> 2221 | AO21: =COUNTIF(L128:L158,AN21) -> 0 | AP21: =AO21/(AQ4-AO20) -> 0 | AQ21: =IF(AP21=0,0,(AP21*((LOG(AP21))/LOG(2)))) -> 0 | AS21: =N21 -> 2221 | AT21: =COUNTIF(L159:L188,AS21) -> 1 | AU21: =AT21/(AV4-AT20) -> 0.03333333333 | AV21: =IF(AU21=0,0,(AU21*((LOG(AU21))/LOG(2)))) -> -0.1635630199
A22: 12 | B22: 2087 | C22: 14 | D22: 2096 | E22: 13 | F22: 2105 | G22: 14 | H22: 2116 | K22: 0 | L22: 1111 | N22: 2222 | O22: =COUNTIF($L$7:$L$500,N22) -> 1 | P22: =O22/$Q$4 -> 0.005494505495 | Q22: =IF(P22=0,0,(P22*((LOG(P22))/LOG(2)))) -> -0.0412516189 | T22: =N22 -> 2222 | U22: =COUNTIF(L7:L36,T22) -> 0 | V22: =U22/(W4-U20) -> 0 | W22: =IF(V22=0,0,(V22*((LOG(V22))/LOG(2)))) -> 0 | Y22: =N22 -> 2222 | Z22: =COUNTIF(L37:L67,Y22) -> 0 | AA22: =Z22/(AB4-Z20) -> 0 | AB22: =IF(AA22=0,0,(AA22*((LOG(AA22))/LOG(2)))) -> 0 | AD22: =N22 -> 2222 | AE22: =COUNTIF(L68:L97,AD22) -> 0 | AF22: =AE22/(AG4-AE20) -> 0 | AG22: =IF(AF22=0,0,(AF22*((LOG(AF22))/LOG(2)))) -> 0 | AI22: =N22 -> 2222 | AJ22: =COUNTIF(L98:L127,AI22) -> 0 | AK22: =AJ22/(AL4-AJ20) -> 0 | AL22: =IF(AK22=0,0,(AK22*((LOG(AK22))/LOG(2)))) -> 0 | AN22: =N22 -> 2222 | AO22: =COUNTIF(L128:L158,AN22) -> 0 | AP22: =AO22/(AQ4-AO20) -> 0 | AQ22: =IF(AP22=0,0,(AP22*((LOG(AP22))/LOG(2)))) -> 0 | AS22: =N22 -> 2222 | AT22: =COUNTIF(L159:L188,AS22) -> 1 | AU22: =AT22/(AV4-AT20) -> 0.03333333333 | AV22: =IF(AU22=0,0,(AU22*((LOG(AU22))/LOG(2)))) -> -0.1635630199
A23: 12 | B23: 2223 | C23: 14 | D23: 2231 | E23: 13 | F23: 2238 | G23: 14 | H23: 2245 | K23: 0 | L23: 1111 | P23: =SUM(P7:P22) -> 1 | Q23: =-SUM(Q7:Q22) -> 2.027096041 | V23: =SUM(V7:V22) -> 1 | W23: =-SUM(W7:W22) -> 1.483352287 | AA23: =SUM(AA7:AA22) -> 1 | AB23: =-SUM(AB7:AB22) -> 1.135739597 | AF23: =SUM(AF7:AF22) -> 1 | AG23: =-SUM(AG7:AG22) -> 0.7703437708 | AK23: =SUM(AK7:AK22) -> 1 | AL23: =-SUM(AL7:AL22) -> 0.9218339292 | AP23: =SUM(AP7:AP22) -> 1 | AQ23: =-SUM(AQ7:AQ22) -> 2.17080683 | AU23: =SUM(AU7:AU22) -> 1 | AV23: =-SUM(AV7:AV22) -> 2.386374218
A24: 12 | B24: 2380 | C24: 14 | D24: 2385 | E24: 13 | F24: 2392 | G24: 23 | H24: 2406 | K24: 0 | L24: 1112 | P24: U= | Q24: =Q23/(LOG(Q4)/LOG(2)) -> 0.2699988663 | V24: U1= | W24: =W23/(LOG(W4)/LOG(2)) -> 0.3022998492 | AA24: U2= | AB24: =AB23/(LOG(AB4)/LOG(2)) -> 0.2292480002 | AF24: U3= | AG24: =AG23/(LOG(AG4)/LOG(2)) -> 0.156992245 | AK24: U4= | AL24: =AL23/(LOG(AL4)/LOG(2)) -> 0.187865189 | AP24: U5= | AQ24: =AQ23/(LOG(AQ4)/LOG(2)) -> 0.4381753758 | AU24: U6= | AV24: =AV23/(LOG(AV4)/LOG(2)) -> 0.4863312461
A25: 12 | B25: 2503 | C25: 14 | D25: 2508 | E25: 13 | F25: 2516 | G25: 14 | H25: 2532 | K25: 0 | L25: 1111
A26: 12 | B26: 2630 | C26: 14 | D26: 2637 | E26: 13 | F26: 2644 | G26: 23 | H26: 2656 | K26: 0 | L26: 1112
A27: 12 | B27: 2773 | C27: 14 | D27: 2783 | E27: 13 | F27: 2791 | G27: 23 | H27: 2804 | K27: 0 | L27: 1112 | N27: Total Target Seq
A28: 12 | B28: 2902 | C28: 14 | D28: 2906 | E28: 13 | F28: 2911 | G28: 14 | H28: 2919 | K28: 0 | L28: 1111 | N28: =COUNTIF(L7:L188,G3) -> 2 | P28: 30 | Q28: 31 | R28: 30 | S28: 30 | T28: 31 | U28: 30
A29: 12 | B29: 3033 | C29: 14 | D29: 3041 | E29: 13 | F29: 3056 | G29: 23 | H29: 3068 | K29: 0 | L29: 1112 | P29: % of reinforcement given in 6 equal intervals based on number of trials
A30: 12 | B30: 3173 | C30: 14 | D30: 3178 | E30: 13 | F30: 3193 | G30: 23 | H30: 3205 | K30: 0 | L30: 1112 | P30: %_1 | Q30: %_2 | R30: %_3 | S30: %_4 | T30: %_5 | U30: %_6
A31: 12 | B31: 3304 | C31: 14 | D31: 3308 | E31: 13 | F31: 3316 | G31: 14 | H31: 3323 | K31: 0 | L31: 1111 | O31: target sequence | P31: =$G$3 -> 2212 | Q31: =$G$3 -> 2212 | R31: =$G$3 -> 2212 | S31: =$G$3 -> 2212 | T31: =$G$3 -> 2212 | U31: =$G$3 -> 2212
A32: 12 | B32: 3424 | C32: 14 | D32: 3432 | E32: 24 | F32: 3460 | G32: 23 | H32: 3468 | K32: 0 | L32: 1122 | O32: total reinforcement | P32: =U20 -> 0 | Q32: =Z20 -> 0 | R32: =AE20 -> 0 | S32: =AJ20 -> 0 | T32: =AO20 -> 2 | U32: =AT20 -> 0
A33: 12 | B33: 3572 | C33: 14 | D33: 3578 | E33: 13 | F33: 3586 | G33: 23 | H33: 3609 | K33: 0 | L33: 1112 | O33: % target
A34: 12 | B34: 3719 | C34: 14 | D34: 3724 | E34: 13 | F34: 3733 | G34: 14 | H34: 3745 | K34: 0 | L34: 1111 | O34: CCRF
A35: 12 | B35: 3848 | C35: 14 | D35: 3854 | E35: 13 | F35: 3861 | G35: 14 | H35: 3869 | K35: 0 | L35: 1111 | O35: % CCRf
A36: 12 | B36: 3961 | C36: 14 | D36: 3969 | E36: 13 | F36: 3985 | G36: 23 | H36: 3998 | K36: 0 | L36: 1112 | O36: average response rate | P36: =H36/P28 -> 133.2666667 | Q36: =(H67-H36)/Q28 -> 133.483871 | R36: =(H97-H67)/R28 -> 130.0333333 | S36: =(H127-H97)/S28 -> 131.5666667 | T36: =(H158-H127)/T28 -> 131.8064516 | U36: =(H188-H158)/U28 -> 127.9666667
A37: 12 | B37: 4100 | C37: 14 | D37: 4107 | E37: 13 | F37: 4114 | G37: 14 | H37: 4122 | K37: 0 | L37: 1111
A38: 12 | B38: 4222 | C38: 14 | D38: 4227 | E38: 13 | F38: 4234 | G38: 14 | H38: 4241 | K38: 0 | L38: 1111
A39: 12 | B39: 4370 | C39: 14 | D39: 4376 | E39: 13 | F39: 4383 | G39: 14 | H39: 4392 | K39: 0 | L39: 1111
A40: 12 | B40: 4491 | C40: 14 | D40: 4498 | E40: 13 | F40: 4506 | G40: 14 | H40: 4514 | K40: 0 | L40: 1111
A41: 12 | B41: 4632 | C41: 14 | D41: 4636 | E41: 13 | F41: 4644 | G41: 14 | H41: 4652 | K41: 0 | L41: 1111
A42: 12 | B42: 4754 | C42: 14 | D42: 4763 | E42: 13 | F42: 4769 | G42: 14 | H42: 4776 | K42: 0 | L42: 1111
A43: 12 | B43: 4877 | C43: 14 | D43: 4884 | E43: 24 | F43: 4910 | G43: 23 | H43: 4917 | K43: 0 | L43: 1122
A44: 12 | B44: 5028 | C44: 14 | D44: 5032 | E44: 13 | F44: 5037 | G44: 14 | H44: 5045 | K44: 0 | L44: 1111
A45: 12 | B45: 5144 | C45: 14 | D45: 5156 | E45: 13 | F45: 5163 | G45: 23 | H45: 5175 | K45: 0 | L45: 1112
A46: 12 | B46: 5285 | C46: 14 | D46: 5293 | E46: 13 | F46: 5300 | G46: 23 | H46: 5313 | K46: 0 | L46: 1112
A47: 12 | B47: 5407 | C47: 14 | D47: 5415 | E47: 13 | F47: 5423 | G47: 14 | H47: 5437 | K47: 0 | L47: 1111
A48: 12 | B48: 5546 | C48: 14 | D48: 5551 | E48: 13 | F48: 5556 | G48: 14 | H48: 5579 | K48: 0 | L48: 1111
A49: 12 | B49: 5698 | C49: 14 | D49: 5706 | E49: 24 | F49: 5723 | G49: 23 | H49: 5731 | K49: 0 | L49: 1122
A50: 12 | B50: 5848 | C50: 14 | D50: 5856 | E50: 24 | F50: 5869 | G50: 23 | H50: 5879 | K50: 0 | L50: 1122
A51: 12 | B51: 5998 | C51: 14 | D51: 6003 | E51: 13 | F51: 6011 | G51: 14 | H51: 6019 | K51: 0 | L51: 1111
A52: 12 | B52: 6122 | C52: 14 | D52: 6127 | E52: 13 | F52: 6140 | G52: 14 | H52: 6148 | K52: 0 | L52: 1111
A53: 12 | B53: 6250 | C53: 14 | D53: 6255 | E53: 13 | F53: 6263 | G53: 14 | H53: 6271 | K53: 0 | L53: 1111
A54: 12 | B54: 6381 | C54: 14 | D54: 6388 | E54: 13 | F54: 6394 | G54: 14 | H54: 6403 | K54: 0 | L54: 1111
A55: 12 | B55: 6529 | C55: 14 | D55: 6536 | E55: 13 | F55: 6543 | G55: 23 | H55: 6557 | K55: 0 | L55: 1112
A56: 12 | B56: 6654 | C56: 14 | D56: 6658 | E56: 13 | F56: 6666 | G56: 14 | H56: 6675 | K56: 0 | L56: 1111
A57: 12 | B57: 6786 | C57: 14 | D57: 6795 | E57: 13 | F57: 6801 | G57: 14 | H57: 6807 | K57: 0 | L57: 1111
A58: 12 | B58: 6906 | C58: 14 | D58: 6913 | E58: 13 | F58: 6920 | G58: 14 | H58: 6928 | K58: 0 | L58: 1111
A59: 12 | B59: 7058 | C59: 14 | D59: 7062 | E59: 13 | F59: 7067 | G59: 14 | H59: 7072 | K59: 0 | L59: 1111
A60: 12 | B60: 7193 | C60: 14 | D60: 7198 | E60: 13 | F60: 7207 | G60: 14 | H60: 7217 | K60: 0 | L60: 1111
A61: 12 | B61: 7322 | C61: 14 | D61: 7327 | E61: 13 | F61: 7334 | G61: 14 | H61: 7342 | K61: 0 | L61: 1111
A62: 12 | B62: 7443 | C62: 14 | D62: 7448 | E62: 13 | F62: 7452 | G62: 14 | H62: 7457 | K62: 0 | L62: 1111
A63: 12 | B63: 7567 | C63: 14 | D63: 7572 | E63: 13 | F63: 7578 | G63: 14 | H63: 7587 | K63: 0 | L63: 1111
A64: 12 | B64: 7708 | C64: 14 | D64: 7713 | E64: 13 | F64: 7720 | G64: 23 | H64: 7738 | K64: 0 | L64: 1112
A65: 12 | B65: 7845 | C65: 14 | D65: 7850 | E65: 13 | F65: 7855 | G65: 23 | H65: 7873 | K65: 0 | L65: 1112
A66: 12 | B66: 7986 | C66: 14 | D66: 7991 | E66: 13 | F66: 7996 | G66: 14 | H66: 8004 | K66: 0 | L66: 1111
A67: 12 | B67: 8098 | C67: 14 | D67: 8107 | E67: 13 | F67: 8114 | G67: 23 | H67: 8136 | K67: 0 | L67: 1112
A68: 12 | B68: 8243 | C68: 14 | D68: 8249 | E68: 13 | F68: 8258 | G68: 14 | H68: 8266 | K68: 0 | L68: 1111
A69: 12 | B69: 8369 | C69: 14 | D69: 8377 | E69: 13 | F69: 8384 | G69: 23 | H69: 8404 | K69: 0 | L69: 1112
A70: 12 | B70: 8506 | C70: 14 | D70: 8510 | E70: 13 | F70: 8517 | G70: 14 | H70: 8526 | K70: 0 | L70: 1111
A71: 12 | B71: 8628 | C71: 14 | D71: 8639 | E71: 13 | F71: 8647 | G71: 23 | H71: 8661 | K71: 0 | L71: 1112
A72: 12 | B72: 8774 | C72: 14 | D72: 8779 | E72: 13 | F72: 8783 | G72: 14 | H72: 8790 | K72: 0 | L72: 1111
A73: 12 | B73: 8890 | C73: 14 | D73: 8894 | E73: 13 | F73: 8899 | G73: 14 | H73: 8904 | K73: 0 | L73: 1111
A74: 12 | B74: 9005 | C74: 14 | D74: 9009 | E74: 13 | F74: 9013 | G74: 14 | H74: 9017 | K74: 0 | L74: 1111
A75: 12 | B75: 9139 | C75: 14 | D75: 9144 | E75: 13 | F75: 9150 | G75: 14 | H75: 9160 | K75: 0 | L75: 1111
A76: 12 | B76: 9279 | C76: 14 | D76: 9283 | E76: 13 | F76: 9288 | G76: 14 | H76: 9295 | K76: 0 | L76: 1111
A77: 12 | B77: 9410 | C77: 14 | D77: 9415 | E77: 13 | F77: 9419 | G77: 14 | H77: 9424 | K77: 0 | L77: 1111
A78: 12 | B78: 9542 | C78: 14 | D78: 9546 | E78: 13 | F78: 9553 | G78: 14 | H78: 9561 | K78: 0 | L78: 1111
A79: 12 | B79: 9663 | C79: 14 | D79: 9667 | E79: 13 | F79: 9674 | G79: 14 | H79: 9682 | K79: 0 | L79: 1111
A80: 12 | B80: 9783 | C80: 14 | D80: 9791 | E80: 13 | F80: 9798 | G80: 14 | H80: 9806 | K80: 0 | L80: 1111
A81: 12 | B81: 9907 | C81: 14 | D81: 9915 | E81: 13 | F81: 9922 | G81: 14 | H81: 9930 | K81: 0 | L81: 1111
A82: 12 | B82: 10037 | C82: 14 | D82: 10042 | E82: 13 | F82: 10048 | G82: 14 | H82: 10055 | K82: 0 | L82: 1111
A83: 12 | B83: 10153 | C83: 14 | D83: 10157 | E83: 13 | F83: 10161 | G83: 14 | H83: 10166 | K83: 0 | L83: 1111
A84: 12 | B84: 10277 | C84: 14 | D84: 10281 | E84: 13 | F84: 10286 | G84: 14 | H84: 10294 | K84: 0 | L84: 1111
A85: 12 | B85: 10408 | C85: 14 | D85: 10412 | E85: 13 | F85: 10416 | G85: 14 | H85: 10420 | K85: 0 | L85: 1111
A86: 12 | B86: 10573 | C86: 14 | D86: 10577 | E86: 13 | F86: 10581 | G86: 14 | H86: 10586 | K86: 0 | L86: 1111
A87: 12 | B87: 10702 | C87: 14 | D87: 10706 | E87: 13 | F87: 10710 | G87: 14 | H87: 10719 | K87: 0 | L87: 1111
A88: 12 | B88: 10838 | C88: 14 | D88: 10843 | E88: 13 | F88: 10847 | G88: 14 | H88: 10853 | K88: 0 | L88: 1111
A89: 12 | B89: 10972 | C89: 14 | D89: 10977 | E89: 13 | F89: 10981 | G89: 14 | H89: 10986 | K89: 0 | L89: 1111
A90: 12 | B90: 11104 | C90: 14 | D90: 11109 | E90: 13 | F90: 11116 | G90: 14 | H90: 11124 | K90: 0 | L90: 1111
A91: 12 | B91: 11233 | C91: 14 | D91: 11237 | E91: 13 | F91: 11241 | G91: 14 | H91: 11248 | K91: 0 | L91: 1111
A92: 12 | B92: 11360 | C92: 14 | D92: 11367 | E92: 24 | F92: 11381 | G92: 23 | H92: 11387 | K92: 0 | L92: 1122
A93: 12 | B93: 11492 | C93: 14 | D93: 11497 | E93: 13 | F93: 11512 | G93: 23 | H93: 11524 | K93: 0 | L93: 1112
A94: 12 | B94: 11636 | C94: 14 | D94: 11642 | E94: 13 | F94: 11650 | G94: 23 | H94: 11664 | K94: 0 | L94: 1112
A95: 12 | B95: 11780 | C95: 14 | D95: 11785 | E95: 13 | F95: 11791 | G95: 14 | H95: 11798 | K95: 0 | L95: 1111
A96: 12 | B96: 11904 | C96: 14 | D96: 11909 | E96: 13 | F96: 11913 | G96: 14 | H96: 11918 | K96: 0 | L96: 1111
A97: 12 | B97: 12015 | C97: 14 | D97: 12025 | E97: 13 | F97: 12030 | G97: 14 | H97: 12037 | K97: 0 | L97: 1111
A98: 12 | B98: 12144 | C98: 14 | D98: 12149 | E98: 13 | F98: 12153 | G98: 14 | H98: 12158 | K98: 0 | L98: 1111
A99: 12 | B99: 12294 | C99: 14 | D99: 12301 | E99: 13 | F99: 12305 | G99: 14 | H99: 12309 | K99: 0 | L99: 1111
A100: 12 | B100: 12416 | C100: 14 | D100: 12423 | E100: 13 | F100: 12430 | G100: 23 | H100: 12444 | K100: 0 | L100: 1112
A101: 12 | B101: 12558 | C101: 14 | D101: 12564 | E101: 13 | F101: 12569 | G101: 14 | H101: 12576 | K101: 0 | L101: 1111
A102: 12 | B102: 12682 | C102: 14 | D102: 12686 | E102: 13 | F102: 12691 | G102: 14 | H102: 12697 | K102: 0 | L102: 1111
A103: 12 | B103: 12791 | C103: 14 | D103: 12797 | E103: 13 | F103: 12804 | G103: 14 | H103: 12812 | K103: 0 | L103: 1111
A104: 12 | B104: 12918 | C104: 14 | D104: 12923 | E104: 13 | F104: 12927 | G104: 14 | H104: 12934 | K104: 0 | L104: 1111
A105: 12 | B105: 13040 | C105: 14 | D105: 13046 | E105: 13 | F105: 13052 | G105: 14 | H105: 13060 | K105: 0 | L105: 1111
A106: 12 | B106: 13184 | C106: 14 | D106: 13188 | E106: 13 | F106: 13192 | G106: 14 | H106: 13197 | K106: 0 | L106: 1111
A107: 12 | B107: 13318 | C107: 14 | D107: 13323 | E107: 13 | F107: 13329 | G107: 14 | H107: 13336 | K107: 0 | L107: 1111
A108: 12 | B108: 13440 | C108: 14 | D108: 13446 | E108: 13 | F108: 13453 | G108: 23 | H108: 13468 | K108: 0 | L108: 1112
A109: 12 | B109: 13582 | C109: 14 | D109: 13586 | E109: 13 | F109: 13591 | G109: 14 | H109: 13596 | K109: 0 | L109: 1111
A110: 12 | B110: 13713 | C110: 14 | D110: 13717 | E110: 13 | F110: 13721 | G110: 14 | H110: 13727 | K110: 0 | L110: 1111
A111: 12 | B111: 13840 | C111: 14 | D111: 13845 | E111: 13 | F111: 13851 | G111: 14 | H111: 13860 | K111: 0 | L111: 1111
A112: 12 | B112: 13977 | C112: 14 | D112: 13982 | E112: 13 | F112: 13987 | G112: 14 | H112: 13995 | K112: 0 | L112: 1111
A113: 12 | B113: 14097 | C113: 14 | D113: 14102 | E113: 13 | F113: 14109 | G113: 23 | H113: 14121 | K113: 0 | L113: 1112
A114: 12 | B114: 14232 | C114: 14 | D114: 14237 | E114: 13 | F114: 14244 | G114: 14 | H114: 14252 | K114: 0 | L114: 1111
A115: 12 | B115: 14356 | C115: 14 | D115: 14361 | E115: 13 | F115: 14369 | G115: 23 | H115: 14381 | K115: 0 | L115: 1112
A116: 12 | B116: 14482 | C116: 14 | D116: 14489 | E116: 13 | F116: 14495 | G116: 14 | H116: 14507 | K116: 0 | L116: 1111
A117: 12 | B117: 14613 | C117: 14 | D117: 14618 | E117: 13 | F117: 14624 | G117: 14 | H117: 14630 | K117: 0 | L117: 1111
A118: 12 | B118: 14741 | C118: 14 | D118: 14747 | E118: 13 | F118: 14752 | G118: 14 | H118: 14760 | K118: 0 | L118: 1111
A119: 12 | B119: 14865 | C119: 14 | D119: 14869 | E119: 13 | F119: 14877 | G119: 23 | H119: 14889 | K119: 0 | L119: 1112
A120: 12 | B120: 15007 | C120: 14 | D120: 15011 | E120: 13 | F120: 15015 | G120: 14 | H120: 15029 | K120: 0 | L120: 1111
A121: 12 | B121: 15139 | C121: 14 | D121: 15144 | E121: 13 | F121: 15149 | G121: 14 | H121: 15156 | K121: 0 | L121: 1111
A122: 12 | B122: 15297 | C122: 14 | D122: 15301 | E122: 13 | F122: 15305 | G122: 14 | H122: 15310 | K122: 0 | L122: 1111
A123: 12 | B123: 15417 | C123: 14 | D123: 15422 | E123: 13 | F123: 15426 | G123: 14 | H123: 15431 | K123: 0 | L123: 1111
A124: 12 | B124: 15541 | C124: 14 | D124: 15545 | E124: 13 | F124: 15552 | G124: 23 | H124: 15569 | K124: 0 | L124: 1112
A125: 12 | B125: 15695 | C125: 14 | D125: 15703 | E125: 13 | F125: 15709 | G125: 14 | H125: 15717 | K125: 0 | L125: 1111
A126: 12 | B126: 15824 | C126: 14 | D126: 15831 | E126: 24 | F126: 15843 | G126: 23 | H126: 15848 | K126: 0 | L126: 1122
A127: 12 | B127: 15968 | C127: 14 | D127: 15972 | E127: 13 | F127: 15977 | G127: 14 | H127: 15984 | K127: 0 | L127: 1111
A128: 12 | B128: 16099 | C128: 14 | D128: 16105 | E128: 13 | F128: 16113 | G128: 14 | H128: 16122 | K128: 0 | L128: 1111
A129: 12 | B129: 16214 | C129: 14 | D129: 16221 | E129: 13 | F129: 16227 | G129: 23 | H129: 16239 | K129: 0 | L129: 1112
A130: 12 | B130: 16370 | C130: 14 | D130: 16374 | E130: 13 | F130: 16378 | G130: 14 | H130: 16382 | K130: 0 | L130: 1111
A131: 12 | B131: 16488 | C131: 14 | D131: 16493 | E131: 13 | F131: 16497 | G131: 14 | H131: 16502 | K131: 0 | L131: 1111
A132: 21 | B132: 16607 | C132: 21 | D132: 16615 | E132: 11 | F132: 16628 | G132: 21 | H132: 16641 | K132: 0 | L132: 2212
A133: 12 | B133: 16735 | C133: 14 | D133: 16742 | E133: 13 | F133: 16749 | G133: 23 | H133: 16762 | K133: 0 | L133: 1112
A134: 12 | B134: 16874 | C134: 14 | D134: 16883 | E134: 24 | F134: 16902 | G134: 23 | H134: 16909 | K134: 0 | L134: 1122
A135: 21 | B135: 17010 | C135: 21 | D135: 17012 | E135: 11 | F135: 17025 | G135: 21 | H135: 17050 | K135: 0 | L135: 2212
A136: 21 | B136: 17148 | C136: 12 | D136: 17159 | E136: 13 | F136: 17166 | G136: 23 | H136: 17180 | K136: 0 | L136: 2112
A137: 21 | B137: 17278 | C137: 12 | D137: 17292 | E137: 13 | F137: 17298 | G137: 14 | H137: 17306 | K137: 0 | L137: 2111
A138: 12 | B138: 17399 | C138: 14 | D138: 17406 | E138: 13 | F138: 17413 | G138: 14 | H138: 17421 | K138: 0 | L138: 1111
A139: 12 | B139: 17521 | C139: 14 | D139: 17526 | E139: 13 | F139: 17533 | G139: 14 | H139: 17542 | K139: 0 | L139: 1111
A140: 21 | B140: 17634 | C140: 12 | D140: 17645 | E140: 13 | F140: 17652 | G140: 14 | H140: 17660 | K140: 0 | L140: 2111
A141: 12 | B141: 17768 | C141: 14 | D141: 17777 | E141: 13 | F141: 17785 | G141: 14 | H141: 17793 | K141: 0 | L141: 1111
A142: 12 | B142: 17890 | C142: 14 | D142: 17896 | E142: 13 | F142: 17901 | G142: 14 | H142: 17909 | K142: 0 | L142: 1111
A143: 12 | B143: 18007 | C143: 14 | D143: 18013 | E143: 13 | F143: 18020 | G143: 14 | H143: 18029 | K143: 0 | L143: 1111
A144: 12 | B144: 18233 | C144: 14 | D144: 18241 | E144: 13 | F144: 18249 | G144: 23 | H144: 18264 | K144: 0 | L144: 1112
A145: 12 | B145: 18368 | C145: 14 | D145: 18373 | E145: 13 | F145: 18380 | G145: 23 | H145: 18393 | K145: 0 | L145: 1112
A146: 21 | B146: 18490 | C146: 12 | D146: 18503 | E146: 13 | F146: 18512 | G146: 23 | H146: 18527 | K146: 0 | L146: 2112
A147: 21 | B147: 18626 | C147: 12 | D147: 18637 | E147: 13 | F147: 18642 | G147: 23 | H147: 18655 | K147: 0 | L147: 2112
A148: 12 | B148: 18774 | C148: 14 | D148: 18781 | E148: 13 | F148: 18789 | G148: 14 | H148: 18798 | K148: 0 | L148: 1111
A149: 12 | B149: 18902 | C149: 14 | D149: 18914 | E149: 24 | F149: 18925 | G149: 23 | H149: 18931 | K149: 0 | L149: 1122
A150: 12 | B150: 19045 | C150: 14 | D150: 19054 | E150: 24 | F150: 19067 | G150: 23 | H150: 19075 | K150: 0 | L150: 1122
A151: 21 | B151: 19175 | C151: 12 | D151: 19186 | E151: 13 | F151: 19199 | G151: 23 | H151: 19213 | K151: 0 | L151: 2112
A152: 12 | B152: 19314 | C152: 14 | D152: 19323 | E152: 13 | F152: 19330 | G152: 23 | H152: 19342 | K152: 0 | L152: 1112
A153: 21 | B153: 19438 | C153: 12 | D153: 19451 | E153: 13 | F153: 19456 | G153: 14 | H153: 19461 | K153: 0 | L153: 2111
A154: 12 | B154: 19565 | C154: 14 | D154: 19572 | E154: 13 | F154: 19579 | G154: 14 | H154: 19587 | K154: 0 | L154: 1111
A155: 21 | B155: 19682 | C155: 12 | D155: 19692 | E155: 13 | F155: 19696 | G155: 14 | H155: 19703 | K155: 0 | L155: 2111
A156: 12 | B156: 19805 | C156: 14 | D156: 19809 | E156: 13 | F156: 19816 | G156: 23 | H156: 19828 | K156: 0 | L156: 1112
A157: 12 | B157: 19920 | C157: 14 | D157: 19926 | E157: 13 | F157: 19933 | G157: 14 | H157: 19941 | K157: 0 | L157: 1111
A158: 21 | B158: 20039 | C158: 12 | D158: 20050 | E158: 13 | F158: 20057 | G158: 23 | H158: 20070 | K158: 0 | L158: 2112
A159: 21 | B159: 20169 | C159: 12 | D159: 20181 | E159: 13 | F159: 20186 | G159: 14 | H159: 20193 | K159: 0 | L159: 2111
A160: 12 | B160: 20294 | C160: 14 | D160: 20303 | E160: 13 | F160: 20310 | G160: 23 | H160: 20322 | K160: 0 | L160: 1112
A161: 12 | B161: 20420 | C161: 14 | D161: 20427 | E161: 13 | F161: 20434 | G161: 23 | H161: 20446 | K161: 0 | L161: 1112
A162: 21 | B162: 20544 | C162: 21 | D162: 20550 | E162: 22 | F162: 20555 | G162: 14 | H162: 20569 | K162: 0 | L162: 2221
A163: 21 | B163: 20666 | C163: 12 | D163: 20674 | E163: 13 | F163: 20678 | G163: 14 | H163: 20685 | K163: 0 | L163: 2111
A164: 21 | B164: 20782 | C164: 12 | D164: 20793 | E164: 13 | F164: 20801 | G164: 23 | H164: 20813 | K164: 0 | L164: 2112
A165: 21 | B165: 20914 | C165: 21 | D165: 20920 | E165: 22 | F165: 20926 | G165: 23 | H165: 20932 | K165: 0 | L165: 2222
A166: 21 | B166: 21029 | C166: 12 | D166: 21041 | E166: 13 | F166: 21048 | G166: 14 | H166: 21056 | K166: 0 | L166: 2111
A167: 21 | B167: 21159 | C167: 12 | D167: 21168 | E167: 13 | F167: 21173 | G167: 14 | H167: 21181 | K167: 0 | L167: 2111
A168: 21 | B168: 21293 | C168: 12 | D168: 21308 | E168: 13 | F168: 21315 | G168: 14 | H168: 21323 | K168: 0 | L168: 2111
A169: 21 | B169: 21425 | C169: 12 | D169: 21436 | E169: 13 | F169: 21443 | G169: 14 | H169: 21451 | K169: 0 | L169: 2111
A170: 12 | B170: 21552 | C170: 14 | D170: 21565 | E170: 13 | F170: 21570 | G170: 14 | H170: 21577 | K170: 0 | L170: 1111
A171: 12 | B171: 21676 | C171: 23 | D171: 21688 | E171: 13 | F171: 21700 | G171: 14 | H171: 21707 | K171: 0 | L171: 1211
A172: 21 | B172: 21820 | C172: 12 | D172: 21830 | E172: 13 | F172: 21834 | G172: 14 | H172: 21839 | K172: 0 | L172: 2111
A173: 21 | B173: 21952 | C173: 12 | D173: 21961 | E173: 13 | F173: 21965 | G173: 14 | H173: 21970 | K173: 0 | L173: 2111
A174: 12 | B174: 22074 | C174: 23 | D174: 22086 | E174: 13 | F174: 22096 | G174: 14 | H174: 22103 | K174: 0 | L174: 1211
A175: 21 | B175: 22210 | C175: 12 | D175: 22222 | E175: 13 | F175: 22228 | G175: 14 | H175: 22236 | K175: 0 | L175: 2111
A176: 21 | B176: 22345 | C176: 12 | D176: 22356 | E176: 13 | F176: 22364 | G176: 23 | H176: 22379 | K176: 0 | L176: 2112
A177: 21 | B177: 22476 | C177: 12 | D177: 22485 | E177: 13 | F177: 22490 | G177: 14 | H177: 22497 | K177: 0 | L177: 2111
A178: 12 | B178: 22615 | C178: 14 | D178: 22620 | E178: 13 | F178: 22628 | G178: 14 | H178: 22637 | K178: 0 | L178: 1111
A179: 12 | B179: 22737 | C179: 23 | D179: 22756 | E179: 13 | F179: 22768 | G179: 14 | H179: 22774 | K179: 0 | L179: 1211
A180: 12 | B180: 22893 | C180: 14 | D180: 22895 | E180: 13 | F180: 22905 | G180: 14 | H180: 22910 | K180: 0 | L180: 1111
A181: 12 | B181: 23009 | C181: 23 | D181: 23018 | E181: 13 | F181: 23026 | G181: 14 | H181: 23032 | K181: 0 | L181: 1211
A182: 12 | B182: 23138 | C182: 14 | D182: 23143 | E182: 13 | F182: 23148 | G182: 14 | H182: 23155 | K182: 0 | L182: 1111
A183: 12 | B183: 23250 | C183: 14 | D183: 23256 | E183: 13 | F183: 23263 | G183: 14 | H183: 23271 | K183: 0 | L183: 1111
A184: 21 | B184: 23389 | C184: 12 | D184: 23397 | E184: 13 | F184: 23402 | G184: 14 | H184: 23406 | K184: 0 | L184: 2111
A185: 12 | B185: 23512 | C185: 14 | D185: 23521 | E185: 13 | F185: 23530 | G185: 14 | H185: 23538 | K185: 0 | L185: 1111
A186: 21 | B186: 23640 | C186: 12 | D186: 23650 | E186: 13 | F186: 23658 | G186: 14 | H186: 23666 | K186: 0 | L186: 2111
A187: 21 | B187: 23764 | C187: 21 | D187: 23765 | E187: 11 | F187: 23775 | G187: 12 | H187: 23782 | K187: 0 | L187: 2211
A188: 21 | B188: 23879 | C188: 12 | D188: 23893 | E188: 13 | F188: 23901 | G188: 14 | H188: 23909 | K188: 0 | L188: 2111

Sheet !2011-08-02_09h39m.Subject 53
A1: Report for:!2011-08-02_09h39m.Subject 53
A2: Date | B2: 2011-08-02 | F2: Group | G2: Phase 3 Any
A3: Hen | B3: 53 | F3: Correct Sequence | G3: =Start!J2 -> 2212 | P3: Total Sequences in Data | Q3: =4994-COUNTBLANK(L7:L5000) -> 178 | V3: Total Sequences in Block Data | W3: =COUNTA(L7:L36) -> 30 | AA3: Total Sequences in Block Data | AB3: =COUNTA(L37:L65) -> 29 | AF3: Total Sequences in Block Data | AG3: =COUNTA(L66:L95) -> 30 | AK3: Total Sequences in Block Data | AL3: =COUNTA(L96:L125) -> 30 | AP3: Total Sequences in Block Data | AQ3: =COUNTA(L126:L154) -> 29 | AU3: Total Sequences in Block Data | AV3: =COUNTA(L155:L184) -> 30
A4: Program | B4: One | P4: Total Sequences in Summary | Q4: =SUM(O7:O22) -> 178 | V4: Total Sequences in Block Summary | W4: =SUM(U7:U22) -> 30 | AA4: Total Sequences in Block Summary | AB4: =SUM(Z7:Z22) -> 29 | AF4: Total Sequences in Block Summary | AG4: =SUM(AE7:AE22) -> 30 | AK4: Total Sequences in Block Summary | AL4: =SUM(AJ7:AJ22) -> 30 | AP4: Total Sequences in Block Summary | AQ4: =SUM(AO7:AO22) -> 29 | AU4: Total Sequences in Block Summary | AV4: =SUM(AT7:AT22) -> 30
T5: Block 1 | Y5: Block 2 | AD5: Block 3 | AI5: Block 4 | AN5: Block 5 | AS5: Block 6
A6: Sequence Component 1 | B6: Time 1 | C6: Sequence Component 2 | D6: Time 2 | E6: Sequence Component 3 | F6: Time 3 | G6: Sequence Component 4 | H6: Time 4 | I6: Sequence Component 5 | J6: Time 5 | K6: Correct? 0=No 1=Yes | L6: Sequence | N6: Frequency | P6: Relative Frequency | Q6: Variability | T6: Frequency | V6: Relative Frequency | W6: Variability | Y6: Frequency | AA6: Relative Frequency | AB6: Variability | AD6: Frequency | AF6: Relative Frequency | AG6: Variability | AI6: Frequency | AK6: Relative Frequency | AL6: Variability | AN6: Frequency | AP6: Relative Frequency | AQ6: Variability | AS6: Frequency | AU6: Relative Frequency | AV6: Variability
A7: 12 | B7: 10 | C7: 14 | D7: 18 | E7: 13 | F7: 25 | G7: 14 | H7: 33 | K7: 0 | L7: 1111 | N7: 1111 | O7: =COUNTIF($L$7:$L$500,N7) -> 79 | P7: =O7/$Q$4 -> 0.4438202247 | Q7: =IF(P7=0,0,(P7*((LOG(P7))/LOG(2)))) -> -0.520136303 | T7: =N7 -> 1111 | U7: =COUNTIF(L7:L36,T7) -> 14 | V7: =U7/(W4-U20) -> 0.4666666667 | W7: =IF(V7=0,0,(V7*((LOG(V7))/LOG(2)))) -> -0.5131166477 | Y7: =N7 -> 1111 | Z7: =COUNTIF(L37:L65,Y7) -> 22 | AA7: =Z7/(AB4-Z20) -> 0.7586206897 | AB7: =IF(AA7=0,0,(AA7*((LOG(AA7))/LOG(2)))) -> -0.3023478029 | AD7: =N7 -> 1111 | AE7: =COUNTIF(L66:L95,AD7) -> 16 | AF7: =AE7/(AG4-AE20) -> 0.5333333333 | AG7: =IF(AF7=0,0,(AF7*((LOG(AF7))/LOG(2)))) -> -0.4836749843 | AI7: =N7 -> 1111 | AJ7: =COUNTIF(L96:L125,AI7) -> 9 | AK7: =AJ7/(AL4-AJ20) -> 0.3 | AL7: =IF(AK7=0,0,(AK7*((LOG(AK7))/LOG(2)))) -> -0.5210896782 | AN7: =N7 -> 1111 | AO7: =COUNTIF(L126:L154,AN7) -> 6 | AP7: =AO7/(AQ4-AO20) -> 0.2068965517 | AQ7: =IF(AP7=0,0,(AP7*((LOG(AP7))/LOG(2)))) -> -0.4702796885 | AS7: =N7 -> 1111 | AT7: =COUNTIF(L155:L184,AS7) -> 12 | AU7: =AT7/(AV4-AT20) -> 0.4137931034 | AV7: =IF(AU7=0,0,(AU7*((LOG(AU7))/LOG(2)))) -> -0.5267662735
A8: 12 | B8: 141 | C8: 14 | D8: 147 | E8: 13 | F8: 155 | G8: 14 | H8: 160 | K8: 0 | L8: 1111 | N8: 1112 | O8: =COUNTIF($L$7:$L$500,N8) -> 35 | P8: =O8/$Q$4 -> 0.1966292135 | Q8: =IF(P8=0,0,(P8*((LOG(P8))/LOG(2)))) -> -0.4613806994 | T8: =N8 -> 1112 | U8: =COUNTIF(L7:L36,T8) -> 9 | V8: =U8/(W4-U20) -> 0.3 | W8: =IF(V8=0,0,(V8*((LOG(V8))/LOG(2)))) -> -0.5210896782 | Y8: =N8 -> 1112 | Z8: =COUNTIF(L37:L65,Y8) -> 2 | AA8: =Z8/(AB4-Z20) -> 0.06896551724 | AB8: =IF(AA8=0,0,(AA8*((LOG(AA8))/LOG(2)))) -> -0.2660676548 | AD8: =N8 -> 1112 | AE8: =COUNTIF(L66:L95,AD8) -> 10 | AF8: =AE8/(AG4-AE20) -> 0.3333333333 | AG8: =IF(AF8=0,0,(AF8*((LOG(AF8))/LOG(2)))) -> -0.5283208336 | AI8: =N8 -> 1112 | AJ8: =COUNTIF(L96:L125,AI8) -> 7 | AK8: =AJ8/(AL4-AJ20) -> 0.2333333333 | AL8: =IF(AK8=0,0,(AK8*((LOG(AK8))/LOG(2)))) -> -0.4898916572 | AN8: =N8 -> 1112 | AO8: =COUNTIF(L126:L154,AN8) -> 4 | AP8: =AO8/(AQ4-AO20) -> 0.1379310345 | AQ8: =IF(AP8=0,0,(AP8*((LOG(AP8))/LOG(2)))) -> -0.3942042752 | AS8: =N8 -> 1112 | AT8: =COUNTIF(L155:L184,AS8) -> 3 | AU8: =AT8/(AV4-AT20) -> 0.1034482759 | AV8: =IF(AU8=0,0,(AU8*((LOG(AU8))/LOG(2)))) -> -0.3385881201
A9: 12 | B9: 260 | C9: 14 | D9: 270 | E9: 13 | F9: 280 | G9: 14 | H9: 289 | K9: 0 | L9: 1111 | N9: 1121 | O9: =COUNTIF($L$7:$L$500,N9) -> 2 | P9: =O9/$Q$4 -> 0.01123595506 | Q9: =IF(P9=0,0,(P9*((LOG(P9))/LOG(2)))) -> -0.07276104979 | T9: =N9 -> 1121 | U9: =COUNTIF(L7:L36,T9) -> 2 | V9: =U9/(W4-U20) -> 0.06666666667 | W9: =IF(V9=0,0,(V9*((LOG(V9))/LOG(2)))) -> -0.260459373 | Y9: =N9 -> 1121 | Z9: =COUNTIF(L37:L65,Y9) -> 0 | AA9: =Z9/(AB4-Z20) -> 0 | AB9: =IF(AA9=0,0,(AA9*((LOG(AA9))/LOG(2)))) -> 0 | AD9: =N9 -> 1121 | AE9: =COUNTIF(L66:L95,AD9) -> 0 | AF9: =AE9/(AG4-AE20) -> 0 | AG9: =IF(AF9=0,0,(AF9*((LOG(AF9))/LOG(2)))) -> 0 | AI9: =N9 -> 1121 | AJ9: =COUNTIF(L96:L125,AI9) -> 0 | AK9: =AJ9/(AL4-AJ20) -> 0 | AL9: =IF(AK9=0,0,(AK9*((LOG(AK9))/LOG(2)))) -> 0 | AN9: =N9 -> 1121 | AO9: =COUNTIF(L126:L154,AN9) -> 0 | AP9: =AO9/(AQ4-AO20) -> 0 | AQ9: =IF(AP9=0,0,(AP9*((LOG(AP9))/LOG(2)))) -> 0 | AS9: =N9 -> 1121 | AT9: =COUNTIF(L155:L184,AS9) -> 0 | AU9: =AT9/(AV4-AT20) -> 0 | AV9: =IF(AU9=0,0,(AU9*((LOG(AU9))/LOG(2)))) -> 0
A10: 12 | B10: 388 | C10: 14 | D10: 407 | E10: 24 | F10: 421 | G10: 14 | H10: 435 | K10: 0 | L10: 1121 | N10: 1122 | O10: =COUNTIF($L$7:$L$500,N10) -> 12 | P10: =O10/$Q$4 -> 0.06741573034 | Q10: =IF(P10=0,0,(P10*((LOG(P10))/LOG(2)))) -> -0.2622991638 | T10: =N10 -> 1122 | U10: =COUNTIF(L7:L36,T10) -> 1 | V10: =U10/(W4-U20) -> 0.03333333333 | W10: =IF(V10=0,0,(V10*((LOG(V10))/LOG(2)))) -> -0.1635630199 | Y10: =N10 -> 1122 | Z10: =COUNTIF(L37:L65,Y10) -> 2 | AA10: =Z10/(AB4-Z20) -> 0.06896551724 | AB10: =IF(AA10=0,0,(AA10*((LOG(AA10))/LOG(2)))) -> -0.2660676548 | AD10: =N10 -> 1122 | AE10: =COUNTIF(L66:L95,AD10) -> 0 | AF10: =AE10/(AG4-AE20) -> 0 | AG10: =IF(AF10=0,0,(AF10*((LOG(AF10))/LOG(2)))) -> 0 | AI10: =N10 -> 1122 | AJ10: =COUNTIF(L96:L125,AI10) -> 3 | AK10: =AJ10/(AL4-AJ20) -> 0.1 | AL10: =IF(AK10=0,0,(AK10*((LOG(AK10))/LOG(2)))) -> -0.3321928095 | AN10: =N10 -> 1122 | AO10: =COUNTIF(L126:L154,AN10) -> 3 | AP10: =AO10/(AQ4-AO20) -> 0.1034482759 | AQ10: =IF(AP10=0,0,(AP10*((LOG(AP10))/LOG(2)))) -> -0.3385881201 | AS10: =N10 -> 1122 | AT10: =COUNTIF(L155:L184,AS10) -> 3 | AU10: =AT10/(AV4-AT20) -> 0.1034482759 | AV10: =IF(AU10=0,0,(AU10*((LOG(AU10))/LOG(2)))) -> -0.3385881201
A11: 12 | B11: 537 | C11: 14 | D11: 544 | E11: 13 | F11: 551 | G11: 23 | H11: 563 | K11: 0 | L11: 1112 | N11: 1211 | O11: =COUNTIF($L$7:$L$500,N11) -> 4 | P11: =O11/$Q$4 -> 0.02247191011 | Q11: =IF(P11=0,0,(P11*((LOG(P11))/LOG(2)))) -> -0.1230501895 | T11: =N11 -> 1211 | U11: =COUNTIF(L7:L36,T11) -> 0 | V11: =U11/(W4-U20) -> 0 | W11: =IF(V11=0,0,(V11*((LOG(V11))/LOG(2)))) -> 0 | Y11: =N11 -> 1211 | Z11: =COUNTIF(L37:L65,Y11) -> 0 | AA11: =Z11/(AB4-Z20) -> 0 | AB11: =IF(AA11=0,0,(AA11*((LOG(AA11))/LOG(2)))) -> 0 | AD11: =N11 -> 1211 | AE11: =COUNTIF(L66:L95,AD11) -> 0 | AF11: =AE11/(AG4-AE20) -> 0 | AG11: =IF(AF11=0,0,(AF11*((LOG(AF11))/LOG(2)))) -> 0 | AI11: =N11 -> 1211 | AJ11: =COUNTIF(L96:L125,AI11) -> 0 | AK11: =AJ11/(AL4-AJ20) -> 0 | AL11: =IF(AK11=0,0,(AK11*((LOG(AK11))/LOG(2)))) -> 0 | AN11: =N11 -> 1211 | AO11: =COUNTIF(L126:L154,AN11) -> 1 | AP11: =AO11/(AQ4-AO20) -> 0.03448275862 | AQ11: =IF(AP11=0,0,(AP11*((LOG(AP11))/LOG(2)))) -> -0.167516586 | AS11: =N11 -> 1211 | AT11: =COUNTIF(L155:L184,AS11) -> 3 | AU11: =AT11/(AV4-AT20) -> 0.1034482759 | AV11: =IF(AU11=0,0,(AU11*((LOG(AU11))/LOG(2)))) -> -0.3385881201
A12: 12 | B12: 663 | C12: 14 | D12: 672 | E12: 13 | F12: 679 | G12: 23 | H12: 691 | K12: 0 | L12: 1112 | N12: 1212 | O12: =COUNTIF($L$7:$L$500,N12) -> 0 | P12: =O12/$Q$4 -> 0 | Q12: =IF(P12=0,0,(P12*((LOG(P12))/LOG(2)))) -> 0 | T12: =N12 -> 1212 | U12: =COUNTIF(L7:L36,T12) -> 0 | V12: =U12/(W4-U20) -> 0 | W12: =IF(V12=0,0,(V12*((LOG(V12))/LOG(2)))) -> 0 | Y12: =N12 -> 1212 | Z12: =COUNTIF(L37:L65,Y12) -> 0 | AA12: =Z12/(AB4-Z20) -> 0 | AB12: =IF(AA12=0,0,(AA12*((LOG(AA12))/LOG(2)))) -> 0 | AD12: =N12 -> 1212 | AE12: =COUNTIF(L66:L95,AD12) -> 0 | AF12: =AE12/(AG4-AE20) -> 0 | AG12: =IF(AF12=0,0,(AF12*((LOG(AF12))/LOG(2)))) -> 0 | AI12: =N12 -> 1212 | AJ12: =COUNTIF(L96:L125,AI12) -> 0 | AK12: =AJ12/(AL4-AJ20) -> 0 | AL12: =IF(AK12=0,0,(AK12*((LOG(AK12))/LOG(2)))) -> 0 | AN12: =N12 -> 1212 | AO12: =COUNTIF(L126:L154,AN12) -> 0 | AP12: =AO12/(AQ4-AO20) -> 0 | AQ12: =IF(AP12=0,0,(AP12*((LOG(AP12))/LOG(2)))) -> 0 | AS12: =N12 -> 1212 | AT12: =COUNTIF(L155:L184,AS12) -> 0 | AU12: =AT12/(AV4-AT20) -> 0 | AV12: =IF(AU12=0,0,(AU12*((LOG(AU12))/LOG(2)))) -> 0
A13: 12 | B13: 789 | C13: 14 | D13: 800 | E13: 13 | F13: 811 | G13: 23 | H13: 825 | K13: 0 | L13: 1112 | N13: 1221 | O13: =COUNTIF($L$7:$L$500,N13) -> 1 | P13: =O13/$Q$4 -> 0.005617977528 | Q13: =IF(P13=0,0,(P13*((LOG(P13))/LOG(2)))) -> -0.04199850242 | T13: =N13 -> 1221 | U13: =COUNTIF(L7:L36,T13) -> 0 | V13: =U13/(W4-U20) -> 0 | W13: =IF(V13=0,0,(V13*((LOG(V13))/LOG(2)))) -> 0 | Y13: =N13 -> 1221 | Z13: =COUNTIF(L37:L65,Y13) -> 0 | AA13: =Z13/(AB4-Z20) -> 0 | AB13: =IF(AA13=0,0,(AA13*((LOG(AA13))/LOG(2)))) -> 0 | AD13: =N13 -> 1221 | AE13: =COUNTIF(L66:L95,AD13) -> 1 | AF13: =AE13/(AG4-AE20) -> 0.03333333333 | AG13: =IF(AF13=0,0,(AF13*((LOG(AF13))/LOG(2)))) -> -0.1635630199 | AI13: =N13 -> 1221 | AJ13: =COUNTIF(L96:L125,AI13) -> 0 | AK13: =AJ13/(AL4-AJ20) -> 0 | AL13: =IF(AK13=0,0,(AK13*((LOG(AK13))/LOG(2)))) -> 0 | AN13: =N13 -> 1221 | AO13: =COUNTIF(L126:L154,AN13) -> 0 | AP13: =AO13/(AQ4-AO20) -> 0 | AQ13: =IF(AP13=0,0,(AP13*((LOG(AP13))/LOG(2)))) -> 0 | AS13: =N13 -> 1221 | AT13: =COUNTIF(L155:L184,AS13) -> 0 | AU13: =AT13/(AV4-AT20) -> 0 | AV13: =IF(AU13=0,0,(AU13*((LOG(AU13))/LOG(2)))) -> 0
A14: 12 | B14: 928 | C14: 14 | D14: 938 | E14: 24 | F14: 951 | G14: 23 | H14: 957 | K14: 0 | L14: 1122 | N14: 1222 | O14: =COUNTIF($L$7:$L$500,N14) -> 10 | P14: =O14/$Q$4 -> 0.05617977528 | Q14: =IF(P14=0,0,(P14*((LOG(P14))/LOG(2)))) -> -0.2333598503 | T14: =N14 -> 1222 | U14: =COUNTIF(L7:L36,T14) -> 2 | V14: =U14/(W4-U20) -> 0.06666666667 | W14: =IF(V14=0,0,(V14*((LOG(V14))/LOG(2)))) -> -0.260459373 | Y14: =N14 -> 1222 | Z14: =COUNTIF(L37:L65,Y14) -> 0 | AA14: =Z14/(AB4-Z20) -> 0 | AB14: =IF(AA14=0,0,(AA14*((LOG(AA14))/LOG(2)))) -> 0 | AD14: =N14 -> 1222 | AE14: =COUNTIF(L66:L95,AD14) -> 0 | AF14: =AE14/(AG4-AE20) -> 0 | AG14: =IF(AF14=0,0,(AF14*((LOG(AF14))/LOG(2)))) -> 0 | AI14: =N14 -> 1222 | AJ14: =COUNTIF(L96:L125,AI14) -> 4 | AK14: =AJ14/(AL4-AJ20) -> 0.1333333333 | AL14: =IF(AK14=0,0,(AK14*((LOG(AK14))/LOG(2)))) -> -0.3875854127 | AN14: =N14 -> 1222 | AO14: =COUNTIF(L126:L154,AN14) -> 3 | AP14: =AO14/(AQ4-AO20) -> 0.1034482759 | AQ14: =IF(AP14=0,0,(AP14*((LOG(AP14))/LOG(2)))) -> -0.3385881201 | AS14: =N14 -> 1222 | AT14: =COUNTIF(L155:L184,AS14) -> 1 | AU14: =AT14/(AV4-AT20) -> 0.03448275862 | AV14: =IF(AU14=0,0,(AU14*((LOG(AU14))/LOG(2)))) -> -0.167516586
A15: 12 | B15: 1062 | C15: 14 | D15: 1070 | E15: 13 | F15: 1076 | G15: 14 | H15: 1084 | K15: 0 | L15: 1111 | N15: 2111 | O15: =COUNTIF($L$7:$L$500,N15) -> 9 | P15: =O15/$Q$4 -> 0.05056179775 | Q15: =IF(P15=0,0,(P15*((LOG(P15))/LOG(2)))) -> -0.217709415 | T15: =N15 -> 2111 | U15: =COUNTIF(L7:L36,T15) -> 1 | V15: =U15/(W4-U20) -> 0.03333333333 | W15: =IF(V15=0,0,(V15*((LOG(V15))/LOG(2)))) -> -0.1635630199 | Y15: =N15 -> 2111 | Z15: =COUNTIF(L37:L65,Y15) -> 3 | AA15: =Z15/(AB4-Z20) -> 0.1034482759 | AB15: =IF(AA15=0,0,(AA15*((LOG(AA15))/LOG(2)))) -> -0.3385881201 | AD15: =N15 -> 2111 | AE15: =COUNTIF(L66:L95,AD15) -> 0 | AF15: =AE15/(AG4-AE20) -> 0 | AG15: =IF(AF15=0,0,(AF15*((LOG(AF15))/LOG(2)))) -> 0 | AI15: =N15 -> 2111 | AJ15: =COUNTIF(L96:L125,AI15) -> 1 | AK15: =AJ15/(AL4-AJ20) -> 0.03333333333 | AL15: =IF(AK15=0,0,(AK15*((LOG(AK15))/LOG(2)))) -> -0.1635630199 | AN15: =N15 -> 2111 | AO15: =COUNTIF(L126:L154,AN15) -> 3 | AP15: =AO15/(AQ4-AO20) -> 0.1034482759 | AQ15: =IF(AP15=0,0,(AP15*((LOG(AP15))/LOG(2)))) -> -0.3385881201 | AS15: =N15 -> 2111 | AT15: =COUNTIF(L155:L184,AS15) -> 1 | AU15: =AT15/(AV4-AT20) -> 0.03448275862 | AV15: =IF(AU15=0,0,(AU15*((LOG(AU15))/LOG(2)))) -> -0.167516586
A16: 12 | B16: 1185 | C16: 14 | D16: 1190 | E16: 13 | F16: 1198 | G16: 14 | H16: 1205 | K16: 0 | L16: 1111 | N16: 2112 | O16: =COUNTIF($L$7:$L$500,N16) -> 4 | P16: =O16/$Q$4 -> 0.02247191011 | Q16: =IF(P16=0,0,(P16*((LOG(P16))/LOG(2)))) -> -0.1230501895 | T16: =N16 -> 2112 | U16: =COUNTIF(L7:L36,T16) -> 0 | V16: =U16/(W4-U20) -> 0 | W16: =IF(V16=0,0,(V16*((LOG(V16))/LOG(2)))) -> 0 | Y16: =N16 -> 2112 | Z16: =COUNTIF(L37:L65,Y16) -> 0 | AA16: =Z16/(AB4-Z20) -> 0 | AB16: =IF(AA16=0,0,(AA16*((LOG(AA16))/LOG(2)))) -> 0 | AD16: =N16 -> 2112 | AE16: =COUNTIF(L66:L95,AD16) -> 3 | AF16: =AE16/(AG4-AE20) -> 0.1 | AG16: =IF(AF16=0,0,(AF16*((LOG(AF16))/LOG(2)))) -> -0.3321928095 | AI16: =N16 -> 2112 | AJ16: =COUNTIF(L96:L125,AI16) -> 0 | AK16: =AJ16/(AL4-AJ20) -> 0 | AL16: =IF(AK16=0,0,(AK16*((LOG(AK16))/LOG(2)))) -> 0 | AN16: =N16 -> 2112 | AO16: =COUNTIF(L126:L154,AN16) -> 1 | AP16: =AO16/(AQ4-AO20) -> 0.03448275862 | AQ16: =IF(AP16=0,0,(AP16*((LOG(AP16))/LOG(2)))) -> -0.167516586 | AS16: =N16 -> 2112 | AT16: =COUNTIF(L155:L184,AS16) -> 0 | AU16: =AT16/(AV4-AT20) -> 0 | AV16: =IF(AU16=0,0,(AU16*((LOG(AU16))/LOG(2)))) -> 0
A17: 12 | B17: 1307 | C17: 14 | D17: 1313 | E17: 13 | F17: 1321 | G17: 14 | H17: 1329 | K17: 0 | L17: 1111 | N17: 2121 | O17: =COUNTIF($L$7:$L$500,N17) -> 0 | P17: =O17/$Q$4 -> 0 | Q17: =IF(P17=0,0,(P17*((LOG(P17))/LOG(2)))) -> 0 | T17: =N17 -> 2121 | U17: =COUNTIF(L7:L36,T17) -> 0 | V17: =U17/(W4-U20) -> 0 | W17: =IF(V17=0,0,(V17*((LOG(V17))/LOG(2)))) -> 0 | Y17: =N17 -> 2121 | Z17: =COUNTIF(L37:L65,Y17) -> 0 | AA17: =Z17/(AB4-Z20) -> 0 | AB17: =IF(AA17=0,0,(AA17*((LOG(AA17))/LOG(2)))) -> 0 | AD17: =N17 -> 2121 | AE17: =COUNTIF(L66:L95,AD17) -> 0 | AF17: =AE17/(AG4-AE20) -> 0 | AG17: =IF(AF17=0,0,(AF17*((LOG(AF17))/LOG(2)))) -> 0 | AI17: =N17 -> 2121 | AJ17: =COUNTIF(L96:L125,AI17) -> 0 | AK17: =AJ17/(AL4-AJ20) -> 0 | AL17: =IF(AK17=0,0,(AK17*((LOG(AK17))/LOG(2)))) -> 0 | AN17: =N17 -> 2121 | AO17: =COUNTIF(L126:L154,AN17) -> 0 | AP17: =AO17/(AQ4-AO20) -> 0 | AQ17: =IF(AP17=0,0,(AP17*((LOG(AP17))/LOG(2)))) -> 0 | AS17: =N17 -> 2121 | AT17: =COUNTIF(L155:L184,AS17) -> 0 | AU17: =AT17/(AV4-AT20) -> 0 | AV17: =IF(AU17=0,0,(AU17*((LOG(AU17))/LOG(2)))) -> 0
A18: 12 | B18: 1421 | C18: 14 | D18: 1428 | E18: 13 | F18: 1434 | G18: 14 | H18: 1443 | K18: 0 | L18: 1111 | N18: 2122 | O18: =COUNTIF($L$7:$L$500,N18) -> 8 | P18: =O18/$Q$4 -> 0.04494382022 | Q18: =IF(P18=0,0,(P18*((LOG(P18))/LOG(2)))) -> -0.2011565587 | T18: =N18 -> 2122 | U18: =COUNTIF(L7:L36,T18) -> 0 | V18: =U18/(W4-U20) -> 0 | W18: =IF(V18=0,0,(V18*((LOG(V18))/LOG(2)))) -> 0 | Y18: =N18 -> 2122 | Z18: =COUNTIF(L37:L65,Y18) -> 0 | AA18: =Z18/(AB4-Z20) -> 0 | AB18: =IF(AA18=0,0,(AA18*((LOG(AA18))/LOG(2)))) -> 0 | AD18: =N18 -> 2122 | AE18: =COUNTIF(L66:L95,AD18) -> 0 | AF18: =AE18/(AG4-AE20) -> 0 | AG18: =IF(AF18=0,0,(AF18*((LOG(AF18))/LOG(2)))) -> 0 | AI18: =N18 -> 2122 | AJ18: =COUNTIF(L96:L125,AI18) -> 1 | AK18: =AJ18/(AL4-AJ20) -> 0.03333333333 | AL18: =IF(AK18=0,0,(AK18*((LOG(AK18))/LOG(2)))) -> -0.1635630199 | AN18: =N18 -> 2122 | AO18: =COUNTIF(L126:L154,AN18) -> 5 | AP18: =AO18/(AQ4-AO20) -> 0.1724137931 | AQ18: =IF(AP18=0,0,(AP18*((LOG(AP18))/LOG(2)))) -> -0.4372505 | AS18: =N18 -> 2122 | AT18: =COUNTIF(L155:L184,AS18) -> 2 | AU18: =AT18/(AV4-AT20) -> 0.06896551724 | AV18: =IF(AU18=0,0,(AU18*((LOG(AU18))/LOG(2)))) -> -0.2660676548
A19: 12 | B19: 1557 | C19: 14 | D19: 1565 | E19: 24 | F19: 1578 | G19: 14 | H19: 1590 | K19: 0 | L19: 1121 | N19: 2211 | O19: =COUNTIF($L$7:$L$500,N19) -> 5 | P19: =O19/$Q$4 -> 0.02808988764 | Q19: =IF(P19=0,0,(P19*((LOG(P19))/LOG(2)))) -> -0.1447698128 | T19: =N19 -> 2211 | U19: =COUNTIF(L7:L36,T19) -> 1 | V19: =U19/(W4-U20) -> 0.03333333333 | W19: =IF(V19=0,0,(V19*((LOG(V19))/LOG(2)))) -> -0.1635630199 | Y19: =N19 -> 2211 | Z19: =COUNTIF(L37:L65,Y19) -> 0 | AA19: =Z19/(AB4-Z20) -> 0 | AB19: =IF(AA19=0,0,(AA19*((LOG(AA19))/LOG(2)))) -> 0 | AD19: =N19 -> 2211 | AE19: =COUNTIF(L66:L95,AD19) -> 0 | AF19: =AE19/(AG4-AE20) -> 0 | AG19: =IF(AF19=0,0,(AF19*((LOG(AF19))/LOG(2)))) -> 0 | AI19: =N19 -> 2211 | AJ19: =COUNTIF(L96:L125,AI19) -> 4 | AK19: =AJ19/(AL4-AJ20) -> 0.1333333333 | AL19: =IF(AK19=0,0,(AK19*((LOG(AK19))/LOG(2)))) -> -0.3875854127 | AN19: =N19 -> 2211 | AO19: =COUNTIF(L126:L154,AN19) -> 0 | AP19: =AO19/(AQ4-AO20) -> 0 | AQ19: =IF(AP19=0,0,(AP19*((LOG(AP19))/LOG(2)))) -> 0 | AS19: =N19 -> 2211 | AT19: =COUNTIF(L155:L184,AS19) -> 0 | AU19: =AT19/(AV4-AT20) -> 0 | AV19: =IF(AU19=0,0,(AU19*((LOG(AU19))/LOG(2)))) -> 0
A20: 12 | B20: 1709 | C20: 14 | D20: 1714 | E20: 13 | F20: 1722 | G20: 14 | H20: 1733 | K20: 0 | L20: 1111 | N20: 2212 | O20: =COUNTIF($L$7:$L$500,N20) -> 1 | P20: =O20/$Q$4 -> 0.005617977528 | Q20: =IF(P20=0,0,(P20*((LOG(P20))/LOG(2)))) -> -0.04199850242 | T20: =N20 -> 2212 | U20: =COUNTIF(L7:L36,T20) -> 0 | Y20: =N20 -> 2212 | Z20: =COUNTIF(L37:L65,Y20) -> 0 | AD20: =N20 -> 2212 | AE20: =COUNTIF(L66:L95,AD20) -> 0 | AI20: =N20 -> 2212 | AJ20: =COUNTIF(L96:L125,AI20) -> 0 | AN20: =N20 -> 2212 | AO20: =COUNTIF(L126:L154,AN20) -> 0 | AS20: =N20 -> 2212 | AT20: =COUNTIF(L155:L184,AS20) -> 1
A21: 12 | B21: 1843 | C21: 23 | D21: 1860 | E21: 24 | F21: 1868 | G21: 23 | H21: 1877 | K21: 0 | L21: 1222 | N21: 2221 | O21: =COUNTIF($L$7:$L$500,N21) -> 0 | P21: =O21/$Q$4 -> 0 | Q21: =IF(P21=0,0,(P21*((LOG(P21))/LOG(2)))) -> 0 | T21: =N21 -> 2221 | U21: =COUNTIF(L7:L36,T21) -> 0 | V21: =U21/(W4-U20) -> 0 | W21: =IF(V21=0,0,(V21*((LOG(V21))/LOG(2)))) -> 0 | Y21: =N21 -> 2221 | Z21: =COUNTIF(L37:L65,Y21) -> 0 | AA21: =Z21/(AB4-Z20) -> 0 | AB21: =IF(AA21=0,0,(AA21*((LOG(AA21))/LOG(2)))) -> 0 | AD21: =N21 -> 2221 | AE21: =COUNTIF(L66:L95,AD21) -> 0 | AF21: =AE21/(AG4-AE20) -> 0 | AG21: =IF(AF21=0,0,(AF21*((LOG(AF21))/LOG(2)))) -> 0 | AI21: =N21 -> 2221 | AJ21: =COUNTIF(L96:L125,AI21) -> 0 | AK21: =AJ21/(AL4-AJ20) -> 0 | AL21: =IF(AK21=0,0,(AK21*((LOG(AK21))/LOG(2)))) -> 0 | AN21: =N21 -> 2221 | AO21: =COUNTIF(L126:L154,AN21) -> 0 | AP21: =AO21/(AQ4-AO20) -> 0 | AQ21: =IF(AP21=0,0,(AP21*((LOG(AP21))/LOG(2)))) -> 0 | AS21: =N21 -> 2221 | AT21: =COUNTIF(L155:L184,AS21) -> 0 | AU21: =AT21/(AV4-AT20) -> 0 | AV21: =IF(AU21=0,0,(AU21*((LOG(AU21))/LOG(2)))) -> 0
A22: 12 | B22: 1985 | C22: 14 | D22: 1992 | E22: 13 | F22: 2001 | G22: 23 | H22: 2014 | K22: 0 | L22: 1112 | N22: 2222 | O22: =COUNTIF($L$7:$L$500,N22) -> 8 | P22: =O22/$Q$4 -> 0.04494382022 | Q22: =IF(P22=0,0,(P22*((LOG(P22))/LOG(2)))) -> -0.2011565587 | T22: =N22 -> 2222 | U22: =COUNTIF(L7:L36,T22) -> 0 | V22: =U22/(W4-U20) -> 0 | W22: =IF(V22=0,0,(V22*((LOG(V22))/LOG(2)))) -> 0 | Y22: =N22 -> 2222 | Z22: =COUNTIF(L37:L65,Y22) -> 0 | AA22: =Z22/(AB4-Z20) -> 0 | AB22: =IF(AA22=0,0,(AA22*((LOG(AA22))/LOG(2)))) -> 0 | AD22: =N22 -> 2222 | AE22: =COUNTIF(L66:L95,AD22) -> 0 | AF22: =AE22/(AG4-AE20) -> 0 | AG22: =IF(AF22=0,0,(AF22*((LOG(AF22))/LOG(2)))) -> 0 | AI22: =N22 -> 2222 | AJ22: =COUNTIF(L96:L125,AI22) -> 1 | AK22: =AJ22/(AL4-AJ20) -> 0.03333333333 | AL22: =IF(AK22=0,0,(AK22*((LOG(AK22))/LOG(2)))) -> -0.1635630199 | AN22: =N22 -> 2222 | AO22: =COUNTIF(L126:L154,AN22) -> 3 | AP22: =AO22/(AQ4-AO20) -> 0.1034482759 | AQ22: =IF(AP22=0,0,(AP22*((LOG(AP22))/LOG(2)))) -> -0.3385881201 | AS22: =N22 -> 2222 | AT22: =COUNTIF(L155:L184,AS22) -> 4 | AU22: =AT22/(AV4-AT20) -> 0.1379310345 | AV22: =IF(AU22=0,0,(AU22*((LOG(AU22))/LOG(2)))) -> -0.3942042752
A23: 12 | B23: 2110 | C23: 23 | D23: 2124 | E23: 24 | F23: 2132 | G23: 23 | H23: 2137 | K23: 0 | L23: 1222 | P23: =SUM(P7:P22) -> 1 | Q23: =-SUM(Q7:Q22) -> 2.644826795 | V23: =SUM(V7:V22) -> 1 | W23: =-SUM(W7:W22) -> 2.045814132 | AA23: =SUM(AA7:AA22) -> 1 | AB23: =-SUM(AB7:AB22) -> 1.173071233 | AF23: =SUM(AF7:AF22) -> 1 | AG23: =-SUM(AG7:AG22) -> 1.507751647 | AK23: =SUM(AK7:AK22) -> 1 | AL23: =-SUM(AL7:AL22) -> 2.60903403 | AP23: =SUM(AP7:AP22) -> 1 | AQ23: =-SUM(AQ7:AQ22) -> 2.991120116 | AU23: =SUM(AU7:AU22) -> 1 | AV23: =-SUM(AV7:AV22) -> 2.537835736
A24: 12 | B24: 2236 | C24: 14 | D24: 2242 | E24: 13 | F24: 2250 | G24: 23 | H24: 2264 | K24: 0 | L24: 1112 | P24: U= | Q24: =Q23/(LOG(Q4)/LOG(2)) -> 0.3537882697 | V24: U1= | W24: =W23/(LOG(W4)/LOG(2)) -> 0.4169267873 | AA24: U2= | AB24: =AB23/(LOG(AB4)/LOG(2)) -> 0.2414729975 | AF24: U3= | AG24: =AG23/(LOG(AG4)/LOG(2)) -> 0.307272318 | AK24: U4= | AL24: =AL23/(LOG(AL4)/LOG(2)) -> 0.531708213 | AP24: U5= | AQ24: =AQ23/(LOG(AQ4)/LOG(2)) -> 0.6157126014 | AU24: U6= | AV24: =AV23/(LOG(AV4)/LOG(2)) -> 0.5171983533
A25: 21 | B25: 2377 | C25: 21 | D25: 2383 | E25: 11 | F25: 2395 | G25: 12 | H25: 2404 | K25: 0 | L25: 2211
A26: 12 | B26: 2525 | C26: 14 | D26: 2531 | E26: 13 | F26: 2539 | G26: 23 | H26: 2552 | K26: 0 | L26: 1112
A27: 12 | B27: 2653 | C27: 14 | D27: 2660 | E27: 13 | F27: 2670 | G27: 23 | H27: 2681 | K27: 0 | L27: 1112 | N27: Total Target Seq
A28: 12 | B28: 2774 | C28: 14 | D28: 2779 | E28: 13 | F28: 2787 | G28: 14 | H28: 2804 | K28: 0 | L28: 1111 | N28: =COUNTIF(L7:L184,G3) -> 1 | P28: 30 | Q28: 29 | R28: 30 | S28: 30 | T28: 29 | U28: 30
A29: 12 | B29: 2920 | C29: 14 | D29: 2927 | E29: 13 | F29: 2934 | G29: 14 | H29: 2942 | K29: 0 | L29: 1111 | P29: % of reinforcement given in 6 equal intervals based on number of trials
A30: 12 | B30: 3097 | C30: 14 | D30: 3102 | E30: 13 | F30: 3111 | G30: 23 | H30: 3124 | K30: 0 | L30: 1112 | P30: %_1 | Q30: %_2 | R30: %_3 | S30: %_4 | T30: %_5 | U30: %_6
A31: 21 | B31: 3247 | C31: 12 | D31: 3256 | E31: 13 | F31: 3263 | G31: 14 | H31: 3270 | K31: 0 | L31: 2111 | O31: target sequence | P31: =$G$3 -> 2212 | Q31: =$G$3 -> 2212 | R31: =$G$3 -> 2212 | S31: =$G$3 -> 2212 | T31: =$G$3 -> 2212 | U31: =$G$3 -> 2212
A32: 12 | B32: 3384 | C32: 14 | D32: 3390 | E32: 13 | F32: 3394 | G32: 14 | H32: 3403 | K32: 0 | L32: 1111 | O32: total reinforcement | P32: =U20 -> 0 | Q32: =Z20 -> 0 | R32: =AE20 -> 0 | S32: =AJ20 -> 0 | T32: =AO20 -> 0 | U32: =AT20 -> 1
A33: 12 | B33: 3506 | C33: 14 | D33: 3515 | E33: 13 | F33: 3524 | G33: 14 | H33: 3531 | K33: 0 | L33: 1111 | O33: % target
A34: 12 | B34: 3637 | C34: 14 | D34: 3642 | E34: 13 | F34: 3651 | G34: 14 | H34: 3660 | K34: 0 | L34: 1111 | O34: CCRF
A35: 12 | B35: 3772 | C35: 14 | D35: 3777 | E35: 13 | F35: 3783 | G35: 14 | H35: 3791 | K35: 0 | L35: 1111 | O35: % CCRf
A36: 12 | B36: 3896 | C36: 14 | D36: 3905 | E36: 13 | F36: 3912 | G36: 23 | H36: 3925 | K36: 0 | L36: 1112 | O36: average response rate | P36: =H36/P28 -> 130.8333333 | Q36: =(H65-H36)/Q28 -> 133.3103448 | R36: =(H95-H65)/R28 -> 135.7 | S36: =(H125-H95)/S28 -> 137.5666667 | T36: =(H154-H125)/T28 -> 136.3103448 | U36: =(H184-H154)/U28 -> 131.7
A37: 21 | B37: 4032 | C37: 12 | D37: 4041 | E37: 13 | F37: 4048 | G37: 14 | H37: 4057 | K37: 0 | L37: 2111
A38: 12 | B38: 4198 | C38: 14 | D38: 4205 | E38: 24 | F38: 4217 | G38: 23 | H38: 4222 | K38: 0 | L38: 1122
A39: 12 | B39: 4376 | C39: 14 | D39: 4380 | E39: 13 | F39: 4385 | G39: 14 | H39: 4393 | K39: 0 | L39: 1111
A40: 12 | B40: 4500 | C40: 14 | D40: 4505 | E40: 24 | F40: 4518 | G40: 23 | H40: 4523 | K40: 0 | L40: 1122
A41: 12 | B41: 4665 | C41: 14 | D41: 4669 | E41: 13 | F41: 4675 | G41: 14 | H41: 4683 | K41: 0 | L41: 1111
A42: 12 | B42: 4787 | C42: 14 | D42: 4791 | E42: 13 | F42: 4795 | G42: 14 | H42: 4800 | K42: 0 | L42: 1111
A43: 12 | B43: 4901 | C43: 14 | D43: 4907 | E43: 13 | F43: 4913 | G43: 14 | H43: 4923 | K43: 0 | L43: 1111
A44: 12 | B44: 5024 | C44: 14 | D44: 5029 | E44: 13 | F44: 5033 | G44: 14 | H44: 5037 | K44: 0 | L44: 1111
A45: 12 | B45: 5173 | C45: 14 | D45: 5178 | E45: 13 | F45: 5183 | G45: 14 | H45: 5191 | K45: 0 | L45: 1111
A46: 12 | B46: 5307 | C46: 14 | D46: 5312 | E46: 13 | F46: 5316 | G46: 14 | H46: 5321 | K46: 0 | L46: 1111
A47: 12 | B47: 5444 | C47: 14 | D47: 5448 | E47: 13 | F47: 5453 | G47: 14 | H47: 5458 | K47: 0 | L47: 1111
A48: 12 | B48: 5575 | C48: 14 | D48: 5581 | E48: 13 | F48: 5586 | G48: 14 | H48: 5594 | K48: 0 | L48: 1111
A49: 12 | B49: 5709 | C49: 14 | D49: 5714 | E49: 13 | F49: 5722 | G49: 14 | H49: 5730 | K49: 0 | L49: 1111
A50: 21 | B50: 5831 | C50: 12 | D50: 5841 | E50: 13 | F50: 5846 | G50: 14 | H50: 5854 | K50: 0 | L50: 2111
A51: 12 | B51: 5971 | C51: 14 | D51: 5975 | E51: 13 | F51: 5980 | G51: 14 | H51: 5984 | K51: 0 | L51: 1111
A52: 12 | B52: 6107 | C52: 14 | D52: 6111 | E52: 13 | F52: 6115 | G52: 14 | H52: 6120 | K52: 0 | L52: 1111
A53: 12 | B53: 6222 | C53: 14 | D53: 6228 | E53: 13 | F53: 6232 | G53: 14 | H53: 6240 | K53: 0 | L53: 1111
A54: 12 | B54: 6350 | C54: 14 | D54: 6355 | E54: 13 | F54: 6359 | G54: 14 | H54: 6363 | K54: 0 | L54: 1111
A55: 12 | B55: 6488 | C55: 14 | D55: 6493 | E55: 13 | F55: 6497 | G55: 14 | H55: 6502 | K55: 0 | L55: 1111
A56: 12 | B56: 6602 | C56: 14 | D56: 6607 | E56: 13 | F56: 6612 | G56: 14 | H56: 6618 | K56: 0 | L56: 1111
A57: 12 | B57: 6728 | C57: 14 | D57: 6733 | E57: 13 | F57: 6738 | G57: 14 | H57: 6742 | K57: 0 | L57: 1111
A58: 12 | B58: 6855 | C58: 14 | D58: 6859 | E58: 13 | F58: 6863 | G58: 14 | H58: 6868 | K58: 0 | L58: 1111
A59: 12 | B59: 6980 | C59: 14 | D59: 6984 | E59: 13 | F59: 6993 | G59: 14 | H59: 7000 | K59: 0 | L59: 1111
A60: 12 | B60: 7098 | C60: 14 | D60: 7103 | E60: 13 | F60: 7108 | G60: 23 | H60: 7120 | K60: 0 | L60: 1112
A61: 21 | B61: 7223 | C61: 12 | D61: 7232 | E61: 13 | F61: 7236 | G61: 14 | H61: 7241 | K61: 0 | L61: 2111
A62: 12 | B62: 7343 | C62: 14 | D62: 7348 | E62: 13 | F62: 7353 | G62: 14 | H62: 7363 | K62: 0 | L62: 1111
A63: 12 | B63: 7480 | C63: 14 | D63: 7487 | E63: 13 | F63: 7494 | G63: 14 | H63: 7505 | K63: 0 | L63: 1111
A64: 12 | B64: 7622 | C64: 14 | D64: 7626 | E64: 13 | F64: 7630 | G64: 14 | H64: 7635 | K64: 0 | L64: 1111
A65: 12 | B65: 7765 | C65: 14 | D65: 7770 | E65: 13 | F65: 7775 | G65: 23 | H65: 7791 | K65: 0 | L65: 1112
A66: 12 | B66: 7906 | C66: 14 | D66: 7910 | E66: 13 | F66: 7914 | G66: 14 | H66: 7920 | K66: 0 | L66: 1111
A67: 12 | B67: 8028 | C67: 14 | D67: 8040 | E67: 13 | F67: 8048 | G67: 23 | H67: 8063 | K67: 0 | L67: 1112
A68: 12 | B68: 8190 | C68: 14 | D68: 8195 | E68: 13 | F68: 8200 | G68: 23 | H68: 8213 | K68: 0 | L68: 1112
A69: 21 | B69: 8314 | C69: 12 | D69: 8325 | E69: 13 | F69: 8330 | G69: 23 | H69: 8342 | K69: 0 | L69: 2112
A70: 12 | B70: 8450 | C70: 14 | D70: 8456 | E70: 13 | F70: 8461 | G70: 14 | H70: 8469 | K70: 0 | L70: 1111
A71: 12 | B71: 8568 | C71: 14 | D71: 8573 | E71: 13 | F71: 8591 | G71: 23 | H71: 8605 | K71: 0 | L71: 1112
A72: 12 | B72: 8712 | C72: 14 | D72: 8717 | E72: 13 | F72: 8721 | G72: 14 | H72: 8726 | K72: 0 | L72: 1111
A73: 12 | B73: 8835 | C73: 14 | D73: 8843 | E73: 13 | F73: 8848 | G73: 23 | H73: 8863 | K73: 0 | L73: 1112
A74: 12 | B74: 8971 | C74: 14 | D74: 8975 | E74: 13 | F74: 8982 | G74: 14 | H74: 8986 | K74: 0 | L74: 1111
A75: 12 | B75: 9105 | C75: 14 | D75: 9110 | E75: 13 | F75: 9115 | G75: 14 | H75: 9123 | K75: 0 | L75: 1111
A76: 12 | B76: 9235 | C76: 14 | D76: 9239 | E76: 13 | F76: 9244 | G76: 14 | H76: 9248 | K76: 0 | L76: 1111
A77: 12 | B77: 9368 | C77: 14 | D77: 9373 | E77: 13 | F77: 9377 | G77: 14 | H77: 9382 | K77: 0 | L77: 1111
A78: 12 | B78: 9486 | C78: 14 | D78: 9494 | E78: 13 | F78: 9498 | G78: 14 | H78: 9508 | K78: 0 | L78: 1111
A79: 12 | B79: 9636 | C79: 14 | D79: 9640 | E79: 13 | F79: 9645 | G79: 14 | H79: 9651 | K79: 0 | L79: 1111
A80: 12 | B80: 9793 | C80: 14 | D80: 9798 | E80: 13 | F80: 9806 | G80: 23 | H80: 9818 | K80: 0 | L80: 1112
A81: 12 | B81: 9930 | C81: 14 | D81: 9937 | E81: 13 | F81: 9946 | G81: 23 | H81: 9959 | K81: 0 | L81: 1112
A82: 12 | B82: 10068 | C82: 14 | D82: 10072 | E82: 13 | F82: 10077 | G82: 23 | H82: 10092 | K82: 0 | L82: 1112
A83: 12 | B83: 10211 | C83: 14 | D83: 10216 | E83: 13 | F83: 10223 | G83: 14 | H83: 10230 | K83: 0 | L83: 1111
A84: 12 | B84: 10340 | C84: 14 | D84: 10346 | E84: 13 | F84: 10351 | G84: 14 | H84: 10356 | K84: 0 | L84: 1111
A85: 12 | B85: 10486 | C85: 14 | D85: 10490 | E85: 13 | F85: 10495 | G85: 14 | H85: 10499 | K85: 0 | L85: 1111
A86: 12 | B86: 10608 | C86: 14 | D86: 10613 | E86: 13 | F86: 10618 | G86: 14 | H86: 10625 | K86: 0 | L86: 1111
A87: 12 | B87: 10743 | C87: 14 | D87: 10750 | E87: 13 | F87: 10758 | G87: 23 | H87: 10774 | K87: 0 | L87: 1112
A88: 21 | B88: 10872 | C88: 12 | D88: 10890 | E88: 13 | F88: 10895 | G88: 23 | H88: 10906 | K88: 0 | L88: 2112
A89: 12 | B89: 11012 | C89: 14 | D89: 11019 | E89: 13 | F89: 11026 | G89: 14 | H89: 11034 | K89: 0 | L89: 1111
A90: 12 | B90: 11141 | C90: 23 | D90: 11153 | E90: 24 | F90: 11159 | G90: 14 | H90: 11172 | K90: 0 | L90: 1221
A91: 12 | B91: 11290 | C91: 14 | D91: 11295 | E91: 13 | F91: 11300 | G91: 14 | H91: 11304 | K91: 0 | L91: 1111
A92: 12 | B92: 11404 | C92: 14 | D92: 11415 | E92: 13 | F92: 11420 | G92: 23 | H92: 11434 | K92: 0 | L92: 1112
A93: 12 | B93: 11548 | C93: 14 | D93: 11554 | E93: 13 | F93: 11562 | G93: 23 | H93: 11575 | K93: 0 | L93: 1112
A94: 12 | B94: 11688 | C94: 14 | D94: 11693 | E94: 13 | F94: 11700 | G94: 14 | H94: 11709 | K94: 0 | L94: 1111
A95: 21 | B95: 11827 | C95: 12 | D95: 11840 | E95: 13 | F95: 11849 | G95: 23 | H95: 11862 | K95: 0 | L95: 2112
A96: 21 | B96: 11959 | C96: 21 | D96: 11974 | E96: 11 | F96: 11985 | G96: 12 | H96: 11990 | K96: 0 | L96: 2211
A97: 12 | B97: 12092 | C97: 14 | D97: 12096 | E97: 13 | F97: 12104 | G97: 14 | H97: 12112 | K97: 0 | L97: 1111
A98: 12 | B98: 12229 | C98: 14 | D98: 12233 | E98: 13 | F98: 12237 | G98: 14 | H98: 12242 | K98: 0 | L98: 1111
A99: 12 | B99: 12367 | C99: 23 | D99: 12378 | E99: 24 | F99: 12385 | G99: 23 | H99: 12392 | K99: 0 | L99: 1222
A100: 21 | B100: 12517 | C100: 12 | D100: 12528 | E100: 13 | F100: 12533 | G100: 14 | H100: 12538 | K100: 0 | L100: 2111
A101: 12 | B101: 12652 | C101: 14 | D101: 12656 | E101: 13 | F101: 12661 | G101: 14 | H101: 12666 | K101: 0 | L101: 1111
A102: 12 | B102: 12794 | C102: 14 | D102: 12798 | E102: 13 | F102: 12802 | G102: 14 | H102: 12806 | K102: 0 | L102: 1111
A103: 12 | B103: 12936 | C103: 14 | D103: 12940 | E103: 13 | F103: 12944 | G103: 14 | H103: 12950 | K103: 0 | L103: 1111
A104: 12 | B104: 13055 | C104: 14 | D104: 13061 | E104: 13 | F104: 13067 | G104: 23 | H104: 13082 | K104: 0 | L104: 1112
A105: 12 | B105: 13191 | C105: 14 | D105: 13195 | E105: 13 | F105: 13199 | G105: 14 | H105: 13203 | K105: 0 | L105: 1111
A106: 12 | B106: 13325 | C106: 14 | D106: 13330 | E106: 13 | F106: 13335 | G106: 14 | H106: 13344 | K106: 0 | L106: 1111
A107: 12 | B107: 13472 | C107: 14 | D107: 13479 | E107: 13 | F107: 13486 | G107: 23 | H107: 13499 | K107: 0 | L107: 1112
A108: 12 | B108: 13609 | C108: 14 | D108: 13614 | E108: 13 | F108: 13619 | G108: 23 | H108: 13631 | K108: 0 | L108: 1112
A109: 12 | B109: 13763 | C109: 14 | D109: 13770 | E109: 13 | F109: 13779 | G109: 23 | H109: 13792 | K109: 0 | L109: 1112
A110: 12 | B110: 13891 | C110: 23 | D110: 13902 | E110: 24 | F110: 13907 | G110: 23 | H110: 13914 | K110: 0 | L110: 1222
A111: 12 | B111: 14016 | C111: 14 | D111: 14020 | E111: 13 | F111: 14031 | G111: 14 | H111: 14039 | K111: 0 | L111: 1111
A112: 12 | B112: 14151 | C112: 14 | D112: 14159 | E112: 13 | F112: 14167 | G112: 23 | H112: 14179 | K112: 0 | L112: 1112
A113: 12 | B113: 14286 | C113: 14 | D113: 14290 | E113: 24 | F113: 14301 | G113: 23 | H113: 14308 | K113: 0 | L113: 1122
A114: 12 | B114: 14408 | C114: 14 | D114: 14413 | E114: 24 | F114: 14422 | G114: 23 | H114: 14429 | K114: 0 | L114: 1122
A115: 12 | B115: 14528 | C115: 23 | D115: 14539 | E115: 24 | F115: 14544 | G115: 23 | H115: 14552 | K115: 0 | L115: 1222
A116: 21 | B116: 14665 | C116: 21 | D116: 14672 | E116: 22 | F116: 14678 | G116: 23 | H116: 14683 | K116: 0 | L116: 2222
A117: 12 | B117: 14781 | C117: 14 | D117: 14791 | E117: 24 | F117: 14802 | G117: 23 | H117: 14809 | K117: 0 | L117: 1122
A118: 21 | B118: 14913 | C118: 12 | D118: 14922 | E118: 24 | F118: 14935 | G118: 23 | H118: 14941 | K118: 0 | L118: 2122
A119: 21 | B119: 15048 | C119: 21 | D119: 15050 | E119: 11 | F119: 15061 | G119: 12 | H119: 15066 | K119: 0 | L119: 2211
A120: 21 | B120: 15163 | C120: 21 | D120: 15165 | E120: 11 | F120: 15177 | G120: 12 | H120: 15183 | K120: 0 | L120: 2211
A121: 12 | B121: 15402 | C121: 14 | D121: 15408 | E121: 13 | F121: 15413 | G121: 14 | H121: 15424 | K121: 0 | L121: 1111
A122: 12 | B122: 15526 | C122: 23 | D122: 15549 | E122: 24 | F122: 15554 | G122: 23 | H122: 15561 | K122: 0 | L122: 1222
A123: 12 | B123: 15660 | C123: 14 | D123: 15665 | E123: 13 | F123: 15673 | G123: 23 | H123: 15684 | K123: 0 | L123: 1112
A124: 21 | B124: 15798 | C124: 21 | D124: 15812 | E124: 11 | F124: 15825 | G124: 12 | H124: 15832 | K124: 0 | L124: 2211
A125: 12 | B125: 15960 | C125: 14 | D125: 15967 | E125: 13 | F125: 15976 | G125: 23 | H125: 15989 | K125: 0 | L125: 1112
A126: 21 | B126: 16095 | C126: 12 | D126: 16107 | E126: 24 | F126: 16118 | G126: 23 | H126: 16126 | K126: 0 | L126: 2122
A127: 12 | B127: 16221 | C127: 23 | D127: 16234 | E127: 13 | F127: 16242 | G127: 14 | H127: 16246 | K127: 0 | L127: 1211
A128: 21 | B128: 16356 | C128: 12 | D128: 16365 | E128: 13 | F128: 16370 | G128: 14 | H128: 16374 | K128: 0 | L128: 2111
A129: 21 | B129: 16473 | C129: 12 | D129: 16485 | E129: 24 | F129: 16494 | G129: 23 | H129: 16501 | K129: 0 | L129: 2122
A130: 21 | B130: 16607 | C130: 12 | D130: 16618 | E130: 13 | F130: 16622 | G130: 14 | H130: 16626 | K130: 0 | L130: 2111
A131: 12 | B131: 16728 | C131: 23 | D131: 16741 | E131: 24 | F131: 16749 | G131: 23 | H131: 16759 | K131: 0 | L131: 1222
A132: 12 | B132: 16879 | C132: 14 | D132: 16884 | E132: 13 | F132: 16889 | G132: 23 | H132: 16902 | K132: 0 | L132: 1112
A133: 12 | B133: 16994 | C133: 14 | D133: 17000 | E133: 24 | F133: 17014 | G133: 23 | H133: 17021 | K133: 0 | L133: 1122
A134: 21 | B134: 17173 | C134: 21 | D134: 17180 | E134: 22 | F134: 17187 | G134: 23 | H134: 17202 | K134: 0 | L134: 2222
A135: 21 | B135: 17303 | C135: 12 | D135: 17312 | E135: 24 | F135: 17322 | G135: 23 | H135: 17327 | K135: 0 | L135: 2122
A136: 21 | B136: 17438 | C136: 12 | D136: 17447 | E136: 24 | F136: 17457 | G136: 23 | H136: 17465 | K136: 0 | L136: 2122
A137: 12 | B137: 17587 | C137: 14 | D137: 17591 | E137: 13 | F137: 17595 | G137: 14 | H137: 17600 | K137: 0 | L137: 1111
A138: 21 | B138: 17704 | C138: 21 | D138: 17716 | E138: 22 | F138: 17721 | G138: 23 | H138: 17728 | K138: 0 | L138: 2222
A139: 12 | B139: 17831 | C139: 14 | D139: 17835 | E139: 24 | F139: 17844 | G139: 23 | H139: 17848 | K139: 0 | L139: 1122
A140: 12 | B140: 17957 | C140: 14 | D140: 17963 | E140: 13 | F140: 17968 | G140: 14 | H140: 17982 | K140: 0 | L140: 1111
A141: 21 | B141: 18093 | C141: 12 | D141: 18103 | E141: 13 | F141: 18108 | G141: 14 | H141: 18112 | K141: 0 | L141: 2111
A142: 12 | B142: 18301 | C142: 23 | D142: 18310 | E142: 24 | F142: 18316 | G142: 23 | H142: 18327 | K142: 0 | L142: 1222
A143: 12 | B143: 18434 | C143: 14 | D143: 18439 | E143: 13 | F143: 18443 | G143: 23 | H143: 18454 | K143: 0 | L143: 1112
A144: 12 | B144: 18552 | C144: 23 | D144: 18560 | E144: 24 | F144: 18568 | G144: 23 | H144: 18576 | K144: 0 | L144: 1222
A145: 21 | B145: 18683 | C145: 12 | D145: 18692 | E145: 13 | F145: 18696 | G145: 23 | H145: 18707 | K145: 0 | L145: 2112
A146: 12 | B146: 18836 | C146: 14 | D146: 18841 | E146: 13 | F146: 18845 | G146: 14 | H146: 18850 | K146: 0 | L146: 1111
A147: 12 | B147: 18953 | C147: 14 | D147: 18958 | E147: 24 | F147: 18968 | G147: 23 | H147: 18975 | K147: 0 | L147: 1122
A148: 12 | B148: 19080 | C148: 14 | D148: 19084 | E148: 13 | F148: 19089 | G148: 14 | H148: 19094 | K148: 0 | L148: 1111
A149: 21 | B149: 19233 | C149: 12 | D149: 19247 | E149: 24 | F149: 19259 | G149: 23 | H149: 19264 | K149: 0 | L149: 2122
A150: 21 | B150: 19371 | C150: 21 | D150: 19384 | E150: 22 | F150: 19389 | G150: 23 | H150: 19396 | K150: 0 | L150: 2222
A151: 12 | B151: 19508 | C151: 14 | D151: 19514 | E151: 13 | F151: 19521 | G151: 14 | H151: 19533 | K151: 0 | L151: 1111
A152: 12 | B152: 19658 | C152: 14 | D152: 19662 | E152: 13 | F152: 19667 | G152: 14 | H152: 19671 | K152: 0 | L152: 1111
A153: 12 | B153: 19779 | C153: 14 | D153: 19784 | E153: 13 | F153: 19791 | G153: 23 | H153: 19805 | K153: 0 | L153: 1112
A154: 12 | B154: 19915 | C154: 14 | D154: 19922 | E154: 13 | F154: 19929 | G154: 23 | H154: 19942 | K154: 0 | L154: 1112
A155: 12 | B155: 20045 | C155: 14 | D155: 20051 | E155: 13 | F155: 20055 | G155: 14 | H155: 20065 | K155: 0 | L155: 1111
A156: 12 | B156: 20173 | C156: 14 | D156: 20179 | E156: 13 | F156: 20187 | G156: 14 | H156: 20196 | K156: 0 | L156: 1111
A157: 12 | B157: 20316 | C157: 14 | D157: 20321 | E157: 13 | F157: 20326 | G157: 14 | H157: 20331 | K157: 0 | L157: 1111
A158: 12 | B158: 20445 | C158: 14 | D158: 20452 | E158: 13 | F158: 20459 | G158: 14 | H158: 20468 | K158: 0 | L158: 1111
A159: 12 | B159: 20580 | C159: 14 | D159: 20584 | E159: 13 | F159: 20588 | G159: 14 | H159: 20596 | K159: 0 | L159: 1111
A160: 21 | B160: 20706 | C160: 12 | D160: 20717 | E160: 24 | F160: 20732 | G160: 23 | H160: 20746 | K160: 0 | L160: 2122
A161: 12 | B161: 20842 | C161: 23 | D161: 20851 | E161: 13 | F161: 20863 | G161: 14 | H161: 20869 | K161: 0 | L161: 1211
A162: 12 | B162: 20981 | C162: 14 | D162: 20986 | E162: 24 | F162: 20996 | G162: 23 | H162: 21003 | K162: 0 | L162: 1122
A163: 12 | B163: 21111 | C163: 14 | D163: 21116 | E163: 13 | F163: 21120 | G163: 14 | H163: 21125 | K163: 0 | L163: 1111
A164: 12 | B164: 21239 | C164: 14 | D164: 21252 | E164: 13 | F164: 21257 | G164: 23 | H164: 21269 | K164: 0 | L164: 1112
A165: 12 | B165: 21385 | C165: 14 | D165: 21390 | E165: 13 | F165: 21394 | G165: 14 | H165: 21399 | K165: 0 | L165: 1111
A166: 12 | B166: 21522 | C166: 14 | D166: 21529 | E166: 24 | F166: 21542 | G166: 23 | H166: 21549 | K166: 0 | L166: 1122
A167: 12 | B167: 21652 | C167: 23 | D167: 21664 | E167: 24 | F167: 21673 | G167: 23 | H167: 21679 | K167: 0 | L167: 1222
A168: 12 | B168: 21786 | C168: 14 | D168: 21790 | E168: 13 | F168: 21798 | G168: 23 | H168: 21811 | K168: 0 | L168: 1112
A169: 12 | B169: 21922 | C169: 14 | D169: 21930 | E169: 13 | F169: 21935 | G169: 14 | H169: 21944 | K169: 0 | L169: 1111
A170: 12 | B170: 22043 | C170: 14 | D170: 22051 | E170: 13 | F170: 22056 | G170: 23 | H170: 22066 | K170: 0 | L170: 1112
A171: 12 | B171: 22179 | C171: 14 | D171: 22187 | E171: 24 | F171: 22200 | G171: 23 | H171: 22205 | K171: 0 | L171: 1122
A172: 12 | B172: 22306 | C172: 23 | D172: 22317 | E172: 13 | F172: 22328 | G172: 14 | H172: 22335 | K172: 0 | L172: 1211
A173: 12 | B173: 22436 | C173: 14 | D173: 22441 | E173: 13 | F173: 22446 | G173: 14 | H173: 22451 | K173: 0 | L173: 1111
A174: 21 | B174: 22553 | C174: 21 | D174: 22569 | E174: 22 | F174: 22577 | G174: 23 | H174: 22585 | K174: 0 | L174: 2222
A175: 12 | B175: 22696 | C175: 14 | D175: 22700 | E175: 13 | F175: 22704 | G175: 14 | H175: 22709 | K175: 0 | L175: 1111
A176: 21 | B176: 22820 | C176: 21 | D176: 22828 | E176: 22 | F176: 22836 | G176: 23 | H176: 22843 | K176: 0 | L176: 2222
A177: 12 | B177: 22957 | C177: 14 | D177: 22961 | E177: 13 | F177: 22965 | G177: 14 | H177: 22969 | K177: 0 | L177: 1111
A178: 21 | B178: 23076 | C178: 21 | D178: 23081 | E178: 22 | F178: 23085 | G178: 23 | H178: 23090 | K178: 0 | L178: 2222
A179: 21 | B179: 23195 | C179: 21 | D179: 23212 | E179: 22 | F179: 23219 | G179: 23 | H179: 23227 | K179: 0 | L179: 2222
A180: 21 | B180: 23341 | C180: 12 | D180: 23350 | E180: 13 | F180: 23354 | G180: 14 | H180: 23360 | K180: 0 | L180: 2111
A181: 12 | B181: 23465 | C181: 23 | D181: 23473 | E181: 13 | F181: 23484 | G181: 14 | H181: 23491 | K181: 0 | L181: 1211
A182: 12 | B182: 23602 | C182: 14 | D182: 23611 | E182: 13 | F182: 23617 | G182: 14 | H182: 23625 | K182: 0 | L182: 1111
A183: 21 | B183: 23725 | C183: 21 | D183: 23742 | E183: 11 | F183: 23753 | G183: 21 | H183: 23764 | K183: 0 | L183: 2212
A184: 21 | B184: 23871 | C184: 12 | D184: 23879 | E184: 24 | F184: 23888 | G184: 23 | H184: 23893 | K184: 0 | L184: 2122

Sheet !L803A50.053
A1: Report for:!L803A50.053
A2: Date: | B2: <date>
A3: Hen: | B3: <hen> | F3: Correct Sequence | G3: =Start!J2 -> 2212 | P3: Total Sequences in Data | Q3: =4994-COUNTBLANK(L7:L5000) -> 166 | V3: Total Sequences in Block Data | W3: =COUNTA(L7:L34) -> 28 | AA3: Total Sequences in Block Data | AB3: =COUNTA(L35:L61) -> 27 | AF3: Total Sequences in Block Data | AG3: =COUNTA(L62:L89) -> 28 | AK3: Total Sequences in Block Data | AL3: =COUNTA(L90:L117) -> 28 | AP3: Total Sequences in Block Data | AQ3: =COUNTA(L118:L144) -> 27 | AU3: Total Sequences in Block Data | AV3: =COUNTA(L145:L172) -> 28
P4: Total Sequences in Summary | Q4: =SUM(O7:O22) -> 166 | V4: Total Sequences in Block Summary | W4: =SUM(U7:U22) -> 28 | AA4: Total Sequences in Block Summary | AB4: =SUM(Z7:Z22) -> 27 | AF4: Total Sequences in Block Summary | AG4: =SUM(AE7:AE22) -> 28 | AK4: Total Sequences in Block Summary | AL4: =SUM(AJ7:AJ22) -> 28 | AP4: Total Sequences in Block Summary | AQ4: =SUM(AO7:AO22) -> 27 | AU4: Total Sequences in Block Summary | AV4: =SUM(AT7:AT22) -> 28
T5: Block 1 | Y5: Block 2 | AD5: Block 3 | AI5: Block 4 | AN5: Block 5 | AS5: Block 6
A6: Sequence Component 1 | B6: Time 1 | C6: Sequence Component 2 | D6: Time 2 | E6: Sequence Component 3 | F6: Time 3 | G6: Sequence Component 4 | H6: Time 4 | I6: Sequence Component 5 | J6: Time 5 | K6: Correct? 0=No 1=Yes | L6: Sequence | N6: Frequency | P6: Relative Frequency | Q6: Variability | T6: Frequency | V6: Relative Frequency | W6: Variability | Y6: Frequency | AA6: Relative Frequency | AB6: Variability | AD6: Frequency | AF6: Relative Frequency | AG6: Variability | AI6: Frequency | AK6: Relative Frequency | AL6: Variability | AN6: Frequency | AP6: Relative Frequency | AQ6: Variability | AS6: Frequency | AU6: Relative Frequency | AV6: Variability
A7: 12 | B7: 10 | C7: 14 | D7: 20 | E7: 24 | F7: 33 | G7: 14 | H7: 46 | K7: 0 | L7: 1121 | N7: 1111 | O7: =COUNTIF($L$7:$L$500,N7) -> 8 | P7: =O7/$Q$4 -> 0.04819277108 | Q7: =IF(P7=0,0,(P7*((LOG(P7))/LOG(2)))) -> -0.2108452738 | T7: =N7 -> 1111 | U7: =COUNTIF(L7:L34,T7) -> 5 | V7: =U7/(W4-U20) -> 0.1785714286 | W7: =IF(V7=0,0,(V7*((LOG(V7))/LOG(2)))) -> -0.4438262191 | Y7: =N7 -> 1111 | Z7: =COUNTIF(L35:L61,Y7) -> 3 | AA7: =Z7/(AB4-Z20) -> 0.1153846154 | AB7: =IF(AA7=0,0,(AA7*((LOG(AA7))/LOG(2)))) -> -0.3594781405 | AD7: =N7 -> 1111 | AE7: =COUNTIF(L62:L89,AD7) -> 0 | AF7: =AE7/(AG4-AE20) -> 0 | AG7: =IF(AF7=0,0,(AF7*((LOG(AF7))/LOG(2)))) -> 0 | AI7: =N7 -> 1111 | AJ7: =COUNTIF(L90:L117,AI7) -> 0 | AK7: =AJ7/(AL4-AJ20) -> 0 | AL7: =IF(AK7=0,0,(AK7*((LOG(AK7))/LOG(2)))) -> 0 | AN7: =N7 -> 1111 | AO7: =COUNTIF(L118:L144,AN7) -> 0 | AP7: =AO7/(AQ4-AO20) -> 0 | AQ7: =IF(AP7=0,0,(AP7*((LOG(AP7))/LOG(2)))) -> 0 | AS7: =N7 -> 1111 | AT7: =COUNTIF(L145:L172,AS7) -> 0 | AU7: =AT7/(AV4-AT20) -> 0 | AV7: =IF(AU7=0,0,(AU7*((LOG(AU7))/LOG(2)))) -> 0
A8: 12 | B8: 147 | C8: 14 | D8: 155 | E8: 13 | F8: 164 | G8: 14 | H8: 172 | K8: 0 | L8: 1111 | N8: 1112 | O8: =COUNTIF($L$7:$L$500,N8) -> 19 | P8: =O8/$Q$4 -> 0.1144578313 | Q8: =IF(P8=0,0,(P8*((LOG(P8))/LOG(2)))) -> -0.3579224484 | T8: =N8 -> 1112 | U8: =COUNTIF(L7:L34,T8) -> 12 | V8: =U8/(W4-U20) -> 0.4285714286 | W8: =IF(V8=0,0,(V8*((LOG(V8))/LOG(2)))) -> -0.5238824663 | Y8: =N8 -> 1112 | Z8: =COUNTIF(L35:L61,Y8) -> 3 | AA8: =Z8/(AB4-Z20) -> 0.1153846154 | AB8: =IF(AA8=0,0,(AA8*((LOG(AA8))/LOG(2)))) -> -0.3594781405 | AD8: =N8 -> 1112 | AE8: =COUNTIF(L62:L89,AD8) -> 4 | AF8: =AE8/(AG4-AE20) -> 0.1481481481 | AG8: =IF(AF8=0,0,(AF8*((LOG(AF8))/LOG(2)))) -> -0.4081314818 | AI8: =N8 -> 1112 | AJ8: =COUNTIF(L90:L117,AI8) -> 0 | AK8: =AJ8/(AL4-AJ20) -> 0 | AL8: =IF(AK8=0,0,(AK8*((LOG(AK8))/LOG(2)))) -> 0 | AN8: =N8 -> 1112 | AO8: =COUNTIF(L118:L144,AN8) -> 0 | AP8: =AO8/(AQ4-AO20) -> 0 | AQ8: =IF(AP8=0,0,(AP8*((LOG(AP8))/LOG(2)))) -> 0 | AS8: =N8 -> 1112 | AT8: =COUNTIF(L145:L172,AS8) -> 0 | AU8: =AT8/(AV4-AT20) -> 0 | AV8: =IF(AU8=0,0,(AU8*((LOG(AU8))/LOG(2)))) -> 0
A9: 12 | B9: 272 | C9: 14 | D9: 282 | E9: 24 | F9: 291 | G9: 23 | H9: 302 | K9: 0 | L9: 1122 | N9: 1121 | O9: =COUNTIF($L$7:$L$500,N9) -> 1 | P9: =O9/$Q$4 -> 0.006024096386 | Q9: =IF(P9=0,0,(P9*((LOG(P9))/LOG(2)))) -> -0.04442794838 | T9: =N9 -> 1121 | U9: =COUNTIF(L7:L34,T9) -> 1 | V9: =U9/(W4-U20) -> 0.03571428571 | W9: =IF(V9=0,0,(V9*((LOG(V9))/LOG(2)))) -> -0.1716912472 | Y9: =N9 -> 1121 | Z9: =COUNTIF(L35:L61,Y9) -> 0 | AA9: =Z9/(AB4-Z20) -> 0 | AB9: =IF(AA9=0,0,(AA9*((LOG(AA9))/LOG(2)))) -> 0 | AD9: =N9 -> 1121 | AE9: =COUNTIF(L62:L89,AD9) -> 0 | AF9: =AE9/(AG4-AE20) -> 0 | AG9: =IF(AF9=0,0,(AF9*((LOG(AF9))/LOG(2)))) -> 0 | AI9: =N9 -> 1121 | AJ9: =COUNTIF(L90:L117,AI9) -> 0 | AK9: =AJ9/(AL4-AJ20) -> 0 | AL9: =IF(AK9=0,0,(AK9*((LOG(AK9))/LOG(2)))) -> 0 | AN9: =N9 -> 1121 | AO9: =COUNTIF(L118:L144,AN9) -> 0 | AP9: =AO9/(AQ4-AO20) -> 0 | AQ9: =IF(AP9=0,0,(AP9*((LOG(AP9))/LOG(2)))) -> 0 | AS9: =N9 -> 1121 | AT9: =COUNTIF(L145:L172,AS9) -> 0 | AU9: =AT9/(AV4-AT20) -> 0 | AV9: =IF(AU9=0,0,(AU9*((LOG(AU9))/LOG(2)))) -> 0
A10: 12 | B10: 393 | C10: 14 | D10: 411 | E10: 24 | F10: 426 | G10: 23 | H10: 438 | K10: 0 | L10: 1122 | N10: 1122 | O10: =COUNTIF($L$7:$L$500,N10) -> 19 | P10: =O10/$Q$4 -> 0.1144578313 | Q10: =IF(P10=0,0,(P10*((LOG(P10))/LOG(2)))) -> -0.3579224484 | T10: =N10 -> 1122 | U10: =COUNTIF(L7:L34,T10) -> 7 | V10: =U10/(W4-U20) -> 0.25 | W10: =IF(V10=0,0,(V10*((LOG(V10))/LOG(2)))) -> -0.5 | Y10: =N10 -> 1122 | Z10: =COUNTIF(L35:L61,Y10) -> 4 | AA10: =Z10/(AB4-Z20) -> 0.1538461538 | AB10: =IF(AA10=0,0,(AA10*((LOG(AA10))/LOG(2)))) -> -0.4154522643 | AD10: =N10 -> 1122 | AE10: =COUNTIF(L62:L89,AD10) -> 6 | AF10: =AE10/(AG4-AE20) -> 0.2222222222 | AG10: =IF(AF10=0,0,(AF10*((LOG(AF10))/LOG(2)))) -> -0.4822055559 | AI10: =N10 -> 1122 | AJ10: =COUNTIF(L90:L117,AI10) -> 2 | AK10: =AJ10/(AL4-AJ20) -> 0.07692307692 | AL10: =IF(AK10=0,0,(AK10*((LOG(AK10))/LOG(2)))) -> -0.2846492091 | AN10: =N10 -> 1122 | AO10: =COUNTIF(L118:L144,AN10) -> 0 | AP10: =AO10/(AQ4-AO20) -> 0 | AQ10: =IF(AP10=0,0,(AP10*((LOG(AP10))/LOG(2)))) -> 0 | AS10: =N10 -> 1122 | AT10: =COUNTIF(L145:L172,AS10) -> 0 | AU10: =AT10/(AV4-AT20) -> 0 | AV10: =IF(AU10=0,0,(AU10*((LOG(AU10))/LOG(2)))) -> 0
A11: 12 | B11: 543 | C11: 14 | D11: 551 | E11: 13 | F11: 560 | G11: 23 | H11: 573 | K11: 0 | L11: 1112 | N11: 1211 | O11: =COUNTIF($L$7:$L$500,N11) -> 5 | P11: =O11/$Q$4 -> 0.03012048193 | Q11: =IF(P11=0,0,(P11*((LOG(P11))/LOG(2)))) -> -0.1522021487 | T11: =N11 -> 1211 | U11: =COUNTIF(L7:L34,T11) -> 0 | V11: =U11/(W4-U20) -> 0 | W11: =IF(V11=0,0,(V11*((LOG(V11))/LOG(2)))) -> 0 | Y11: =N11 -> 1211 | Z11: =COUNTIF(L35:L61,Y11) -> 3 | AA11: =Z11/(AB4-Z20) -> 0.1153846154 | AB11: =IF(AA11=0,0,(AA11*((LOG(AA11))/LOG(2)))) -> -0.3594781405 | AD11: =N11 -> 1211 | AE11: =COUNTIF(L62:L89,AD11) -> 2 | AF11: =AE11/(AG4-AE20) -> 0.07407407407 | AG11: =IF(AF11=0,0,(AF11*((LOG(AF11))/LOG(2)))) -> -0.278139815 | AI11: =N11 -> 1211 | AJ11: =COUNTIF(L90:L117,AI11) -> 0 | AK11: =AJ11/(AL4-AJ20) -> 0 | AL11: =IF(AK11=0,0,(AK11*((LOG(AK11))/LOG(2)))) -> 0 | AN11: =N11 -> 1211 | AO11: =COUNTIF(L118:L144,AN11) -> 0 | AP11: =AO11/(AQ4-AO20) -> 0 | AQ11: =IF(AP11=0,0,(AP11*((LOG(AP11))/LOG(2)))) -> 0 | AS11: =N11 -> 1211 | AT11: =COUNTIF(L145:L172,AS11) -> 0 | AU11: =AT11/(AV4-AT20) -> 0 | AV11: =IF(AU11=0,0,(AU11*((LOG(AU11))/LOG(2)))) -> 0
A12: 12 | B12: 667 | C12: 14 | D12: 675 | E12: 13 | F12: 682 | G12: 23 | H12: 694 | K12: 0 | L12: 1112 | N12: 1212 | O12: =COUNTIF($L$7:$L$500,N12) -> 2 | P12: =O12/$Q$4 -> 0.01204819277 | Q12: =IF(P12=0,0,(P12*((LOG(P12))/LOG(2)))) -> -0.07680770399 | T12: =N12 -> 1212 | U12: =COUNTIF(L7:L34,T12) -> 0 | V12: =U12/(W4-U20) -> 0 | W12: =IF(V12=0,0,(V12*((LOG(V12))/LOG(2)))) -> 0 | Y12: =N12 -> 1212 | Z12: =COUNTIF(L35:L61,Y12) -> 1 | AA12: =Z12/(AB4-Z20) -> 0.03846153846 | AB12: =IF(AA12=0,0,(AA12*((LOG(AA12))/LOG(2)))) -> -0.180786143 | AD12: =N12 -> 1212 | AE12: =COUNTIF(L62:L89,AD12) -> 1 | AF12: =AE12/(AG4-AE20) -> 0.03703703704 | AG12: =IF(AF12=0,0,(AF12*((LOG(AF12))/LOG(2)))) -> -0.1761069445 | AI12: =N12 -> 1212 | AJ12: =COUNTIF(L90:L117,AI12) -> 0 | AK12: =AJ12/(AL4-AJ20) -> 0 | AL12: =IF(AK12=0,0,(AK12*((LOG(AK12))/LOG(2)))) -> 0 | AN12: =N12 -> 1212 | AO12: =COUNTIF(L118:L144,AN12) -> 0 | AP12: =AO12/(AQ4-AO20) -> 0 | AQ12: =IF(AP12=0,0,(AP12*((LOG(AP12))/LOG(2)))) -> 0 | AS12: =N12 -> 1212 | AT12: =COUNTIF(L145:L172,AS12) -> 0 | AU12: =AT12/(AV4-AT20) -> 0 | AV12: =IF(AU12=0,0,(AU12*((LOG(AU12))/LOG(2)))) -> 0
A13: 12 | B13: 795 | C13: 14 | D13: 801 | E13: 13 | F13: 810 | G13: 23 | H13: 822 | K13: 0 | L13: 1112 | N13: 1221 | O13: =COUNTIF($L$7:$L$500,N13) -> 0 | P13: =O13/$Q$4 -> 0 | Q13: =IF(P13=0,0,(P13*((LOG(P13))/LOG(2)))) -> 0 | T13: =N13 -> 1221 | U13: =COUNTIF(L7:L34,T13) -> 0 | V13: =U13/(W4-U20) -> 0 | W13: =IF(V13=0,0,(V13*((LOG(V13))/LOG(2)))) -> 0 | Y13: =N13 -> 1221 | Z13: =COUNTIF(L35:L61,Y13) -> 0 | AA13: =Z13/(AB4-Z20) -> 0 | AB13: =IF(AA13=0,0,(AA13*((LOG(AA13))/LOG(2)))) -> 0 | AD13: =N13 -> 1221 | AE13: =COUNTIF(L62:L89,AD13) -> 0 | AF13: =AE13/(AG4-AE20) -> 0 | AG13: =IF(AF13=0,0,(AF13*((LOG(AF13))/LOG(2)))) -> 0 | AI13: =N13 -> 1221 | AJ13: =COUNTIF(L90:L117,AI13) -> 0 | AK13: =AJ13/(AL4-AJ20) -> 0 | AL13: =IF(AK13=0,0,(AK13*((LOG(AK13))/LOG(2)))) -> 0 | AN13: =N13 -> 1221 | AO13: =COUNTIF(L118:L144,AN13) -> 0 | AP13: =AO13/(AQ4-AO20) -> 0 | AQ13: =IF(AP13=0,0,(AP13*((LOG(AP13))/LOG(2)))) -> 0 | AS13: =N13 -> 1221 | AT13: =COUNTIF(L145:L172,AS13) -> 0 | AU13: =AT13/(AV4-AT20) -> 0 | AV13: =IF(AU13=0,0,(AU13*((LOG(AU13))/LOG(2)))) -> 0
A14: 12 | B14: 923 | C14: 14 | D14: 929 | E14: 24 | F14: 940 | G14: 23 | H14: 948 | K14: 0 | L14: 1122 | N14: 1222 | O14: =COUNTIF($L$7:$L$500,N14) -> 14 | P14: =O14/$Q$4 -> 0.0843373494 | Q14: =IF(P14=0,0,(P14*((LOG(P14))/LOG(2)))) -> -0.300889055 | T14: =N14 -> 1222 | U14: =COUNTIF(L7:L34,T14) -> 2 | V14: =U14/(W4-U20) -> 0.07142857143 | W14: =IF(V14=0,0,(V14*((LOG(V14))/LOG(2)))) -> -0.271953923 | Y14: =N14 -> 1222 | Z14: =COUNTIF(L35:L61,Y14) -> 2 | AA14: =Z14/(AB4-Z20) -> 0.07692307692 | AB14: =IF(AA14=0,0,(AA14*((LOG(AA14))/LOG(2)))) -> -0.2846492091 | AD14: =N14 -> 1222 | AE14: =COUNTIF(L62:L89,AD14) -> 3 | AF14: =AE14/(AG4-AE20) -> 0.1111111111 | AG14: =IF(AF14=0,0,(AF14*((LOG(AF14))/LOG(2)))) -> -0.352213889 | AI14: =N14 -> 1222 | AJ14: =COUNTIF(L90:L117,AI14) -> 6 | AK14: =AJ14/(AL4-AJ20) -> 0.2307692308 | AL14: =IF(AK14=0,0,(AK14*((LOG(AK14))/LOG(2)))) -> -0.4881870502 | AN14: =N14 -> 1222 | AO14: =COUNTIF(L118:L144,AN14) -> 0 | AP14: =AO14/(AQ4-AO20) -> 0 | AQ14: =IF(AP14=0,0,(AP14*((LOG(AP14))/LOG(2)))) -> 0 | AS14: =N14 -> 1222 | AT14: =COUNTIF(L145:L172,AS14) -> 1 | AU14: =AT14/(AV4-AT20) -> 0.04 | AV14: =IF(AU14=0,0,(AU14*((LOG(AU14))/LOG(2)))) -> -0.1857542476
A15: 12 | B15: 1063 | C15: 14 | D15: 1069 | E15: 13 | F15: 1075 | G15: 23 | H15: 1088 | K15: 0 | L15: 1112 | N15: 2111 | O15: =COUNTIF($L$7:$L$500,N15) -> 8 | P15: =O15/$Q$4 -> 0.04819277108 | Q15: =IF(P15=0,0,(P15*((LOG(P15))/LOG(2)))) -> -0.2108452738 | T15: =N15 -> 2111 | U15: =COUNTIF(L7:L34,T15) -> 1 | V15: =U15/(W4-U20) -> 0.03571428571 | W15: =IF(V15=0,0,(V15*((LOG(V15))/LOG(2)))) -> -0.1716912472 | Y15: =N15 -> 2111 | Z15: =COUNTIF(L35:L61,Y15) -> 1 | AA15: =Z15/(AB4-Z20) -> 0.03846153846 | AB15: =IF(AA15=0,0,(AA15*((LOG(AA15))/LOG(2)))) -> -0.180786143 | AD15: =N15 -> 2111 | AE15: =COUNTIF(L62:L89,AD15) -> 0 | AF15: =AE15/(AG4-AE20) -> 0 | AG15: =IF(AF15=0,0,(AF15*((LOG(AF15))/LOG(2)))) -> 0 | AI15: =N15 -> 2111 | AJ15: =COUNTIF(L90:L117,AI15) -> 5 | AK15: =AJ15/(AL4-AJ20) -> 0.1923076923 | AL15: =IF(AK15=0,0,(AK15*((LOG(AK15))/LOG(2)))) -> -0.4574060814 | AN15: =N15 -> 2111 | AO15: =COUNTIF(L118:L144,AN15) -> 0 | AP15: =AO15/(AQ4-AO20) -> 0 | AQ15: =IF(AP15=0,0,(AP15*((LOG(AP15))/LOG(2)))) -> 0 | AS15: =N15 -> 2111 | AT15: =COUNTIF(L145:L172,AS15) -> 1 | AU15: =AT15/(AV4-AT20) -> 0.04 | AV15: =IF(AU15=0,0,(AU15*((LOG(AU15))/LOG(2)))) -> -0.1857542476
A16: 12 | B16: 1195 | C16: 14 | D16: 1204 | E16: 13 | F16: 1215 | G16: 23 | H16: 1228 | K16: 0 | L16: 1112 | N16: 2112 | O16: =COUNTIF($L$7:$L$500,N16) -> 20 | P16: =O16/$Q$4 -> 0.1204819277 | Q16: =IF(P16=0,0,(P16*((LOG(P16))/LOG(2)))) -> -0.3678447393 | T16: =N16 -> 2112 | U16: =COUNTIF(L7:L34,T16) -> 0 | V16: =U16/(W4-U20) -> 0 | W16: =IF(V16=0,0,(V16*((LOG(V16))/LOG(2)))) -> 0 | Y16: =N16 -> 2112 | Z16: =COUNTIF(L35:L61,Y16) -> 5 | AA16: =Z16/(AB4-Z20) -> 0.1923076923 | AB16: =IF(AA16=0,0,(AA16*((LOG(AA16))/LOG(2)))) -> -0.4574060814 | AD16: =N16 -> 2112 | AE16: =COUNTIF(L62:L89,AD16) -> 4 | AF16: =AE16/(AG4-AE20) -> 0.1481481481 | AG16: =IF(AF16=0,0,(AF16*((LOG(AF16))/LOG(2)))) -> -0.4081314818 | AI16: =N16 -> 2112 | AJ16: =COUNTIF(L90:L117,AI16) -> 3 | AK16: =AJ16/(AL4-AJ20) -> 0.1153846154 | AL16: =IF(AK16=0,0,(AK16*((LOG(AK16))/LOG(2)))) -> -0.3594781405 | AN16: =N16 -> 2112 | AO16: =COUNTIF(L118:L144,AN16) -> 4 | AP16: =AO16/(AQ4-AO20) -> 0.1739130435 | AQ16: =IF(AP16=0,0,(AP16*((LOG(AP16))/LOG(2)))) -> -0.4388803402 | AS16: =N16 -> 2112 | AT16: =COUNTIF(L145:L172,AS16) -> 4 | AU16: =AT16/(AV4-AT20) -> 0.16 | AV16: =IF(AU16=0,0,(AU16*((LOG(AU16))/LOG(2)))) -> -0.4230169904
A17: 12 | B17: 1333 | C17: 14 | D17: 1342 | E17: 24 | F17: 1354 | G17: 23 | H17: 1362 | K17: 0 | L17: 1122 | N17: 2121 | O17: =COUNTIF($L$7:$L$500,N17) -> 0 | P17: =O17/$Q$4 -> 0 | Q17: =IF(P17=0,0,(P17*((LOG(P17))/LOG(2)))) -> 0 | T17: =N17 -> 2121 | U17: =COUNTIF(L7:L34,T17) -> 0 | V17: =U17/(W4-U20) -> 0 | W17: =IF(V17=0,0,(V17*((LOG(V17))/LOG(2)))) -> 0 | Y17: =N17 -> 2121 | Z17: =COUNTIF(L35:L61,Y17) -> 0 | AA17: =Z17/(AB4-Z20) -> 0 | AB17: =IF(AA17=0,0,(AA17*((LOG(AA17))/LOG(2)))) -> 0 | AD17: =N17 -> 2121 | AE17: =COUNTIF(L62:L89,AD17) -> 0 | AF17: =AE17/(AG4-AE20) -> 0 | AG17: =IF(AF17=0,0,(AF17*((LOG(AF17))/LOG(2)))) -> 0 | AI17: =N17 -> 2121 | AJ17: =COUNTIF(L90:L117,AI17) -> 0 | AK17: =AJ17/(AL4-AJ20) -> 0 | AL17: =IF(AK17=0,0,(AK17*((LOG(AK17))/LOG(2)))) -> 0 | AN17: =N17 -> 2121 | AO17: =COUNTIF(L118:L144,AN17) -> 0 | AP17: =AO17/(AQ4-AO20) -> 0 | AQ17: =IF(AP17=0,0,(AP17*((LOG(AP17))/LOG(2)))) -> 0 | AS17: =N17 -> 2121 | AT17: =COUNTIF(L145:L172,AS17) -> 0 | AU17: =AT17/(AV4-AT20) -> 0 | AV17: =IF(AU17=0,0,(AU17*((LOG(AU17))/LOG(2)))) -> 0
A18: 12 | B18: 1456 | C18: 14 | D18: 1464 | E18: 13 | F18: 1471 | G18: 23 | H18: 1485 | K18: 0 | L18: 1112 | N18: 2122 | O18: =COUNTIF($L$7:$L$500,N18) -> 30 | P18: =O18/$Q$4 -> 0.1807228916 | Q18: =IF(P18=0,0,(P18*((LOG(P18))/LOG(2)))) -> -0.4460509944 | T18: =N18 -> 2122 | U18: =COUNTIF(L7:L34,T18) -> 0 | V18: =U18/(W4-U20) -> 0 | W18: =IF(V18=0,0,(V18*((LOG(V18))/LOG(2)))) -> 0 | Y18: =N18 -> 2122 | Z18: =COUNTIF(L35:L61,Y18) -> 2 | AA18: =Z18/(AB4-Z20) -> 0.07692307692 | AB18: =IF(AA18=0,0,(AA18*((LOG(AA18))/LOG(2)))) -> -0.2846492091 | AD18: =N18 -> 2122 | AE18: =COUNTIF(L62:L89,AD18) -> 6 | AF18: =AE18/(AG4-AE20) -> 0.2222222222 | AG18: =IF(AF18=0,0,(AF18*((LOG(AF18))/LOG(2)))) -> -0.4822055559 | AI18: =N18 -> 2122 | AJ18: =COUNTIF(L90:L117,AI18) -> 6 | AK18: =AJ18/(AL4-AJ20) -> 0.2307692308 | AL18: =IF(AK18=0,0,(AK18*((LOG(AK18))/LOG(2)))) -> -0.4881870502 | AN18: =N18 -> 2122 | AO18: =COUNTIF(L118:L144,AN18) -> 8 | AP18: =AO18/(AQ4-AO20) -> 0.347826087 | AQ18: =IF(AP18=0,0,(AP18*((LOG(AP18))/LOG(2)))) -> -0.5299345934 | AS18: =N18 -> 2122 | AT18: =COUNTIF(L145:L172,AS18) -> 8 | AU18: =AT18/(AV4-AT20) -> 0.32 | AV18: =IF(AU18=0,0,(AU18*((LOG(AU18))/LOG(2)))) -> -0.5260339807
A19: 12 | B19: 1585 | C19: 23 | D19: 1603 | E19: 24 | F19: 1630 | G19: 23 | H19: 1642 | K19: 0 | L19: 1222 | N19: 2211 | O19: =COUNTIF($L$7:$L$500,N19) -> 6 | P19: =O19/$Q$4 -> 0.03614457831 | Q19: =IF(P19=0,0,(P19*((LOG(P19))/LOG(2)))) -> -0.1731353107 | T19: =N19 -> 2211 | U19: =COUNTIF(L7:L34,T19) -> 0 | V19: =U19/(W4-U20) -> 0 | W19: =IF(V19=0,0,(V19*((LOG(V19))/LOG(2)))) -> 0 | Y19: =N19 -> 2211 | Z19: =COUNTIF(L35:L61,Y19) -> 0 | AA19: =Z19/(AB4-Z20) -> 0 | AB19: =IF(AA19=0,0,(AA19*((LOG(AA19))/LOG(2)))) -> 0 | AD19: =N19 -> 2211 | AE19: =COUNTIF(L62:L89,AD19) -> 0 | AF19: =AE19/(AG4-AE20) -> 0 | AG19: =IF(AF19=0,0,(AF19*((LOG(AF19))/LOG(2)))) -> 0 | AI19: =N19 -> 2211 | AJ19: =COUNTIF(L90:L117,AI19) -> 0 | AK19: =AJ19/(AL4-AJ20) -> 0 | AL19: =IF(AK19=0,0,(AK19*((LOG(AK19))/LOG(2)))) -> 0 | AN19: =N19 -> 2211 | AO19: =COUNTIF(L118:L144,AN19) -> 4 | AP19: =AO19/(AQ4-AO20) -> 0.1739130435 | AQ19: =IF(AP19=0,0,(AP19*((LOG(AP19))/LOG(2)))) -> -0.4388803402 | AS19: =N19 -> 2211 | AT19: =COUNTIF(L145:L172,AS19) -> 2 | AU19: =AT19/(AV4-AT20) -> 0.08 | AV19: =IF(AU19=0,0,(AU19*((LOG(AU19))/LOG(2)))) -> -0.2915084952
A20: 21 | B20: 1755 | C20: 12 | D20: 1765 | E20: 13 | F20: 1774 | G20: 14 | H20: 1782 | K20: 0 | L20: 2111 | N20: 2212 | O20: =COUNTIF($L$7:$L$500,N20) -> 11 | P20: =O20/$Q$4 -> 0.06626506024 | Q20: =IF(P20=0,0,(P20*((LOG(P20))/LOG(2)))) -> -0.2594679876 | T20: =N20 -> 2212 | U20: =COUNTIF(L7:L34,T20) -> 0 | Y20: =N20 -> 2212 | Z20: =COUNTIF(L35:L61,Y20) -> 1 | AD20: =N20 -> 2212 | AE20: =COUNTIF(L62:L89,AD20) -> 1 | AI20: =N20 -> 2212 | AJ20: =COUNTIF(L90:L117,AI20) -> 2 | AN20: =N20 -> 2212 | AO20: =COUNTIF(L118:L144,AN20) -> 4 | AS20: =N20 -> 2212 | AT20: =COUNTIF(L145:L172,AS20) -> 3
A21: 12 | B21: 1889 | C21: 23 | D21: 1899 | E21: 24 | F21: 1908 | G21: 23 | H21: 1917 | K21: 0 | L21: 1222 | N21: 2221 | O21: =COUNTIF($L$7:$L$500,N21) -> 5 | P21: =O21/$Q$4 -> 0.03012048193 | Q21: =IF(P21=0,0,(P21*((LOG(P21))/LOG(2)))) -> -0.1522021487 | T21: =N21 -> 2221 | U21: =COUNTIF(L7:L34,T21) -> 0 | V21: =U21/(W4-U20) -> 0 | W21: =IF(V21=0,0,(V21*((LOG(V21))/LOG(2)))) -> 0 | Y21: =N21 -> 2221 | Z21: =COUNTIF(L35:L61,Y21) -> 0 | AA21: =Z21/(AB4-Z20) -> 0 | AB21: =IF(AA21=0,0,(AA21*((LOG(AA21))/LOG(2)))) -> 0 | AD21: =N21 -> 2221 | AE21: =COUNTIF(L62:L89,AD21) -> 0 | AF21: =AE21/(AG4-AE20) -> 0 | AG21: =IF(AF21=0,0,(AF21*((LOG(AF21))/LOG(2)))) -> 0 | AI21: =N21 -> 2221 | AJ21: =COUNTIF(L90:L117,AI21) -> 1 | AK21: =AJ21/(AL4-AJ20) -> 0.03846153846 | AL21: =IF(AK21=0,0,(AK21*((LOG(AK21))/LOG(2)))) -> -0.180786143 | AN21: =N21 -> 2221 | AO21: =COUNTIF(L118:L144,AN21) -> 3 | AP21: =AO21/(AQ4-AO20) -> 0.1304347826 | AQ21: =IF(AP21=0,0,(AP21*((LOG(AP21))/LOG(2)))) -> -0.3832955811 | AS21: =N21 -> 2221 | AT21: =COUNTIF(L145:L172,AS21) -> 1 | AU21: =AT21/(AV4-AT20) -> 0.04 | AV21: =IF(AU21=0,0,(AU21*((LOG(AU21))/LOG(2)))) -> -0.1857542476
A22: 12 | B22: 2014 | C22: 14 | D22: 2019 | E22: 13 | F22: 2027 | G22: 14 | H22: 2045 | K22: 0 | L22: 1111 | N22: 2222 | O22: =COUNTIF($L$7:$L$500,N22) -> 18 | P22: =O22/$Q$4 -> 0.1084337349 | Q22: =IF(P22=0,0,(P22*((LOG(P22))/LOG(2)))) -> -0.3475425285 | T22: =N22 -> 2222 | U22: =COUNTIF(L7:L34,T22) -> 0 | V22: =U22/(W4-U20) -> 0 | W22: =IF(V22=0,0,(V22*((LOG(V22))/LOG(2)))) -> 0 | Y22: =N22 -> 2222 | Z22: =COUNTIF(L35:L61,Y22) -> 2 | AA22: =Z22/(AB4-Z20) -> 0.07692307692 | AB22: =IF(AA22=0,0,(AA22*((LOG(AA22))/LOG(2)))) -> -0.2846492091 | AD22: =N22 -> 2222 | AE22: =COUNTIF(L62:L89,AD22) -> 1 | AF22: =AE22/(AG4-AE20) -> 0.03703703704 | AG22: =IF(AF22=0,0,(AF22*((LOG(AF22))/LOG(2)))) -> -0.1761069445 | AI22: =N22 -> 2222 | AJ22: =COUNTIF(L90:L117,AI22) -> 3 | AK22: =AJ22/(AL4-AJ20) -> 0.1153846154 | AL22: =IF(AK22=0,0,(AK22*((LOG(AK22))/LOG(2)))) -> -0.3594781405 | AN22: =N22 -> 2222 | AO22: =COUNTIF(L118:L144,AN22) -> 4 | AP22: =AO22/(AQ4-AO20) -> 0.1739130435 | AQ22: =IF(AP22=0,0,(AP22*((LOG(AP22))/LOG(2)))) -> -0.4388803402 | AS22: =N22 -> 2222 | AT22: =COUNTIF(L145:L172,AS22) -> 8 | AU22: =AT22/(AV4-AT20) -> 0.32 | AV22: =IF(AU22=0,0,(AU22*((LOG(AU22))/LOG(2)))) -> -0.5260339807
A23: 12 | B23: 2149 | C23: 14 | D23: 2155 | E23: 13 | F23: 2165 | G23: 23 | H23: 2178 | K23: 0 | L23: 1112 | P23: =SUM(P7:P22) -> 1 | Q23: =-SUM(Q7:Q22) -> 3.45810601 | V23: =SUM(V7:V22) -> 1 | W23: =-SUM(W7:W22) -> 2.083045103 | AA23: =SUM(AA7:AA22) -> 1 | AB23: =-SUM(AB7:AB22) -> 3.16681268 | AF23: =SUM(AF7:AF22) -> 1 | AG23: =-SUM(AG7:AG22) -> 2.763241668 | AK23: =SUM(AK7:AK22) -> 1 | AL23: =-SUM(AL7:AL22) -> 2.618171815 | AP23: =SUM(AP7:AP22) -> 1 | AQ23: =-SUM(AQ7:AQ22) -> 2.229871195 | AU23: =SUM(AU7:AU22) -> 1 | AV23: =-SUM(AV7:AV22) -> 2.32385619
A24: 12 | B24: 2293 | C24: 14 | D24: 2301 | E24: 24 | F24: 2314 | G24: 23 | H24: 2322 | K24: 0 | L24: 1122 | P24: U= | Q24: =Q23/(LOG(Q4)/LOG(2)) -> 0.4688932232 | V24: U1= | W24: =W23/(LOG(W4)/LOG(2)) -> 0.433303789 | AA24: U2= | AB24: =AB23/(LOG(AB4)/LOG(2)) -> 0.6660121147 | AF24: U3= | AG24: =AG23/(LOG(AG4)/LOG(2)) -> 0.5747946039 | AK24: U4= | AL24: =AL23/(LOG(AL4)/LOG(2)) -> 0.5446179567 | AP24: U5= | AQ24: =AQ23/(LOG(AQ4)/LOG(2)) -> 0.4689640279 | AU24: U6= | AV24: =AV23/(LOG(AV4)/LOG(2)) -> 0.4833960104
A25: 12 | B25: 2417 | C25: 14 | D25: 2426 | E25: 24 | F25: 2438 | G25: 23 | H25: 2444 | K25: 0 | L25: 1122
A26: 12 | B26: 2569 | C26: 14 | D26: 2576 | E26: 13 | F26: 2585 | G26: 23 | H26: 2598 | K26: 0 | L26: 1112
A27: 12 | B27: 2711 | C27: 14 | D27: 2715 | E27: 13 | F27: 2723 | G27: 14 | H27: 2732 | K27: 0 | L27: 1111 | N27: Total Target Seq
A28: 12 | B28: 2830 | C28: 14 | D28: 2836 | E28: 13 | F28: 2842 | G28: 23 | H28: 2853 | K28: 0 | L28: 1112 | N28: =COUNTIF(L7:L172,G3) -> 11 | P28: 28 | Q28: 27 | R28: 28 | S28: 28 | T28: 27 | U28: 28
A29: 12 | B29: 2964 | C29: 14 | D29: 2969 | E29: 13 | F29: 2976 | G29: 23 | H29: 2988 | K29: 0 | L29: 1112 | P29: % of reinforcement given in 6 equal intervals based on number of trials
A30: 12 | B30: 3091 | C30: 14 | D30: 3096 | E30: 13 | F30: 3102 | G30: 14 | H30: 3107 | K30: 0 | L30: 1111 | P30: %_1 | Q30: %_2 | R30: %_3 | S30: %_4 | T30: %_5 | U30: %_6
A31: 12 | B31: 3217 | C31: 14 | D31: 3223 | E31: 13 | F31: 3231 | G31: 23 | H31: 3246 | K31: 0 | L31: 1112 | O31: target sequence | P31: =$G$3 -> 2212 | Q31: =$G$3 -> 2212 | R31: =$G$3 -> 2212 | S31: =$G$3 -> 2212 | T31: =$G$3 -> 2212 | U31: =$G$3 -> 2212
A32: 12 | B32: 3350 | C32: 14 | D32: 3356 | E32: 13 | F32: 3363 | G32: 23 | H32: 3375 | K32: 0 | L32: 1112 | O32: total reinforcement | P32: =U20 -> 0 | Q32: =Z20 -> 1 | R32: =AE20 -> 1 | S32: =AJ20 -> 2 | T32: =AO20 -> 4 | U32: =AT20 -> 3
A33: 12 | B33: 3480 | C33: 14 | D33: 3485 | E33: 24 | F33: 3498 | G33: 23 | H33: 3505 | K33: 0 | L33: 1122 | O33: % target
A34: 12 | B34: 3604 | C34: 14 | D34: 3610 | E34: 13 | F34: 3618 | G34: 14 | H34: 3628 | K34: 0 | L34: 1111 | O34: CCRF
A35: 12 | B35: 3751 | C35: 14 | D35: 3755 | E35: 13 | F35: 3760 | G35: 23 | H35: 3772 | K35: 0 | L35: 1112 | O35: % CCRf
A36: 12 | B36: 3882 | C36: 14 | D36: 3887 | E36: 13 | F36: 3892 | G36: 23 | H36: 3904 | K36: 0 | L36: 1112 | O36: average response rate | P36: =H34/P28 -> 129.5714286 | Q36: =(H61-H34)/Q28 -> 141.0740741 | R36: =(H89-H61)/R28 -> 134.8928571 | S36: =(H117-H89)/S28 -> 134 | T36: =(H144-H117)/T28 -> 140.8148148 | U36: =(H172-H144)/U28 -> 136.1785714
A37: 12 | B37: 4004 | C37: 14 | D37: 4025 | E37: 24 | F37: 4037 | G37: 23 | H37: 4044 | K37: 0 | L37: 1122
A38: 12 | B38: 4144 | C38: 14 | D38: 4157 | E38: 24 | F38: 4168 | G38: 23 | H38: 4173 | K38: 0 | L38: 1122
A39: 12 | B39: 4284 | C39: 23 | D39: 4294 | E39: 13 | F39: 4303 | G39: 14 | H39: 4311 | K39: 0 | L39: 1211
A40: 12 | B40: 4413 | C40: 14 | D40: 4421 | E40: 24 | F40: 4432 | G40: 23 | H40: 4440 | K40: 0 | L40: 1122
A41: 21 | B41: 4555 | C41: 12 | D41: 4564 | E41: 13 | F41: 4571 | G41: 23 | H41: 4583 | K41: 0 | L41: 2112
A42: 12 | B42: 4678 | C42: 23 | D42: 4687 | E42: 13 | F42: 4698 | G42: 14 | H42: 4707 | K42: 0 | L42: 1211
A43: 21 | B43: 4826 | C43: 21 | D43: 4835 | E43: 11 | F43: 4844 | G43: 21 | H43: 4856 | K43: 0 | L43: 2212
A44: 12 | B44: 4947 | C44: 14 | D44: 4964 | E44: 13 | F44: 4969 | G44: 14 | H44: 4974 | K44: 0 | L44: 1111
A45: 21 | B45: 5124 | C45: 12 | D45: 5134 | E45: 24 | F45: 5147 | G45: 23 | H45: 5155 | K45: 0 | L45: 2122
A46: 21 | B46: 5275 | C46: 12 | D46: 5284 | E46: 24 | F46: 5296 | G46: 23 | H46: 5304 | K46: 0 | L46: 2122
A47: 12 | B47: 5408 | C47: 14 | D47: 5426 | E47: 24 | F47: 5437 | G47: 23 | H47: 5444 | K47: 0 | L47: 1122
A48: 21 | B48: 5564 | C48: 12 | D48: 5575 | E48: 13 | F48: 5583 | G48: 23 | H48: 5595 | K48: 0 | L48: 2112
A49: 12 | B49: 5698 | C49: 23 | D49: 5713 | E49: 24 | F49: 5724 | G49: 23 | H49: 5733 | K49: 0 | L49: 1222
A50: 21 | B50: 5878 | C50: 21 | D50: 5892 | E50: 22 | F50: 5899 | G50: 23 | H50: 5905 | K50: 0 | L50: 2222
A51: 21 | B51: 6013 | C51: 12 | D51: 6027 | E51: 13 | F51: 6035 | G51: 23 | H51: 6046 | K51: 0 | L51: 2112
A52: 21 | B52: 6174 | C52: 12 | D52: 6182 | E52: 13 | F52: 6189 | G52: 23 | H52: 6201 | K52: 0 | L52: 2112
A53: 12 | B53: 6322 | C53: 14 | D53: 6328 | E53: 13 | F53: 6334 | G53: 23 | H53: 6355 | K53: 0 | L53: 1112
A54: 12 | B54: 6472 | C54: 14 | D54: 6479 | E54: 13 | F54: 6489 | G54: 14 | H54: 6494 | K54: 0 | L54: 1111
A55: 12 | B55: 6609 | C55: 23 | D55: 6621 | E55: 24 | F55: 6628 | G55: 23 | H55: 6635 | K55: 0 | L55: 1222
A56: 12 | B56: 6750 | C56: 14 | D56: 6754 | E56: 13 | F56: 6758 | G56: 14 | H56: 6764 | K56: 0 | L56: 1111
A57: 12 | B57: 6862 | C57: 23 | D57: 6872 | E57: 13 | F57: 6880 | G57: 14 | H57: 6889 | K57: 0 | L57: 1211
A58: 21 | B58: 6987 | C58: 21 | D58: 6999 | E58: 22 | F58: 7006 | G58: 23 | H58: 7014 | K58: 0 | L58: 2222
A59: 21 | B59: 7145 | C59: 12 | D59: 7154 | E59: 13 | F59: 7159 | G59: 14 | H59: 7167 | K59: 0 | L59: 2111
A60: 21 | B60: 7275 | C60: 12 | D60: 7286 | E60: 13 | F60: 7294 | G60: 23 | H60: 7306 | K60: 0 | L60: 2112
A61: 12 | B61: 7406 | C61: 23 | D61: 7416 | E61: 13 | F61: 7426 | G61: 23 | H61: 7437 | K61: 0 | L61: 1212
A62: 12 | B62: 7551 | C62: 14 | D62: 7559 | E62: 13 | F62: 7566 | G62: 23 | H62: 7579 | K62: 0 | L62: 1112
A63: 12 | B63: 7699 | C63: 14 | D63: 7707 | E63: 13 | F63: 7716 | G63: 23 | H63: 7729 | K63: 0 | L63: 1112
A64: 12 | B64: 7849 | C64: 14 | D64: 7854 | E64: 13 | F64: 7860 | G64: 23 | H64: 7873 | K64: 0 | L64: 1112
A65: 21 | B65: 7992 | C65: 12 | D65: 8002 | E65: 24 | F65: 8013 | G65: 23 | H65: 8021 | K65: 0 | L65: 2122
A66: 12 | B66: 8125 | C66: 14 | D66: 8141 | E66: 24 | F66: 8152 | G66: 23 | H66: 8160 | K66: 0 | L66: 1122
A67: 12 | B67: 8262 | C67: 14 | D67: 8269 | E67: 24 | F67: 8280 | G67: 23 | H67: 8288 | K67: 0 | L67: 1122
A68: 12 | B68: 8387 | C68: 14 | D68: 8404 | E68: 24 | F68: 8413 | G68: 23 | H68: 8418 | K68: 0 | L68: 1122
A69: 21 | B69: 8526 | C69: 12 | D69: 8535 | E69: 13 | F69: 8541 | G69: 23 | H69: 8553 | K69: 0 | L69: 2112
A70: 12 | B70: 8654 | C70: 14 | D70: 8661 | E70: 24 | F70: 8669 | G70: 23 | H70: 8685 | K70: 0 | L70: 1122
A71: 21 | B71: 8791 | C71: 12 | D71: 8803 | E71: 24 | F71: 8813 | G71: 23 | H71: 8818 | K71: 0 | L71: 2122
A72: 12 | B72: 8930 | C72: 14 | D72: 8935 | E72: 24 | F72: 8945 | G72: 23 | H72: 8953 | K72: 0 | L72: 1122
A73: 12 | B73: 9066 | C73: 23 | D73: 9078 | E73: 24 | F73: 9085 | G73: 23 | H73: 9092 | K73: 0 | L73: 1222
A74: 21 | B74: 9191 | C74: 12 | D74: 9200 | E74: 13 | F74: 9207 | G74: 23 | H74: 9215 | K74: 0 | L74: 2112
A75: 12 | B75: 9318 | C75: 23 | D75: 9337 | E75: 13 | F75: 9345 | G75: 14 | H75: 9352 | K75: 0 | L75: 1211
A76: 12 | B76: 9452 | C76: 23 | D76: 9461 | E76: 13 | F76: 9469 | G76: 23 | H76: 9478 | K76: 0 | L76: 1212
A77: 21 | B77: 9595 | C77: 21 | D77: 9602 | E77: 11 | F77: 9614 | G77: 21 | H77: 9624 | K77: 0 | L77: 2212
A78: 12 | B78: 9715 | C78: 23 | D78: 9727 | E78: 13 | F78: 9735 | G78: 14 | H78: 9744 | K78: 0 | L78: 1211
A79: 21 | B79: 9840 | C79: 12 | D79: 9848 | E79: 24 | F79: 9860 | G79: 23 | H79: 9867 | K79: 0 | L79: 2122
A80: 21 | B80: 9973 | C80: 12 | D80: 9981 | E80: 24 | F80: 9993 | G80: 23 | H80: 9998 | K80: 0 | L80: 2122
A81: 21 | B81: 10101 | C81: 21 | D81: 10112 | E81: 22 | F81: 10120 | G81: 23 | H81: 10127 | K81: 0 | L81: 2222
A82: 12 | B82: 10240 | C82: 14 | D82: 10246 | E82: 13 | F82: 10253 | G82: 23 | H82: 10265 | K82: 0 | L82: 1112
A83: 21 | B83: 10372 | C83: 12 | D83: 10384 | E83: 24 | F83: 10394 | G83: 23 | H83: 10398 | K83: 0 | L83: 2122
A84: 12 | B84: 10502 | C84: 23 | D84: 10513 | E84: 24 | F84: 10521 | G84: 23 | H84: 10529 | K84: 0 | L84: 1222
A85: 21 | B85: 10639 | C85: 12 | D85: 10648 | E85: 13 | F85: 10659 | G85: 23 | H85: 10671 | K85: 0 | L85: 2112
A86: 21 | B86: 10774 | C86: 12 | D86: 10786 | E86: 13 | F86: 10793 | G86: 23 | H86: 10810 | K86: 0 | L86: 2112
A87: 12 | B87: 10923 | C87: 23 | D87: 10935 | E87: 24 | F87: 10943 | G87: 23 | H87: 10951 | K87: 0 | L87: 1222
A88: 21 | B88: 11056 | C88: 12 | D88: 11068 | E88: 24 | F88: 11078 | G88: 23 | H88: 11087 | K88: 0 | L88: 2122
A89: 12 | B89: 11193 | C89: 14 | D89: 11198 | E89: 24 | F89: 11207 | G89: 23 | H89: 11214 | K89: 0 | L89: 1122
A90: 21 | B90: 11331 | C90: 21 | D90: 11337 | E90: 11 | F90: 11349 | G90: 21 | H90: 11362 | K90: 0 | L90: 2212
A91: 21 | B91: 11457 | C91: 12 | D91: 11466 | E91: 13 | F91: 11474 | G91: 14 | H91: 11483 | K91: 0 | L91: 2111
A92: 21 | B92: 11587 | C92: 12 | D92: 11596 | E92: 13 | F92: 11603 | G92: 14 | H92: 11612 | K92: 0 | L92: 2111
A93: 12 | B93: 11718 | C93: 23 | D93: 11730 | E93: 24 | F93: 11739 | G93: 23 | H93: 11746 | K93: 0 | L93: 1222
A94: 12 | B94: 11870 | C94: 14 | D94: 11877 | E94: 24 | F94: 11888 | G94: 23 | H94: 11898 | K94: 0 | L94: 1122
A95: 21 | B95: 12002 | C95: 21 | D95: 12011 | E95: 11 | F95: 12019 | G95: 21 | H95: 12029 | K95: 0 | L95: 2212
A96: 21 | B96: 12132 | C96: 12 | D96: 12141 | E96: 13 | F96: 12146 | G96: 14 | H96: 12154 | K96: 0 | L96: 2111
A97: 21 | B97: 12264 | C97: 12 | D97: 12273 | E97: 24 | F97: 12284 | G97: 23 | H97: 12292 | K97: 0 | L97: 2122
A98: 21 | B98: 12391 | C98: 12 | D98: 12402 | E98: 13 | F98: 12410 | G98: 23 | H98: 12422 | K98: 0 | L98: 2112
A99: 21 | B99: 12531 | C99: 12 | D99: 12543 | E99: 24 | F99: 12567 | G99: 23 | H99: 12574 | K99: 0 | L99: 2122
A100: 12 | B100: 12690 | C100: 14 | D100: 12695 | E100: 24 | F100: 12708 | G100: 23 | H100: 12712 | K100: 0 | L100: 1122
A101: 21 | B101: 12811 | C101: 21 | D101: 12829 | E101: 22 | F101: 12838 | G101: 14 | H101: 12850 | K101: 0 | L101: 2221
A102: 21 | B102: 12953 | C102: 12 | D102: 12962 | E102: 13 | F102: 12966 | G102: 14 | H102: 12973 | K102: 0 | L102: 2111
A103: 21 | B103: 13071 | C103: 21 | D103: 13093 | E103: 22 | F103: 13101 | G103: 23 | H103: 13110 | K103: 0 | L103: 2222
A104: 21 | B104: 13220 | C104: 12 | D104: 13231 | E104: 24 | F104: 13243 | G104: 23 | H104: 13250 | K104: 0 | L104: 2122
A105: 21 | B105: 13360 | C105: 21 | D105: 13372 | E105: 22 | F105: 13380 | G105: 23 | H105: 13386 | K105: 0 | L105: 2222
A106: 21 | B106: 13494 | C106: 12 | D106: 13505 | E106: 13 | F106: 13512 | G106: 23 | H106: 13524 | K106: 0 | L106: 2112
A107: 21 | B107: 13616 | C107: 21 | D107: 13629 | E107: 22 | F107: 13636 | G107: 23 | H107: 13644 | K107: 0 | L107: 2222
A108: 12 | B108: 13749 | C108: 23 | D108: 13761 | E108: 24 | F108: 13766 | G108: 23 | H108: 13773 | K108: 0 | L108: 1222
A109: 12 | B109: 13888 | C109: 23 | D109: 13897 | E109: 24 | F109: 13904 | G109: 23 | H109: 13909 | K109: 0 | L109: 1222
A110: 21 | B110: 14012 | C110: 12 | D110: 14022 | E110: 13 | F110: 14029 | G110: 14 | H110: 14037 | K110: 0 | L110: 2111
A111: 12 | B111: 14152 | C111: 23 | D111: 14164 | E111: 24 | F111: 14168 | G111: 23 | H111: 14175 | K111: 0 | L111: 1222
A112: 12 | B112: 14292 | C112: 23 | D112: 14303 | E112: 24 | F112: 14307 | G112: 23 | H112: 14312 | K112: 0 | L112: 1222
A113: 12 | B113: 14419 | C113: 23 | D113: 14429 | E113: 24 | F113: 14435 | G113: 23 | H113: 14444 | K113: 0 | L113: 1222
A114: 21 | B114: 14553 | C114: 12 | D114: 14564 | E114: 24 | F114: 14573 | G114: 23 | H114: 14580 | K114: 0 | L114: 2122
A115: 21 | B115: 14677 | C115: 12 | D115: 14687 | E115: 13 | F115: 14691 | G115: 23 | H115: 14701 | K115: 0 | L115: 2112
A116: 21 | B116: 14805 | C116: 12 | D116: 14814 | E116: 24 | F116: 14824 | G116: 23 | H116: 14829 | K116: 0 | L116: 2122
A117: 21 | B117: 14938 | C117: 12 | D117: 14950 | E117: 24 | F117: 14961 | G117: 23 | H117: 14966 | K117: 0 | L117: 2122
A118: 21 | B118: 15096 | C118: 21 | D118: 15105 | E118: 22 | F118: 15117 | G118: 23 | H118: 15124 | K118: 0 | L118: 2222
A119: 21 | B119: 15243 | C119: 21 | D119: 15250 | E119: 11 | F119: 15261 | G119: 12 | H119: 15269 | K119: 0 | L119: 2211
A120: 21 | B120: 15388 | C120: 12 | D120: 15401 | E120: 24 | F120: 15412 | G120: 23 | H120: 15418 | K120: 0 | L120: 2122
A121: 21 | B121: 15530 | C121: 12 | D121: 15542 | E121: 24 | F121: 15551 | G121: 23 | H121: 15558 | K121: 0 | L121: 2122
A122: 21 | B122: 15659 | C122: 21 | D122: 15679 | E122: 11 | F122: 15693 | G122: 21 | H122: 15713 | K122: 0 | L122: 2212
A123: 21 | B123: 15852 | C123: 12 | D123: 15864 | E123: 13 | F123: 15872 | G123: 23 | H123: 15883 | K123: 0 | L123: 2112
A124: 21 | B124: 15983 | C124: 21 | D124: 15994 | E124: 22 | F124: 16002 | G124: 14 | H124: 16011 | K124: 0 | L124: 2221
A125: 21 | B125: 16119 | C125: 12 | D125: 16129 | E125: 24 | F125: 16140 | G125: 23 | H125: 16144 | K125: 0 | L125: 2122
A126: 21 | B126: 16264 | C126: 12 | D126: 16273 | E126: 24 | F126: 16281 | G126: 23 | H126: 16288 | K126: 0 | L126: 2122
A127: 21 | B127: 16410 | C127: 12 | D127: 16421 | E127: 24 | F127: 16430 | G127: 23 | H127: 16434 | K127: 0 | L127: 2122
A128: 21 | B128: 16537 | C128: 21 | D128: 16553 | E128: 11 | F128: 16563 | G128: 21 | H128: 16573 | K128: 0 | L128: 2212
A129: 21 | B129: 16684 | C129: 21 | D129: 16693 | E129: 11 | F129: 16702 | G129: 12 | H129: 16709 | K129: 0 | L129: 2211
A130: 21 | B130: 16814 | C130: 21 | D130: 16819 | E130: 11 | F130: 16829 | G130: 12 | H130: 16837 | K130: 0 | L130: 2211
A131: 21 | B131: 16952 | C131: 12 | D131: 16962 | E131: 13 | F131: 16967 | G131: 23 | H131: 16976 | K131: 0 | L131: 2112
A132: 21 | B132: 17086 | C132: 12 | D132: 17097 | E132: 24 | F132: 17104 | G132: 23 | H132: 17109 | K132: 0 | L132: 2122
A133: 21 | B133: 17218 | C133: 21 | D133: 17230 | E133: 22 | F133: 17234 | G133: 23 | H133: 17239 | K133: 0 | L133: 2222
A134: 21 | B134: 17379 | C134: 12 | D134: 17388 | E134: 13 | F134: 17396 | G134: 23 | H134: 17409 | K134: 0 | L134: 2112
A135: 21 | B135: 17516 | C135: 12 | D135: 17525 | E135: 13 | F135: 17530 | G135: 23 | H135: 17540 | K135: 0 | L135: 2112
A136: 21 | B136: 17660 | C136: 12 | D136: 17670 | E136: 24 | F136: 17681 | G136: 23 | H136: 17687 | K136: 0 | L136: 2122
A137: 21 | B137: 17810 | C137: 12 | D137: 17822 | E137: 24 | F137: 17832 | G137: 23 | H137: 17849 | K137: 0 | L137: 2122
A138: 21 | B138: 17958 | C138: 21 | D138: 17967 | E138: 11 | F138: 17976 | G138: 12 | H138: 17984 | K138: 0 | L138: 2211
A139: 21 | B139: 18085 | C139: 21 | D139: 18093 | E139: 22 | F139: 18098 | G139: 14 | H139: 18107 | K139: 0 | L139: 2221
A140: 21 | B140: 18213 | C140: 21 | D140: 18221 | E140: 11 | F140: 18229 | G140: 21 | H140: 18236 | K140: 0 | L140: 2212
A141: 21 | B141: 18344 | C141: 21 | D141: 18359 | E141: 22 | F141: 18366 | G141: 14 | H141: 18374 | K141: 0 | L141: 2221
A142: 21 | B142: 18493 | C142: 21 | D142: 18506 | E142: 22 | F142: 18512 | G142: 23 | H142: 18519 | K142: 0 | L142: 2222
A143: 21 | B143: 18616 | C143: 21 | D143: 18622 | E143: 11 | F143: 18631 | G143: 21 | H143: 18640 | K143: 0 | L143: 2212
A144: 21 | B144: 18747 | C144: 21 | D144: 18759 | E144: 22 | F144: 18764 | G144: 23 | H144: 18768 | K144: 0 | L144: 2222
A145: 21 | B145: 18879 | C145: 12 | D145: 18886 | E145: 24 | F145: 18895 | G145: 23 | H145: 18901 | K145: 0 | L145: 2122
A146: 21 | B146: 19023 | C146: 12 | D146: 19031 | E146: 24 | F146: 19039 | G146: 23 | H146: 19044 | K146: 0 | L146: 2122
A147: 21 | B147: 19172 | C147: 21 | D147: 19180 | E147: 11 | F147: 19190 | G147: 21 | H147: 19198 | K147: 0 | L147: 2212
A148: 21 | B148: 19306 | C148: 21 | D148: 19319 | E148: 22 | F148: 19327 | G148: 23 | H148: 19334 | K148: 0 | L148: 2222
A149: 21 | B149: 19447 | C149: 21 | D149: 19458 | E149: 22 | F149: 19466 | G149: 23 | H149: 19472 | K149: 0 | L149: 2222
A150: 21 | B150: 19592 | C150: 12 | D150: 19603 | E150: 24 | F150: 19612 | G150: 23 | H150: 19619 | K150: 0 | L150: 2122
A151: 21 | B151: 19747 | C151: 21 | D151: 19754 | E151: 22 | F151: 19761 | G151: 23 | H151: 19767 | K151: 0 | L151: 2222
A152: 21 | B152: 19871 | C152: 12 | D152: 19880 | E152: 24 | F152: 19888 | G152: 23 | H152: 19896 | K152: 0 | L152: 2122
A153: 21 | B153: 19998 | C153: 12 | D153: 20005 | E153: 24 | F153: 20013 | G153: 23 | H153: 20018 | K153: 0 | L153: 2122
A154: 21 | B154: 20141 | C154: 12 | D154: 20150 | E154: 24 | F154: 20163 | G154: 23 | H154: 20170 | K154: 0 | L154: 2122
A155: 21 | B155: 20276 | C155: 21 | D155: 20292 | E155: 22 | F155: 20297 | G155: 23 | H155: 20303 | K155: 0 | L155: 2222
A156: 21 | B156: 20404 | C156: 12 | D156: 20414 | E156: 13 | F156: 20419 | G156: 14 | H156: 20425 | K156: 0 | L156: 2111
A157: 21 | B157: 20535 | C157: 21 | D157: 20547 | E157: 22 | F157: 20552 | G157: 23 | H157: 20559 | K157: 0 | L157: 2222
A158: 21 | B158: 20658 | C158: 21 | D158: 20674 | E158: 11 | F158: 20682 | G158: 21 | H158: 20690 | K158: 0 | L158: 2212
A159: 12 | B159: 20793 | C159: 23 | D159: 20801 | E159: 24 | F159: 20805 | G159: 23 | H159: 20812 | K159: 0 | L159: 1222
A160: 21 | B160: 20920 | C160: 21 | D160: 20934 | E160: 22 | F160: 20940 | G160: 23 | H160: 20947 | K160: 0 | L160: 2222
A161: 21 | B161: 21060 | C161: 21 | D161: 21066 | E161: 11 | F161: 21077 | G161: 21 | H161: 21088 | K161: 0 | L161: 2212
A162: 21 | B162: 21184 | C162: 21 | D162: 21195 | E162: 11 | F162: 21203 | G162: 12 | H162: 21209 | K162: 0 | L162: 2211
A163: 21 | B163: 21323 | C163: 12 | D163: 21332 | E163: 13 | F163: 21339 | G163: 23 | H163: 21351 | K163: 0 | L163: 2112
A164: 21 | B164: 21457 | C164: 21 | D164: 21468 | E164: 22 | F164: 21476 | G164: 14 | H164: 21486 | K164: 0 | L164: 2221
A165: 21 | B165: 21588 | C165: 12 | D165: 21602 | E165: 24 | F165: 21611 | G165: 23 | H165: 21618 | K165: 0 | L165: 2122
A166: 21 | B166: 21736 | C166: 21 | D166: 21748 | E166: 22 | F166: 21752 | G166: 23 | H166: 21756 | K166: 0 | L166: 2222
A167: 21 | B167: 21865 | C167: 12 | D167: 21873 | E167: 24 | F167: 21884 | G167: 23 | H167: 21888 | K167: 0 | L167: 2122
A168: 21 | B168: 22008 | C168: 21 | D168: 22013 | E168: 22 | F168: 22020 | G168: 23 | H168: 22024 | K168: 0 | L168: 2222
A169: 21 | B169: 22125 | C169: 21 | D169: 22138 | E169: 11 | F169: 22149 | G169: 12 | H169: 22153 | K169: 0 | L169: 2211
A170: 21 | B170: 22261 | C170: 12 | D170: 22274 | E170: 13 | F170: 22283 | G170: 23 | H170: 22294 | K170: 0 | L170: 2112
A171: 21 | B171: 22419 | C171: 12 | D171: 22429 | E171: 13 | F171: 22437 | G171: 23 | H171: 22448 | K171: 0 | L171: 2112
A172: 21 | B172: 22560 | C172: 12 | D172: 22569 | E172: 13 | F172: 22573 | G172: 23 | H172: 22581 | K172: 1 | L172: 2112

Sheet !L804A50.053
A1: Report for:!L804A50.053
A2: Date: | B2: <date>
A3: Hen: | B3: <hen> | F3: Correct Sequence | G3: =Start!J2 -> 2212 | P3: Total Sequences in Data | Q3: =4994-COUNTBLANK(L7:L5000) -> 161 | V3: Total Sequences in Block Data | W3: =COUNTA(L7:L33) -> 27 | AA3: Total Sequences in Block Data | AB3: =COUNTA(L34:L60) -> 27 | AF3: Total Sequences in Block Data | AG3: =COUNTA(L61:L86) -> 26 | AK3: Total Sequences in Block Data | AL3: =COUNTA(L87:L113) -> 27 | AP3: Total Sequences in Block Data | AQ3: =COUNTA(L114:L140) -> 27 | AU3: Total Sequences in Block Data | AV3: =COUNTA(L141:L167) -> 27
P4: Total Sequences in Summary | Q4: =SUM(O7:O22) -> 161 | V4: Total Sequences in Block Summary | W4: =SUM(U7:U22) -> 27 | AA4: Total Sequences in Block Summary | AB4: =SUM(Z7:Z22) -> 27 | AF4: Total Sequences in Block Summary | AG4: =SUM(AE7:AE22) -> 26 | AK4: Total Sequences in Block Summary | AL4: =SUM(AJ7:AJ22) -> 27 | AP4: Total Sequences in Block Summary | AQ4: =SUM(AO7:AO22) -> 27 | AU4: Total Sequences in Block Summary | AV4: =SUM(AT7:AT22) -> 27
T5: Block 1 | Y5: Block 2 | AD5: Block 3 | AI5: Block 4 | AN5: Block 5 | AS5: Block 6
A6: Sequence Component 1 | B6: Time 1 | C6: Sequence Component 2 | D6: Time 2 | E6: Sequence Component 3 | F6: Time 3 | G6: Sequence Component 4 | H6: Time 4 | I6: Sequence Component 5 | J6: Time 5 | K6: Correct? 0=No 1=Yes | L6: Sequence | N6: Frequency | P6: Relative Frequency | Q6: Variability | T6: Frequency | V6: Relative Frequency | W6: Variability | Y6: Frequency | AA6: Relative Frequency | AB6: Variability | AD6: Frequency | AF6: Relative Frequency | AG6: Variability | AI6: Frequency | AK6: Relative Frequency | AL6: Variability | AN6: Frequency | AP6: Relative Frequency | AQ6: Variability | AS6: Frequency | AU6: Relative Frequency | AV6: Variability
A7: 12 | B7: 12 | C7: 14 | D7: 41 | E7: 24 | F7: 54 | G7: 23 | H7: 62 | K7: 0 | L7: 1122 | N7: 1111 | O7: =COUNTIF($L$7:$L$500,N7) -> 3 | P7: =O7/$Q$4 -> 0.01863354037 | Q7: =IF(P7=0,0,(P7*((LOG(P7))/LOG(2)))) -> -0.1070674729 | T7: =N7 -> 1111 | U7: =COUNTIF(L7:L33,T7) -> 2 | V7: =U7/(W4-U20) -> 0.07692307692 | W7: =IF(V7=0,0,(V7*((LOG(V7))/LOG(2)))) -> -0.2846492091 | Y7: =N7 -> 1111 | Z7: =COUNTIF(L34:L60,Y7) -> 0 | AA7: =Z7/(AB4-Z20) -> 0 | AB7: =IF(AA7=0,0,(AA7*((LOG(AA7))/LOG(2)))) -> 0 | AD7: =N7 -> 1111 | AE7: =COUNTIF(L61:L86,AD7) -> 1 | AF7: =AE7/(AG4-AE20) -> 0.04347826087 | AG7: =IF(AF7=0,0,(AF7*((LOG(AF7))/LOG(2)))) -> -0.1966766068 | AI7: =N7 -> 1111 | AJ7: =COUNTIF(L87:L113,AI7) -> 0 | AK7: =AJ7/(AL4-AJ20) -> 0 | AL7: =IF(AK7=0,0,(AK7*((LOG(AK7))/LOG(2)))) -> 0 | AN7: =N7 -> 1111 | AO7: =COUNTIF(L114:L140,AN7) -> 0 | AP7: =AO7/(AQ4-AO20) -> 0 | AQ7: =IF(AP7=0,0,(AP7*((LOG(AP7))/LOG(2)))) -> 0 | AS7: =N7 -> 1111 | AT7: =COUNTIF(L141:L167,AS7) -> 0 | AU7: =AT7/(AV4-AT20) -> 0 | AV7: =IF(AU7=0,0,(AU7*((LOG(AU7))/LOG(2)))) -> 0
A8: 12 | B8: 169 | C8: 14 | D8: 180 | E8: 24 | F8: 193 | G8: 23 | H8: 202 | K8: 0 | L8: 1122 | N8: 1112 | O8: =COUNTIF($L$7:$L$500,N8) -> 11 | P8: =O8/$Q$4 -> 0.06832298137 | Q8: =IF(P8=0,0,(P8*((LOG(P8))/LOG(2)))) -> -0.2645114152 | T8: =N8 -> 1112 | U8: =COUNTIF(L7:L33,T8) -> 4 | V8: =U8/(W4-U20) -> 0.1538461538 | W8: =IF(V8=0,0,(V8*((LOG(V8))/LOG(2)))) -> -0.4154522643 | Y8: =N8 -> 1112 | Z8: =COUNTIF(L34:L60,Y8) -> 1 | AA8: =Z8/(AB4-Z20) -> 0.04166666667 | AB8: =IF(AA8=0,0,(AA8*((LOG(AA8))/LOG(2)))) -> -0.1910401042 | AD8: =N8 -> 1112 | AE8: =COUNTIF(L61:L86,AD8) -> 1 | AF8: =AE8/(AG4-AE20) -> 0.04347826087 | AG8: =IF(AF8=0,0,(AF8*((LOG(AF8))/LOG(2)))) -> -0.1966766068 | AI8: =N8 -> 1112 | AJ8: =COUNTIF(L87:L113,AI8) -> 3 | AK8: =AJ8/(AL4-AJ20) -> 0.125 | AL8: =IF(AK8=0,0,(AK8*((LOG(AK8))/LOG(2)))) -> -0.375 | AN8: =N8 -> 1112 | AO8: =COUNTIF(L114:L140,AN8) -> 2 | AP8: =AO8/(AQ4-AO20) -> 0.07407407407 | AQ8: =IF(AP8=0,0,(AP8*((LOG(AP8))/LOG(2)))) -> -0.278139815 | AS8: =N8 -> 1112 | AT8: =COUNTIF(L141:L167,AS8) -> 0 | AU8: =AT8/(AV4-AT20) -> 0 | AV8: =IF(AU8=0,0,(AU8*((LOG(AU8))/LOG(2)))) -> 0
A9: 12 | B9: 303 | C9: 14 | D9: 311 | E9: 13 | F9: 330 | G9: 23 | H9: 343 | K9: 0 | L9: 1112 | N9: 1121 | O9: =COUNTIF($L$7:$L$500,N9) -> 0 | P9: =O9/$Q$4 -> 0 | Q9: =IF(P9=0,0,(P9*((LOG(P9))/LOG(2)))) -> 0 | T9: =N9 -> 1121 | U9: =COUNTIF(L7:L33,T9) -> 0 | V9: =U9/(W4-U20) -> 0 | W9: =IF(V9=0,0,(V9*((LOG(V9))/LOG(2)))) -> 0 | Y9: =N9 -> 1121 | Z9: =COUNTIF(L34:L60,Y9) -> 0 | AA9: =Z9/(AB4-Z20) -> 0 | AB9: =IF(AA9=0,0,(AA9*((LOG(AA9))/LOG(2)))) -> 0 | AD9: =N9 -> 1121 | AE9: =COUNTIF(L61:L86,AD9) -> 0 | AF9: =AE9/(AG4-AE20) -> 0 | AG9: =IF(AF9=0,0,(AF9*((LOG(AF9))/LOG(2)))) -> 0 | AI9: =N9 -> 1121 | AJ9: =COUNTIF(L87:L113,AI9) -> 0 | AK9: =AJ9/(AL4-AJ20) -> 0 | AL9: =IF(AK9=0,0,(AK9*((LOG(AK9))/LOG(2)))) -> 0 | AN9: =N9 -> 1121 | AO9: =COUNTIF(L114:L140,AN9) -> 0 | AP9: =AO9/(AQ4-AO20) -> 0 | AQ9: =IF(AP9=0,0,(AP9*((LOG(AP9))/LOG(2)))) -> 0 | AS9: =N9 -> 1121 | AT9: =COUNTIF(L141:L167,AS9) -> 0 | AU9: =AT9/(AV4-AT20) -> 0 | AV9: =IF(AU9=0,0,(AU9*((LOG(AU9))/LOG(2)))) -> 0
A10: 12 | B10: 443 | C10: 14 | D10: 449 | E10: 13 | F10: 462 | G10: 23 | H10: 477 | K10: 0 | L10: 1112 | N10: 1122 | O10: =COUNTIF($L$7:$L$500,N10) -> 18 | P10: =O10/$Q$4 -> 0.1118012422 | Q10: =IF(P10=0,0,(P10*((LOG(P10))/LOG(2)))) -> -0.3534028185 | T10: =N10 -> 1122 | U10: =COUNTIF(L7:L33,T10) -> 8 | V10: =U10/(W4-U20) -> 0.3076923077 | W10: =IF(V10=0,0,(V10*((LOG(V10))/LOG(2)))) -> -0.523212221 | Y10: =N10 -> 1122 | Z10: =COUNTIF(L34:L60,Y10) -> 1 | AA10: =Z10/(AB4-Z20) -> 0.04166666667 | AB10: =IF(AA10=0,0,(AA10*((LOG(AA10))/LOG(2)))) -> -0.1910401042 | AD10: =N10 -> 1122 | AE10: =COUNTIF(L61:L86,AD10) -> 1 | AF10: =AE10/(AG4-AE20) -> 0.04347826087 | AG10: =IF(AF10=0,0,(AF10*((LOG(AF10))/LOG(2)))) -> -0.1966766068 | AI10: =N10 -> 1122 | AJ10: =COUNTIF(L87:L113,AI10) -> 2 | AK10: =AJ10/(AL4-AJ20) -> 0.08333333333 | AL10: =IF(AK10=0,0,(AK10*((LOG(AK10))/LOG(2)))) -> -0.2987468751 | AN10: =N10 -> 1122 | AO10: =COUNTIF(L114:L140,AN10) -> 4 | AP10: =AO10/(AQ4-AO20) -> 0.1481481481 | AQ10: =IF(AP10=0,0,(AP10*((LOG(AP10))/LOG(2)))) -> -0.4081314818 | AS10: =N10 -> 1122 | AT10: =COUNTIF(L141:L167,AS10) -> 2 | AU10: =AT10/(AV4-AT20) -> 0.07692307692 | AV10: =IF(AU10=0,0,(AU10*((LOG(AU10))/LOG(2)))) -> -0.2846492091
A11: 12 | B11: 576 | C11: 14 | D11: 584 | E11: 13 | F11: 602 | G11: 14 | H11: 610 | K11: 0 | L11: 1111 | N11: 1211 | O11: =COUNTIF($L$7:$L$500,N11) -> 2 | P11: =O11/$Q$4 -> 0.01242236025 | Q11: =IF(P11=0,0,(P11*((LOG(P11))/LOG(2)))) -> -0.07864493016 | T11: =N11 -> 1211 | U11: =COUNTIF(L7:L33,T11) -> 0 | V11: =U11/(W4-U20) -> 0 | W11: =IF(V11=0,0,(V11*((LOG(V11))/LOG(2)))) -> 0 | Y11: =N11 -> 1211 | Z11: =COUNTIF(L34:L60,Y11) -> 0 | AA11: =Z11/(AB4-Z20) -> 0 | AB11: =IF(AA11=0,0,(AA11*((LOG(AA11))/LOG(2)))) -> 0 | AD11: =N11 -> 1211 | AE11: =COUNTIF(L61:L86,AD11) -> 1 | AF11: =AE11/(AG4-AE20) -> 0.04347826087 | AG11: =IF(AF11=0,0,(AF11*((LOG(AF11))/LOG(2)))) -> -0.1966766068 | AI11: =N11 -> 1211 | AJ11: =COUNTIF(L87:L113,AI11) -> 0 | AK11: =AJ11/(AL4-AJ20) -> 0 | AL11: =IF(AK11=0,0,(AK11*((LOG(AK11))/LOG(2)))) -> 0 | AN11: =N11 -> 1211 | AO11: =COUNTIF(L114:L140,AN11) -> 0 | AP11: =AO11/(AQ4-AO20) -> 0 | AQ11: =IF(AP11=0,0,(AP11*((LOG(AP11))/LOG(2)))) -> 0 | AS11: =N11 -> 1211 | AT11: =COUNTIF(L141:L167,AS11) -> 1 | AU11: =AT11/(AV4-AT20) -> 0.03846153846 | AV11: =IF(AU11=0,0,(AU11*((LOG(AU11))/LOG(2)))) -> -0.180786143
A12: 12 | B12: 709 | C12: 14 | D12: 711 | E12: 13 | F12: 728 | G12: 23 | H12: 743 | K12: 0 | L12: 1112 | N12: 1212 | O12: =COUNTIF($L$7:$L$500,N12) -> 3 | P12: =O12/$Q$4 -> 0.01863354037 | Q12: =IF(P12=0,0,(P12*((LOG(P12))/LOG(2)))) -> -0.1070674729 | T12: =N12 -> 1212 | U12: =COUNTIF(L7:L33,T12) -> 1 | V12: =U12/(W4-U20) -> 0.03846153846 | W12: =IF(V12=0,0,(V12*((LOG(V12))/LOG(2)))) -> -0.180786143 | Y12: =N12 -> 1212 | Z12: =COUNTIF(L34:L60,Y12) -> 0 | AA12: =Z12/(AB4-Z20) -> 0 | AB12: =IF(AA12=0,0,(AA12*((LOG(AA12))/LOG(2)))) -> 0 | AD12: =N12 -> 1212 | AE12: =COUNTIF(L61:L86,AD12) -> 0 | AF12: =AE12/(AG4-AE20) -> 0 | AG12: =IF(AF12=0,0,(AF12*((LOG(AF12))/LOG(2)))) -> 0 | AI12: =N12 -> 1212 | AJ12: =COUNTIF(L87:L113,AI12) -> 0 | AK12: =AJ12/(AL4-AJ20) -> 0 | AL12: =IF(AK12=0,0,(AK12*((LOG(AK12))/LOG(2)))) -> 0 | AN12: =N12 -> 1212 | AO12: =COUNTIF(L114:L140,AN12) -> 0 | AP12: =AO12/(AQ4-AO20) -> 0 | AQ12: =IF(AP12=0,0,(AP12*((LOG(AP12))/LOG(2)))) -> 0 | AS12: =N12 -> 1212 | AT12: =COUNTIF(L141:L167,AS12) -> 2 | AU12: =AT12/(AV4-AT20) -> 0.07692307692 | AV12: =IF(AU12=0,0,(AU12*((LOG(AU12))/LOG(2)))) -> -0.2846492091
A13: 12 | B13: 840 | C13: 14 | D13: 848 | E13: 24 | F13: 861 | G13: 23 | H13: 869 | K13: 0 | L13: 1122 | N13: 1221 | O13: =COUNTIF($L$7:$L$500,N13) -> 2 | P13: =O13/$Q$4 -> 0.01242236025 | Q13: =IF(P13=0,0,(P13*((LOG(P13))/LOG(2)))) -> -0.07864493016 | T13: =N13 -> 1221 | U13: =COUNTIF(L7:L33,T13) -> 0 | V13: =U13/(W4-U20) -> 0 | W13: =IF(V13=0,0,(V13*((LOG(V13))/LOG(2)))) -> 0 | Y13: =N13 -> 1221 | Z13: =COUNTIF(L34:L60,Y13) -> 0 | AA13: =Z13/(AB4-Z20) -> 0 | AB13: =IF(AA13=0,0,(AA13*((LOG(AA13))/LOG(2)))) -> 0 | AD13: =N13 -> 1221 | AE13: =COUNTIF(L61:L86,AD13) -> 1 | AF13: =AE13/(AG4-AE20) -> 0.04347826087 | AG13: =IF(AF13=0,0,(AF13*((LOG(AF13))/LOG(2)))) -> -0.1966766068 | AI13: =N13 -> 1221 | AJ13: =COUNTIF(L87:L113,AI13) -> 1 | AK13: =AJ13/(AL4-AJ20) -> 0.04166666667 | AL13: =IF(AK13=0,0,(AK13*((LOG(AK13))/LOG(2)))) -> -0.1910401042 | AN13: =N13 -> 1221 | AO13: =COUNTIF(L114:L140,AN13) -> 0 | AP13: =AO13/(AQ4-AO20) -> 0 | AQ13: =IF(AP13=0,0,(AP13*((LOG(AP13))/LOG(2)))) -> 0 | AS13: =N13 -> 1221 | AT13: =COUNTIF(L141:L167,AS13) -> 0 | AU13: =AT13/(AV4-AT20) -> 0 | AV13: =IF(AU13=0,0,(AU13*((LOG(AU13))/LOG(2)))) -> 0
